Workbook

Sheet Kuntakortti
A1: VM/KAO, 30.8.2024
A2: KUNTAKONSERNIN KESKEISIÄ TILINPÄÄTÖSTIETOJA | E2: Valitse kunta valikosta:
A4: =INDEX(Luvut!$B$3:'Luvut'!$B$296,$A$7) -> Koko maa (Manner-Suomi) | B4: 2021 | E4: 2022 | H4: 2023
A6: Asukasluku | B6: =VLOOKUP($A$4,Luvut!$B$3:$DU$296,2) -> 5517897 | E6: =VLOOKUP($A$4,Luvut!$B$3:$DU$296,43) -> 5533611 | G6: =((E6/B6)-1)*100 -> 0.284782409 | H6: =VLOOKUP($A$4,Luvut!$B$3:$DU$296,84) -> 5573310 | J6: =((H6/E6)-1)*100 -> 0.7174158068
A7: 95
A8: Tunnuslukuja
A10: Tuloveroprosentti | B10: =VLOOKUP($A$4,Luvut!$B$3:$DU$296,3) -> 20.02 | E10: =VLOOKUP($A$4,Luvut!$B$3:$DU$296,44) -> 20.01 | H10: =VLOOKUP($A$4,Luvut!$B$3:$DU$296,85) -> 7.32
A11: Vuosikate/poistot, % | B11: =B35/B37 -> 1.400065297 | E11: =E35/E37 -> 1.288588122 | H11: =H35/H37 -> 1.459931148
A12: Lainakanta, 1000 € ja €/as | B12: =B64 -> 42376109.87 | C12: =C64 -> 7679.757319 | E12: =E64 -> 43538239 | F12: =F64 -> 7867.961626 | H12: =H64 -> 38834865.93 | I12: =I64 -> 6968.007509
A13: Lainat ja vuokravastuut, 1000 € ja €/as | B13: =B64+B68 -> 50118699.83 | C13: =(1000*B13)/B6 -> 9082.935008 | E13: =E64+E68 -> 51961029.19 | F13: =(E13*1000)/E6 -> 9390.076244 | H13: =H64+H68 -> 44954064.86 | I13: =(H13*1000)/H6 -> 8065.954497
A14: Laskennallinen lainanhoitokate | B14: =(B35+B33)/(B33+(B64/8)) -> 1.254334981 | E14: =(E35+E33)/(E33+(E64/8)) -> 1.156736626 | H14: =(H35+H33)/(H33+(H64/8)) -> 1.324223253
A15: Lainanhoitokate* | B15: =VLOOKUP($A$4,Luvut!$B$3:$DU$296,4) -> 1.839379606 | E15: =VLOOKUP($A$4,Luvut!$B$3:$DU$296,45) -> 1.7 | H15: =VLOOKUP($A$4,Luvut!$B$3:$DU$296,86) -> 1.853392115
A16: Suhteellinen velkaantuneisuus, % | B16: =VLOOKUP($A$4,Luvut!$B$3:$DU$296,5) -> 82.48213631 | E16: =VLOOKUP($A$4,Luvut!$B$3:$DU$296,46) -> 82 | H16: =VLOOKUP($A$4,Luvut!$B$3:$DU$296,87) -> 130.8701987
A17: Omavaraisuusaste, % | B17: =VLOOKUP($A$4,Luvut!$B$3:$DU$296,6) -> 41.79822183 | E17: =VLOOKUP($A$4,Luvut!$B$3:$DU$296,47) -> 41 | H17: =VLOOKUP($A$4,Luvut!$B$3:$DU$296,88) -> 46.07791671
A18: Rahavarat, 1000 € ja €/as | B18: =VLOOKUP($A$4,Luvut!$B$3:$DU$296,7) -> 9678384.381 | C18: =(B18*1000)/B6 -> 1753.998739 | E18: =VLOOKUP($A$4,Luvut!$B$3:$DU$296,48) -> 10630066.73 | F18: =(E18*1000)/E6 -> 1921 | H18: =VLOOKUP($A$4,Luvut!$B$3:$DU$296,89) -> 8188603.326 | I18: =(H18*1000)/H6 -> 1469.253159
A19: Kassan riittävyys, pv | B19: =VLOOKUP($A$4,Luvut!$B$3:$DU$296,8) -> 48.9760954 | E19: =VLOOKUP($A$4,Luvut!$B$3:$DU$296,49) -> 50 | H19: =VLOOKUP($A$4,Luvut!$B$3:$DU$296,90) -> 71.87929967
A21: Tuloslaskelma | B21: 1000 | C21: €/as | E21: 1000 | F21: €/as | G21: muut. % | H21: 1000 | I21: €/as | J21: muut. %
A23: Toimintatuotot | B23: =VLOOKUP($A$4,Luvut!$B$3:$DU$296,9) -> 29578141.94 | C23: =B23*1000/$B$6 -> 5360.401244 | E23: =VLOOKUP($A$4,Luvut!$B$3:$DU$296,50) -> 31512266 | F23: =E23*1000/$E$6 -> 5694.702067 | G23: =((E23/B23)-1)*100 -> 6.539031634 | H23: =VLOOKUP($A$4,Luvut!$B$3:$DU$296,91) -> 16919176.56 | I23: =H23*1000/$H$6 -> 3035.750131 | J23: =((H23/E23)-1)*100 -> -46.30923539
A24: Toimintakulut | B24: =VLOOKUP($A$4,Luvut!$B$3:$DU$296,10) -> 59506994.68 | C24: =B24*1000/$B$6 -> 10784.36127 | E24: =VLOOKUP($A$4,Luvut!$B$3:$DU$296,51) -> 63470265 | F24: =E24*1000/$E$6 -> 11469.95425 | G24: 6.660175558 | H24: =VLOOKUP($A$4,Luvut!$B$3:$DU$296,92) -> 29260015.11 | I24: =H24*1000/$H$6 -> 5250.024692 | J24: -53.89964873
A25: Osuus osakkuusyhteisöjen voitosta/tappiosta | B25: =VLOOKUP($A$4,Luvut!$B$3:$DU$296,11) -> 74212.18445 | C25: 13.44936023 | E25: =VLOOKUP($A$4,Luvut!$B$3:$DU$296,52) -> 40474 | F25: 7.314211281 | H25: =VLOOKUP($A$4,Luvut!$B$3:$DU$296,93) -> 66903.97212 | I25: =H25*1000/$H$6 -> 12.00435148
A26: Toimintakate | B26: =VLOOKUP($A$4,Luvut!$B$3:$DU$296,12) -> -29854640.56 | C26: -5410.510663 | E26: =VLOOKUP($A$4,Luvut!$B$3:$DU$296,53) -> -31917405 | F26: -5767.916285 | G26: 6.9093595 | H26: =VLOOKUP($A$4,Luvut!$B$3:$DU$296,94) -> -12273934.58 | I26: =H26*1000/$H$6 -> -2202.270209 | J26: -61.5446977
A28: Verotulot | B28: =VLOOKUP($A$4,Luvut!$B$3:$DU$296,13) -> 25362358.12 | C28: 4596.381216 | E28: =VLOOKUP($A$4,Luvut!$B$3:$DU$296,54) -> 26707861 | F28: 4826.479671 | G28: 5.305117421 | H28: =VLOOKUP($A$4,Luvut!$B$3:$DU$296,95) -> 14382225.78 | I28: =H28*1000/$H$6 -> 2580.553707 | J28: -46.14984038
A29: Valtionosuudet, | B29: =VLOOKUP($A$4,Luvut!$B$3:$DU$296,14) -> 11284744.39 | C29: 2045.116898 | E29: =VLOOKUP($A$4,Luvut!$B$3:$DU$296,55) -> 11976772 | F29: 2164.368258 | G29: 6.132417197 | H29: =VLOOKUP($A$4,Luvut!$B$3:$DU$296,96) -> 4916190.831 | I29: =H29*1000/$H$6 -> 882.0953492 | J29: -58.95228839
A30: Verorahoitus yht. | B30: =SUM(B28:B29) -> 36647102.52 | C30: =B30*1000/$B$6 -> 6641.498113 | E30: =SUM(E28:E29) -> 38684633 | F30: =E30*1000/$E$6 -> 6990.847929 | G30: =((E30/B30)-1)*100 -> 5.559867889 | H30: =SUM(H28:H29) -> 19298416.61 | I30: =H30*1000/$H$6 -> 3462.649056 | J30: =((H30/E30)-1)*100 -> -50.11348147
A32: Korkotuotot | B32: =VLOOKUP($A$4,Luvut!$B$3:$DU$296,15) -> 86099.22919 | C32: 15.60363109 | E32: =VLOOKUP($A$4,Luvut!$B$3:$DU$296,56) -> 78764.06132 | F32: 14.23375465 | G32: =((E32/B32)-1)*100 -> -8.519435004 | H32: =VLOOKUP($A$4,Luvut!$B$3:$DU$296,97) -> 195304.223 | I32: =H32*1000/$H$6 -> 35.04277046 | J32: =((H32/E32)-1)*100 -> 147.9610875
A33: Korkokulut | B33: =VLOOKUP($A$4,Luvut!$B$3:$DU$296,16) -> 408277.2442 | C33: 73.99145801 | E33: =VLOOKUP($A$4,Luvut!$B$3:$DU$296,57) -> 427835.8063 | F33: 77.31584426 | G33: 4.790509973 | H33: =VLOOKUP($A$4,Luvut!$B$3:$DU$296,98) -> 827885.8903 | I33: 148.544741 | J33: 93.50551734
A34: Muut rahoituskulut/-tuotot, netto | B34: =VLOOKUP($A$4,Luvut!$B$3:$DU$296,17) -> 277918.6163 | C34: 50.36676406 | E34: =VLOOKUP($A$4,Luvut!$B$3:$DU$296,58) -> -55813 | F34: -10.08618062 | G34: -120.0824978 | H34: =VLOOKUP($A$4,Luvut!$B$3:$DU$296,99) -> 304773.5542 | I34: =H34*1000/$H$6 -> 54.68447909 | J34: -646.0619464
A35: Vuosikate | B35: =VLOOKUP($A$4,Luvut!$B$3:$DU$296,18) -> 6748068.806 | C35: 1222.942147 | E35: =VLOOKUP($A$4,Luvut!$B$3:$DU$296,59) -> 6362342 | F35: 1149.763147 | G35: -5.716106593 | H35: =VLOOKUP($A$4,Luvut!$B$3:$DU$296,100) -> 6696673.917 | I35: =H35*1000/$H$6 -> 1201.561355 | J35: 5.254856098
A37: Suunnitelman mukaiset poistot ja arvonalen. | B37: =VLOOKUP($A$4,Luvut!$B$3:$DU$296,19) -> 4819824.347 | C37: 873.489365 | E37: =VLOOKUP($A$4,Luvut!$B$3:$DU$296,60) -> 4937452 | F37: 892.2658279 | G37: 2.440496678 | H37: =VLOOKUP($A$4,Luvut!$B$3:$DU$296,101) -> 4586979.275 | I37: =H37*1000/$H$6 -> 823.0260428 | J37: -7.098250782
A38: Satunnaiset erät | B38: =VLOOKUP($A$4,Luvut!$B$3:$DU$296,20) -> 107688.2948 | C38: 19.5161843 | E38: =VLOOKUP($A$4,Luvut!$B$3:$DU$296,61) -> 207757 | F38: 37.54456177 | H38: =VLOOKUP($A$4,Luvut!$B$3:$DU$296,102) -> -3875.05721 | I38: =H38*1000/$H$6 -> -0.6952882955
A39: Tilikauden tulos | B39: =VLOOKUP($A$4,Luvut!$B$3:$DU$296,21) -> 2035932.756 | C39: =B39*1000/$B$6 -> 368.9689669 | E39: =VLOOKUP($A$4,Luvut!$B$3:$DU$296,62) -> 1627855 | F39: =E39*1000/$E$6 -> 294.1759007 | G39: -20.04377378 | H39: =VLOOKUP($A$4,Luvut!$B$3:$DU$296,103) -> 2105819.585 | I39: =H39*1000/$H$6 -> 377.8400241 | J39: 29.3616191
A41: Tilinpäätössiirrot | B41: =VLOOKUP($A$4,Luvut!$B$3:$DU$296,22) -> -4579.8881 | C41: =B41*1000/$B$6 -> -0.8300060875 | E41: =VLOOKUP($A$4,Luvut!$B$3:$DU$296,63) -> -21823 | F41: -3.943717764 | H41: =VLOOKUP($A$4,Luvut!$B$3:$DU$296,104) -> -36090.31982 | I41: =H41*1000/$H$6 -> -6.475562963
A42: Tilikauden verot | B42: =VLOOKUP($A$4,Luvut!$B$3:$DU$296,23) -> 104657.8677 | C42: 18.96698465 | E42: =VLOOKUP($A$4,Luvut!$B$3:$DU$296,64) -> 127840 | F42: 23.10245516 | H42: =VLOOKUP($A$4,Luvut!$B$3:$DU$296,105) -> 107491.2585 | I42: =H42*1000/$H$6 -> 19.2867898
A43: Laskennalliset verot | B43: =VLOOKUP($A$4,Luvut!$B$3:$DU$296,24) -> -48761.12652 | C43: -8.836904081 | E43: =VLOOKUP($A$4,Luvut!$B$3:$DU$296,65) -> -49906 | F43: -9.018704061 | H43: =VLOOKUP($A$4,Luvut!$B$3:$DU$296,106) -> -38025.8439 | I43: =H43*1000/$H$6 -> -6.822847446
A44: Vähemmistöosuudet | B44: =VLOOKUP($A$4,Luvut!$B$3:$DU$296,25) -> -44084.34721 | C44: =B44*1000/$B$6 -> -7.989338549 | E44: =VLOOKUP($A$4,Luvut!$B$3:$DU$296,66) -> -5663 | F44: =E44*1000/$E$6 -> -1.023382381 | H44: =VLOOKUP($A$4,Luvut!$B$3:$DU$296,107) -> -12460.72113 | I44: -2.235784683
A45: Tilikauden yli-/alijäämä | B45: =VLOOKUP($A$4,Luvut!$B$3:$DU$296,26) -> 1833848.563 | C45: 332.3455589 | E45: =VLOOKUP($A$4,Luvut!$B$3:$DU$296,67) -> 1422621 | F45: 257.0872799 | G45: -22.42429233 | H45: =VLOOKUP($A$4,Luvut!$B$3:$DU$296,108) -> 1911786.441 | I45: =H45*1000/$H$6 -> 343.0253191 | J45: 34.3848039
A47: Taseen kertynyt yli-/alijäämä | B47: =VLOOKUP($A$4,Luvut!$B$3:$DU$296,27) -> 16434039.38 | C47: 2978.31572 | E47: =VLOOKUP($A$4,Luvut!$B$3:$DU$296,68) -> 17791840 | F47: 3215.231428 | G47: 8.262123472 | H47: =VLOOKUP($A$4,Luvut!$B$3:$DU$296,109) -> 19702940.47 | I47: =H47*1000/$H$6 -> 3535.231392 | J47: 10.74144366
A48: Muut omat rahastot | B48: =VLOOKUP($A$4,Luvut!$B$3:$EC$296,126) -> 3724815.673 | C48: 675.0426245 | E48: =VLOOKUP($A$4,Luvut!$B$3:$EC$296,127) -> 3738934.197 | F48: =E48*1000/$E$6 -> 675.6770935 | G48: 0.3790395531 | H48: =VLOOKUP($A$4,Luvut!$B$3:$EC$296,128) -> 3724815.673 | I48: =H48*1000/$H$6 -> 668.330969 | J48: -0.3776082684
A49: Taseen kert. yli-/alij. ml. muut omat rahastot | B49: =SUM(B47:B48) -> 20158855.05 | C49: 3653.358344 | E49: =SUM(E47:E48) -> 21530774.2 | F49: 3890.908522 | G49: 6.805541019 | H49: =SUM(H47:H48) -> 23427756.14 | I49: =H49*1000/$H$6 -> 4203.562361 | J49: 8.810560768
A51: Rahoituslaskelma ja tase | B51: 1000 | C51: €/as | E51: 1000 | F51: €/as | H51: 1000 | I51: €/as
A53: Toiminnan rahavirta | B53: =VLOOKUP($A$4,Luvut!$B$3:$DU$296,28) -> 6075765.615 | C53: 1101.101672 | E53: =VLOOKUP($A$4,Luvut!$B$3:$DU$296,69) -> 5569402 | F53: =E53*1000/$E$6 -> 1006.467928 | G53: -8.334153211 | H53: =VLOOKUP($A$4,Luvut!$B$3:$DU$296,110) -> 6205283.803 | I53: =H53*1000/$H$6 -> 1113.392903 | J53: 11.41741613
A54: Investoinnit, netto | B54: =B55+B56+B57 -> -6699845.476 | C54: -1214.202707 | E54: =E55+E56+E57 -> -6926443 | F54: -1251.703996 | G54: 3.382130597 | H54: =H55+H56+H57 -> -6701450.031 | I54: -1202.418317 | J54: -3.248319076
A55: - Investointimenot | B55: =VLOOKUP($A$4,Luvut!$B$3:$DU$296,29) -> -8590005.235 | C55: -1556.753458 | E55: =VLOOKUP($A$4,Luvut!$B$3:$DU$296,70) -> -9681016 | F55: -1749.493414 | G55: 12.70093248 | H55: =-VLOOKUP($A$4,Luvut!$B$3:$DU$296,111) -> -7896284.909 | I55: -1416.803463 | J55: -18.4353697
A56: + Rahoitusosuudet investointimenoihin | B56: =VLOOKUP($A$4,Luvut!$B$3:$DU$296,30) -> 257541.7962 | C56: 46.67390424 | E56: =VLOOKUP($A$4,Luvut!$B$3:$DU$296,71) -> 216944 | F56: 39.20477966 | G56: =((E56/B56)-1)*100 -> -15.76357578 | H56: =VLOOKUP($A$4,Luvut!$B$3:$DU$296,112) -> 161977.6939 | I56: 29.06310503 | J56: -25.33663347
A57: + Investointihyödykkeiden luovutustulot | B57: =VLOOKUP($A$4,Luvut!$B$3:$DU$296,31) -> 1632617.962 | C57: 295.8768463 | E57: =VLOOKUP($A$4,Luvut!$B$3:$DU$296,72) -> 2537629 | F57: 458.5846385 | G57: =((E57/B57)-1)*100 -> 55.43311775 | H57: =VLOOKUP($A$4,Luvut!$B$3:$DU$296,113) -> 1032857.185 | I57: 185.3220411 | J57: -59.29833775
A58: Saamisten muutos | B58: =VLOOKUP($A$4,Luvut!$B$3:$DU$296,32) -> -859159.9211 | C58: -155.7042332 | E58: =VLOOKUP($A$4,Luvut!$B$3:$DU$296,73) -> -525529 | F58: -94.9703548 | H58: =VLOOKUP($A$4,Luvut!$B$3:$DU$296,114) -> 825183.1724 | I58: 148.0598015
A59: Pitkäaikaisten lainojen vähennys | B59: =VLOOKUP($A$4,Luvut!$B$3:$DU$296,33) -> -3508614.919 | C59: -635.860894 | E59: =VLOOKUP($A$4,Luvut!$B$3:$DU$296,74) -> -3611853 | F59: -652.7117645 | H59: =VLOOKUP($A$4,Luvut!$B$3:$DU$296,115) -> -3231999.629 | I59: -579.9066674
A60: Pitkäaikaisten lainojen lisäys | B60: =VLOOKUP($A$4,Luvut!$B$3:$DU$296,34) -> 4520813.193 | C60: 819.3000328 | E60: =VLOOKUP($A$4,Luvut!$B$3:$DU$296,75) -> 4919801 | F60: 889.0760482 | H60: =VLOOKUP($A$4,Luvut!$B$3:$DU$296,116) -> 4371507.12 | I60: 784.3646091
A61: ± Lyhytaikaisten lainojen muutos | B61: =VLOOKUP($A$4,Luvut!$B$3:$DU$296,35) -> 259626.3413 | C61: 47.05168316 | E61: =VLOOKUP($A$4,Luvut!$B$3:$DU$296,76) -> -21878 | F61: -3.953657024 | H61: =VLOOKUP($A$4,Luvut!$B$3:$DU$296,117) -> -269435.8794 | I61: -48.34396067
A62: Toiminnan ja investointien rahavirta | B62: =VLOOKUP($A$4,Luvut!$B$3:$DU$296,36) -> -624085.0453 | C62: -113.1019744 | E62: =VLOOKUP($A$4,Luvut!$B$3:$DU$296,77) -> -1206512 | F62: -218.0333963 | H62: =VLOOKUP($A$4,Luvut!$B$3:$DU$296,118) -> -496169.2283 | I62: -89.02595195
A64: Lainakanta, | B64: =VLOOKUP($A$4,Luvut!$B$3:$DU$296,37) -> 42376109.87 | C64: 7679.757319 | E64: =VLOOKUP($A$4,Luvut!$B$3:$DU$296,78) -> 43538239 | F64: 7867.961626 | G64: =((E64/B64)-1)*100 -> 2.742415786 | H64: =VLOOKUP($A$4,Luvut!$B$3:$DU$296,119) -> 38834865.93 | I64: =H64*1000/$H$6 -> 6968.007509 | J64: =((H64/E64)-1)*100 -> -10.80285556
A65: josta pitkäaikainen laina | B65: =VLOOKUP($A$4,Luvut!$B$3:$DU$296,38) -> 36140832.99 | C65: 6549.747664 | E65: =VLOOKUP($A$4,Luvut!$B$3:$DU$296,79) -> 37118290 | F65: =E65*1000/$E$6 -> 6707.788097 | G65: =((E65/B65)-1)*100 -> 2.704577986 | H65: =VLOOKUP($A$4,Luvut!$B$3:$DU$296,120) -> 33266324.19 | I65: =H65*1000/$H$6 -> 5968.863061 | J65: -10.37754113
A66: josta lyhytaikainen laina | B66: =VLOOKUP($A$4,Luvut!$B$3:$DU$296,39) -> 6207143.346 | C66: 1124.911057 | E66: =VLOOKUP($A$4,Luvut!$B$3:$DU$296,80) -> 6419949 | F66: 1160.173529 | G66: 3.42839922 | H66: =VLOOKUP($A$4,Luvut!$B$3:$DU$296,121) -> 5568541.742 | I66: 999.1444478 | J66: -13.26190064
A67: Lainasaamiset | B67: =VLOOKUP($A$4,Luvut!$B$3:$DU$296,40) -> 1101531.225 | C67: 199.6288125 | E67: =VLOOKUP($A$4,Luvut!$B$3:$DU$296,81) -> 1130168 | F67: 204.2369802 | G67: 2.599724262 | H67: =VLOOKUP($A$4,Luvut!$B$3:$DU$296,122) -> 1090030.177 | I67: 195.5803961 | J67: -3.551491682
A68: Vuokravastuut | B68: =VLOOKUP($A$4,Luvut!$B$3:$DU$296,41) -> 7742589.961 | C68: 1403.177689 | E68: =VLOOKUP($A$4,Luvut!$B$3:$DU$296,82) -> 8422790.194 | F68: 1522.114618 | G68: 8.785177019 | H68: =VLOOKUP($A$4,Luvut!$B$3:$DU$296,123) -> 6119198.929 | I68: 1097.946988 | J68: -27.3495031
A70: Sijoitus vuosikatteen (euro/as) mukaan | B70: =VLOOKUP($A$4,Luvut!$B$3:$DU$296,42) -> - | E70: =VLOOKUP($A$4,Luvut!$B$3:$DU$296,83) -> - | H70: =VLOOKUP($A$4,Luvut!$B$3:$DU$296,124) -> -
A71: * Ei tietoa kertalyhenteisistä lainoista
A72: Lähde: Tilastokeskus ja Valtiokonttori

Sheet Luvut
C1: 2021 | D1: 3 | E1: 4 | F1: 5 | G1: 6 | H1: 7 | I1: 8 | J1: 9 | K1: 10 | L1: 11 | M1: 12 | N1: 13 | O1: 14 | P1: 15 | Q1: 16 | R1: 17 | S1: 18 | T1: 19 | U1: 20 | V1: 21 | W1: 22 | X1: 23 | Y1: 24 | Z1: 25 | AA1: 26 | AB1: 27 | AC1: 28 | AD1: 29 | AE1: 30 | AF1: 31 | AG1: 32 | AH1: 33 | AI1: 34 | AJ1: 35 | AK1: 36 | AL1: 37 | AM1: 38 | AN1: 39 | AO1: 40 | AP1: 41 | AQ1: 42 | AR1: 2022 | AS1: 44 | AT1: 45 | AU1: 46 | AV1: 47 | AW1: 48 | AX1: 49 | AY1: 50 | AZ1: 51 | BA1: 52 | BB1: 53 | BC1: 54 | BD1: 55 | BE1: 56 | BF1: 57 | BG1: 58 | BH1: 59 | BI1: 60 | BJ1: 61 | BK1: 62 | BL1: 63 | BM1: 64 | BN1: 65 | BO1: 66 | BP1: 67 | BQ1: 68 | BR1: 69 | BS1: 70 | BT1: 71 | BU1: 72 | BV1: 73 | BW1: 74 | BX1: 75 | BY1: 76 | BZ1: 77 | CA1: 78 | CB1: 79 | CC1: 80 | CD1: 81 | CE1: 82 | CF1: 83 | CG1: 2023 | CH1: 85 | CI1: 86 | CJ1: 87 | CK1: 88 | CL1: 89 | CM1: 90 | CN1: 91 | CO1: 92 | CP1: 93 | CQ1: 94 | CR1: 95 | CS1: 96 | CT1: 97 | CU1: 98 | CV1: 99 | CW1: 100 | CX1: 101 | CY1: 102 | CZ1: 103 | DA1: 104 | DB1: 105 | DC1: 106 | DD1: 107 | DE1: 108 | DF1: 109 | DG1: 110 | DH1: 111 | DI1: 112 | DJ1: 113 | DK1: 114 | DL1: 115 | DM1: 116 | DN1: 117 | DO1: 118 | DP1: 119 | DQ1: 120 | DR1: 121 | DS1: 122 | DT1: 123 | DU1: 124 | DV1: Erillistiedot | DW1: 2021 | DX1: 2022 | DY1: 2023 | EA1: 2020 | EB1: 2021 | EC1: 2022
A2: Kunta nro | B2: Kunta | C2: Asukasluku | D2: Tuloveroprosentti 2015 | E2: Lainanhoitokate | F2: Suhteellinen velkaantuneisuus-% | G2: Omavaraisuusaste, % | H2: Rahavarat | I2: Kassan riittävyys, pv | J2: Toimintatuotot | K2: Toimintakulut | L2: Osuus osakkuusyhteisojen voitosta/tappiosta | M2: Toimintakate | N2: Verotulot | O2: Valtionosuudet | P2: Korkotuotot | Q2: Korkokulut | R2: Muut rahoitustuotot/-menot, netto (sis Osinkotuotot) | S2: Vuosikate | T2: Suunnitelman mukaiset poistot ja arvonalet | U2: Satu. erät, netto | V2: Tilikauden tulos | W2: Tilinpäätössiirrot | X2: Tilikauden verot | Y2: Lask. Verot | Z2: Vähemmistöosuudet | AA2: Tilikauden yli- tai alijäämä | AB2: Kumulat yli/alij | AC2: Toiminnan rahavirta | AD2: - Investointimenot | AE2: + Rahoitusos. investointimenoihin | AF2: + Investointihyödykk. luovutustulot | AG2: Saamisten muutos (ent Pitkäaikaisten saamisten muutokset, netto) | AH2: Pitkäaikaisten lainojen vähennys | AI2: Pitkäaikaisten lainojen lisäys | AJ2: ± Lyhytaikaisten lainojen muutos | AK2: Toim ja inv rahavirta | AL2: Lainakanta | AM2: josta pitkäaik | AN2: josta lyhytaik | AO2: Lainasaamiset | AP2: Vuokravastuut | AQ2: Sijoitus vuosikatteen mukaan | AR2: Asukasluku | AS2: Tuloveroprosentti 2019 | AT2: Lainanhoitokate | AU2: Suhteellinen velkaantuneisuus-% | AV2: Omavaraisuusaste, % | AW2: Rahavarat | AX2: Kassan riittävyys, pv | AY2: Toimintatuotot | AZ2: Toimintakulut | BA2: Osuus osakkuusyhteisojen voitosta/tappiosta | BB2: Toimintakate | BC2: Verotulot | BD2: Valtionosuudet | BE2: Korkotuotot | BF2: Korkokulut | BG2: Muut rahoitustuotot/-menot, netto (sis Osinkotuotot) | BH2: Vuosikate | BI2: Suunnitelman mukaiset poistot ja arvonalet | BJ2: Satu. erät, netto | BK2: Tilikauden tulos | BL2: Tilinpäätössiirrot | BM2: Tilikauden verot | BN2: Lask. verot | BO2: Vähemmistöosuudet | BP2: Tilikauden yli- tai alij. | BQ2: Kumulat yli/alij | BR2: Toiminnan rahavirta | BS2: - Investointimenot | BT2: + Rahoitusosuudet investointimenoihin | BU2: + Investointihyödykkeiden luovutustulot | BV2: Saamisten muutos | BW2: Pitkäaikaisten lainojen vähennys | BX2: Pitkäaikaisten lainojen lisäys | BY2: ± Lyhytaikaisten lainojen muutos | BZ2: Toim ja inv rahavirta | CA2: Lainakanta | CB2: josta pitkäaik | CC2: josta lyhytaik | CD2: Lainasaamiset | CE2: Vuokravastuut | CF2: Sijoitus vuosikatteen mukaan | CG2: Asukasluku | CH2: Tuloveroprosentti 2020 | CI2: Lainanhoitokate | CJ2: Suhteellinen velkaantuneisuus-% | CK2: Omavaraisuusaste, % | CL2: Rahavarat | CM2: Kassan riittävyys, pv | CN2: Toimintatuotot | CO2: Toimintakulut | CP2: Osuus osakkuusyhteisojen voitosta/tappiosta | CQ2: Toimintakate | CR2: Verotulot | CS2: Valtionosuudet | CT2: Korkotuotot | CU2: Korkokulut | CV2: Muut rahoitustuotot/-menot, netto (sis Osinkotuotot) | CW2: Vuosikate | CX2: Suunnitelman mukaiset poistot ja arvonalet | CY2: Satu. erät | CZ2: Tilikauden tulos | DA2: Tilinpäätössiirrot | DB2: Tilikauden verot | DC2: Lask. verot | DD2: Vähemmistöosuudet | DE2: Tilikauden yli- tai alijäämä | DF2: Kumulat yli/alij | DG2: Toiminnan rahavirta | DH2: - Investointimenot | DI2: + Rahoitusosuudet investointimenoihin | DJ2: + Investointihyödykkeiden luovutustulot | DK2: Saamisten muutos | DL2: Pitkäaikaisten lainojen vähennys | DM2: Pitkäaikaisten lainojen lisäys | DN2: ± Lyhytaikaisten lainojen muutos | DO2: Toim ja inv rahavirta | DP2: Lainakanta | DQ2: josta pitkäaik | DR2: josta lyhytaik | DS2: Lainasaamiset | DT2: Vuokravastuut | DU2: Sijoitus vuosikatteen mukaan | DW2: Muut omat rahastot | DX2: Muut omat rahastot | DY2: Muut omat rahastot | EA2: Takaukset muiden puolesta (jäljellä oleva pääoma) | EB2: Takaukset muiden puolesta (jäljellä oleva pääoma) | EC2: Takaukset muiden puolesta (jäljellä oleva pääoma)
A3: 20 | B3: Akaa | C3: 16467 | D3: 22.25 | E3: -2.313453909 | F3: 70.22108527 | G3: 24.00730472 | H3: 15423.76867 | I3: 29.80620715 | J3: 74655.44309 | K3: 170101.7395 | L3: 528.20763 | M3: -94918.08876 | N3: 66852.5873 | O3: 37078.345 | P3: 326.44362 | Q3: 1096.98349 | R3: 344.24125 | S3: 8586.54492 | T3: 7196.64019 | U3: 0 | V3: 1389.90473 | W3: 0.41266 | X3: -328.71218 | Y3: -8.58969 | Z3: -620.1556 | AA3: 1090.28428 | AB3: 1109.30436 | AC3: 8871.63195 | AD3: -22861.21027 | AE3: 561.1121 | AF3: 151.84541 | AG3: -1401.29978 | AH3: -5282.72861 | AI3: 2124.33 | AJ3: 19664.23733 | AK3: -13276.62081 | AL3: 96008.07901 | AM3: 62274.91437 | AN3: 33733.16464 | AO3: 7675.28061 | AP3: 16100.275 | AQ3: 266 | AR3: 16473 | AS3: 22 | AT3: 0.9311909162 | AU3: 77.14261106 | AV3: 18.49371927 | AW3: 9344.30981 | AX3: 16.29089547 | AY3: 71683.58126 | AZ3: 173187.9001 | BA3: 667.14195 | BB3: -100837.1769 | BC3: 69399.14897 | BD3: 38886.7802 | BE3: 377.10453 | BF3: 1041.50835 | BG3: 379.58957 | BH3: 7163.93805 | BI3: 7608.38151 | BJ3: 24.89267 | BK3: -419.55079 | BL3: 1.2756 | BM3: 142.22543 | BN3: -33.4082 | BO3: -252.44684 | BP3: -846.35566 | BQ3: -580.21133 | BR3: 6235.29624 | BS3: -27184.6468 | BT3: 528.25934 | BU3: 1691.01757 | BV3: -821.74934 | BW3: -7770.26833 | BX3: 35302.81045 | BY3: -14372.78015 | BZ3: -18730.07365 | CA3: 109151.7198 | CB3: 82725.23158 | CC3: 26426.48825 | CD3: 7670.53195 | CE3: 11597.0892 | CF3: 253 | CG3: 16405 | CH3: 9.36 | CI3: 3.508065341 | CJ3: 175.0778399 | CK3: 19.4231672 | CL3: 179.45281 | CM3: 0.9461394604 | CN3: 9398.52146 | CO3: 52115.26068 | CP3: 123.40158 | CQ3: -42593.33764 | CR3: 38946.10261 | CS3: 12622.80838 | CT3: 519.646 | CU3: 2288.60752 | CV3: 266.52463 | CW3: 7473.13646 | CX3: 6919.10133 | CY3: 0 | CZ3: 554.03513 | DA3: 0.2212 | DB3: 0.40961 | DC3: -3.94 | DD3: 28.33539 | DE3: 578.24211 | DF3: -3425.12198 | DG3: 7352.93108 | DH3: 14064.54349 | DI3: 13.2425 | DJ3: 164.53006 | DK3: 2601.41649 | DL3: -494.04988 | DM3: 13000 | DN3: -3412.49959 | DO3: -6533.83985 | DP3: 97654.05581 | DQ3: 73070.52072 | DR3: 24583.53509 | DS3: 7227.23807 | DT3: 4489.6441 | DU3: 244 | DW3: 18.70044 | DX3: 9.43022 | DY3: 8.8227 | EA3: 14631
A4: 5 | B4: Alajärvi | C4: 9311 | D4: 21.75 | E4: 1.3094356 | F4: 48.44765212 | G4: 34.58815484 | H4: 10401.17347 | I4: 25.21268295 | J4: 74735.01491 | K4: 137614.5644 | L4: 119.25402 | M4: -62760.29542 | N4: 31473.60663 | O4: 40058.25225 | P4: 16.1358 | Q4: 175.4082 | R4: 4.09265 | S4: 8616.38371 | T4: 6224.44744 | U4: 0 | V4: 2391.93627 | W4: 2.02381 | X4: 52.44506 | Y4: -15.63209 | Z4: -30.44942 | AA4: 2295.43351 | AB4: 10065.63043 | AC4: 8466.48177 | AD4: -5956.16774 | AE4: 75.3258 | AF4: 72.3265 | AG4: -1079.41984 | AH4: -6538.77607 | AI4: 4788.31859 | AJ4: 2009.23528 | AK4: 2657.96633 | AL4: 50361.28951 | AM4: 37575.71857 | AN4: 12785.57094 | AO4: 95.42737 | AP4: 530.73876 | AQ4: 127 | AR4: 9183 | AS4: 21.75 | AT4: 1.041516178 | AU4: 45.79307736 | AV4: 33.30222262 | AW4: 9129.52837 | AX4: 21.54850924 | AY4: 73503.04272 | AZ4: 140554.4045 | BA4: 196.04212 | BB4: -66855.31961 | BC4: 32479.35372 | BD4: 41621.53866 | BE4: 12.63185 | BF4: 260.45882 | BG4: 61.47333 | BH4: 7059.21913 | BI4: 6370.98372 | BJ4: 0 | BK4: 688.23541 | BL4: 0 | BM4: 25.31191 | BN4: -2.81011 | BO4: 16.02949 | BP4: 676.14288 | BQ4: 9487.72156 | BR4: 6612.2325 | BS4: -5728.46275 | BT4: 401.59067 | BU4: 473.38397 | BV4: 1700.07755 | BW4: -6767.44733 | BX4: 1473.67144 | BY4: 74.83825 | BZ4: 1758.74439 | CA4: 45229.48673 | CB4: 33421.31939 | CC4: 11808.16734 | CD4: 92.8705 | CE4: 484.10521 | CF4: 144 | CG4: 9113 | CH4: 9.11 | CI4: 1.76904256 | CJ4: 69.66034769 | CK4: 47.71814006 | CL4: 8314.08886 | CM4: 54.43698102 | CN4: 20092.25541 | CO4: 47311.96146 | CP4: 132.46234 | CQ4: -27087.24371 | CR4: 18620.64176 | CS4: 17437.39241 | CT4: 45.40315 | CU4: 524.75119 | CV4: 183.00004 | CW4: 8674.44246 | CX4: 5022.6077 | CY4: 0 | CZ4: 3651.83476 | DA4: 0 | DB4: 33.71389 | DC4: 2.8704 | DD4: 8.8975 | DE4: 3629.88877 | DF4: 13315.98142 | DG4: 8446.98695 | DH4: 3050.91334 | DI4: 7.85639 | DJ4: 110.55451 | DK4: 2773.6355 | DL4: -4675.34623 | DM4: 3362.23911 | DN4: 0 | DO4: 5514.48451 | DP4: 30309.26426 | DQ4: 20347.66579 | DR4: 9961.59847 | DS4: 41.32151 | DT4: 193.71906 | DU4: 89 | DW4: 37.11575 | DX4: 37.11574 | DY4: 40.36511 | EA4: 498
A5: 9 | B5: Alavieska | C5: 2491 | D5: 22 | E5: 24.08267938 | F5: 46.08050094 | G5: 39.51855506 | H5: 6638.54435 | I5: 65.17688299 | J5: 17280.94415 | K5: 34291.8393 | L5: 0.41947 | M5: -17010.47568 | N5: 8349.39248 | O5: 10378.9588 | P5: 135.94898 | Q5: 43.8228 | R5: 19.2323 | S5: 1829.23408 | T5: 1092.37894 | U5: 0 | V5: 736.85514 | W5: -0.08646 | X5: 1.53162 | Y5: -0.21926 | Z5: -0.12127 | AA5: 734.89653 | AB5: 3665.02946 | AC5: 1811.36951 | AD5: -2582.2359 | AE5: -3.81397 | AF5: 234.14456 | AG5: -185.26324 | AH5: -33.9533 | AI5: 620.1 | AJ5: 990.72 | AK5: -540.5358 | AL5: 12825.89411 | AM5: 1787.94788 | AN5: 11037.94623 | AO5: 220.09587 | AP5: 97.76 | AQ5: 197 | AR5: 2447 | AS5: 22 | AT5: 29.08223995 | AU5: 44.42583121 | AV5: 42.88607395 | AW5: 7551.13969 | AX5: 71.87193602 | AY5: 17797.69385 | AZ5: 35441.33862 | BA5: 3.83939 | BB5: -17639.80538 | BC5: 9070.38666 | BD5: 11441.82046 | BE5: 362.04586 | BF5: 49.85654 | BG5: -187.12994 | BH5: 2997.46112 | BI5: 1173.77602 | BJ5: 0 | BK5: 1823.6851 | BL5: -2.43979 | BM5: 1.08357 | BN5: -0.0266 | BO5: -0.61714 | BP5: 1819.518 | BQ5: 5512.28185 | BR5: 3028.84762 | BS5: -2380.21517 | BT5: 6.83736 | BU5: 66.48421 | BV5: 5.49244 | BW5: -54.92623 | BX5: 963.8 | BY5: -0.99478 | BZ5: 721.95402 | CA5: 13563.9188 | CB5: 2458.34587 | CC5: 11105.57293 | CD5: 231.29587 | CE5: 29.53908 | CF5: 47 | CG5: 2437 | CH5: 9.36 | CI5: 6.76928843 | CJ5: 77.96195009 | CK5: 55.38365133 | CL5: 5316.22705 | CM5: 136.6523848 | CN5: 3988.91765 | CO5: 11747.9106 | CP5: 12.06624 | CQ5: -7746.92671 | CR5: 4923.71956 | CS5: 4520.22015 | CT5: 30.93572 | CU5: 243.79505 | CV5: 186.37254 | CW5: 1670.52621 | CX5: 1247.41443 | CY5: -10.54 | CZ5: 412.57178 | DA5: 1.29386 | DB5: 3.58458 | DC5: 0 | DD5: 0 | DE5: 410.28106 | DF5: 5893.37953 | DG5: 1643.98483 | DH5: 1982.62184 | DI5: 25.14774 | DJ5: 47.23636 | DK5: 1455.07897 | DL5: -39 | DM5: 0 | DN5: -1998.88193 | DO5: -266.25291 | DP5: 9042.18649 | DQ5: 15.5 | DR5: 9026.68649 | DS5: 237.9 | DT5: 58.325 | DU5: 184 | DW5: 115.71806 | DX5: 121.17481 | DY5: 81.30789 | EA5: 2732
A6: 10 | B6: Alavus | C6: 11197 | D6: 21.25 | E6: 1.127115969 | F6: 64.72786781 | G6: 36.14859524 | H6: 31691.04398 | I6: 66.26309719 | J6: 85046.80768 | K6: 156608.7224 | L6: 427.41189 | M6: -71134.5028 | N6: 36731.15996 | O6: 42180.877 | P6: 35.12463 | Q6: 397.65931 | R6: 1036.1592 | S6: 8451.15868 | T6: 7934.90534 | U6: 0 | V6: 516.25334 | W6: 32.68826 | X6: 21.30397 | Y6: -14.99297 | Z6: 2.05711 | AA6: 514.70177 | AB6: 26732.91178 | AC6: 7933.9878 | AD6: -9385.32348 | AE6: 405.11802 | AF6: 871.78084 | AG6: 3058.19721 | AH6: -7453.19032 | AI6: 11457.62666 | AJ6: 2251.74567 | AK6: -174.43682 | AL6: 87375.73433 | AM6: 77207.70156 | AN6: 10168.03277 | AO6: 1717.80067 | AP6: 2297.557 | AQ6: 193 | AR6: 11102 | AS6: 21.25 | AT6: 0.8515586745 | AU6: 65.55525544 | AV6: 34.03376803 | AW6: 30658.56205 | AX6: 61.99190321 | AY6: 83034.93994 | AZ6: 158446.1222 | BA6: 578.37411 | BB6: -74832.80814 | BC6: 37647.46322 | BD6: 45138.767 | BE6: 35.01456 | BF6: 534.14822 | BG6: -844.76071 | BH6: 6609.52771 | BI6: 8271.55079 | BJ6: 0 | BK6: -1662.02308 | BL6: 19.38 | BM6: 14.48464 | BN6: -34.45506 | BO6: 28.14287 | BP6: -1663.43991 | BQ6: 23149.48238 | BR6: 5787.06869 | BS6: -11838.00359 | BT6: 463.78229 | BU6: 468.60924 | BV6: 5950.0657 | BW6: -7854.79331 | BX6: 11399.4247 | BY6: -1212.14319 | BZ6: -5118.54337 | CA6: 89987.11078 | CB6: 81178.58726 | CC6: 8808.52352 | CD6: 1737.18935 | CE6: 2013.722 | CF6: 206 | CG6: 10933 | CH6: 8.61 | CI6: 0.830388928 | CJ6: 177.6620808 | CK6: 36.25274496 | CL6: 30138.60622 | CM6: 160.2081371 | CN6: 18086.03492 | CO6: 44951.00135 | CP6: 661.18295 | CQ6: -26203.78348 | CR6: 20754.29066 | CS6: 12378.599 | CT6: 58.17233 | CU6: 1617.72367 | CV6: 1447.02037 | CW6: 6816.57521 | CX6: 7360.66967 | CY6: -221.17342 | CZ6: -765.26788 | DA6: 10 | DB6: 13.1194 | DC6: -13.438 | DD6: 2.98532 | DE6: -778.83996 | DF6: 23125.21512 | DG6: 5340.00005 | DH6: 11953.5674 | DI6: 884.25894 | DJ6: 2762.90714 | DK6: 6624.44393 | DL6: -8539.32274 | DM6: 13317.0988 | DN6: -421.94793 | DO6: -2966.40127 | DP6: 79302.65598 | DQ6: 72305.71761 | DR6: 6996.93837 | DS6: 1659.42162 | DT6: 1450.861 | DU6: 199 | DW6: 346.51467 | DX6: 410.82267 | DY6: 278.02803 | EA6: 1299
A7: 16 | B7: Asikkala | C7: 8033 | D7: 20.75 | E7: 26.20531945 | F7: 28.11960568 | G7: 57.73721206 | H7: 8007.06912 | I7: 29.10303432 | J7: 45635.02911 | K7: 93826.83768 | L7: 15.39685 | M7: -48176.41172 | N7: 32558.65653 | O7: 22828.62573 | P7: 204.91807 | Q7: 75.77243 | R7: -4.28249 | S7: 7335.73368 | T7: 3604.26209 | U7: 0 | V7: 3731.47159 | W7: 0 | X7: 0.10047 | Y7: -24.8222 | Z7: -0.63244 | AA7: 3705.91647 | AB7: 20083.54387 | AC7: 7462.30217 | AD7: -6181.83094 | AE7: 4.64157 | AF7: 971.24771 | AG7: -2387.00948 | AH7: -207.05206 | AI7: 3204.81 | AJ7: -2250.89527 | AK7: 2256.3605 | AL7: 13830.8823 | AM7: 9461.18573 | AN7: 4369.69657 | AO7: 82.97652 | AP7: 14812.174 | AQ7: 132 | AR7: 8014 | AS7: 20.75 | AT7: 19.17920393 | AU7: 33.1639151 | AV7: 53.9558952 | AW7: 5604.30598 | AX7: 16.99269066 | AY7: 48764.51106 | AZ7: 102135.3152 | BA7: -16.53305 | BB7: -53387.33715 | BC7: 33560.07223 | BD7: 25532.79372 | BE7: -19.52248 | BF7: 58.84365 | BG7: 495.80899 | BH7: 6122.97166 | BI7: 3580.57043 | BJ7: -13.67212 | BK7: 2528.72911 | BL7: -0.52194 | BM7: -0.00028 | BN7: -4.43509 | BO7: 0.69516 | BP7: 2524.46752 | BQ7: 23193.11922 | BR7: 6780.35463 | BS7: -17787.58663 | BT7: 83.22597 | BU7: 121.61186 | BV7: 21.00196 | BW7: -263.47501 | BX7: 1598.4 | BY7: 5076.28717 | BZ7: -10802.39416 | CA7: 20242.09446 | CB7: 10208.17641 | CC7: 10033.91805 | CD7: 68.60202 | CE7: 16438.07727 | CF7: 146 | CG7: 7968 | CH7: 8.11 | CI7: 9.125060223 | CJ7: 57.64572061 | CK7: 66.19909761 | CL7: 2557.03325 | CM7: 20.51228522 | CN7: 8786.03143 | CO7: 31668.3443 | CP7: 4.28627 | CQ7: -22878.0266 | CR7: 18088.48884 | CS7: 12731.76812 | CT7: 243.69968 | CU7: 355.02101 | CV7: -6.31393 | CW7: 7824.5951 | CX7: 3728.28354 | CY7: -2.24735 | CZ7: 4094.06421 | DA7: -1.04226 | DB7: 0 | DC7: -52.9306 | DD7: 0 | DE7: 4040.09135 | DF7: 27444.24481 | DG7: 8510.09003 | DH7: 12941.977 | DI7: 480.54324 | DJ7: 4725.95398 | DK7: 685.93456 | DL7: -541.36936 | DM7: 0 | DN7: 685.26984 | DO7: 774.61025 | DP7: 14864.74202 | DQ7: 2048.34551 | DR7: 12816.39651 | DS7: 60.16602 | DT7: 762.78575 | DU7: 82 | DW7: 0 | DX7: 0 | DY7: 0 | EA7: 0
A8: 18 | B8: Askola | C8: 4847 | D8: 21.5 | E8: 1.853371127 | F8: 75.18730378 | G8: 31.94879968 | H8: 10668.36916 | I8: 77.38121518 | J8: 19746.70175 | K8: 45897.21299 | L8: 0.6855 | M8: -26149.82574 | N8: 21255.04274 | O8: 8349.658 | P8: 27.98173 | Q8: 145.33515 | R8: 409.63983 | S8: 3747.16141 | T8: 2187.33309 | U8: 0 | V8: 1559.82832 | W8: -2.44002 | X8: 0 | Y8: -13.45748 | Z8: -2.34554 | AA8: 1541.58528 | AB8: 6265.71319 | AC8: 3540.37345 | AD8: -2243.12965 | AE8: 3.8642 | AF8: 411.41688 | AG8: -748.11305 | AH8: -1954.88995 | AI8: 294.12446 | AJ8: 0 | AK8: 1712.52488 | AL8: 30993.60305 | AM8: 23242.84503 | AN8: 7750.75802 | AO8: 0.04146 | AP8: 2709.6401 | AQ8: 189 | AR8: 4763 | AS8: 21.5 | AT8: 1.408331794 | AU8: 68.78227253 | AV8: 34.34340921 | AW8: 10351.80898 | AX8: 72.26928872 | AY8: 19409.22655 | AZ8: 47234.52904 | BA8: -175.72784 | BB8: -28001.03033 | BC8: 22920.38747 | BD8: 8769.343 | BE8: 19.84095 | BF8: 233.04207 | BG8: -252.34681 | BH8: 3223.15221 | BI8: 2154.83716 | BJ8: 0 | BK8: 1068.31505 | BL8: -128.66481 | BM8: 11.68155 | BN8: 0 | BO8: 0.57531 | BP8: 928.544 | BQ8: 7338.88599 | BR8: 3029.1271 | BS8: -1902.26423 | BT8: 5.18036 | BU8: 208.99599 | BV8: 351.76943 | BW8: -2221.06306 | BX8: 462.17065 | BY8: -1010.21446 | BZ8: 1341.03922 | CA8: 28251.46913 | CB8: 21556.78078 | CC8: 6694.68835 | CD8: 0 | CE8: 2779.01591 | CF8: 180 | CG8: 4700 | CH8: 8.86 | CI8: 1.259786264 | CJ8: 110.4652062 | CK8: 47.23202917 | CL8: 8489.0091 | CM8: 123.4041309 | CN8: 8450.64538 | CO8: 21191.74986 | CP8: -73.28383 | CQ8: -12814.38831 | CR8: 11859.32551 | CS8: 3522.418 | CT8: 62.03779 | CU8: 599.36077 | CV8: 330.85979 | CW8: 2360.89201 | CX8: 1905.62114 | CY8: 0 | CZ8: 455.27087 | DA8: -4.96424 | DB8: 18.41584 | DC8: 0 | DD8: 0 | DE8: 431.89079 | DF8: 13359.79889 | DG8: 2285.65732 | DH8: 1236.04994 | DI8: -0.9936 | DJ8: 96.3966 | DK8: 274.72644 | DL8: -1750.4448 | DM8: 0 | DN8: -592.21504 | DO8: 1145.01038 | DP8: 22892.62717 | DQ8: 16937.80932 | DR8: 5954.81785 | DS8: 0 | DT8: 1008.55607 | DU8: 232 | DW8: 2024.16595 | DX8: 1921.8169 | DY8: 0 | EA8: 2000
A9: 19 | B9: Aura | C9: 3955 | D9: 21.5 | E9: 2.173689217 | F9: 41.88766699 | G9: 39.74469935 | H9: 2984.681 | I9: 29.14467281 | J9: 13970.65717 | K9: 34545.4316 | L9: 11.3305 | M9: -20563.44393 | N9: 15987.4943 | O9: 7934.69626 | P9: 0.96033 | Q9: 55.37718 | R9: 39.70989 | S9: 3344.03967 | T9: 1356.51369 | U9: 0 | V9: 1987.52598 | W9: -26.86963 | X9: 0.03735 | Y9: -8.04 | Z9: -14.80717 | AA9: 1937.77183 | AB9: 5924.3607 | AC9: 3273.64509 | AD9: -1261.92663 | AE9: 87.84846 | AF9: 142.96835 | AG9: -383.83217 | AH9: -1508.51559 | AI9: 289.84802 | AJ9: -2102.57528 | AK9: 2242.53527 | AL9: 11281.25626 | AM9: 5092.72109 | AN9: 6188.53517 | AO9: 0 | AP9: 117103.277 | AQ9: 157 | AR9: 3965 | AS9: 21.5 | AT9: 1.53546982 | AU9: 46.59995457 | AV9: 35.09749691 | AW9: 3672.933 | AX9: 32.77154779 | AY9: 13741.87658 | AZ9: 36512.07054 | BA9: -5.25918 | BB9: -22775.45314 | BC9: 16693.9332 | BD9: 7963.96557 | BE9: 6.37926 | BF9: 94.00658 | BG9: 48.15696 | BH9: 1842.97527 | BI9: 1429.92283 | BJ9: 0 | BK9: 413.05244 | BL9: -83.82663 | BM9: 0.14141 | BN9: -20.3234 | BO9: -38.76815 | BP9: 269.99285 | BQ9: 5776.96694 | BR9: 1824.21921 | BS9: -3111.08098 | BT9: 67.2314 | BU9: 43.88791 | BV9: 452.78053 | BW9: -1167.48474 | BX9: 3976.33722 | BY9: -2237.57675 | BZ9: -1175.74246 | CA9: 11852.53199 | CB9: 7520.60757 | CC9: 4331.92442 | CD9: 0 | CE9: 10436.17443 | CF9: 244 | CG9: 3961 | CH9: 8.86 | CI9: 1.325594632 | CJ9: 67.99755485 | CK9: 46.0832971 | CL9: 1156.865 | CM9: 24.65706948 | CN9: 3715.41811 | CO9: 14438.43444 | CP9: -0.27964 | CQ9: -10723.29597 | CR9: 8905.64087 | CS9: 3574.93694 | CT9: 4.66631 | CU9: 128.72055 | CV9: 13.78337 | CW9: 1647.01097 | CX9: 1015.92416 | CY9: 85.93582 | CZ9: 717.02263 | DA9: -94.23782 | DB9: 0.02199 | DC9: -21.398 | DD9: -43.0252 | DE9: 558.33962 | DF9: 6345.96926 | DG9: 1638.90201 | DH9: 1332.75368 | DI9: 38.19 | DJ9: 567.03695 | DK9: 45.35086 | DL9: -1210.85301 | DM9: 0 | DN9: 431.21996 | DO9: 911.37528 | DP9: 8378.33714 | DQ9: 5287.41127 | DR9: 3090.92587 | DS9: 0 | DT9: 9518.752 | DU9: 254 | DW9: 14.42187 | DX9: 14.42187 | DY9: 10.02498 | EA9: 773
A10: 46 | B10: Enonkoski | C10: 1362 | D10: 21 | E10: 124.755635 | F10: 18.30452129 | G10: 71.64626577 | H10: 6537.93842 | I10: 110.7527456 | J10: 11393.02312 | K10: 20505.46963 | L10: 0 | M10: -9112.44651 | N10: 5024.61735 | O10: 6152.58081 | P10: 7.02938 | Q10: 9.9915 | R10: 127.47992 | S10: 2189.26945 | T10: 784.02491 | U10: 0 | V10: 1405.24454 | W10: 2.48374 | X10: 0 | Y10: 1.4934 | Z10: 0 | AA10: 1409.22168 | AB10: 9430.5699 | AC10: 2182.58302 | AD10: -1010.00338 | AE10: 52.44878 | AF10: 27.02171 | AG10: -299.38347 | AH10: -7.63705 | AI10: 537.59134 | AJ10: -198.14802 | AK10: 1252.05013 | AL10: 1460.11961 | AM10: 1264.09769 | AN10: 196.02192 | AO10: 5.44 | AP10: 380.47766 | AQ10: 19 | AR10: 1341 | AS10: 21 | AT10: 56.48350054 | AU10: 20.67083847 | AV10: 71.05868724 | AW10: 7132.81911 | AX10: 111.4671567 | AY10: 11315.89449 | AZ10: 21512.98008 | BA10: 0 | BB10: -10197.08559 | BC10: 5157.24292 | BD10: 6663.57336 | BE10: 14.00954 | BF10: 29.10582 | BG10: 66.64488 | BH10: 1675.27929 | BI10: 811.87176 | BJ10: 26.98231 | BK10: 890.38984 | BL10: 0 | BM10: 0 | BN10: 0.79634 | BO10: 0 | BP10: 891.18618 | BQ10: 10315.152 | BR10: 1679.94893 | BS10: -1768.98341 | BT10: 1.04718 | BU10: 4.44038 | BV10: 90.28563 | BW10: -1.0691 | BX10: 228.52073 | BY10: 177.61217 | BZ10: -83.54692 | CA10: 1865.18342 | CB10: 1311.37984 | CC10: 553.80358 | CD10: 7 | CE10: 396.45865 | CF10: 44 | CG10: 1320 | CH10: 8.36 | CI10: 14.70872217 | CJ10: 14.48672354 | CK10: 85.87712108 | CL10: 6749.12039 | CM10: 337.0839541 | CN10: 2025.14524 | CO10: 6369.86215 | CP10: 0 | CQ10: -4344.71691 | CR10: 2873.99038 | CS10: 2543.76634 | CT10: 112.42671 | CU10: 1.49925 | CV10: 129.35145 | CW10: 1313.31872 | CX10: 659.04063 | CY10: 11.1041 | CZ10: 665.38219 | DA10: 0 | DB10: 0.43996 | DC10: 13.4792 | DD10: 0 | DE10: 678.42143 | DF10: 10714.96054 | DG10: 1306.82254 | DH10: 654.6607 | DI10: 0 | DJ10: 14.56395 | DK10: 55.56348 | DL10: -87.89111 | DM10: 30.75033 | DN10: 0 | DO10: 666.72579 | DP10: 90.58827 | DQ10: 74.46786 | DR10: 16.12041 | DS10: 71.79291 | DT10: 75.35176 | DU10: 80 | DW10: 18.52215 | DX10: 18.52215 | DY10: 8.98972 | EA10: 108
A11: 47 | B11: Enontekiö | C11: 1789 | D11: 21.25 | E11: 2.689115405 | F11: 16.53381888 | G11: 71.64626577 | H11: 9957.52789 | I11: 126.7510722 | J11: 8468.08015 | K11: 24017.20614 | L11: -3.5355 | M11: -15552.66149 | N11: 6807.63983 | O11: 9711.677 | P11: 5.63855 | Q11: 30.29144 | R11: 919.67004 | S11: 1861.67249 | T11: 1122.5456 | U11: 7943.74012 | V11: 8682.86701 | W11: 0.89487 | X11: -2.2232 | Y11: 0 | Z11: -0.02982 | AA11: 8685.95526 | AB11: 9430.5699 | AC11: 1549.29819 | AD11: -3673.26301 | AE11: 399.82756 | AF11: 7988.87719 | AG11: -281.76525 | AH11: -673.27224 | AI11: 797.927 | AJ11: 300 | AK11: 6264.73993 | AL11: 1460.11961 | AM11: 1264.09769 | AN11: 196.02192 | AO11: 5.44 | AP11: 331.43454 | AQ11: 91 | AR11: 1811 | AS11: 21.25 | AT11: 5.229248247 | AU11: 49.66962843 | AV11: 61.49483504 | AW11: 10625.58972 | AX11: 130.9661577 | AY11: 9062.66857 | AZ11: 25408.87779 | BA11: -13.68226 | BB11: -16359.89148 | BC11: 7179.49726 | BD11: 9856.307 | BE11: 5.22212 | BF11: 49.65224 | BG11: 2506.0872 | BH11: 3137.56986 | BI11: 1419.12894 | BJ11: 0.13033 | BK11: 1718.57125 | BL11: 0.47181 | BM11: 0.07649 | BN11: 1e-05 | BO11: 0.92753 | BP11: 1719.89411 | BQ11: 12766.42233 | BR11: 2691.0459 | BS11: -3215.1745 | BT11: 159.71143 | BU11: 434.24691 | BV11: 185.27048 | BW11: -559.84686 | BX11: 1041.66942 | BY11: -135 | BZ11: 69.82974 | CA11: 8982.44876 | CB11: 5139.10408 | CC11: 3843.34468 | CD11: 31.70778 | CE11: 310.365 | CF11: 13 | CG11: 1771 | CH11: 8.61 | CI11: 3.556214434 | CJ11: 45.5161641 | CK11: 77.22885099 | CL11: 7114.47797 | CM11: 166.6968172 | CN11: 5092.24692 | CO11: 12442.47296 | CP11: -3.82343 | CQ11: -7354.04947 | CR11: 4629.75559 | CS11: 3700.08894 | CT11: 5.75618 | CU11: 24.97868 | CV11: 680.84629 | CW11: 1637.41885 | CX11: 854.71648 | CY11: -0.00955 | CZ11: 782.69282 | DA11: 0 | DB11: 2.36145 | DC11: 1e-05 | DD11: 0 | DE11: 780.33138 | DF11: 13670.5569 | DG11: 1431.11004 | DH11: 1987.10673 | DI11: 258.64133 | DJ11: 209.3875 | DK11: -54.14324 | DL11: -442.484 | DM11: 300 | DN11: -3400 | DO11: -87.96786 | DP11: 3059.09585 | DQ11: 2560.42219 | DR11: 498.67366 | DS11: 30 | DT11: 29.75993 | DU11: 99 | DW11: 1740.17132 | DX11: 1739.56274 | DY11: 1505.46453 | EA11: 312
A12: 49 | B12: Espoo | C12: 297132 | D12: 18 | E12: 2.185969418 | F12: 153.5687721 | G12: 34.71020745 | H12: 1457205.319 | I12: 147.9675542 | J12: 1313221.586 | K12: 2779417.656 | L12: 4616.3994 | M12: -1461579.67 | N12: 1711153.952 | O12: 200725.0947 | P12: 11351.28809 | Q12: 50403.8862 | R12: 83867.5651 | S12: 495114.3436 | T12: 334021.8994 | U12: 0 | V12: 161092.4442 | W12: 15059.82456 | X12: 1285.47546 | Y12: -1504.83172 | Z12: 3861.908 | AA12: 177223.8696 | AB12: 817323.9558 | AC12: 420231.4069 | AD12: -560356.1819 | AE12: 34723.9893 | AF12: 54080.42132 | AG12: 22864.93124 | AH12: -199150.4878 | AI12: 183260.4479 | AJ12: 249856.2957 | AK12: -51320.3644 | AL12: 4519868.485 | AM12: 4051110.129 | AN12: 468758.3562 | AO12: 199992.2342 | AP12: 954284.5397 | AQ12: 15 | AR12: 305274 | AS12: 18 | AT12: 1.476764144 | AU12: 145.4899909 | AV12: 38.41856225 | AW12: 1660271.556 | AX12: 159.2879913 | AY12: 1302140.217 | AZ12: 2890664.264 | BA12: -5194.73493 | BB12: -1593718.782 | BC12: 1850145.547 | BD12: 233835.4213 | BE12: 11102.23983 | BF12: 43976.16381 | BG12: -19692.32119 | BH12: 437695.9419 | BI12: 348501.3781 | BJ12: 136732.26 | BK12: 225926.8238 | BL12: 2169.8645 | BM12: 1498.04365 | BN12: -3253.98959 | BO12: 4741.82962 | BP12: 228086.4847 | BQ12: 1001713.687 | BR12: 377990.4103 | BS12: -536892.7867 | BT12: 14994.35678 | BU12: 201209.0085 | BV12: -1315.54799 | BW12: -282191.0903 | BX12: 232970.349 | BY12: 55308.02833 | BZ12: 57300.98885 | CA12: 4396400.935 | CB12: 3887934.151 | CC12: 508466.7837 | CD12: 197142.3653 | CE12: 964977.6372 | CF12: 26 | CG12: 314024 | CH12: 5.36 | CI12: 2.439833441 | CJ12: 193.6958508 | CK12: 43.95380209 | CL12: 1403823.862 | CM12: 225.6933112 | CN12: 800948.2054 | CO12: 1579872.61 | CP12: 3184.20426 | CQ12: -775740.2006 | CR12: 911387.4903 | CS12: 427492.3196 | CT12: 16240.95743 | CU12: 78310.5905 | CV12: 55118.77021 | CW12: 556188.7464 | CX12: 361111.0272 | CY12: 0 | CZ12: 195077.7192 | DA12: 48.34913 | DB12: -1341.84703 | DC12: 1234.65939 | DD12: 7985.00488 | DE12: 205687.5796 | DF12: 1215298.339 | DG12: 479727.5353 | DH12: 375188.3392 | DI12: 6333.06183 | DJ12: 77793.04982 | DK12: 48817.02892 | DL12: -181747.8735 | DM12: 114643.8831 | DN12: -3876.19672 | DO12: 188665.3078 | DP12: 3854006.55 | DQ12: 3658598.793 | DR12: 195407.7566 | DS12: 194724.0641 | DT12: 917413.847 | DU12: 6 | DW12: 605523.1732 | DX12: 647247.3583 | DY12: 665956.7428 | EA12: 96757
A13: 50 | B13: Eura | C13: 11417 | D13: 21 | E13: 1.897786316 | F13: 65.23896841 | G13: 31.20183603 | H13: 7815.47107 | I13: 23.25356966 | J13: 41939.6487 | K13: 110718.5252 | L13: 0 | M13: -68778.87652 | N13: 48346.58028 | O13: 29695.92059 | P13: 21.38327 | Q13: 379.49376 | R13: 136.19248 | S13: 9041.70634 | T13: 6200.50278 | U13: 0 | V13: 2841.20356 | W13: -63.06622 | X13: -1.8451 | Y13: 1.54053 | Z13: -3.6245 | AA13: 2777.89847 | AB13: 3515.24818 | AC13: 8555.84751 | AD13: -6976.82786 | AE13: 571.77984 | AF13: 948.12947 | AG13: -1815.43485 | AH13: -4584.81651 | AI13: 12345.87717 | AJ13: -9453.64739 | AK13: 3098.92896 | AL13: 58766.22625 | AM13: 40040.55169 | AN13: 18725.67456 | AO13: 50 | AP13: 1456.83 | AQ13: 177 | AR13: 11276 | AS13: 21 | AT13: 1.180786911 | AU13: 65.61158616 | AV13: 29.39616163 | AW13: 4862.43491 | AX13: 14.01289029 | AY13: 41041.61849 | AZ13: 116085.2883 | BA13: 0 | BB13: -75043.66982 | BC13: 48201.62489 | BD13: 30662.84087 | BE13: 6.01826 | BF13: 410.24447 | BG13: 99.61448 | BH13: 3516.18421 | BI13: 6346.81789 | BJ13: 0 | BK13: -2830.63368 | BL13: -26.80568 | BM13: 19.91529 | BN13: -30.84293 | BO13: -7.62642 | BP13: -2915.824 | BQ13: 617.60348 | BR13: 3548.05107 | BS13: -6999.50058 | BT13: 42.46127 | BU13: 277.91459 | BV13: -228.9054 | BW13: -2915.01993 | BX13: 699.75083 | BY13: -118.15645 | BZ13: -3131.07365 | CA13: 56441.63377 | CB13: 38944.4092 | CC13: 17497.22457 | CD13: 122.95413 | CE13: 1141.395 | CF13: 273 | CG13: 11184 | CH13: 8.36 | CI13: 1.996477964 | CJ13: 128.5412751 | CK13: 31.95657639 | CL13: 3405.0881 | CM13: 23.28448386 | CN13: 13423.13444 | CO13: 42867.32276 | CP13: 0 | CQ13: -29444.18832 | CR13: 26143.10326 | CS13: 10603.65333 | CT13: 25.6955 | CU13: 1150.3295 | CV13: 218.46991 | CW13: 6396.40418 | CX13: 5907.7361 | CY13: 0 | CZ13: 488.66808 | DA13: -32.97673 | DB13: 15.73125 | DC13: 40.35838 | DD13: 11.13193 | DE13: 491.45041 | DF13: 1558.30181 | DG13: 6325.04161 | DH13: 6485.23019 | DI13: 0 | DJ13: 306.72009 | DK13: 976.97375 | DL13: -2629.69403 | DM13: 919.62117 | DN13: 4175.45628 | DO13: 146.53151 | DP13: 54034.35541 | DQ13: 32688.3172 | DR13: 21346.03821 | DS13: 50 | DT13: 3857.528 | DU13: 217 | DW13: 3068.57981 | DX13: 2648.10999 | DY13: 2648.10999 | EA13: 854
A14: 51 | B14: Eurajoki | C14: 9334 | D14: 18 | E14: 3.850789478 | F14: 27.34856244 | G14: 74.85604584 | H14: 29493.68622 | I14: 93.1081323 | J14: 46621.5009 | K14: 108762.2417 | L14: 0 | M14: -62140.74076 | N14: 56545.2611 | O14: 12755.743 | P14: 6.25136 | Q14: 118.71567 | R14: 1272.07494 | S14: 8319.87397 | T14: 5356.72849 | U14: 0 | V14: 2963.14548 | W14: 2.10628 | X14: -1.31538 | Y14: 1.13186 | Z14: 0.27902 | AA14: 2967.97802 | AB14: 76909.68275 | AC14: 8474.85608 | AD14: -4648.61206 | AE14: 184.33932 | AF14: 145.75525 | AG14: 444.97176 | AH14: -2072.67643 | AI14: 834.3648 | AJ14: 3.1119 | AK14: 4156.33859 | AL14: 14800.84566 | AM14: 12889.78607 | AN14: 1911.05959 | AO14: 0 | AP14: 3342.66314 | AQ14: 141 | AR14: 9211 | AS14: 18 | AT14: 2.922726301 | AU14: 26.74206907 | AV14: 74.53709738 | AW14: 31590.74409 | AX14: 94.37209587 | AY14: 48592.5225 | AZ14: 116093.0116 | BA14: 0 | BB14: -67500.4891 | BC14: 59477.31155 | BD14: 14126.654 | BE14: 33.43707 | BF14: 127.8112 | BG14: -69.28374 | BH14: 5939.81858 | BI14: 5074.45642 | BJ14: 0 | BK14: 865.36216 | BL14: 0.511 | BM14: 2.19467 | BN14: 2.52768 | BO14: 0.21759 | BP14: 866.42376 | BQ14: 78148.11548 | BR14: 6214.98461 | BS14: -3654.19873 | BT14: 66.6185 | BU14: 71.79942 | BV14: -682.03066 | BW14: -1948.2059 | BX14: 909.37667 | BY14: -3.1119 | BZ14: 2699.2038 | CA14: 13757.90134 | CB14: 12160.93086 | CC14: 1596.97048 | CD14: 0 | CE14: 3295.81542 | CF14: 196 | CG14: 9143 | CH14: 5.36 | CI14: 4.799682551 | CJ14: 37.55911866 | CK14: 85.1518523 | CL14: 23403.89688 | CM14: 165.3359001 | CN14: 8738.80835 | CO14: 37980.67909 | CP14: 0 | CQ14: -29241.87074 | CR14: 40144.78195 | CS14: -3955.507 | CT14: 67.19309 | CU14: 300.62432 | CV14: 621.3631 | CW14: 7335.33608 | CX14: 4333.46672 | CY14: 0 | CZ14: 3001.86936 | DA14: 20.30061 | DB14: 0 | DC14: -14.19812 | DD14: 0 | DE14: 3007.97185 | DF14: 81278.18029 | DG14: 7925.73718 | DH14: 11474.10257 | DI14: 647.0046 | DJ14: 436.56251 | DK14: 4002.16819 | DL14: -1290.30598 | DM14: 0 | DN14: 0 | DO14: -2464.79828 | DP14: 9009.26446 | DQ14: 7861.74283 | DR14: 1147.52163 | DS14: 0 | DT14: 389.38769 | DU14: 139 | DW14: 5.12288 | DX14: 5.43875 | DY14: -0.00011 | EA14: 335
A15: 52 | B15: Evijärvi | C15: 2404 | D15: 22.5 | E15: 6.657725924 | F15: 57.45798629 | G15: 40.75465053 | H15: 8515.72369 | I15: 107.6710001 | J15: 8329.08603 | K15: 25523.88926 | L15: -1.86854 | M15: -17196.67177 | N15: 8855.19759 | O15: 10172.93969 | P15: 87.72256 | Q15: 7.19406 | R15: 210.04742 | S15: 2122.04143 | T15: 1321.58431 | U15: 0 | V15: 800.45712 | W15: -11.61728 | X15: 0.93852 | Y15: -1.03855 | Z15: 0.45686 | AA15: 787.31963 | AB15: 1670.20241 | AC15: 2087.65471 | AD15: -2942.96475 | AE15: 501.6271 | AF15: 33.42717 | AG15: -70.6155 | AH15: -312.62017 | AI15: 189.83983 | AJ15: -200 | AK15: -320.25577 | AL15: 12799.86101 | AM15: 2925.68341 | AN15: 9874.1776 | AO15: 24.89092 | AP15: 950.62323 | AQ15: 142 | AR15: 2346 | AS15: 22.5 | AT15: 2.415952865 | AU15: 58.25562518 | AV15: 38.28217525 | AW15: 9033.63626 | AX15: 113.7357197 | AY15: 8343.43816 | AZ15: 26272.49016 | BA15: 2.49411 | BB15: -17926.55789 | BC15: 9163.04283 | BD15: 10579.25332 | BE15: 77.59028 | BF15: 99.76199 | BG15: -129.23061 | BH15: 1664.33594 | BI15: 1230.63534 | BJ15: 0 | BK15: 433.7006 | BL15: -11.981 | BM15: 6.47602 | BN15: 0.93764 | BO15: 6.03542 | BP15: 422.21664 | BQ15: 1829.79594 | BR15: 1632.10255 | BS15: -1529.55798 | BT15: 198.09233 | BU15: 1.48452 | BV15: -219.66649 | BW15: -630.42524 | BX15: 5307.40695 | BY15: -4300 | BZ15: 302.12142 | CA15: 13191.64461 | CB15: 7132.51838 | CC15: 6059.12623 | CD15: 24.32737 | CE15: 1071.98937 | CF15: 166 | CG15: 2292 | CH15: 9.86 | CI15: 3.137226551 | CJ15: 83.82354825 | CK15: 50.03375075 | CL15: 8163.36049 | CM15: 238.2405635 | CN15: 2734.39614 | CO15: 10080.97401 | CP15: 0 | CQ15: -7346.57787 | CR15: 5217.23935 | CS15: 4359.48991 | CT15: 69.79239 | CU15: 258.09943 | CV15: 242.62289 | CW15: 2284.46724 | CX15: 1012.39067 | CY15: 0 | CZ15: 1272.07657 | DA15: -6.72 | DB15: 4.9012 | DC15: 0 | DD15: -0.00815 | DE15: 1260.44722 | DF15: 3175.91472 | DG15: 2267.39701 | DH15: 1372.75055 | DI15: 55 | DJ15: -3.49787 | DK15: 408.84802 | DL15: -552.35102 | DM15: 0 | DN15: -700 | DO15: 946.14859 | DP15: 8848.25318 | DQ15: 3822.85318 | DR15: 5025.4 | DS15: 0 | DT15: 1378.09603 | DU15: 79 | DW15: 42.92637 | DX15: 42.92637 | DY15: 44.60617 | EA15: 0
A16: 61 | B16: Forssa | C16: 16573 | D16: 20.5 | E16: 1.263146264 | F16: 53.19182618 | G16: 47.54085366 | H16: 33314.63412 | I16: 56.92448379 | J16: 78577.34528 | K16: 182535.8596 | L16: 2.43403 | M16: -103956.0803 | N16: 63752.89961 | O16: 51983.68617 | P16: 17.57623 | Q16: 694.22055 | R16: 211.30251 | S16: 11315.16371 | T16: 10857.71464 | U16: 0 | V16: 457.44907 | W16: -1.77666 | X16: -42.2879 | Y16: -3.2042 | Z16: -92.00157 | AA16: 402.75454 | AB16: 27268.78352 | AC16: 10580.63283 | AD16: -21568.65559 | AE16: 514.88793 | AF16: 535.27372 | AG16: 300.92993 | AH16: -8813.2962 | AI16: 17853.294 | AJ16: 846.31116 | AK16: -9937.86111 | AL16: 77553.36862 | AM16: 62391.27415 | AN16: 15162.09447 | AO16: 17.46323 | AP16: 4155.90878 | AQ16: 211 | AR16: 16459 | AS16: 20.5 | AT16: 1.438571028 | AU16: 56.69829636 | AV16: 44.01435117 | AW16: 33218.85805 | AX16: 55.50497195 | AY16: 80565.29578 | AZ16: 193987.1966 | BA16: 1.98248 | BB16: -113419.9183 | BC16: 66370.21545 | BD16: 55692.83933 | BE16: 70.0217 | BF16: 721.31898 | BG16: 272.31429 | BH16: 8264.1535 | BI16: 9608.28089 | BJ16: 0 | BK16: -1344.12739 | BL16: 5.47852 | BM16: 4.90004 | BN16: 12.7458 | BO16: 112.30109 | BP16: -1218.50202 | BQ16: 25801.77676 | BR16: 8178.46231 | BS16: -18199.11131 | BT16: 773.75 | BU16: 1282.42339 | BV16: 4136.3556 | BW16: -5524.79074 | BX16: 5632.23762 | BY16: 1354.2129 | BZ16: -7964.47561 | CA16: 85309.39111 | CB16: 68817.30779 | CC16: 16492.08332 | CD16: 14.55278 | CE16: 9895.39378 | CF16: 226 | CG16: 16469 | CH16: 7.86 | CI16: 1.761824133 | CJ16: 95.66509205 | CK16: 54.42927202 | CL16: 22006.92214 | CM16: 89.78063399 | CN16: 30564.3748 | CO16: 68946.99745 | CP16: 0.01554 | CQ16: -38382.60711 | CR16: 35750.10859 | CS16: 18727.17104 | CT16: 85.42439 | CU16: 733.93774 | CV16: 153.33165 | CW16: 15599.49082 | CX16: 9758.71343 | CY16: 0 | CZ16: 5840.77739 | DA16: 1.7595 | DB16: 46.42236 | DC16: 23.29397 | DD16: 114.33144 | DE16: 5933.73994 | DF16: 31809.52973 | DG16: 15434.44176 | DH16: 11097.28788 | DI16: 466.14 | DJ16: 210.31117 | DK16: -5945.44667 | DL16: -8536.81083 | DM16: 1687.8 | DN16: 2581.50242 | DO16: 5013.60505 | DP16: 67593.53784 | DQ16: 53918.87659 | DR16: 13674.66125 | DS16: 0 | DT16: 7763.61748 | DU16: 91 | DW16: 2127.37797 | DX16: 1104.71367 | DY16: 1079.64412 | EA16: 105
A17: 69 | B17: Haapajärvi | C17: 6802 | D17: 22.5 | E17: 1.271802798 | F17: 79.58513705 | G17: 27.05112089 | H17: 25769.1307 | I17: 87.20773973 | J17: 44564.73363 | K17: 93629.67482 | L17: -25.71585 | M17: -49090.65704 | N17: 25530.3491 | O17: 29884.73753 | P17: 221.93438 | Q17: 518.84044 | R17: 1369.43554 | S17: 7396.95907 | T17: 8548.93461 | U17: 0 | V17: -1151.97554 | W17: -707.46727 | X17: 1.54483 | Y17: -0.95205 | Z17: 5.57783 | AA17: -1856.36186 | AB17: 3462.23271 | AC17: 7546.20015 | AD17: -7445.39545 | AE17: 177.25366 | AF17: 304.01965 | AG17: 1097.44966 | AH17: -5705.23732 | AI17: 4059.62589 | AJ17: 2343.48303 | AK17: 582.07801 | AL17: 64343.66456 | AM17: 50456.94126 | AN17: 13886.7233 | AO17: 0.41627 | AP17: 1494.916 | AQ17: 80 | AR17: 6687 | AS17: 22.5 | AT17: 0.6165503126 | AU17: 84.16110673 | AV17: 23.66157217 | AW17: 20587.06021 | AX17: 63.77781684 | AY17: 46976.45164 | AZ17: 95662.69077 | BA17: -104.27178 | BB17: -48790.51091 | BC17: 27210.67466 | BD17: 26782.003 | BE17: 3.0125 | BF17: 436.77889 | BG17: -1133.25108 | BH17: 3635.14928 | BI17: 4892.18058 | BJ17: 0 | BK17: -1257.0313 | BL17: -28.28417 | BM17: 4.84983 | BN17: -0.1155 | BO17: -8.47373 | BP17: -1298.75453 | BQ17: 1967.43879 | BR17: 3348.93815 | BS17: -13492.67686 | BT17: 39.17432 | BU17: 671.10212 | BV17: -1335.15227 | BW17: -6167.594 | BX17: 17085.53448 | BY17: -6970.08476 | BZ17: -9433.46227 | CA17: 68291.52028 | CB17: 60054.73918 | CC17: 8236.7811 | CD17: 0.41627 | CE17: 1194.558 | CF17: 217 | CG17: 6558 | CH17: 9.86 | CI17: 0.6523584529 | CJ17: 208.5910534 | CK17: 22.51400467 | CL17: 24408.92861 | CM17: 156.3935246 | CN17: 16008.58544 | CO17: 34261.43931 | CP17: -21.78301 | CQ17: -18274.63688 | CR17: 16127.46361 | CS17: 6982.895 | CT17: 60.33766 | CU17: 938.38414 | CV17: 379.96912 | CW17: 4337.64437 | CX17: 4585.81252 | CY17: 0 | CZ17: -248.16815 | DA17: -330.02266 | DB17: 1.01492 | DC17: 0 | DD17: 147.93082 | DE17: -431.27491 | DF17: 1719.41211 | DG17: 4241.02351 | DH17: 14745.76349 | DI17: 297.18954 | DJ17: 275.50479 | DK17: 2590.33151 | DL17: -7149.23776 | DM17: 16392.52078 | DN17: 5539.68004 | DO17: -9932.04565 | DP17: 72188.87517 | DQ17: 57774.75669 | DR17: 14414.11848 | DS17: 0 | DT17: 664.642 | DU17: 193 | DW17: 2363.06939 | DX17: 2733.35704 | DY17: 1107.6626 | EA17: 5902
A18: 71 | B18: Haapavesi | C18: 6613 | D18: 22 | E18: 0.3790408851 | F18: 78.42230996 | G18: 20.70655986 | H18: 17694.07164 | I18: 62.90415164 | J18: 35587.01769 | K18: 85238.87946 | L18: 1.77722 | M18: -49650.08456 | N18: 22542.65706 | O18: 28996.39116 | P18: 27.50173 | Q18: 397.78181 | R18: 652.58389 | S18: 2171.26748 | T18: 3522.04611 | U18: 0 | V18: -1350.77863 | W18: -1.08799 | X18: 75.83157 | Y18: 1.21903 | Z18: 23.25968 | AA18: -1403.21948 | AB18: 877.86598 | AC18: 1961.14394 | AD18: -10478.8908 | AE18: 454.4633 | AF18: 328.86504 | AG18: -1378.90572 | AH18: -6379.9812 | AI18: 9468.3381 | AJ18: 6927.91001 | AK18: -7734.41852 | AL18: 53099.3349 | AM18: 43011.49638 | AN18: 10087.83852 | AO18: 0.40617 | AP18: 1119.2339 | AQ18: 285 | AR18: 6591 | AS18: 22 | AT18: 0.8019102005 | AU18: 80.16228542 | AV18: 18.03849118 | AW18: 16638.52901 | AX18: 57.22007058 | AY18: 37075.50847 | AZ18: 88306.35581 | BA18: -61.83979 | BB18: -51292.68712 | BC18: 23605.29029 | BD18: 31317.58969 | BE18: 21.52097 | BF18: 599.63288 | BG18: -451.83353 | BH18: 2600.24742 | BI18: 3713.18718 | BJ18: 0 | BK18: -1112.93977 | BL18: -11.37245 | BM18: 112.70806 | BN18: 33.1853 | BO18: 16.22626 | BP18: -1187.60872 | BQ18: -432.13752 | BR18: 2430.73087 | BS18: -8758.73443 | BT18: 5.84889 | BU18: 599.39025 | BV18: -373.11585 | BW18: -3390.6896 | BX18: 7295.77937 | BY18: 917.2993 | BZ18: -5722.76442 | CA18: 57921.72397 | CB18: 45908.27643 | CC18: 12013.44754 | CD18: 0.40617 | CE18: 1144.93119 | CF18: 261 | CG18: 6473 | CH18: 9.36 | CI18: 1.215655308 | CJ18: 141.1419301 | CK18: 23.712764 | CL18: 16023.0914 | CM18: 137.9306719 | CN18: 12435.01059 | CO18: 34721.78865 | CP18: 0 | CQ18: -22286.77805 | CR18: 13523.57451 | CS18: 13333.18121 | CT18: 170.19067 | CU18: 1058.5882 | CV18: 696.89971 | CW18: 4378.47985 | CX18: 2363.02989 | CY18: 0 | CZ18: 2015.44996 | DA18: 3.54888 | DB18: -14.40766 | DC18: 23.926 | DD18: 23.02875 | DE18: 2080.36125 | DF18: 1281.09414 | DG18: 4449.47931 | DH18: 2509.98784 | DI18: 51.33552 | DJ18: 223.81565 | DK18: 1187.55999 | DL18: -3413.95267 | DM18: 6314.93797 | DN18: -1984.09554 | DO18: 2214.64263 | DP18: 48216.89909 | DQ18: 38192.5481 | DR18: 10024.35099 | DS18: 0 | DT18: 514.40809 | DU18: 186 | DW18: 1222.80452 | DX18: 1243.77697 | DY18: 1073.66279 | EA18: 236
A19: 72 | B19: Hailuoto | C19: 950 | D19: 20.5 | E19: 1.54333825 | F19: 62.55718068 | G19: 50.23285014 | H19: 995.30096 | I19: 24.80166862 | J19: 5638.80586 | K19: 12842.18629 | L19: 0.52066 | M19: -7202.85978 | N19: 3780.21682 | O19: 4044.70049 | P19: 4.83651 | Q19: 17.45434 | R19: 0.83856 | S19: 610.27826 | T19: 827.33801 | U19: 0 | V19: -217.05974 | W19: 4.43251 | X19: 0.4416 | Y19: -0.27215 | Z19: -0.15052 | AA19: -213.49151 | AB19: 6303.70325 | AC19: 522.61909 | AD19: -1392.609 | AE19: 0.72165 | AF19: 109.17815 | AG19: -69.13002 | AH19: -389.28255 | AI19: 1012.21868 | AJ19: -9.90503 | AK19: -760.0901 | AL19: 4581.43091 | AM19: 4037.19222 | AN19: 544.23869 | AO19: 0.11899 | AP19: 127.80947 | AQ19: 228 | AR19: 960 | AS19: 20.5 | AT19: 2.40970268 | AU19: 63.85948938 | AV19: 49.41959502 | AW19: 977.92322 | AX19: 23.54278368 | AY19: 5737.41396 | AZ19: 13183.82498 | BA19: -18.11668 | BB19: -7464.52769 | BC19: 4233.37881 | BD19: 4303.1975 | BE19: 4.66811 | BF19: 24.52038 | BG19: 0.11289 | BH19: 1052.30924 | BI19: 815.33065 | BJ19: 0 | BK19: 236.97859 | BL19: -0.78065 | BM19: 1.16768 | BN19: -0.03302 | BO19: -0.76601 | BP19: 234.23124 | BQ19: 6536.58449 | BR19: 945.80464 | BS19: -1521.1285 | BT19: 1.7135 | BU19: 141.17175 | BV19: -243.57925 | BW19: -422.35202 | BX19: 1028.05268 | BY19: -121.58795 | BZ19: -432.43861 | CA19: 5065.54362 | CB19: 4584.62012 | CC19: 480.9235 | CD19: 0.11899 | CE19: 92.03999 | CF19: 63 | CG19: 948 | CH19: 7.86 | CI19: 2.28557749 | CJ19: 73.70746663 | CK19: 63.67549651 | CL19: 906.21342 | CM19: 58.30358046 | CN19: 1937.96019 | CO19: 4944.74437 | CP19: 0 | CQ19: -3006.78417 | CR19: 2090.84208 | CS19: 1806.87784 | CT19: 9.44819 | CU19: 20.30367 | CV19: -3.42663 | CW19: 876.65364 | CX19: 846.33663 | CY19: 0 | CZ19: 30.31702 | DA19: 2.35241 | DB19: 0 | DC19: 0 | DD19: 0 | DE19: 32.66943 | DF19: 6545.83257 | DG19: 877.07963 | DH19: 339.44039 | DI19: 35.37781 | DJ19: 0 | DK19: 338.34964 | DL19: -372.13864 | DM19: 0 | DN19: 0 | DO19: 573.01705 | DP19: 1581.65163 | DQ19: 1250.32583 | DR19: 331.3258 | DS19: 0 | DT19: 61.24941 | DU19: 98 | DW19: 67.40547 | DX19: 69.53612 | DY19: 23.3859 | EA19: 0
A20: 74 | B20: Halsua | C20: 1083 | D20: 23.5 | E20: 0.99690304 | F20: 93.49742516 | G20: 25.77207987 | H20: 2188.754 | I20: 37.71184988 | J20: 10047.1909 | K20: 18788.19675 | L20: 99.94366 | M20: -8641.06219 | N20: 4126.96856 | O20: 5208.62244 | P20: 4.75255 | Q20: 89.37564 | R20: 29.31384 | S20: 639.21956 | T20: 888.45734 | U20: 0 | V20: -249.23778 | W20: 4.12329 | X20: 14.66651 | Y20: 0.99096 | Z20: -2.31773 | AA20: -261.10777 | AB20: 2324.451 | AC20: 646.28432 | AD20: -1662.875 | AE20: 34.317 | AF20: 37.359 | AG20: -201.948 | AH20: -641.483 | AI20: 845.387 | AJ20: 218.265 | AK20: -944.91468 | AL20: 14133.857 | AM20: 9512.136 | AN20: 4621.721 | AO20: 3.517 | AP20: 413.60866 | AQ20: 252 | AR20: 1052 | AS20: 23.5 | AT20: 1.302477905 | AU20: 89.30359941 | AV20: 25.40303355 | AW20: 2030.352 | AX20: 34.42113696 | AY20: 10747.60513 | AZ20: 19734.30169 | BA20: 133.05368 | BB20: -8853.64288 | BC20: 4285.54642 | BD20: 5598.17476 | BE20: 17.1095 | BF20: 129.15422 | BG20: 112.57919 | BH20: 1030.61277 | BI20: 931.77354 | BJ20: 0 | BK20: 98.83923 | BL20: 8.62546 | BM20: 1.93112 | BN20: 2.35015 | BO20: -2.38186 | BP20: 105.50186 | BQ20: 2356.315 | BR20: 978.69265 | BS20: -902.021 | BT20: 7.587 | BU20: 19.724 | BV20: -479.569 | BW20: -761.277 | BX20: 2001.939 | BY20: -1167.348 | BZ20: 103.98265 | CA20: 14207.191 | CB20: 10667.67 | CC20: 3539.521 | CD20: 1.759 | CE20: 440.00975 | CF20: 82 | CG20: 1013 | CH20: 10.86 | CI20: 0.9873660354 | CJ20: 190.2226568 | CK20: 28.51835241 | CL20: 1189.528 | CM20: 48.09955082 | CN20: 3530.62912 | CO20: 7033.06414 | CP20: 48.65387 | CQ20: -3453.78115 | CR20: 2572.47628 | CS20: 1902.91042 | CT20: 4.00738 | CU20: 384.01719 | CV20: 56.66879 | CW20: 698.26453 | CX20: 775.14657 | CY20: -0.00355 | CZ20: -76.88559 | DA20: 5.43835 | DB20: 3.62277 | DC20: 3.89313 | DD20: -2.39668 | DE20: -73.57356 | DF20: 2258.52 | DG20: 681.86521 | DH20: 782.785 | DI20: 0 | DJ20: 12.13 | DK20: 754.501 | DL20: -712.113 | DM20: 330.945 | DN20: -131.227 | DO20: -88.78979 | DP20: 12649.133 | DQ20: 9332.864 | DR20: 3316.269 | DS20: 0 | DT20: 86.098 | DU20: 183 | DW20: 680.651 | DX20: 665.472 | DY20: 658.077 | EA20: 997
A21: 75 | B21: Hamina | C21: 19702 | D21: 21 | E21: 1.01625792 | F21: 89.17191618 | G21: 32.61062829 | H21: 15957.62138 | I21: 17.48379224 | J21: 150889.5958 | K21: 279524.5568 | L21: 1661.27525 | M21: -126973.6857 | N21: 98469.90334 | O21: 49274.05608 | P21: 321.96975 | Q21: 2283.84292 | R21: 1607.72591 | S21: 20416.12644 | T21: 17201.48561 | U21: 0 | V21: 3214.64083 | W21: 0 | X21: 35.56363 | Y21: 702.55134 | Z21: 6.10659 | AA21: 3887.73514 | AB21: 38441.88895 | AC21: 18225.12329 | AD21: -31088.3213 | AE21: 226.65257 | AF21: 1560.99707 | AG21: -10605.82617 | AH21: -20052.97623 | AI21: 59328.69248 | AJ21: -34914.48434 | AK21: -11075.54837 | AL21: 204635.9217 | AM21: 184001.2956 | AN21: 20634.62604 | AO21: 1302.42666 | AP21: 27201.033 | AQ21: 92 | AR21: 19549 | AS21: 21 | AT21: 0.7145397429 | AU21: 71.80217566 | AV21: 32.94459929 | AW21: 22255.53072 | AX21: 21.15829481 | AY21: 193442.0303 | AZ21: 323924.9767 | BA21: 2002.09752 | BB21: -128480.8488 | BC21: 101937.2324 | BD21: 50784.33257 | BE21: 119.48022 | BF21: 1805.01944 | BG21: -8974.82072 | BH21: 13580.35617 | BI21: 19649.54391 | BJ21: 0 | BK21: -6069.18774 | BL21: 0 | BM21: 107.91234 | BN21: -359.27659 | BO21: 12.02981 | BP21: -6524.34686 | BQ21: 32082.60102 | BR21: 12283.43271 | BS21: -28658.70675 | BT21: 2732.31606 | BU21: 26191.78122 | BV21: 737.196 | BW21: -19726.84882 | BX21: 9796.96976 | BY21: 1183.91674 | BZ21: 12548.82324 | CA21: 195889.9593 | CB21: 165470.5606 | CC21: 30419.39878 | CD21: 1181.40196 | CE21: 22609.462 | CF21: 168 | CG21: 19534 | CH21: 8.36 | CI21: 0.9258840354 | CJ21: 133.9250092 | CK21: 37.11065641 | CL21: 6829.69455 | CM21: 12.86112557 | CN21: 79738.75297 | CO21: 133704.2006 | CP21: 685.24393 | CQ21: -53280.20372 | CR21: 56999.11593 | CS21: 10592.55678 | CT21: 696.13935 | CU21: 4275.25698 | CV21: 6222.41254 | CW21: 16954.7639 | CX21: 17720.73522 | CY21: 0 | CZ21: -765.97132 | DA21: 0 | DB21: 149.32536 | DC21: -343.36776 | DD21: 5.27609 | DE21: -1253.38835 | DF21: 33015.51998 | DG21: 13245.75256 | DH21: 30486.38669 | DI21: 166.07613 | DJ21: 19899.6155 | DK21: 7234.96973 | DL21: -18654.20294 | DM21: 6800.83458 | DN21: 9771.99198 | DO21: 2825.0575 | DP21: 164928.4655 | DQ21: 118266.412 | DR21: 46662.05356 | DS21: 1019.97521 | DT21: 12385.477 | DU21: 120 | DW21: 860.6117 | DX21: 860.6117 | DY21: 860.6117 | EA21: 42219
A22: 77 | B22: Hankasalmi | C22: 4683 | D22: 22 | E22: 2.808141125 | F22: 48.50045001 | G22: 44.00261963 | H22: 3166.0769 | I22: 21.8273631 | J22: 15292.41037 | K22: 49310.54145 | L22: 0 | M22: -34018.13108 | N22: 16698.75255 | O22: 20674.40638 | P22: 80.08474 | Q22: 126.33408 | R22: 378.61073 | S22: 3687.38924 | T22: 2860.56999 | U22: 87.3 | V22: 914.11925 | W22: 23.4021 | X22: 3.49868 | Y22: 30.51799 | Z22: -1.27068 | AA22: 963.26998 | AB22: 246.05127 | AC22: 3742.66156 | AD22: -2265.45947 | AE22: 0 | AF22: 990.58525 | AG22: -673.76888 | AH22: -1231.76124 | AI22: 1847.24 | AJ22: -1346.06534 | AK22: 2467.78734 | AL22: 18932.26102 | AM22: 17580.69729 | AN22: 1351.56373 | AO22: 0 | AP22: 17068.73192 | AQ22: 181 | AR22: 4601 | AS22: 22 | AT22: 2.001892038 | AU22: 45.91420462 | AV22: 41.3298204 | AW22: 5022.96092 | AX22: 31.25489891 | AY22: 20277.78453 | AZ22: 56002.22861 | BA22: 0 | BB22: -35724.44408 | BC22: 16757.17824 | BD22: 21497.55461 | BE22: 80.34766 | BF22: 156.68552 | BG22: 305.31661 | BH22: 2759.26752 | BI22: 3102.34141 | BJ22: 181.70203 | BK22: -161.37186 | BL22: 0.73803 | BM22: 0 | BN22: 41.01797 | BO22: 2.06661 | BP22: -117.54925 | BQ22: 136.07022 | BR22: 2911.88371 | BS22: -1175.05284 | BT22: 42.11202 | BU22: 98.7997 | BV22: -1119.68434 | BW22: -1299.91303 | BX22: 743.08 | BY22: 55.9637 | BZ22: 1877.74259 | CA22: 18431.39168 | CB22: 16918.68447 | CC22: 1512.70721 | CD22: 0 | CE22: 24706.04491 | CF22: 205 | CG22: 4549 | CH22: 9.36 | CI22: 3.518839281 | CJ22: 43.37711016 | CK22: 63.80898276 | CL22: 4459.28394 | CM22: 70.18735192 | CN22: 7974.31233 | CO22: 20819.07621 | CP22: 0 | CQ22: -12844.76388 | CR22: 9733.65586 | CS22: 6453.33945 | CT22: 124.12555 | CU22: 182.27888 | CV22: 230.60774 | CW22: 3514.68584 | CX22: 2264.52092 | CY22: 0 | CZ22: 1250.16492 | DA22: -0.47372 | DB22: 0 | DC22: 42.06119 | DD22: 10.06894 | DE22: 1301.82133 | DF22: 1431.85301 | DG22: 3533.72675 | DH22: 1080.71334 | DI22: 121.4 | DJ22: 5.33259 | DK22: 663.0294 | DL22: -868.34163 | DM22: 0 | DN22: -126.5929 | DO22: 2579.746 | DP22: 7028.62725 | DQ22: 6093.08562 | DR22: 935.54163 | DS22: 0 | DT22: 27630.68423 | DU22: 156 | DW22: 1055.3857 | DX22: 1047.28412 | DY22: 1047.73905 | EA22: 339
A23: 78 | B23: Hanko | C23: 7979 | D23: 21.75 | E23: 1.787193165 | F23: 72.72184552 | G23: 43.63494834 | H23: 10358.36308 | I23: 32.07702876 | J23: 60954.99365 | K23: 101725.6507 | L23: 1.72193 | M23: -40768.93512 | N23: 41148.00778 | O23: 14272.704 | P23: 19.35706 | Q23: 557.77247 | R23: 114.96673 | S23: 14228.32798 | T23: 6689.98194 | U23: 0 | V23: 7538.34604 | W23: -188.79144 | X23: 296.98658 | Y23: 52.18484 | Z23: 9.01411 | AA23: 7113.76697 | AB23: 26914.507 | AC23: 12497.3138 | AD23: -7536.32786 | AE23: 9.61403 | AF23: 2428.92454 | AG23: -528.99455 | AH23: -7715.59201 | AI23: 728.83835 | AJ23: -77.32322 | AK23: 7399.52451 | AL23: 69515.54231 | AM23: 31724.6236 | AN23: 37790.91871 | AO23: 322.56268 | AP23: 7262.239 | AQ23: 11 | AR23: 7832 | AS23: 21.75 | AT23: 1.750016264 | AU23: 67.75975583 | AV23: 47.0590696 | AW23: 11664.15951 | AX23: 35.04018442 | AY23: 60192.91699 | AZ23: 106555.2825 | BA23: -31.34571 | BB23: -46393.71122 | BC23: 43550.23852 | BD23: 15557.41 | BE23: 38.01682 | BF23: 536.77854 | BG23: 82.98779 | BH23: 12298.16337 | BI23: 6712.40934 | BJ23: 0 | BK23: 5585.75403 | BL23: 841.77347 | BM23: 304.17514 | BN23: -64.4828 | BO23: 19.39176 | BP23: 6078.26132 | BQ23: 33000.94757 | BR23: 11565.7563 | BS23: -7504.5839 | BT23: 32.8886 | BU23: 1388.79132 | BV23: -193.61854 | BW23: -6797.40582 | BX23: 1149.86904 | BY23: -1356.23305 | BZ23: 5482.85232 | CA23: 62533.48639 | CB23: 26097.22162 | CC23: 36436.26477 | CD23: 308.41374 | CE23: 7300.272 | CF23: 18 | CG23: 7721 | CH23: 9.11 | CI23: 1.99066355 | CJ23: 111.5450854 | CK23: 53.89773138 | CL23: 13699.78934 | CM23: 87.19250236 | CN23: 31157.14463 | CO23: 42681.58972 | CP23: 0 | CQ23: -11524.44509 | CR23: 24747.07092 | CS23: 70.19466 | CT23: 346.83603 | CU23: 786.84726 | CV23: 98.67576 | CW23: 12951.48502 | CX23: 7633.43442 | CY23: 0 | CZ23: 5318.0506 | DA23: 2.85559 | DB23: 102.99525 | DC23: 2.90129 | DD23: 0.63003 | DE23: 5221.44226 | DF23: 37475.42995 | DG23: 12059.3927 | DH23: 7187.58389 | DI23: 342.2725 | DJ23: 861.42966 | DK23: 927.39442 | DL23: -6114.53609 | DM23: 167.47044 | DN23: 6322.98166 | DO23: 6075.51097 | DP23: 54506.84302 | DQ23: 12047.48065 | DR23: 42459.36237 | DS23: 287.03969 | DT23: 4601.721 | DU23: 7 | DW23: 11320.73262 | DX23: 11322.96711 | DY23: 11809.08192 | EA23: 201
A24: 79 | B24: Harjavalta | C24: 6785 | D24: 21.5 | E24: 1.605396526 | F24: 41.55111127 | G24: 39.22507841 | H24: 7054.85131 | I24: 26.52491544 | J24: 39578.59711 | K24: 86465.47283 | L24: 103.93026 | M24: -46782.94546 | N24: 39252.7974 | O24: 15638.74117 | P24: 0 | Q24: 75.59735 | R24: 64.07574 | S24: 8097.0715 | T24: 3861.80629 | U24: 0 | V24: 4235.26521 | W24: 0 | X24: 10.1576 | Y24: -20.30127 | Z24: -14.53354 | AA24: 4190.2728 | AB24: 7909.17629 | AC24: 7910.31705 | AD24: -5503.10308 | AE24: 96.92189 | AF24: 229.71357 | AG24: -1457.32436 | AH24: -5015.15046 | AI24: 3819.44808 | AJ24: 2500 | AK24: 2733.84943 | AL24: 27570.23013 | AM24: 19207.84345 | AN24: 8362.38668 | AO24: 0 | AP24: 1878.87123 | AQ24: 57 | AR24: 6753 | AS24: 21.5 | AT24: 1.482604875 | AU24: 38.30622607 | AV24: 40.81817774 | AW24: 5829.74727 | AX24: 20.68634345 | AY24: 40943.56677 | AZ24: 91638.97261 | BA24: 79.97779 | BB24: -50615.42805 | BC24: 41299.76127 | BD24: 16086.55567 | BE24: 6.08336 | BF24: 133.10374 | BG24: 53.07887 | BH24: 6696.94738 | BI24: 3712.94405 | BJ24: 0 | BK24: 2984.00333 | BL24: -1500 | BM24: 16.85402 | BN24: -17.64793 | BO24: -14.1423 | BP24: 1435.35908 | BQ24: 9344.82475 | BR24: 6387.82856 | BS24: -6543.69043 | BT24: 13.61532 | BU24: 455.00051 | BV24: 177.11702 | BW24: -4473.68748 | BX24: 3303.13499 | BY24: -2420 | BZ24: 312.75396 | CA24: 23976.14636 | CB24: 17855.57799 | CC24: 6120.56837 | CD24: 0 | CE24: 1840.505 | CF24: 80 | CG24: 6703 | CH24: 8.86 | CI24: 0.9898245308 | CJ24: 84.80598169 | CK24: 48.86859015 | CL24: 3904.99492 | CM24: 36.53619911 | CN24: 8222.61675 | CO24: 28674.89426 | CP24: 56.25698 | CQ24: -20396.02053 | CR24: 23440.67341 | CS24: 1529.13074 | CT24: 38.93806 | CU24: 435.78511 | CV24: 78.03355 | CW24: 4254.97012 | CX24: 3487.56648 | CY24: -1.58887 | CZ24: 765.81477 | DA24: 0 | DB24: 15.47603 | DC24: -18.26706 | DD24: -8.99946 | DE24: 723.07222 | DF24: 11561.81034 | DG24: 4191.32126 | DH24: 5518.63165 | DI24: 98.4292 | DJ24: 525.97982 | DK24: 1049.45289 | DL24: -4303.19143 | DM24: 3500 | DN24: 3000 | DO24: -702.90137 | DP24: 23118.65778 | DQ24: 14804.41843 | DR24: 8314.23935 | DS24: 0 | DT24: 198.844 | DU24: 197 | DW24: 411.75298 | DX24: 411.74988 | DY24: 410.6108 | EA24: 450
A25: 81 | B25: Hartola | C25: 2621 | D25: 21.5 | E25: 0.4120933855 | F25: 78.71030329 | G25: 20.28321025 | H25: 5449.01266 | I25: 40.07998248 | J25: 20676.62835 | K25: 38558.95969 | L25: 6.62193 | M25: -17875.70941 | N25: 10852.59372 | O25: 9467.227 | P25: 209.29378 | Q25: 176.21872 | R25: 153.6671 | S25: 2630.85347 | T25: 2513.84335 | U25: -40.47646 | V25: 76.53366 | W25: 405.10324 | X25: 0 | Y25: 0 | Z25: -38.22862 | AA25: 443.40828 | AB25: 1977.76232 | AC25: 3630.9321 | AD25: -4337.25632 | AE25: 2.31313 | AF25: 199.23699 | AG25: -402.05755 | AH25: -6635.51932 | AI25: 3312.21232 | AJ25: 4734.19277 | AK25: -504.7741 | AL25: 27526.70501 | AM25: 18213.89122 | AN25: 9312.81379 | AO25: -434.09023 | AP25: 738.046 | AQ25: 102 | AR25: 2574 | AS25: 21.5 | AT25: 0.9419400693 | AU25: 67.48833288 | AV25: 20.81465038 | AW25: 3931.11332 | AX25: 32.36524663 | AY25: 21180.33823 | AZ25: 40763.96662 | BA25: -9.5511 | BB25: -19593.17949 | BC25: 11203.45216 | BD25: 9868.167 | BE25: 19.29576 | BF25: 209.91957 | BG25: 181.05362 | BH25: 1468.86948 | BI25: 2666.03455 | BJ25: 111.53768 | BK25: -1085.62739 | BL25: 3.02307 | BM25: 0 | BN25: 0 | BO25: -37.57936 | BP25: -1120.18368 | BQ25: 1250.65124 | BR25: 1850.2436 | BS25: -1725.36596 | BT25: 105.81598 | BU25: 1880.17893 | BV25: -659.50395 | BW25: -1572.3478 | BX25: 3808.78601 | BY25: -6631.7115 | BZ25: 2110.87255 | CA25: 22931.39001 | CB25: 20322.03278 | CC25: 2609.35723 | CD25: -638.33537 | CE25: 827.028 | CF25: 213 | CG25: 2531 | CH25: 8.86 | CI25: 0.6883019112 | CJ25: 191.0052409 | CK25: 22.50835064 | CL25: 1166.84187 | CM25: 31.81205746 | CN25: 3772.83407 | CO25: 9257.10402 | CP25: 0 | CQ25: -5484.26995 | CR25: 6404.29191 | CS25: 696.664 | CT25: 322.80699 | CU25: 569.27227 | CV25: 59.25096 | CW25: 1429.47164 | CX25: 1232.90332 | CY25: -746.19103 | CZ25: -549.62271 | DA25: -0.25402 | DB25: 0 | DC25: 0 | DD25: 0.53417 | DE25: -549.34256 | DF25: 1316.04816 | DG25: 677.82277 | DH25: 1167.68835 | DI25: 0.10037 | DJ25: 738.61792 | DK25: 762.07159 | DL25: -2334.60447 | DM25: 2.69076 | DN25: 972.47156 | DO25: 248.85271 | DP25: 18854.93945 | DQ25: 15820.2679 | DR25: 3034.67155 | DS25: 33.99953 | DT25: 27.17379 | DU25: 221 | DW25: 487.08879 | DX25: 575.59611 | DY25: 0 | EA25: 168
A26: 82 | B26: Hattula | C26: 9405 | D26: 20.75 | E26: 0.7741256622 | F26: 72.29327791 | G26: 31.88647569 | H26: 4084.82772 | I26: 16.72036641 | J26: 27029.24706 | K26: 78684.49127 | L26: 0.13007 | M26: -51655.11414 | N26: 40564.90371 | O26: 15078.11601 | P26: 216.2076 | Q26: 222.81526 | R26: 214.20392 | S26: 4195.50184 | T26: 4234.09095 | U26: 134.14348 | V26: 95.55437 | W26: -0.5099 | X26: 23.14071 | Y26: -3.9676 | Z26: -0.40218 | AA26: 67.53398 | AB26: 9060.47498 | AC26: 4171.02065 | AD26: -4756.72202 | AE26: 0.86564 | AF26: 241.89801 | AG26: -1474.83866 | AH26: -5484.67813 | AI26: 7967.02812 | AJ26: -1220.36962 | AK26: -342.93772 | AL26: 48344.02614 | AM26: 41512.85233 | AN26: 6831.17381 | AO26: 4126.7194 | AP26: 2740.96085 | AQ26: 275 | AR26: 9359 | AS26: 20.75 | AT26: 0.5743219425 | AU26: 77.26043328 | AV26: 29.6082767 | AW26: 7757.69974 | AX26: 28.16016622 | AY26: 27297.84539 | AZ26: 83239.39724 | BA26: 0.36273 | BB26: -55941.18912 | BC26: 43053.82391 | BD26: 17005.19086 | BE26: 209.40689 | BF26: 308.1357 | BG26: 150.23728 | BH26: 4169.33412 | BI26: 4016.48162 | BJ26: -8.06451 | BK26: 144.78799 | BL26: 17.89952 | BM26: 0.05125 | BN26: 57.56349 | BO26: -0.00411 | BP26: 220.19564 | BQ26: 9265.2231 | BR26: 3914.85905 | BS26: -9389.65363 | BT26: 42.5 | BU26: 1043.91341 | BV26: 393.9032 | BW26: -7487.96173 | BX26: 8759.9519 | BY26: 6394.90887 | BZ26: -4388.38117 | CA26: 56010.9252 | CB26: 43734.39885 | CC26: 12276.52635 | CD26: 4121.65299 | CE26: 2841.66 | CF26: 247 | CG26: 9371 | CH26: 8.11 | CI26: 1.388477756 | CJ26: 108.4213797 | CK26: 38.75989829 | CL26: 3211.21881 | CM26: 29.72475972 | CN26: 7263.45973 | CO26: 33114.9547 | CP26: 0 | CQ26: -25851.49497 | CR26: 24195.18058 | CS26: 8634.03587 | CT26: 209.66803 | CU26: 1216.34503 | CV26: 118.67953 | CW26: 6089.72401 | CX26: 2858.2184 | CY26: 0 | CZ26: 3231.50561 | DA26: 0.7875 | DB26: 0.01404 | DC26: 12.33839 | DD26: 0.01179 | DE26: 3244.62925 | DF26: 12626.79636 | DG26: 6034.9233 | DH26: 936.03947 | DI26: 55.9 | DJ26: 324.36109 | DK26: 874.61003 | DL26: -4045.58229 | DM26: 4126.2 | DN26: -4119.06244 | DO26: 5479.14492 | DP26: 37783.35614 | DQ26: 29804.56943 | DR26: 7978.78671 | DS26: 4096.32 | DT26: 1394.94579 | DU26: 194 | DW26: 19.09834 | DX26: 16.64631 | DY26: 13.48971 | EA26: 7794
A27: 86 | B27: Hausjärvi | C27: 8143 | D27: 21.5 | E27: 0.8432757251 | F27: 54.71065671 | G27: 36.79114622 | H27: 9160.9437 | I27: 40.46124873 | J27: 26497.77017 | K27: 71413.06622 | L27: 0.11338 | M27: -44915.18267 | N27: 34500.23998 | O27: 15439.56288 | P27: 28.76052 | Q27: 89.90978 | R27: 171.62177 | S27: 5135.0927 | T27: 3172.00119 | U27: 0 | V27: 1963.09151 | W27: -0.43048 | X27: 0.00163 | Y27: 0 | Z27: -0.35063 | AA27: 1962.30877 | AB27: 10240.22052 | AC27: 4783.33925 | AD27: -5029.48182 | AE27: 0.62538 | AF27: 186.62117 | AG27: -308.28372 | AH27: -6106.16859 | AI27: 8643.96056 | AJ27: -3237.91421 | AK27: -58.89602 | AL27: 32174.90003 | AM27: 22056.97988 | AN27: 10117.92015 | AO27: 89.96167 | AP27: 735.9613 | AQ27: 238 | AR27: 8031 | AS27: 21.5 | AT27: 0.9 | AU27: 56.7 | AV27: 35.7 | AW27: 8407.74527 | AX27: 35.80861586 | AY27: 26331 | AZ27: 74875 | BA27: 0.31618 | BB27: -48544 | BC27: 35860.036 | BD27: 16384.637 | BE27: 3.50672 | BF27: 272.02551 | BG27: 187 | BH27: 3619 | BI27: 3270 | BJ27: 0 | BK27: 384 | BL27: 2.11108 | BM27: 8 | BN27: 0 | BO27: -0.00759 | BP27: 342 | BQ27: 10582 | BR27: 3495 | BS27: -6594 | BT27: 40 | BU27: 120 | BV27: -543 | BW27: -4119 | BX27: 6329 | BY27: 0 | BZ27: -2939 | CA27: 34383.99486 | CB27: 25104.6954 | CC27: 9279.29946 | CD27: 72.70149 | CE27: 693.26643 | CF27: 243 | CG27: 7998 | CH27: 8.86 | CI27: 1.53617333 | CJ27: 93.87653279 | CK27: 43.85153645 | CL27: 4040.59865 | CM27: 41.80564766 | CN27: 5920.22289 | CO27: 26051.47061 | CP27: 0 | CQ27: -20131.24772 | CR27: 19081.573 | CS27: 6254.071 | CT27: 3.36941 | CU27: 417.47456 | CV27: 20.48845 | CW27: 4810.77958 | CX27: 3621.32613 | CY27: -556.81011 | CZ27: 632.64334 | DA27: 0.678 | DB27: 11.17952 | DC27: 0 | DD27: 0.01671 | DE27: 622.15853 | DF27: 11296.00328 | DG27: 4032.9172 | DH27: 5802.58666 | DI27: 8.65592 | DJ27: 2163.382 | DK27: 336.93568 | DL27: -2985.95267 | DM27: 5000 | DN27: 0 | DO27: 402.36846 | DP27: 26124.005 | DQ27: 16635.98218 | DR27: 9488.02282 | DS27: 45.8 | DT27: 413.0208 | DU27: 208 | DW27: 4.66291 | DX27: 2.55183 | DY27: 1.87383 | EA27: 2309
A28: 111 | B28: Heinola | C28: 18344 | D28: 20.5 | E28: 1.270725985 | F28: 69.14755409 | G28: 49.43088701 | H28: 770.59 | I28: 1.062116526 | J28: 112220.555 | K28: 220848.11 | L28: 39.962 | M28: -108587.593 | N28: 73125.696 | O28: 49109.154 | P28: 44.465 | Q28: 544.905 | R28: 5831.679 | S28: 18978.496 | T28: 12962.999 | U28: 32.065 | V28: 6047.562 | W28: 1.55 | X28: 0.488 | Y28: -40.626 | Z28: -2.174 | AA28: 6005.824 | AB28: 58944.377 | AC28: 17628.722 | AD28: -27349.313 | AE28: 653.653 | AF28: 1806.843 | AG28: -3672.795 | AH28: -14819.069 | AI28: 6876.787 | AJ28: 20094.122 | AK28: -7260.095 | AL28: 128053.341 | AM28: 91368.039 | AN28: 36685.302 | AO28: 1722.144 | AP28: 35810.102 | AQ28: 93 | AR28: 18131 | AS28: 20.5 | AT28: 0.7953532525 | AU28: 71.22055142 | AV28: 47.23019806 | AW28: 116090.546 | AX28: 145.7817145 | AY28: 119318.4 | AZ28: 234537.761 | BA28: -50.673 | BB28: -115270.034 | BC28: 76371.279 | BD28: 53805.487 | BE28: 43.761 | BF28: 685.014 | BG28: -1875.832 | BH28: 12389.647 | BI28: 11174.104 | BJ28: -33.279 | BK28: 1182.264 | BL28: -22.422 | BM28: -0.001 | BN28: -111.224 | BO28: 8.521 | BP28: 1057.14 | BQ28: 60636.99 | BR28: 13368.677 | BS28: -30609.389 | BT28: 1725.731 | BU28: 8930.947 | BV28: -3691.08 | BW28: -15753.796 | BX28: 24430.58 | BY28: 3000 | BZ28: -6584.034 | CA28: 140511.935 | CB28: 100073.947 | CC28: 40437.988 | CD28: 1691.293 | CE28: 39153.101 | CF28: 176 | CG28: 17953 | CH28: 7.86 | CI28: 1.104862476 | CJ28: 173.4020466 | CK28: 54.57496905 | CL28: 109235.496 | CM28: 392.8307887 | CN28: 25741.145 | CO28: 65202.108 | CP28: 689.432 | CQ28: -38771.531 | CR28: 40860.84 | CS28: 11921.143 | CT28: 331.639 | CU28: 1935.616 | CV28: 4695.085 | CW28: 17101.56 | CX28: 11886.612 | CY28: -5.41 | CZ28: 5209.538 | DA28: -14.049 | DB28: 0 | DC28: -95.973 | DD28: 8.516 | DE28: 5108.032 | DF28: 65673.295 | DG28: 15440.8 | DH28: 14368.964 | DI28: 344.059 | DJ28: 5993.928 | DK28: 6149.379 | DL28: -15294.742 | DM28: 15000 | DN28: -6000 | DO28: 7409.823 | DP28: 122445.079 | DQ28: 89195.822 | DR28: 33249.257 | DS28: 1673.187 | DT28: 3127.996 | DU28: 88 | DW28: 15138.864 | DX28: 15138.864 | DY28: 15137.317 | EA28: 647
A29: 90 | B29: Heinävesi | C29: 3136 | D29: 21 | E29: -0.9090357282 | F29: 46.67171438 | G29: 41.34995806 | H29: 6092.1455 | I29: 56.26163995 | J29: 17914.81898 | K29: 42150.50384 | L29: 0 | M29: -24235.68486 | N29: 13784.08514 | O29: 13696.754 | P29: 84.03415 | Q29: -58.21035 | R29: 247.35539 | S29: 3501 | T29: 1901.6511 | U29: 335.1631 | V29: 1934.512 | W29: 1.7375 | X29: -0.48188 | Y29: -1.05191 | Z29: -0.53075 | AA29: 1934.18496 | AB29: 4964.37546 | AC29: 3306 | AD29: -1161.33954 | AE29: 33.57482 | AF29: 339.69395 | AG29: -33.40004 | AH29: -3729.08815 | AI29: 3901.25186 | AJ29: -2857.28538 | AK29: 2518 | AL29: 15242.08226 | AM29: 11938.43341 | AN29: 3303.64885 | AO29: 17.68 | AP29: 896.35329 | AQ29: 69 | AR29: 3061 | AS29: 21.5 | AT29: 6.882639664 | AU29: 39.5622933 | AV29: 42.71521905 | AW29: 4916.529 | AX29: 38.76447375 | AY29: 18959.61794 | AZ29: 44181.35221 | BA29: -1.78506 | BB29: -25223.51933 | BC29: 14082.10355 | BD29: 13394.793 | BE29: 63.89092 | BF29: 69.5831 | BG29: 283.23739 | BH29: 2530.92243 | BI29: 1841.01729 | BJ29: 0 | BK29: 689.90514 | BL29: 3.49661 | BM29: 0.00436 | BN29: -1.37646 | BO29: 2.76531 | BP29: 694.78624 | BQ29: 5022.83125 | BR29: 2778.63206 | BS29: -1608.66228 | BT29: 214.14335 | BU29: 415.78344 | BV29: -498.47215 | BW29: -308.25239 | BX29: 751.30263 | BY29: -2952.4404 | BZ29: 1799.89657 | CA29: 11632.6921 | CB29: 11278.94533 | CC29: 353.74677 | CD29: 10.76658 | CE29: 9302.75557 | CF29: 127 | CG29: 3001 | CH29: 8.86 | CI29: 17.3691391 | CJ29: 83.46010033 | CK29: 52.3635217 | CL29: 4055.17309 | CM29: 107.3831804 | CN29: 5757.58731 | CO29: 12322.94198 | CP29: 0 | CQ29: -6565.35467 | CR29: 7732.02553 | CS29: 653.779 | CT29: 78.36615 | CU29: 52.71743 | CV29: 314.31384 | CW29: 2160.41242 | CX29: 1517.40744 | CY29: 0 | CZ29: 643.00498 | DA29: -17.71889 | DB29: 0 | DC29: 0 | DD29: 0 | DE29: 625.28609 | DF29: 5247.52246 | DG29: 2030.28783 | DH29: 993.84573 | DI29: 145 | DJ29: 112.84953 | DK29: 118.98306 | DL29: -74.69993 | DM29: 203.1269 | DN29: 0.9876 | DO29: 1294.29163 | DP29: 9680.14765 | DQ29: 9571.15136 | DR29: 108.99629 | DS29: 7 | DT29: 8104.48866 | DU29: 175 | DW29: 259.32414 | DX29: 258.92701 | DY29: 246.87568 | EA29: 0
A30: 91 | B30: Helsinki | C30: 658457 | D30: 18 | E30: 3.88524004 | F30: 88.30593427 | G30: 61.33929946 | H30: 1578395.3 | I30: 59.61923095 | J30: 4363332.161 | K30: 7164568.649 | L30: 20785.01711 | M30: -2780451.471 | N30: 3820030.493 | O30: 331045.618 | P30: 17110.89134 | Q30: 59097.63829 | R30: 7273.19623 | S30: 1335911.089 | T30: 952594.4863 | U30: 2062.04127 | V30: 385378.6438 | W30: 2783.71838 | X30: 12130.04846 | Y30: -8054.42206 | Z30: 1278.40089 | AA30: 369256.2926 | AB30: 6554644.869 | AC30: 1253516.69 | AD30: -2106811.87 | AE30: 113463.5734 | AF30: 408544.2787 | AG30: -137047.2213 | AH30: -299955.7826 | AI30: 640362.8025 | AJ30: -1693.53032 | AK30: -331287.3273 | AL30: 5890869.005 | AM30: 5575243.16 | AN30: 315625.8442 | AO30: 487985.4183 | AP30: 982376.7094 | AQ30: 6 | AR30: 664028 | AS30: 18 | AT30: 3.87532236 | AU30: 93.62169529 | AV30: 58.33510039 | AW30: 1807552.79 | AX30: 59.72275735 | AY30: 4846847.033 | AZ30: 7915194.978 | BA30: -13297.26474 | BB30: -3081645.211 | BC30: 4091577.98 | BD30: 378400.85 | BE30: 21046.59769 | BF30: 59089.22882 | BG30: 9973.196 | BH30: 1360264.184 | BI30: 911314.1785 | BJ30: 2139.02798 | BK30: 451089.0336 | BL30: -135.86678 | BM30: 19635.35504 | BN30: -7721.28743 | BO30: 6932.97314 | BP30: 430529.4975 | BQ30: 6967132.686 | BR30: 1272888.754 | BS30: -2704550.234 | BT30: 61556.91669 | BU30: 698965.7716 | BV30: -107500.0058 | BW30: -307165.0544 | BX30: 904174.7031 | BY30: 28557.69703 | BZ30: -671138.7915 | CA30: 6516414.708 | CB30: 6057380.106 | CC30: 459034.6021 | CD30: 524517.897 | CE30: 1040170.478 | CF30: 8 | CG30: 674500 | CH30: 5.36 | CI30: 3.034762047 | CJ30: 133.6006386 | CK30: 59.28816994 | CL30: 1516708.319 | CM30: 71.50401032 | CN30: 4201356.562 | CO30: 4973162.752 | CP30: -600.68183 | CQ30: -772406.872 | CR30: 2020104.397 | CS30: 200909.289 | CT30: 65556.13613 | CU30: 169454.7058 | CV30: 50519.73139 | CW30: 1395227.975 | CX30: 968698.4354 | CY30: 278.31525 | CZ30: 426807.8553 | DA30: -2678.85045 | DB30: 18147.55194 | DC30: 987.33639 | DD30: 4141.4725 | DE30: 411110.2618 | DF30: 7425407.427 | DG30: 1246249.344 | DH30: 2187098.114 | DI30: 28663.4884 | DJ30: 333652.5978 | DK30: -309662.5084 | DL30: -346131.906 | DM30: 1248671.398 | DN30: -118329.1566 | DO30: -578532.6834 | DP30: 7203562.505 | DQ30: 6729073.19 | DR30: 474489.3157 | DS30: 499619.6836 | DT30: 972541.8259 | DU30: 4 | DW30: 1897875.455 | DX30: 1916044.897 | DY30: 1870973.951 | EA30: 346490
A31: 97 | B31: Hirvensalmi | C31: 2131 | D31: 20 | E31: 2.707400663 | F31: 42.73649411 | G31: 49.14226464 | H31: 13077.36034 | I31: 135.6761738 | J31: 18343.28144 | K31: 32923.48948 | L31: 0.78192 | M31: -14579.42612 | N31: 8746.69716 | O31: 7242.673 | P31: 8.15446 | Q31: 60.8754 | R31: 415.70733 | S31: 1772.93043 | T31: 1172.73444 | U31: -54.73844 | V31: 545.45755 | W31: 1e-05 | X31: 0 | Y31: -2.76 | Z31: 0 | AA31: 542.69756 | AB31: 6476.00661 | AC31: 2062.47346 | AD31: -1567.99103 | AE31: 237.00964 | AF31: 200.26343 | AG31: -103.98715 | AH31: -616.45539 | AI31: 764.42904 | AJ31: -129.88006 | AK31: 931.7555 | AL31: 7878.39801 | AM31: 7301.694 | AN31: 576.70401 | AO31: 0 | AP31: 1410.40591 | AQ31: 162 | AR31: 2091 | AS31: 20 | AT31: 2.879554135 | AU31: 39.23271812 | AV31: 48.78520861 | AW31: 13013.07051 | AX31: 130.899361 | AY31: 19277.55868 | AZ31: 34370.72724 | BA31: 1.00912 | BB31: -15092.15944 | BC31: 8821.79085 | BD31: 7419.906 | BE31: 4.3329 | BF31: 71.29136 | BG31: 367.40649 | BH31: 1449.98544 | BI31: 1141.70343 | BJ31: 11.11407 | BK31: 319.39608 | BL31: 0 | BM31: 0 | BN31: -12.032 | BO31: 0 | BP31: 307.36408 | BQ31: 6468.88827 | BR31: 2073.96588 | BS31: -1365.89942 | BT31: 95.35774 | BU31: 183.31665 | BV31: -237.45774 | BW31: -457.01154 | BX31: 493.73095 | BY31: 0.03299 | BZ31: 986.74085 | CA31: 7915.15041 | CB31: 7296.53335 | CC31: 618.61706 | CD31: 240.02027 | CE31: 1700.25827 | CF31: 171 | CG31: 2062 | CH31: 7.36 | CI31: 4.637822791 | CJ31: 68.56505311 | CK31: 67.43614839 | CL31: 12021.03502 | CM31: 511.814774 | CN31: 3177.12982 | CO31: 7465.58423 | CP31: 0 | CQ31: -4288.45441 | CR31: 5528.23831 | CS31: 367.466 | CT31: 4.2748 | CU31: 90.69835 | CV31: 295.62924 | CW31: 1816.45559 | CX31: 706.26612 | CY31: 0 | CZ31: 1110.18947 | DA31: 0 | DB31: 0 | DC31: -0.4 | DD31: 0 | DE31: 1109.78947 | DF31: 7211.54194 | DG31: 785.41664 | DH31: 400.35356 | DI31: 68.3582 | DJ31: 55.68386 | DK31: -53.20887 | DL31: -320.51916 | DM31: 0 | DN31: 0 | DO31: 509.10514 | DP31: 3266.40598 | DQ31: 2829.07546 | DR31: 437.33052 | DS31: 0 | DT31: 1794.05052 | DU31: 114 | DW31: 1721.63346 | DX31: 1721.63346 | DY31: 1710.6534 | EA31: 610
A32: 98 | B32: Hollola | C32: 23090 | D32: 21 | E32: 2.091913635 | F32: 38.61674768 | G32: 53.00429872 | H32: 28542.76055 | I32: 39.47300522 | J32: 107133.1159 | K32: 234279.388 | L32: 36.6817 | M32: -127109.5903 | N32: 99393.41698 | O32: 49575.00728 | P32: 54.7749 | Q32: 338.81644 | R32: 1340.12397 | S32: 22914.91636 | T32: 11324.89594 | U32: 0.0006 | V32: 11590.02102 | W32: 1.06066 | X32: 601.09209 | Y32: 19.01757 | Z32: -760.64029 | AA32: 10248.36687 | AB32: 48129.35789 | AC32: 22328.36348 | AD32: -18514.15414 | AE32: 13.43923 | AF32: 1068.87488 | AG32: -3201.03021 | AH32: -10777.19352 | AI32: 7944.32061 | AJ32: -2305.75608 | AK32: 4896.52344 | AL32: 59441.04794 | AM32: 50272.92103 | AN32: 9168.12691 | AO32: 1501.40037 | AP32: 74958.15523 | AQ32: 106 | AR32: 22943 | AS32: 21 | AT32: 2.467079306 | AU32: 35.28395014 | AV32: 55.19534924 | AW32: 26660.90394 | AX32: 35.186328 | AY32: 111705.2391 | AZ32: 247635.0592 | BA32: -57.53202 | BB32: -135987.3521 | BC32: 103272.316 | BD32: 53511.80118 | BE32: 14.80581 | BF32: 374.80052 | BG32: 1097.07325 | BH32: 21533.84352 | BI32: 13211.17832 | BJ32: -33.03238 | BK32: 8289.63282 | BL32: -1.24716 | BM32: 2.84928 | BN32: -98.45582 | BO32: 0.54882 | BP32: 8187.62938 | BQ32: 56606.36461 | BR32: 23042.47484 | BS32: -19985.07647 | BT32: 305.85517 | BU32: 1662.5583 | BV32: -3055.72066 | BW32: -8505.59663 | BX32: 9930.02316 | BY32: -5283.90371 | BZ32: 5025.81185 | CA32: 55581.57076 | CB32: 48194.96656 | CC32: 7386.6042 | CD32: 1447.86293 | CE32: 23840.2679 | CF32: 89 | CG32: 22885 | CH32: 8.36 | CI32: 3.350235703 | CJ32: 57.05584376 | CK32: 67.61144303 | CL32: 32774.01882 | CM32: 121.3177315 | CN32: 21946.86229 | CO32: 82611.03132 | CP32: 0 | CQ32: -60664.16903 | CR32: 55793.98797 | CS32: 26651.14279 | CT32: 64.9191 | CU32: 656.37264 | CV32: 563.72864 | CW32: 21753.23682 | CX32: 11333.60556 | CY32: -5.36993 | CZ32: 10414.26133 | DA32: -2.49043 | DB32: 1.05426 | DC32: 89.51562 | DD32: -0.02934 | DE32: 10500.20291 | DF32: 66810.52967 | DG32: 21115.88631 | DH32: 8741.12627 | DI32: 1.36815 | DJ32: 6555.90635 | DK32: 1178.63423 | DL32: -6032.59239 | DM32: 667.78195 | DN32: -817.18117 | DO32: 18932.03453 | DP32: 35938.2354 | DQ32: 31138.9649 | DR32: 4799.2705 | DS32: 1426.93882 | DT32: 31743.11724 | DU32: 90 | DW32: 71.95838 | DX32: 71.95838 | DY32: 71.95838 | EA32: 1565
A33: 102 | B33: Huittinen | C33: 9870 | D33: 21 | E33: 1.558652701 | F33: 48.18127664 | G33: 46.70427652 | H33: 11220.83967 | I33: 41.4116387 | J33: 26317.10727 | K33: 90121.28706 | L33: 104.9622 | M33: -63699.21759 | N33: 37605.60367 | O33: 32384.54218 | P33: 3.77705 | Q33: 206.9235 | R33: 101.73169 | S33: 6189.5135 | T33: 5320.88171 | U33: 0 | V33: 868.63179 | W33: 4.23774 | X33: -0.73807 | Y33: 0.14145 | Z33: 5.65276 | AA33: 879.40181 | AB33: 9077.31108 | AC33: 6044.86524 | AD33: -4663.32468 | AE33: 115.44877 | AF33: 190.70432 | AG33: -1395.81427 | AH33: -3896.90091 | AI33: 507.5847 | AJ33: -4.01338 | AK33: 1687.69365 | AL33: 30207.01892 | AM33: 26448.24743 | AN33: 3758.77149 | AO33: 0 | AP33: 7251.04199 | AQ33: 241 | AR33: 9745 | AS33: 21 | AT33: 0.9422023323 | AU33: 45.39200293 | AV33: 49.95367162 | AW33: 9427.42627 | AX33: 32.69691352 | AY33: 25375.13189 | AZ33: 93850.2719 | BA33: 19.62154 | BB33: -68455.51847 | BC33: 37802.16156 | BD33: 34222.29045 | BE33: 4.32546 | BF33: 183.23013 | BG33: 102.03182 | BH33: 3492.06069 | BI33: 4653.66117 | BJ33: 3550.01319 | BK33: 2388.41271 | BL33: -15.9484 | BM33: 1.58532 | BN33: 0.11155 | BO33: -0.20334 | BP33: 2370.7872 | BQ33: 11593.96766 | BR33: 3659.12289 | BS33: -7415.52239 | BT33: 21.90836 | BU33: 3567.92905 | BV33: 179.0996 | BW33: -3717.51464 | BX33: 863.4665 | BY33: 0 | BZ33: -166.56209 | CA33: 26840.20086 | CB33: 23294.95782 | CC33: 3545.24304 | CD33: 0 | CE33: 7221.75664 | CF33: 266 | CG33: 9646 | CH33: 8.36 | CI33: 2.098842066 | CJ33: 84.68569771 | CK33: 53.6223909 | CL33: 7068.89664 | CM33: 43.50020926 | CN33: 11316.38444 | CO33: 39664.26509 | CP33: 16.35762 | CQ33: -28331.52303 | CR33: 21374.35804 | CS33: 15120.09521 | CT33: 9.8366 | CU33: 397.15746 | CV33: 146.50255 | CW33: 7922.11191 | CX33: 4411.73479 | CY33: 6.91354 | CZ33: 3517.29066 | DA33: -7.06578 | DB33: 0.03659 | DC33: 0 | DD33: 0.3704 | DE33: 3510.55869 | DF33: 14596.04838 | DG33: 7784.85788 | DH33: 15510.16817 | DI33: 150 | DJ33: 498.54688 | DK33: 1162.45818 | DL33: -3566.58498 | DM33: 11000 | DN33: 226.93862 | DO33: -7076.76341 | DP33: 32104.76302 | DQ33: 28185.08905 | DR33: 3919.67397 | DS33: 0 | DT33: 3058.74462 | DU33: 135 | DW33: 650.98784 | DX33: 650.18746 | DY33: 649.88349 | EA33: 314
A34: 103 | B34: Humppila | C34: 2166 | D34: 22 | E34: 1.275895237 | F34: 38.68214128 | G34: 44.19731401 | H34: 2344.79836 | I34: 36.03985028 | J34: 9026.18877 | K34: 22873.11098 | L34: 0.04935 | M34: -13846.87286 | N34: 8178.39462 | O34: 6879.10932 | P34: 11.03944 | Q34: 50.85161 | R34: 17.90197 | S34: 1188.72088 | T34: 741.3383 | U34: 0 | V34: 447.38258 | W34: 2.55924 | X34: -7.78769 | Y34: 0 | Z34: -0.15334 | AA34: 457.57617 | AB34: 473.87113 | AC34: 1431.40149 | AD34: -310.0672 | AE34: 10.22484 | AF34: 62.58331 | AG34: 398.62483 | AH34: -920.67995 | AI34: -248.68819 | AJ34: 0.55 | AK34: 1194.14244 | AL34: 6919.492 | AM34: 5022.1564 | AN34: 1897.3356 | AO34: 365.66314 | AP34: 363.765 | AQ34: 262 | AR34: 2161 | AS34: 22 | AT34: 0.6645591122 | AU34: 52.49121029 | AV34: 46.81552024 | AW34: 1643.68433 | AX34: 35.4586455 | AY34: 1301.07122 | AZ34: 15449.97118 | BA34: 0.13762 | BB34: -14148.76234 | BC34: 8168.12399 | BD34: 6764.671 | BE34: 7.20154 | BF34: 68.02978 | BG34: 31.38834 | BH34: 754.59275 | BI34: 737.23512 | BJ34: 0 | BK34: 17.35763 | BL34: 3.59451 | BM34: 10.9842 | BN34: -2.046 | BO34: -0.04938 | BP34: 7.87256 | BQ34: 479.29853 | BR34: 696.60605 | BS34: -555.87634 | BT34: 12.4 | BU34: 71.25191 | BV34: 91.6565 | BW34: -1169.81726 | BX34: 71.30195 | BY34: -9.55862 | BZ34: 224.38162 | CA34: 6099.26571 | CB34: 3354.55304 | CC34: 2744.71267 | CD34: 302.68444 | CE34: 365.44 | CF34: 267 | CG34: 2125 | CH34: 9.36 | CI34: 0.363807862 | CJ34: 69.14364637 | CK34: 54.54947343 | CL34: 752.72533 | CM34: 26.01893881 | CN34: 1936.88615 | CO34: 8606.44135 | CP34: 0 | CQ34: -6669.5552 | CR34: 4742.89005 | CS34: 2536.12466 | CT34: 24.10213 | CU34: 106.84914 | CV34: 12.43908 | CW34: 539.15158 | CX34: 641.49547 | CY34: 0 | CZ34: -102.34389 | DA34: 3.698 | DB34: 21.18802 | DC34: 4.4578 | DD34: 0.00297 | DE34: -115.37314 | DF34: 401.95581 | DG34: 512.90108 | DH34: 481.69955 | DI34: 0 | DJ34: 1.85055 | DK34: 958.40525 | DL34: -1668.8154 | DM34: -93.59632 | DN34: -1 | DO34: 33.05208 | DP34: 4481.2869 | DQ34: 2560.77238 | DR34: 1920.51452 | DS34: 293.32386 | DT34: 105.275 | DU34: 272 | DW34: 509.71578 | DX34: 577.86757 | DY34: 644.49321 | EA34: 28
A35: 105 | B35: Hyrynsalmi | C35: 2139 | D35: 21.75 | E35: 1.461269193 | F35: 46.4628778 | G35: 37.49773638 | H35: 4613.45334 | I35: 42.80360642 | J35: 18952.54066 | K35: 36864.76992 | L35: 0 | M35: -17912.22926 | N35: 8550.77314 | O35: 10631.134 | P35: 11.80136 | Q35: 51.52907 | R35: -74.3738 | S35: 1155.57637 | T35: 1527.71311 | U35: 0 | V35: -372.13674 | W35: 1.03625 | X35: 0 | Y35: -14.95862 | Z35: -5.20246 | AA35: -391.26157 | AB35: -890.98341 | AC35: 1085.38601 | AD35: -1559.47592 | AE35: 68.50569 | AF35: 36.0231 | AG35: 77.40405 | AH35: -774.53737 | AI35: 597.915 | AJ35: 507.68494 | AK35: -369.56112 | AL35: 12271.01347 | AM35: 9060.35851 | AN35: 3210.65496 | AO35: 0 | AP35: 523.73579 | AQ35: 265 | AR35: 2094 | AS35: 21.75 | AT35: 3.541065616 | AU35: 42.34722497 | AV35: 41.80035751 | AW35: 5821.12839 | AX35: 52.52117275 | AY35: 19172.63943 | AZ35: 37417.80886 | BA35: 0 | BB35: -18245.16943 | BC35: 8743.64652 | BD35: 12598.597 | BE35: 6.40048 | BF35: 90.11369 | BG35: -45.66997 | BH35: 2967.69091 | BI35: 1506.33236 | BJ35: 332.98542 | BK35: 1794.34397 | BL35: 1.51005 | BM35: 0 | BN35: 0 | BO35: 0 | BP35: 1795.85402 | BQ35: 904.87061 | BR35: 2847.30762 | BS35: -2091.06947 | BT35: 101.98101 | BU35: 417.79393 | BV35: 467.1431 | BW35: -773.41298 | BX35: 8.97544 | BY35: 507.17678 | BZ35: 1276.01309 | CA35: 12013.7527 | CB35: 8378.9159 | CC35: 3634.8368 | CD35: 0 | CE35: 484.73639 | CF35: 28 | CG35: 2063 | CH35: 9.11 | CI35: 4.684798419 | CJ35: 60.74022791 | CK35: 62.15037068 | CL35: 3888.80345 | CM35: 119.9990369 | CN35: 4837.85748 | CO35: 10366.61992 | CP35: 0 | CQ35: -5528.76244 | CR35: 4968.77501 | CS35: 2476.288 | CT35: 10.64832 | CU35: 167.75942 | CV35: -1.82922 | CW35: 1757.36025 | CX35: 1091.91043 | CY35: 0 | CZ35: 665.44982 | DA35: 2.16445 | DB35: -0.63411 | DC35: 0 | DD35: 0 | DE35: 668.24838 | DF35: 3165.4613 | DG35: 1759.58528 | DH35: 1052.81903 | DI35: 0 | DJ35: 77.34055 | DK35: 392.38658 | DL35: -243.16961 | DM35: 0 | DN35: -132.91329 | DO35: 784.1068 | DP35: 5009.49891 | DQ35: 1829.26708 | DR35: 3180.23183 | DS35: 0 | DT35: 85.14816 | DU35: 126 | DW35: 1674.7215 | DX35: 1633.55641 | DY35: 3.7633 | EA35: 2451
A36: 106 | B36: Hyvinkää | C36: 46880 | D36: 20.25 | E36: 1.931583411 | F36: 64.43655768 | G36: 34.13527999 | H36: 59619.35369 | I36: 34.69081894 | J36: 324000.9307 | K36: 559086.3304 | L36: 138.7223 | M36: -234946.6775 | N36: 227348.0584 | O36: 66582.23688 | P36: 33.62257 | Q36: 3191.38398 | R36: 7.50482 | S36: 55833.3612 | T36: 35976.16917 | U36: 0 | V36: 19857.19203 | W36: 21.58912 | X36: 550.65201 | Y36: 267.70915 | Z36: -255.70634 | AA36: 19340.13195 | AB36: 56583.53735 | AC36: 48551.44181 | AD36: -37118.24216 | AE36: 533.31247 | AF36: 7554.32003 | AG36: -4533.29401 | AH36: -27366.31539 | AI36: 30988.81425 | AJ36: -17874.59296 | AK36: 19520.83215 | AL36: 305097.9092 | AM36: 271932.4305 | AN36: 33165.47877 | AO36: 1837.54883 | AP36: 41234.93692 | AQ36: 59 | AR36: 46797 | AS36: 20.25 | AT36: 1.901249268 | AU36: 61.28464205 | AV36: 36.07170827 | AW36: 51633.17958 | AX36: 28.06668671 | AY36: 332796.4679 | AZ36: 589396.1682 | BA36: 199.11356 | BB36: -256400.5867 | BC36: 239879.9057 | BD36: 70346.784 | BE36: 52.31116 | BF36: 3242.18165 | BG36: 494.18731 | BH36: 51130.41977 | BI36: 34966.48647 | BJ36: 0 | BK36: 16163.9333 | BL36: 0 | BM36: 543.88158 | BN36: -133.53905 | BO36: -149.03315 | BP36: 15337.47952 | BQ36: 71823.58196 | BR36: 39005.68491 | BS36: -53023.38665 | BT36: 1158.58503 | BU36: 11397.43958 | BV36: 478.2601 | BW36: -25356.1733 | BX36: 23490.61289 | BY36: -10239.13856 | BZ36: -1461.67713 | CA36: 292993.2103 | CB36: 269277.896 | CC36: 23715.31429 | CD36: 1675.496 | CE36: 39647.03418 | CF36: 66 | CG36: 46901 | CH36: 7.61 | CI36: 2.014054197 | CJ36: 131.4105496 | CK36: 43.22287021 | CL36: 41635.19746 | CM36: 60.78257609 | CN36: 92490.96143 | CO36: 174306.9337 | CP36: 251.98083 | CQ36: -81563.99144 | CR36: 123398.4823 | CS36: 21067.14348 | CT36: 1104.08653 | CU36: 6804.39911 | CV36: 199.51046 | CW36: 57400.83222 | CX36: 31940.73503 | CY36: 0 | CZ36: 25460.09719 | DA36: 10.66118 | DB36: 523.10342 | DC36: 332.90441 | DD36: -68.08645 | DE36: 25212.47291 | DF36: 96463.67858 | DG36: 53503.97543 | DH36: 43634.74695 | DI36: 1686.547 | DJ36: 5352.12414 | DK36: -237.0637 | DL36: -25074.20248 | DM36: 17486.04361 | DN36: -122.06031 | DO36: 16907.89962 | DP36: 251350.168 | DQ36: 228435.749 | DR36: 22914.41904 | DS36: 1603.912 | DT36: 13923.83255 | DU36: 39 | DW36: 4154.91832 | DX36: 4163.25527 | DY36: 4108.51809 | EA36: 2426
A37: 108 | B37: Hämeenkyrö | C37: 10337 | D37: 22 | E37: 2.409365843 | F37: 72.1692188 | G37: 32.59703148 | H37: 16121.38191 | I37: 51.94012461 | J37: 44579.96061 | K37: 103498.5575 | L37: 49.76451 | M37: -58868.83233 | N37: 40742.53065 | O37: 26907.83337 | P37: 12.01905 | Q37: 824.84552 | R37: 197.97337 | S37: 8166.67858 | T37: 6725.9362 | U37: 0 | V37: 1440.74238 | W37: 10.65687 | X37: 204.99174 | Y37: -78.16374 | Z37: -418.19093 | AA37: 750.05284 | AB37: 6876.80079 | AC37: 8061.72878 | AD37: -5977.69491 | AE37: 102.03594 | AF37: 391.96663 | AG37: -891.17986 | AH37: -2907.05934 | AI37: 1186.38 | AJ37: -6.499 | AK37: 2578.03644 | AL37: 64032.50028 | AM37: 55176.58916 | AN37: 8855.91112 | AO37: 15.66099 | AP37: 4091.63531 | AQ37: 178 | AR37: 10257 | AS37: 22 | AT37: 2.895041881 | AU37: 65.81576619 | AV37: 34.12675125 | AW37: 15987.36311 | AX37: 50.42236395 | AY37: 43138.66521 | AZ37: 106473.6779 | BA37: 80.02639 | BB37: -63254.98633 | BC37: 43779.38439 | BD37: 29545.2919 | BE37: 29.1846 | BF37: 687.46193 | BG37: 75.83041 | BH37: 9487.24304 | BI37: 6835.54787 | BJ37: 0 | BK37: 2651.69517 | BL37: 0.27073 | BM37: 105.74162 | BN37: -2.93787 | BO37: -155.82596 | BP37: 2387.46044 | BQ37: 9271.96012 | BR37: 8714.73118 | BS37: -5479.64823 | BT37: 45.604 | BU37: 1444.59809 | BV37: 43.3066 | BW37: -2827.0658 | BX37: 1284.66 | BY37: -3549.05645 | BZ37: 4725.28505 | CA37: 58958.45492 | CB37: 54178.10657 | CC37: 4780.34835 | CD37: 13.00899 | CE37: 10095.67942 | CF37: 95 | CG37: 10319 | CH37: 9.36 | CI37: 3.443585667 | CJ37: 113.3611792 | CK37: 42.03549653 | CL37: 11942.98563 | CM37: 84.9819111 | CN37: 11441.47396 | CO37: 40276.08591 | CP37: 3.28448 | CQ37: -28831.32747 | CR37: 24055.11951 | CS37: 13237.7744 | CT37: 246.051 | CU37: 959.35429 | CV37: 192.52211 | CW37: 7940.78526 | CX37: 5456.37571 | CY37: 0 | CZ37: 2484.40955 | DA37: 0.1365 | DB37: 23.83362 | DC37: 97.80226 | DD37: 20.9563 | DE37: 2579.47099 | DF37: 10218.47568 | DG37: 7651.0895 | DH37: 8242.33769 | DI37: 34.4 | DJ37: 701.19793 | DK37: 1947.83943 | DL37: -1625.20158 | DM37: 3094.32574 | DN37: -2303.20306 | DO37: 144.34974 | DP37: 46645.06543 | DQ37: 45364.28343 | DR37: 1280.782 | DS37: 0 | DT37: 8112.29807 | DU37: 158 | DW37: 339.60631 | DX37: 339.33557 | DY37: 338.98634 | EA37: 0
A38: 109 | B38: Hämeenlinna | C38: 67971 | D38: 21 | E38: 1.05164371 | F38: 94.26148615 | G38: 35.94546385 | H38: 201660.9751 | I38: 94.82989432 | J38: 243401.9513 | K38: 628436.0617 | L38: 1407.38944 | M38: -383626.7209 | N38: 315496.3737 | O38: 134831.6264 | P38: 570.15519 | Q38: 8907.43851 | R38: 9827.9822 | S38: 68191.97805 | T38: 50149.73379 | U38: 0 | V38: 18042.24426 | W38: -9925.82749 | X38: 368.0918 | Y38: -3.38242 | Z38: -428.59358 | AA38: 7316.34897 | AB38: 6467.83219 | AC38: 61566.26153 | AD38: -73956.59078 | AE38: 361.06652 | AF38: 5614.02565 | AG38: -7461.45485 | AH38: -64405.8099 | AI38: 102814.1708 | AJ38: -7167.61317 | AK38: -6415.23708 | AL38: 540745.0778 | AM38: 462123.4737 | AN38: 78621.6041 | AO38: 817.71432 | AP38: 48930.34043 | AQ38: 104 | AR38: 68043 | AS38: 21 | AT38: 1.174180773 | AU38: 91.62210035 | AV38: 34.1194175 | AW38: 175894.1466 | AX38: 80.12033566 | AY38: 265937.3367 | AZ38: 651912.3093 | BA38: -987.00962 | BB38: -386961.9822 | BC38: 327303.4133 | BD38: 119344.806 | BE38: 797.63482 | BF38: 7941.18841 | BG38: 1093.93231 | BH38: 53636.61574 | BI38: 50954.85055 | BJ38: 0 | BK38: 2681.76519 | BL38: -95.66752 | BM38: 217.17807 | BN38: -55.69612 | BO38: -424.73014 | BP38: 1888.49334 | BQ38: 8356.32549 | BR38: 61670.06365 | BS38: -86374.02582 | BT38: 917.12813 | BU38: 2516.73162 | BV38: -7182.78988 | BW38: -44502.0176 | BX38: 74959.80238 | BY38: -35476.15536 | BZ38: -21270.10242 | CA38: 533826.7072 | CB38: 494262.2503 | CC38: 39564.45688 | CD38: 777.13247 | CE38: 79159.31396 | CF38: 135 | CG38: 68319 | CH38: 8.36 | CI38: 2.049627917 | CJ38: 144.0153994 | CK38: 40.87149726 | CL38: 142328.5228 | CM38: 135.6003224 | CN38: 113984.4538 | CO38: 264095.1845 | CP38: 1597.76149 | CQ38: -148512.9692 | CR38: 185155.7613 | CS38: 42050.39678 | CT38: 1424.45567 | CU38: 7570.60977 | CV38: 6671.09117 | CW38: 79218.12594 | CX38: 45538.14896 | CY38: -2061.84904 | CZ38: 31618.12794 | DA38: -17216.90364 | DB38: 291.81301 | DC38: -25.63971 | DD38: 47.22724 | DE38: 14130.99882 | DF38: 24451.90532 | DG38: 74495.94853 | DH38: 69930.59606 | DI38: 1390.811 | DJ38: 3604.66458 | DK38: 14370.05886 | DL38: -34773.0444 | DM38: 37868.75497 | DN38: 2446.01795 | DO38: 9560.82805 | DP38: 428377.0674 | DQ38: 383914.7124 | DR38: 44462.35498 | DS38: 384.04509 | DT38: 82517.44773 | DU38: 49 | DW38: 75416.78638 | DX38: 75457.90168 | DY38: 92098.61005 | EA38: 15888
A39: 139 | B39: Ii | C39: 9912 | D39: 21.5 | E39: 0.7215759897 | F39: 71.70070306 | G39: 28.66865874 | H39: 15434.1677 | I39: 37.33886613 | J39: 67707.74554 | K39: 131801.7235 | L39: 44.764 | M39: -64049.21394 | N39: 37463.40192 | O39: 33556.33958 | P39: 12.47076 | Q39: 404.31444 | R39: -32.49164 | S39: 6546.19224 | T39: 7481.18973 | U39: 0 | V39: -934.99749 | W39: 43.33213 | X39: 2.42491 | Y39: 4.05798 | Z39: -19.00484 | AA39: -909.03713 | AB39: 12630.09268 | AC39: 5931.97822 | AD39: -9280.44682 | AE39: 480.50795 | AF39: 607.96783 | AG39: 333.48674 | AH39: -9228.08295 | AI39: 6610.9 | AJ39: 1808.56066 | AK39: -2259.99282 | AL39: 69325.93145 | AM39: 56968.70504 | AN39: 12357.22641 | AO39: 286.65341 | AP39: 2580.53926 | AQ39: 223 | AR39: 9853 | AS39: 21.5 | AT39: 0.5874490252 | AU39: 73.6843811 | AV39: 27.14615469 | AW39: 12148.22539 | AX39: 27.19402626 | AY39: 67594.30766 | AZ39: 135982.6145 | BA39: -79.73904 | BB39: -68468.04586 | BC39: 38859.89998 | BD39: 36034.34966 | BE39: 22.08042 | BF39: 539.57792 | BG39: 15.92152 | BH39: 5924.6278 | BI39: 7593.77729 | BJ39: 0 | BK39: -1669.14949 | BL39: 5.66687 | BM39: 6.41191 | BN39: 31.33121 | BO39: -27.8491 | BP39: -1666.41242 | BQ39: 10800.04313 | BR39: 5599.4062 | BS39: -15860.06448 | BT39: 101.78432 | BU39: 1010.83845 | BV39: 1595.46883 | BW39: -10464.28019 | BX39: 15205.9 | BY39: -3181.47913 | BZ39: -9148.03551 | CA39: 71695.85506 | CB39: 62520.90301 | CC39: 9174.95205 | CD39: 286.65341 | CE39: 1366.33261 | CF39: 204 | CG39: 9766 | CH39: 8.86 | CI39: 0.9042478232 | CJ39: 108.201665 | CK39: 37.31966815 | CL39: 9157.64639 | CM39: 45.68720158 | CN39: 22966.57551 | CO39: 51194.17654 | CP39: 4.33401 | CQ39: -28223.26702 | CR39: 23037.79624 | CS39: 17312.63308 | CT39: 515.10892 | CU39: 1162.53658 | CV39: 529.54127 | CW39: 12009.27591 | CX39: 7552.96408 | CY39: 0 | CZ39: 4456.31183 | DA39: 74.71422 | DB39: 0 | DC39: 59.32954 | DD39: -0.93902 | DE39: 4589.41657 | DF39: 14998.8321 | DG39: 8418.69674 | DH39: 6871.11496 | DI39: 3.88163 | DJ39: 11510.36515 | DK39: 1862.88728 | DL39: -13404.05916 | DM39: 2254.2 | DN39: 5412.99088 | DO39: 13061.82856 | DP39: 49652.04907 | DQ39: 35631.84576 | DR39: 14020.20331 | DS39: 286 | DT39: 48.63 | DU39: 38 | DW39: 2475.19794 | DX39: 2477.02307 | DY39: 2184.14874 | EA39: 286
A40: 140 | B40: Iisalmi | C40: 20958 | D40: 20.5 | E40: 1.650278283 | F40: 57.5312995 | G40: 43.37527024 | H40: 47871.41122 | I40: 57.25439994 | J40: 121440.5288 | K40: 256351.4588 | L40: 1783.09881 | M40: -133127.8312 | N40: 79952.61718 | O40: 74875.69543 | P40: 72.39546 | Q40: 659.99554 | R40: 1581.91318 | S40: 22694.79447 | T40: 15238.14253 | U40: 339.80993 | V40: 7796.46187 | W40: -595.48824 | X40: 34.79582 | Y40: -62.33649 | Z40: -22.30229 | AA40: 7081.53903 | AB40: 50556.4143 | AC40: 20058.02576 | AD40: -34418.92877 | AE40: 1101.05819 | AF40: 1167.89752 | AG40: 57.91917 | AH40: -13492.03582 | AI40: 23574.44483 | AJ40: 967.49717 | AK40: -12091.9473 | AL40: 121257.8692 | AM40: 105611.4395 | AN40: 15646.42974 | AO40: 24.43295 | AP40: 8527.23301 | AQ40: 82 | AR40: 20801 | AS40: 20.5 | AT40: 1.490354428 | AU40: 57.41421909 | AV40: 43.47141175 | AW40: 44749.95114 | AX40: 51.59232482 | AY40: 125659.1225 | AZ40: 270611.585 | BA40: 414.23915 | BB40: -144538.2234 | BC40: 84766.9991 | BD40: 79840.35122 | BE40: 59.53252 | BF40: 894.0596 | BG40: 689.24035 | BH40: 19923.84023 | BI40: 16185.84312 | BJ40: 371.20725 | BK40: 4109.20436 | BL40: -954.46412 | BM40: 50.96814 | BN40: -63.42523 | BO40: -3.5474 | BP40: 3036.79947 | BQ40: 53454.27534 | BR40: 18843.125 | BS40: -30432.86628 | BT40: 28.29135 | BU40: 1109.84935 | BV40: -739.40977 | BW40: -13074.36257 | BX40: 13025.24199 | BY40: 5369.3191 | BZ40: -10451.60058 | CA40: 126578.0677 | CB40: 106169.9263 | CC40: 20408.14144 | CD40: 9.17623 | CE40: 8795.54413 | CF40: 86 | CG40: 20618 | CH40: 7.86 | CI40: 1.469918786 | CJ40: 95.6395122 | CK40: 49.36479387 | CL40: 25734.27208 | CM40: 48.50284226 | CN40: 54265.65099 | CO40: 118125.5345 | CP40: 1.41748 | CQ40: -63858.466 | CR40: 45400.5951 | CS40: 37937.72323 | CT40: 132.0796 | CU40: 2247.31122 | CV40: 1594.85916 | CW40: 18959.47987 | CX40: 12969.94311 | CY40: 163.36933 | CZ40: 6152.90609 | DA40: 1267.32426 | DB40: 63.00509 | DC40: -106.51706 | DD40: -4.62411 | DE40: 7246.08409 | DF40: 58770.67895 | DG40: 20523.70216 | DH40: 59495.49792 | DI40: 386.71879 | DJ40: 12035.69856 | DK40: 662.2422 | DL40: -12179.87434 | DM40: 27421.41575 | DN40: 3262.92199 | DO40: -26549.37841 | DP40: 107498.4807 | DQ40: 90502.79735 | DR40: 16995.68336 | DS40: 6.93182 | DT40: 7810.41955 | DU40: 102 | DW40: 15106.28161 | DX40: 16053.00862 | DY40: 14965.83386 | EA40: 1070
A41: 142 | B41: Iitti | C41: 6559 | D41: 21.25 | E41: 2.498038195 | F41: 33.63061619 | G41: 51.87316305 | H41: 7743.602 | I41: 35.47096604 | J41: 32216.29967 | K41: 70243.18602 | L41: 10.28671 | M41: -38016.59964 | N41: 26237.78546 | O41: 18041.405 | P41: 22.1051 | Q41: 111.55641 | R41: 145.34125 | S41: 6318.48076 | T41: 2877.97388 | U41: 0 | V41: 3440.50688 | W41: 0.6586 | X41: 0 | Y41: -75.757 | Z41: -0.44406 | AA41: 3364.96442 | AB41: 5233.16007 | AC41: 6312.42385 | AD41: -6851.88994 | AE41: 2122.26226 | AF41: 2446.95564 | AG41: -1353.57923 | AH41: -2462.47836 | AI41: 2043.02 | AJ41: -566 | AK41: 4029.75181 | AL41: 16486.00601 | AM41: 14769.18108 | AN41: 1716.82493 | AO41: 16.0234 | AP41: 15463.165 | AQ41: 117 | AR41: 6504 | AS41: 21.25 | AT41: 3.091415447 | AU41: 32.0811396 | AV41: 52.2886552 | AW41: 9928.707 | AX41: 45.40748647 | AY41: 33533.47915 | AZ41: 74522.97002 | BA41: -12.46318 | BB41: -41001.95405 | BC41: 27267.44503 | BD41: 19166.135 | BE41: 21.23398 | BF41: 81.18965 | BG41: 140.54664 | BH41: 5512.21695 | BI41: 4351.96122 | BJ41: 0 | BK41: 1160.25573 | BL41: 0 | BM41: 0.00018 | BN41: -40.02873 | BO41: 0.40518 | BP41: 1120.632 | BQ41: 6363.44167 | BR41: 5978.68286 | BS41: -3167.15721 | BT41: 89.47403 | BU41: 256.9447 | BV41: -554.45237 | BW41: -1728.14549 | BX41: 1250.145 | BY41: 0 | BZ41: 3157.94438 | CA41: 15776.66052 | CB41: 14298.92386 | CC41: 1477.73666 | CD41: 6.86128 | CE41: 18024.808 | CF41: 123 | CG41: 6444 | CH41: 8.61 | CI41: 2.513929992 | CJ41: 63.9162905 | CK41: 61.45205931 | CL41: 10873.698 | CM41: 140.1167673 | CN41: 7470.069 | CO41: 23236.183 | CP41: 0 | CQ41: -15766.114 | CR41: 15512.535 | CS41: 3999.184 | CT41: 243.63 | CU41: 173.008 | CV41: 126.448 | CW41: 3942.675 | CX41: 3411.721 | CY41: 0 | CZ41: 530.954 | DA41: 0 | DB41: 0 | DC41: -23.44 | DD41: 0 | DE41: 507.514 | DF41: 6637.699 | DG41: 3814.197 | DH41: 3024.064 | DI41: 15 | DJ41: 824.901 | DK41: 2469.131 | DL41: -1464.143 | DM41: 0 | DN41: 0 | DO41: 1630.034 | DP41: 10777.679 | DQ41: 9342.016 | DR41: 1435.663 | DS41: 0 | DT41: 6623.968 | DU41: 205 | DW41: 183.34379 | DX41: 183.34379 | DY41: 182.687 | EA41: 493
A42: 143 | B42: Ikaalinen | C42: 6877 | D42: 22 | E42: 1.909063242 | F42: 67.05785344 | G42: 32.82595002 | H42: 12418.44394 | I42: 46.5096843 | J42: 47433.52753 | K42: 85869.89023 | L42: 0 | M42: -38436.3627 | N42: 26788.68275 | O42: 19172.853 | P42: 6.92178 | Q42: 307.17285 | R42: 156.53447 | S42: 7381.45645 | T42: 4441.52189 | U42: 0 | V42: 2939.93456 | W42: 320.7806 | X42: 234.05248 | Y42: -3.65751 | Z42: -414.44455 | AA42: 2608.56062 | AB42: 7985.24912 | AC42: 7098.1224 | AD42: -7497.70016 | AE42: 638.56986 | AF42: 191.58861 | AG42: -525.4237 | AH42: -3720.26277 | AI42: 1105.26 | AJ42: 5179.51767 | AK42: 430.58071 | AL42: 45876.62026 | AM42: 32015.4329 | AN42: 13861.18736 | AO42: 14.59016 | AP42: 8607.1208 | AQ42: 83 | AR42: 6804 | AS42: 22 | AT42: 1.518810748 | AU42: 66.80014146 | AV42: 30.91788778 | AW42: 8757.40986 | AX42: 31.39214015 | AY42: 38827.41404 | AZ42: 89309.46825 | BA42: 75.86743 | BB42: -50406.18678 | BC42: 27519.33761 | BD42: 28486.01988 | BE42: 19.80559 | BF42: 344.74825 | BG42: 99.7776 | BH42: 5374.00565 | BI42: 4853.69126 | BJ42: 0 | BK42: 520.31439 | BL42: -1.63996 | BM42: 103.47976 | BN42: -32.34266 | BO42: -183.37253 | BP42: 199.47948 | BQ42: 7401.29761 | BR42: 4951.41622 | BS42: -8558.93407 | BT42: 0 | BU42: 375.12885 | BV42: 773.94956 | BW42: -3420.53581 | BX42: 1654.41444 | BY42: 1426.67104 | BZ42: -3232.389 | CA42: 45819.34387 | CB42: 30532.49265 | CC42: 15286.85122 | CD42: 12.11948 | CE42: 8532.431 | CF42: 134 | CG42: 6850 | CH42: 9.36 | CI42: 1.60358768 | CJ42: 103.7284251 | CK42: 37.29432926 | CL42: 6125.35793 | CM42: 48.68622166 | CN42: 23002.52915 | CO42: 38242.12159 | CP42: 6.13722 | CQ42: -15233.45522 | CR42: 16134.83885 | CS42: 3842.757 | CT42: 67.47039 | CU42: 833.19656 | CV42: 116.92282 | CW42: 4095.33728 | CX42: 3065.26419 | CY42: 0 | CZ42: 1030.07309 | DA42: -0.0394 | DB42: 45.79114 | DC42: -47.75671 | DD42: -18.37442 | DE42: 918.11142 | DF42: 7210.32011 | DG42: 3784.68544 | DH42: 4489.24596 | DI42: 0 | DJ42: 18.37169 | DK42: 1423.29682 | DL42: -2240.24551 | DM42: 1000 | DN42: 1652.1564 | DO42: -686.18883 | DP42: 38137.76183 | DQ42: 22011.59657 | DR42: 16126.16526 | DS42: 0 | DT42: 4526.95648 | DU42: 210 | DW42: 833.09473 | DX42: 817.96412 | DY42: 729.96243 | EA42: 0
A43: 145 | B43: Ilmajoki | C43: 12366 | D43: 21 | E43: 0.9896814402 | F43: 70.75162985 | G43: 25.15062285 | H43: 7026.75932 | I43: 15.49267484 | J43: 72608.60294 | K43: 145197.1536 | L43: -3.81194 | M43: -72592.3626 | N43: 46127.54279 | O43: 33055.232 | P43: 1.47142 | Q43: 461.09191 | R43: -288.02583 | S43: 5842.76587 | T43: 5657.64275 | U43: 0 | V43: 185.12312 | W43: -194.40901 | X43: 6.06134 | Y43: 0 | Z43: 1.65959 | AA43: -13.68764 | AB43: 5229.24095 | AC43: 4291.64136 | AD43: -13267.83209 | AE43: 117.5 | AF43: 3195.8423 | AG43: 1381.48698 | AH43: -5908.49079 | AI43: 11022.71872 | AJ43: -4092.85415 | AK43: -5662.84843 | AL43: 84208.91717 | AM43: 78907.13648 | AN43: 5301.78069 | AO43: 71.4928 | AP43: 2168.27979 | AQ43: 269 | AR43: 12369 | AS43: 21 | AT43: 0.7592385093 | AU43: 74.8391109 | AV43: 22.20281537 | AW43: 7015.76658 | AX43: 15.26601059 | AY43: 72263.76793 | AZ43: 150649.3091 | BA43: 8.99237 | BB43: -78376.54881 | BC43: 47789.53491 | BD43: 35262.73 | BE43: 5.30441 | BF43: 615.47484 | BG43: 194.13724 | BH43: 4259.68291 | BI43: 6419.90357 | BJ43: 0 | BK43: -2160.22066 | BL43: 91.50289 | BM43: 1.60204 | BN43: 3.38061 | BO43: 21.76537 | BP43: -2045.17383 | BQ43: 1847.46491 | BR43: 3199.9887 | BS43: -10173.38414 | BT43: 123.88846 | BU43: 626.38525 | BV43: 244.69665 | BW43: -5805.64012 | BX43: 6178.02759 | BY43: 3732.054 | BZ43: -6223.12173 | CA43: 88250.24897 | CB43: 79714.96338 | CC43: 8535.28559 | CD43: 158.142 | CE43: 3453.04983 | CF43: 269 | CG43: 12343 | CH43: 8.36 | CI43: 0.8806039404 | CJ43: 151.8997466 | CK43: 26.94782154 | CL43: 4433.62985 | CM43: 24.31543563 | CN43: 16977.93366 | CO43: 50575.86753 | CP43: 0 | CQ43: -33597.93387 | CR43: 26165.0722 | CS43: 15829.194 | CT43: 26.56176 | CU43: 1595.92957 | CV43: 85.66943 | CW43: 6912.63395 | CX43: 6328.9622 | CY43: 0 | CZ43: 583.67175 | DA43: 3.9885 | DB43: 1.97776 | DC43: 0 | DD43: 0.11891 | DE43: 585.8014 | DF43: 2818.79285 | DG43: 6992.10871 | DH43: 6125.45123 | DI43: 70.32894 | DJ43: 182.82371 | DK43: 6006.80286 | DL43: -8066.26149 | DM43: 9902.83357 | DN43: -1060.43191 | DO43: 1119.81013 | DP43: 78198.85634 | DQ43: 70804.46845 | DR43: 7394.38789 | DS43: 173.266 | DT43: 1685.01816 | DU43: 223 | DW43: 926.47069 | DX43: 920.7477 | DY43: 913.44147 | EA43: 3905
A44: 146 | B44: Ilomantsi | C44: 4643 | D44: 21 | E44: 2.504018033 | F44: 35.61399274 | G44: 46.24817763 | H44: 11867.46485 | I44: 56.95708403 | J44: 35518.87016 | K44: 71791.42445 | L44: -4.76618 | M44: -36277.32047 | N44: 19187.83067 | O44: 22601.62 | P44: 40.99884 | Q44: 182.125 | R44: 502.67719 | S44: 5873.68123 | T44: 4889.27645 | U44: 17.34588 | V44: 1001.75066 | W44: -16.36347 | X44: 111.69041 | Y44: -14.29014 | Z44: 15.47074 | AA44: 874.87738 | AB44: 2655.63632 | AC44: 5756.04229 | AD44: -1774.56875 | AE44: 25.09689 | AF44: 42.9508 | AG44: -367.38812 | AH44: -2236.31055 | AI44: 1336.02749 | AJ44: -143.33687 | AK44: 4049.52123 | AL44: 19330.7061 | AM44: 17051.28837 | AN44: 2279.41773 | AO44: 1.47459 | AP44: 1597.06012 | AQ44: 48 | AR44: 4492 | AS44: 21 | AT44: 1.781791113 | AU44: 35.39565126 | AV44: 44.35896483 | AW44: 13872.28123 | AX44: 61.85221617 | AY44: 38493.48616 | AZ44: 77326.18863 | BA44: -8.17418 | BB44: -38840.87665 | BC44: 19051.13723 | BD44: 23419.857 | BE44: 32.65574 | BF44: 240.38697 | BG44: 52.8539 | BH44: 3475.24025 | BI44: 2749.94177 | BJ44: -55.07015 | BK44: 670.22833 | BL44: 7.61849 | BM44: 56.30349 | BN44: -60.98593 | BO44: 35.18068 | BP44: 595.73808 | BQ44: 3283.13583 | BR44: 4120.46107 | BS44: -2096.0817 | BT44: 32.94984 | BU44: 116.13796 | BV44: -1780.30288 | BW44: -1844.9457 | BX44: 1463.53134 | BY44: -333.61715 | BZ44: 2173.46717 | CA44: 18646.90995 | CB44: 16629.78 | CC44: 2017.12995 | CD44: 0.18947 | CE44: 3650.61113 | CF44: 141 | CG44: 4406 | CH44: 8.36 | CI44: 2.184466521 | CJ44: 75.53165966 | CK44: 58.29050161 | CL44: 12444.50646 | CM44: 195.2278222 | CN44: 8254.01002 | CO44: 19379.99128 | CP44: -1.03725 | CQ44: -11127.01851 | CR44: 10518.5068 | CS44: 4989.3 | CT44: 51.6034 | CU44: 400.8621 | CV44: 497.90676 | CW44: 4529.43635 | CX44: 2164.44598 | CY44: 4.30535 | CZ44: 2369.29572 | DA44: -12.53896 | DB44: 119.2278 | DC44: 0 | DD44: -12.33513 | DE44: 2225.19383 | DF44: 3768.24239 | DG44: 4338.23459 | DH44: 1131.24568 | DI44: 0 | DJ44: 137.31756 | DK44: 653.25801 | DL44: -1856.11845 | DM44: 0 | DN44: 2.38537 | DO44: 3344.30647 | DP44: 14183.71303 | DQ44: 12269.93095 | DR44: 1913.78208 | DS44: 0 | DT44: 1218.18869 | DU44: 73 | DW44: 1434.74965 | DX44: 1442.01968 | DY44: 1591.80024 | EA44: 907
A45: 153 | B45: Imatra | C45: 25655 | D45: 20 | E45: 1.123999799 | F45: 82.76412565 | G45: 29.07636222 | H45: 18145.3785 | I45: 16.77251143 | J45: 165511.0264 | K45: 326583.4245 | L45: -561.10295 | M45: -161633.5011 | N45: 109834.1883 | O45: 78402.05864 | P45: 52.89032 | Q45: 2620.58943 | R45: 137.58678 | S45: 24172.63354 | T45: 24096.58717 | U45: 0 | V45: 76.04637 | W45: -10.18805 | X45: 393.78552 | Y45: 203.61382 | Z45: 39.2452 | AA45: -85.06818 | AB45: 47843.91146 | AC45: 23144.70974 | AD45: -44319.55541 | AE45: 1016.86613 | AF45: 1016.39921 | AG45: 118.317 | AH45: -21216.80182 | AI45: 25491.82515 | AJ45: -3966.3792 | AK45: -19141.58033 | AL45: 242067.7368 | AM45: 219419.6044 | AN45: 22648.13236 | AO45: 8502.87475 | AP45: 33585.873 | AQ45: 121 | AR45: 25208 | AS45: 20 | AT45: 0.7755816453 | AU45: 83.81379421 | AV45: 28.22304117 | AW45: 21125.98122 | AX45: 19.22721089 | AY45: 166021.3326 | AZ45: 337836.4827 | BA45: -169.05767 | BB45: -171984.2077 | BC45: 111808.6619 | BD45: 83673.14862 | BE45: 650.44519 | BF45: 2421.06268 | BG45: -182.09336 | BH45: 21544.89195 | BI45: 23191.84141 | BJ45: 0 | BK45: -1646.94946 | BL45: 0.56277 | BM45: 273.17673 | BN45: -74.59172 | BO45: -13.2957 | BP45: -2007.45084 | BQ45: 45889.49846 | BR45: 17395.11287 | BS45: -31985.17538 | BT45: 1398.06223 | BU45: 151.87779 | BV45: 8294.38135 | BW45: -28479.55852 | BX45: 29095.225 | BY45: 10559.13241 | BZ45: -13040.12249 | CA45: 253727.1389 | CB45: 219560.5633 | CC45: 34166.57557 | CD45: 8795.39222 | CE45: 111.7714 | CF45: 121 | CG45: 24919 | CH45: 7.36 | CI45: 1.295339921 | CJ45: 190.2296659 | CK45: 30.18681171 | CL45: 9843.39684 | CM45: 21.12448064 | CN45: 49997.3862 | CO45: 112413.3019 | CP45: -128.25326 | CQ45: -62544.16895 | CR45: 58573.59153 | CS45: 36119.21504 | CT45: 812.56721 | CU45: 5210.063 | CV45: 258.21186 | CW45: 28009.35369 | CX45: 23266.81927 | CY45: 0 | CZ45: 4742.53442 | DA45: 50.25964 | DB45: 198.37315 | DC45: 53.8026 | DD45: 59.24337 | DE45: 4707.46688 | DF45: 51513.10657 | DG45: 28355.05971 | DH45: 31743.87402 | DI45: 5191.73589 | DJ45: 643.25427 | DK45: -1917.35271 | DL45: -20435.26465 | DM45: 34793.88822 | DN45: -5057.58091 | DO45: 2446.17585 | DP45: 247797.6515 | DQ45: 221073.3595 | DR45: 26724.29202 | DS45: 8502.87475 | DT45: 29546.16766 | DU45: 56 | DW45: 1515.67173 | DX45: 1515.67172 | DY45: 1475.03321 | EA45: 3982
A46: 148 | B46: Inari | C46: 7008 | D46: 19 | E46: 1.85314402 | F46: 77.62297819 | G46: 50.19825046 | H46: 12890.15871 | I46: 44.89393726 | J46: 41488.98127 | K46: 85086.69497 | L46: 0 | M46: -43597.7137 | N46: 30003.00638 | O46: 26166.607 | P46: 76.46065 | Q46: 618.18696 | R46: 237.38414 | S46: 12267.55751 | T46: 8900.04819 | U46: 0 | V46: 3367.50932 | W46: -43.62813 | X46: 318.74582 | Y46: -74.22409 | Z46: -155.92094 | AA46: 2774.99034 | AB46: 32442.74382 | AC46: 10990.07674 | AD46: -12777.72009 | AE46: 51.88591 | AF46: 5032.03968 | AG46: -2773.5653 | AH46: -6335.26314 | AI46: 6384.0035 | AJ46: -1131.87633 | AK46: 3296.28224 | AL46: 44554.83628 | AM46: 37387.55312 | AN46: 7167.28316 | AO46: 260.12809 | AP46: 1042.259 | AQ46: 12 | AR46: 7047 | AS46: 19 | AT46: 3.854775607 | AU46: 75.47556208 | AV46: 49.79583562 | AW46: 14816.68599 | AX46: 49.25756901 | AY46: 41446.05733 | AZ46: 89694.97618 | BA46: 0 | BB46: -48248.91885 | BC46: 31957.63185 | BD46: 27756.711 | BE46: 58.92219 | BF46: 526.4182 | BG46: -4.78723 | BH46: 10993.14076 | BI46: 9143.93104 | BJ46: 0 | BK46: 1849.20972 | BL46: 24.02201 | BM46: 204.0171 | BN46: -68.3759 | BO46: -102.0531 | BP46: 1498.78563 | BQ46: 34185.38145 | BR46: 10214.12412 | BS46: -17071.90935 | BT46: 184.8187 | BU46: 5132.10779 | BV46: 3104.45465 | BW46: -2461.96819 | BX46: 5110.37961 | BY46: -3355.26534 | BZ46: -1540.85874 | CA46: 44548.97838 | CB46: 38499.41196 | CC46: 6049.56642 | CD46: 260.12809 | CE46: 26275.098 | CF46: 19 | CG46: 7127 | CH46: 6.36 | CI46: 3.22683997 | CJ46: 114.508889 | CK46: 54.72806109 | CL46: 13086.81882 | CM46: 76.65929192 | CN46: 26947.74997 | CO46: 45266.71538 | CP46: 7.47903 | CQ46: -18311.48638 | CR46: 18491.71531 | CS46: 10145.673 | CT46: 201.14867 | CU46: 941.17695 | CV46: -5.7241 | CW46: 9580.14955 | CX46: 7488.29326 | CY46: 0 | CZ46: 2091.85629 | DA46: 117.50596 | DB46: 190.36417 | DC46: 49 | DD46: -164.38598 | DE46: 1903.6121 | DF46: 35826.60094 | DG46: 8386.04844 | DH46: 13789.07339 | DI46: 0 | DJ46: 5910.42862 | DK46: 1470.72849 | DL46: -2319.38961 | DM46: 2637 | DN46: -2044.80853 | DO46: 507.40367 | DP46: 36398.26554 | DQ46: 30354.49336 | DR46: 6043.77218 | DS46: 0 | DT46: 36201.96449 | DU46: 27 | DW46: 6931.7068 | DX46: 6907.68478 | DY46: 6785.15793 | EA46: 46074
A47: 149 | B47: Inkoo | C47: 5353 | D47: 20.75 | E47: 1.958323034 | F47: 46.94851933 | G47: 43.76950223 | H47: 3328.73131 | I47: 19.53105428 | J47: 21243.90559 | K47: 51606.97627 | L47: 0.77843 | M47: -30362.29225 | N47: 27175.33673 | O47: 7801.65938 | P47: 4.17955 | Q47: 77.13095 | R47: 9.28136 | S47: 4551.03382 | T47: 2465.48377 | U47: 0 | V47: 2085.55005 | W47: 1.28164 | X47: 2.05234 | Y47: -0.19903 | Z47: -2.46957 | AA47: 2082.11075 | AB47: 13470.93154 | AC47: 2624.11212 | AD47: -8181.26886 | AE47: 80.0849 | AF47: 2219.48913 | AG47: 728.89488 | AH47: -2286.19966 | AI47: 5385.73496 | AJ47: -1007.31678 | AK47: -3257.58271 | AL47: 18700.59382 | AM47: 16374.88534 | AN47: 2325.70848 | AO47: 124.33617 | AP47: 3030.259 | AQ47: 155 | AR47: 5384 | AS47: 20.75 | AT47: 1.506059203 | AU47: 64.71358674 | AV47: 37.36835757 | AW47: 4532.91128 | AX47: 24.05805253 | AY47: 19410.03878 | AZ47: 53799.20024 | BA47: -17.12861 | BB47: -34406.29007 | BC47: 29460.20599 | BD47: 8647.38568 | BE47: 4.19889 | BF47: 167.53713 | BG47: 9.91699 | BH47: 3547.88035 | BI47: 2773.86307 | BJ47: 0 | BK47: 774.01728 | BL47: 0 | BM47: 0.76157 | BN47: -0.82534 | BO47: 1.3624 | BP47: 773.79277 | BQ47: 14596.3107 | BR47: 3199.16643 | BS47: -12451.42457 | BT47: 128.14129 | BU47: 535.63946 | BV47: -967.85747 | BW47: -2299.44257 | BX47: 10613.9215 | BY47: 70.16731 | BZ47: -8588.47739 | CA47: 27085.24006 | CB47: 23799.06195 | CC47: 3286.17811 | CD47: 119.8918 | CE47: 4781.88 | CF47: 190 | CG47: 5379 | CH47: 8.11 | CI47: 0.7784323164 | CJ47: 166.7895134 | CK47: 35.05803269 | CL47: 1770.8998 | CM47: 16.62138761 | CN47: 4410.48462 | CO47: 20229.15078 | CP47: 0 | CQ47: -15818.66616 | CR47: 16306.53272 | CS47: 2546.16255 | CT47: 12.70723 | CU47: 752.02065 | CV47: 9.24118 | CW47: 2303.95687 | CX47: 2619.85367 | CY47: 0 | CZ47: -315.8968 | DA47: 1.2469 | DB47: 0.00019 | DC47: 0 | DD47: 0 | DE47: -314.65009 | DF47: 14289.78639 | DG47: 2206.34507 | DH47: 14724.15315 | DI47: 898.5228 | DJ47: 107.71857 | DK47: 514.40606 | DL47: -3173.78954 | DM47: 8000 | DN47: 2949.53781 | DO47: -11511.56671 | DP47: 30852.56326 | DQ47: 23874.38332 | DR47: 6978.17994 | DS47: 113.21241 | DT47: 587.326 | DU47: 251 | DW47: 16.74733 | DX47: 17.72239 | DY47: 12.54655 | EA47: 1010
A48: 151 | B48: Isojoki | C48: 1891 | D48: 22.5 | E48: 2.06533743 | F48: 24.46892208 | G48: 61.50099127 | H48: 3752.62271 | I48: 41.35994133 | J48: 16916.30232 | K48: 31551.21181 | L48: -8.9812 | M48: -14643.89069 | N48: 7250.38313 | O48: 8526.77503 | P48: 0 | Q48: 26.80236 | R48: -2.75389 | S48: 1103.71122 | T48: 930.10865 | U48: 0 | V48: 173.60257 | W48: -0.72862 | X48: 0 | Y48: -0.67872 | Z48: -0.3806 | AA48: 171.81463 | AB48: 2847.55463 | AC48: 1091.54804 | AD48: -940.1416 | AE48: 1.8 | AF48: 47.96777 | AG48: 191.3471 | AH48: -520.5724 | AI48: 149.12703 | AJ48: -0.32783 | AK48: 201.17421 | AL48: 3880.09434 | AM48: 3316.62357 | AN48: 563.47077 | AO48: 24.41948 | AP48: 1723.42619 | AQ48: 255 | AR48: 1852 | AS48: 22.5 | AT48: 3.541860406 | AU48: 23.33623369 | AV48: 57.00994949 | AW48: 4575.46728 | AX48: 49.11116524 | AY48: 17394.68108 | AZ48: 32876.70341 | BA48: 1.62997 | BB48: -15480.39236 | BC48: 8126.87794 | BD48: 9104.79821 | BE48: 0 | BF48: 36.9553 | BG48: 11.98335 | BH48: 1726.31184 | BI48: 924.45796 | BJ48: 0 | BK48: 801.85388 | BL48: -2.29039 | BM48: 0 | BN48: 0.61277 | BO48: 3.94665 | BP48: 804.12291 | BQ48: 2984.64529 | BR48: 1700.33847 | BS48: -603.03192 | BT48: 31.7754 | BU48: 27.2541 | BV48: -272.60753 | BW48: -460.88113 | BX48: 4.1225 | BY48: -124.4503 | BZ48: 1156.33605 | CA48: 3290.40813 | CB48: 2952.55691 | CC48: 337.85122 | CD48: 17.51653 | CE48: 2399.14342 | CF48: 93 | CG48: 1814 | CH48: 9.86 | CI48: 21.86651838 | CJ48: 23.85069607 | CK48: 76.58542851 | CL48: 3620.08833 | CM48: 158.395755 | CN48: 2135.24929 | CO48: 7395.74769 | CP48: 97.02421 | CQ48: -5163.47419 | CR48: 5091.68311 | CS48: 1675.54845 | CT48: 0 | CU48: 17.39011 | CV48: 1.84291 | CW48: 1588.21017 | CX48: 1527.34228 | CY48: -51.89021 | CZ48: 8.97768 | DA48: -1.99998 | DB48: 0 | DC48: -0.73183 | DD48: 0 | DE48: 6.24587 | DF48: 3722.88673 | DG48: 1624.75524 | DH48: 870.94956 | DI48: 1.2 | DJ48: 581.14293 | DK48: -178.36399 | DL48: -56.03723 | DM48: 0 | DN48: 0 | DO48: 1336.14861 | DP48: 752.02323 | DQ48: 719.07873 | DR48: 32.9445 | DS48: 0 | DT48: 56.88283 | DU48: 115 | DW48: 1383.2712 | DX48: 1399.63197 | DY48: 1396.75364 | EA48: 246
A49: 152 | B49: Isokyrö | C49: 4480 | D49: 21.5 | E49: 1.693591613 | F49: 42.67866858 | G49: 57.36541877 | H49: 4092.99916 | I49: 31.55354827 | J49: 14355.99979 | K49: 42907.33499 | L49: 31.24862 | M49: -28520.08658 | N49: 16047.64948 | O49: 15134.6633 | P49: 2.03737 | Q49: 85.58322 | R49: 35.83174 | S49: 2614.51209 | T49: 2632.72876 | U49: 0 | V49: -18.21667 | W49: -7.38377 | X49: 0 | Y49: 0 | Z49: 0.70609 | AA49: -24.89435 | AB49: 15298.6641 | AC49: 2536.29978 | AD49: -2666.40567 | AE49: 1.1 | AF49: 42.61053 | AG49: -383.03466 | AH49: -1508.71808 | AI49: 348.35838 | AJ49: -23.26579 | AK49: -86.39536 | AL49: 11572.85925 | AM49: 10183.82914 | AN49: 1389.03011 | AO49: 147.80914 | AP49: 205.881 | AQ49: 256 | AR49: 4406 | AS49: 21.5 | AT49: 3.644985057 | AU49: 43.43632057 | AV49: 56.66156685 | AW49: 4279.6194 | AX49: 31.58455831 | AY49: 14591.96858 | AZ49: 43428.95416 | BA49: 40.72701 | BB49: -28796.25857 | BC49: 17476.48457 | BD49: 15339.9238 | BE49: 9.59349 | BF49: 95.78918 | BG49: 64.0779 | BH49: 3998.03201 | BI49: 2792.75485 | BJ49: 0 | BK49: 1205.27716 | BL49: -92.36348 | BM49: 0 | BN49: 0 | BO49: 9.21932 | BP49: 1122.133 | BQ49: 16388.95374 | BR49: 3891.07639 | BS49: -4800.59569 | BT49: 33.40573 | BU49: 86.09752 | BV49: -290.1254 | BW49: -1027.34881 | BX49: 138.52264 | BY49: 1614.8175 | BZ49: -790.01605 | CA49: 12021.80529 | CB49: 9409.14028 | CC49: 2612.66501 | CD49: 161.85746 | CE49: 5510.97288 | CF49: 101 | CG49: 4357 | CH49: 8.86 | CI49: 3.98945803 | CJ49: 64.05563739 | CK49: 68.1707288 | CL49: 2642.84153 | CM49: 43.90431758 | CN49: 5340.41218 | CO49: 16254.81374 | CP49: 18.46491 | CQ49: -10895.93665 | CR49: 9334.23566 | CS49: 5187.70103 | CT49: 10.35269 | CU49: 182.89064 | CV49: 22.24287 | CW49: 3475.70496 | CX49: 2318.6609 | CY49: 0 | CZ49: 1157.04406 | DA49: -0.70549 | DB49: 0 | DC49: 0 | DD49: 0 | DE49: 1156.33857 | DF49: 17580.19311 | DG49: 3461.82396 | DH49: 4732.96716 | DI49: 8.16318 | DJ49: 38.57795 | DK49: 833.98438 | DL49: -734.17518 | DM49: 1749.2 | DN49: 4.55 | DO49: -1224.40207 | DP49: 8051.47908 | DQ49: 7304.5639 | DR49: 746.91518 | DS49: 131.11613 | DT49: 206.076 | DU49: 142 | DW49: 20.11531 | DX49: 20.13399 | DY49: 20.11531 | EA49: 658
A50: 165 | B50: Janakkala | C50: 16340 | D50: 21 | E50: 0.6958929179 | F50: 67.15779446 | G50: 34.19388776 | H50: 15512.03147 | I50: 33.55461234 | J50: 51078.32982 | K50: 140325.2244 | L50: 0.12849 | M50: -89246.76604 | N50: 68219.16412 | O50: 32542.00823 | P50: 6.4336 | Q50: 463.59126 | R50: 392.87628 | S50: 11450.12493 | T50: 9278.45136 | U50: 0 | V50: 2171.67357 | W50: -1.60749 | X50: 104.90868 | Y50: -8.81772 | Z50: -5.06999 | AA50: 2051.26969 | AB50: 8231.38533 | AC50: 10429.1656 | AD50: -11245.18055 | AE50: 166.32149 | AF50: 984.93805 | AG50: -1325.52497 | AH50: -16656.45104 | AI50: 19177.77006 | AJ50: -246.52589 | AK50: 335.24459 | AL50: 79256.21442 | AM50: 69156.53388 | AN50: 10099.68054 | AO50: 46.40766 | AP50: 34770.40799 | AQ50: 207 | AR50: 16280 | AS50: 21 | AT50: 0.8914024652 | AU50: 72.23296404 | AV50: 31.83864427 | AW50: 23672.72373 | AX50: 48.58932465 | AY50: 51833.12028 | AZ50: 149160.8424 | BA50: 0.35833 | BB50: -97327.3638 | BC50: 71288.97616 | BD50: 35737.5124 | BE50: 11.35871 | BF50: 617.74284 | BG50: 413.02245 | BH50: 9505.76308 | BI50: 9399.53597 | BJ50: 0 | BK50: 106.22711 | BL50: 26.48032 | BM50: 53.82242 | BN50: 7.86409 | BO50: -2.39928 | BP50: 84.34982 | BQ50: 8309.36864 | BR50: 9021.06104 | BS50: -17255.34267 | BT50: 371.83061 | BU50: 2282.97114 | BV50: 436.17727 | BW50: -10739.08678 | BX50: 21012.71177 | BY50: -187.07406 | BZ50: -5579.47988 | CA50: 89342.80709 | CB50: 80804.21107 | CC50: 8538.59602 | CD50: 38.67329 | CE50: 32720.71061 | CF50: 211 | CG50: 16123 | CH50: 8.36 | CI50: 1.557836997 | CJ50: 105.0326356 | CK50: 39.43192959 | CL50: 15384.81448 | CM50: 66.43326583 | CN50: 21327.92367 | CO50: 61683.01396 | CP50: 0 | CQ50: -40355.09029 | CR50: 38707.60034 | CS50: 16684.48719 | CT50: 104.90289 | CU50: 1376.96098 | CV50: 146.81554 | CW50: 13911.75469 | CX50: 9042.73795 | CY50: 0 | CZ50: 4869.01674 | DA50: 1.44299 | DB50: 9.51475 | DC50: 1.77828 | DD50: 0.96187 | DE50: 4863.68513 | DF50: 13424.48436 | DG50: 13685.55026 | DH50: 12883.89628 | DI50: 1546.6593 | DJ50: 334.16442 | DK50: 746.54416 | DL50: -8437.10538 | DM50: 10000 | DN50: -134.49848 | DO50: 2682.4777 | DP50: 66909.72285 | DQ50: 58004.01489 | DR50: 8905.70796 | DS50: 0 | DT50: 49047.0936 | DU50: 122 | DW50: 34.27105 | DX50: 29.77804 | DY50: 24.71813 | EA50: 19
A51: 167 | B51: Joensuu | C51: 77261 | D51: 20.5 | E51: 1.494508881 | F51: 75.00815069 | G51: 36.27458155 | H51: 174648.9449 | I51: 66.77775044 | J51: 377919.3746 | K51: 819074.6692 | L51: -27.47477 | M51: -441182.7694 | N51: 296164.6495 | O51: 220252.2354 | P51: 786.06718 | Q51: 4103.52472 | R51: 13965.54623 | S51: 85882.20425 | T51: 68565.74153 | U51: 0 | V51: 17316.46272 | W51: -4372.35899 | X51: 931.38589 | Y51: -264.61155 | Z51: 73.89833 | AA51: 11822.00462 | AB51: 80831.42995 | AC51: 83743.67014 | AD51: -74641.10375 | AE51: 5678.09034 | AF51: 4320.09494 | AG51: -7161.71271 | AH51: -56107.37807 | AI51: 63580.20576 | AJ51: -4397.31197 | AK51: 19100.75167 | AL51: 551228.0954 | AM51: 491504.9812 | AN51: 59723.11418 | AO51: 2974.75776 | AP51: 155423.7536 | AQ51: 72 | AR51: 77513 | AS51: 20.5 | AT51: 0.9918496201 | AU51: 73.56840722 | AV51: 33.16929025 | AW51: 177808.0692 | AX51: 63.6047903 | AY51: 394704.6954 | AZ51: 877432.3624 | BA51: -193.26718 | BB51: -482920.9341 | BC51: 313083.3308 | BD51: 230630.9975 | BE51: 705.39711 | BF51: 4229.18717 | BG51: -5517.68034 | BH51: 51751.9237 | BI51: 72468.60131 | BJ51: 0 | BK51: -20716.67761 | BL51: 352.47822 | BM51: 815.8965 | BN51: -96.93671 | BO51: -52.62308 | BP51: -21329.65568 | BQ51: 53814.30258 | BR51: 58729.87464 | BS51: -76219.9482 | BT51: 4296.9058 | BU51: 2837.09376 | BV51: -1163.9284 | BW51: -52211.94033 | BX51: 64140.11766 | BY51: -4531.7114 | BZ51: -10356.074 | CA51: 558731.3445 | CB51: 505282.0846 | CC51: 53449.25993 | CD51: 2985.89722 | CE51: 164459.1692 | CF51: 187 | CG51: 78062 | CH51: 7.86 | CI51: 1.768138155 | CJ51: 119.7539037 | CK51: 39.53643828 | CL51: 149795.298 | CM51: 111.3509889 | CN51: 161265.1415 | CO51: 358924.1799 | CP51: -367.70987 | CQ51: -198026.7482 | CR51: 170737.8993 | CS51: 114322.0821 | CT51: 966.26817 | CU51: 8829.95197 | CV51: 6688.01722 | CW51: 85857.56659 | CX51: 56960.22727 | CY51: 0 | CZ51: 28897.33932 | DA51: -926.6792 | DB51: 803.91377 | DC51: -91.23921 | DD51: -225.50896 | DE51: 26849.99818 | DF51: 79333.61134 | DG51: 90067.48216 | DH51: 71846.06678 | DI51: 3417.97124 | DJ51: 1578.71016 | DK51: -1063.951 | DL51: -44722.15214 | DM51: 28846.19164 | DN51: 7991.62453 | DO51: 23218.09678 | DP51: 461301.958 | DQ51: 407240.9472 | DR51: 54061.0108 | DS51: 2982.46213 | DT51: 154297.5305 | DU51: 61 | DW51: 79533.07791 | DX51: 80109.41037 | DY51: 80476.59692 | EA51: 2232
A52: 169 | B52: Jokioinen | C52: 5046 | D52: 21.25 | E52: 1.9649712 | F52: 31.67978701 | G52: 52.88616493 | H52: 782.16857 | I52: 4.758423686 | J52: 26554.33641 | K52: 56325.93144 | L52: -8.65122 | M52: -29780.24625 | N52: 21119.64235 | O52: 12147.53754 | P52: 11.96301 | Q52: 119.68284 | R52: 68.77405 | S52: 3447.98786 | T52: 2758.68812 | U52: 0 | V52: 689.29974 | W52: 1.53072 | X52: 14.81768 | Y52: -0.28533 | Z52: -14.58005 | AA52: 661.1474 | AB52: 9616.17946 | AC52: 3365.20284 | AD52: -1827.44753 | AE52: 60.12365 | AF52: 162.27211 | AG52: 536.7816 | AH52: -1695.95227 | AI52: 424.70495 | AJ52: -955.62865 | AK52: 1760.15107 | AL52: 12868.83963 | AM52: 9535.89302 | AN52: 3332.94661 | AO52: 6.70063 | AP52: 893.606 | AQ52: 210 | AR52: 4990 | AS52: 21.25 | AT52: 0.8730779291 | AU52: 35.65527053 | AV52: 48.74461433 | AW52: 1301.69778 | AX52: 7.432978253 | AY52: 26933.10391 | AZ52: 59361.85798 | BA52: 0.15459 | BB52: -32428.59948 | BC52: 21548.18011 | BD52: 12218.94082 | BE52: 14.16036 | BF52: 124.66665 | BG52: 126.69007 | BH52: 1354.70523 | BI52: 2419.1403 | BJ52: 5.44508 | BK52: -1058.98999 | BL52: 1.49457 | BM52: -0.02686 | BN52: 0 | BO52: 11.48634 | BP52: -1045.98222 | BQ52: 8571.80723 | BR52: 1353.12112 | BS52: -2858.99124 | BT52: 0 | BU52: 67.34255 | BV52: -251.37421 | BW52: -1569.76615 | BX52: 1251.2906 | BY52: 1995.70371 | BZ52: -1438.52757 | CA52: 14776.26769 | CB52: 9621.86272 | CC52: 5154.40497 | CD52: 5.97694 | CE52: 894.96505 | CF52: 278 | CG52: 4916 | CH52: 8.61 | CI52: 1.699662973 | CJ52: 73.25644039 | CK52: 57.16418368 | CL52: 1325.95752 | CM52: 21.92414232 | CN52: 5836.60373 | CO52: 19044.88732 | CP52: 0 | CQ52: -13208.28359 | CR52: 11363.53231 | CS52: 4493.53752 | CT52: 32.68887 | CU52: 334.69228 | CV52: 74.33056 | CW52: 2421.11339 | CX52: 2167.99565 | CY52: 0 | CZ52: 253.11774 | DA52: 0.48 | DB52: -1.27738 | DC52: 0 | DD52: 11.49506 | DE52: 266.37018 | DF52: 9014.60014 | DG52: 2398.2317 | DH52: 1334.35533 | DI52: 0 | DJ52: 5.72121 | DK52: 1942.76152 | DL52: -1286.69132 | DM52: 750 | DN52: 350 | DO52: 1069.59758 | DP52: 12354.67546 | DQ52: 6955.50208 | DR52: 5399.17338 | DS52: 1.22653 | DT52: 195.86697 | DU52: 234 | DW52: 91.46366 | DX52: 53.94125 | DY52: 51.54234 | EA52: 1514
A53: 171 | B53: Joroinen | C53: 4624 | D53: 21.25 | E53: 0.7631529847 | F53: 70.37528504 | G53: 27.12928777 | H53: 18399.78938 | I53: 102.7652093 | J53: 29235.78625 | K53: 58088.52091 | L53: 0.1305 | M53: -28852.60416 | N53: 18771.07296 | O53: 12947.256 | P53: 140.97848 | Q53: 151.27795 | R53: 292.58823 | S53: 3148.01356 | T53: 1928.25046 | U53: -88.65832 | V53: 1131.10478 | W53: 0.38169 | X53: 19.8 | Y53: 0 | Z53: -0.01035 | AA53: 1111.67612 | AB53: 1302.0663 | AC53: 3571.13627 | AD53: -2828.18086 | AE53: 13.86704 | AF53: 346.10338 | AG53: -258.96773 | AH53: -4171.95943 | AI53: 727.99083 | AJ53: 2827.09941 | AK53: 1102.92583 | AL53: 33862.0895 | AM53: 27351.19556 | AN53: 6510.89394 | AO53: 161.25463 | AP53: 412.00116 | AQ53: 213 | AR53: 4540 | AS53: 21.25 | AT53: 0.8207904411 | AU53: 66.43665708 | AV53: 28.96851186 | AW53: 16799.69411 | AX53: 90.68548204 | AY53: 30290.449 | AZ53: 60321.46533 | BA53: 5.41749 | BB53: -30025.59884 | BC53: 19545.41281 | BD53: 13611.358 | BE53: 73.32299 | BF53: 203.44228 | BG53: -155.6476 | BH53: 2845.40508 | BI53: 2088.73932 | BJ53: 20.45879 | BK53: 777.12455 | BL53: -1.78636 | BM53: 0 | BN53: 0 | BO53: -0.01128 | BP53: 775.32691 | BQ53: 2390.02822 | BR53: 2022.19646 | BS53: -3152.10905 | BT53: 34.62744 | BU53: 425.38263 | BV53: -99.76763 | BW53: -3511.08363 | BX53: 4953.83995 | BY53: -3000 | BZ53: -669.90252 | CA53: 32606.79949 | CB53: 28918.50955 | CC53: 3688.28994 | CD53: 161.28157 | CE53: 1708.34354 | CF53: 199 | CG53: 4590 | CH53: 8.61 | CI53: 0.7224362311 | CJ53: 133.9700323 | CK53: 40.4493354 | CL53: 10603.76266 | CM53: 174.5705112 | CN53: 5486.78038 | CO53: 16212.77341 | CP53: 8.21745 | CQ53: -10717.77558 | CR53: 10566.80191 | CS53: 2635.019 | CT53: 93.0381 | CU53: 508.57441 | CV53: 289.1631 | CW53: 2357.67212 | CX53: 1353.02971 | CY53: 0 | CZ53: 1004.64241 | DA53: 70.82874 | DB53: 0 | DC53: 0 | DD53: 6.8596 | DE53: 1082.33075 | DF53: 3366.72204 | DG53: 2471.17357 | DH53: 1252.62206 | DI53: 119 | DJ53: 328.95 | DK53: -32.37398 | DL53: -3458.89899 | DM53: -242.307 | DN53: 0 | DO53: 1666.50151 | DP53: 22319.39608 | DQ53: 19142.40976 | DR53: 3176.98632 | DS53: 591.79258 | DT53: 183.328 | DU53: 230 | DW53: 355.70613 | DX53: 284.9387 | DY53: 267.88864 | EA53: 549
A54: 172 | B54: Joutsa | C54: 4263 | D54: 21 | E54: 1.085058467 | F54: 77.01129613 | G54: 22.06224199 | H54: 2768.0405 | I54: 19.24708878 | J54: 14417.1564 | K54: 45242.90928 | L54: 8.8257 | M54: -30816.92718 | N54: 16025.51161 | O54: 17974.25459 | P54: 52.49726 | Q54: 189.75495 | R54: 319.9202 | S54: 3365.50153 | T54: 2401.58782 | U54: 179.41028 | V54: 1143.32399 | W54: 14.69229 | X54: 18.05908 | Y54: 3.37058 | Z54: 28.36818 | AA54: 1171.69596 | AB54: 1670.89988 | AC54: 3385.12681 | AD54: -3954.28676 | AE54: 10.96445 | AF54: 960.15103 | AG54: -890.48586 | AH54: -3086.80257 | AI54: 1574.58582 | AJ54: 702.16703 | AK54: 401.95553 | AL54: 30479.96052 | AM54: 16971.88194 | AN54: 13508.07858 | AO54: 0 | AP54: 544.471 | AQ54: 179 | AR54: 4171 | AS54: 21 | AT54: 1.120472715 | AU54: 77.88471838 | AV54: 19.50838822 | AW54: 3477.09862 | AX54: 23.45642898 | AY54: 16279.30627 | AZ54: 48296.8059 | BA54: 16.18114 | BB54: -32001.31849 | BC54: 16151.12651 | BD54: 18372.55212 | BE54: 16.05001 | BF54: 476.52773 | BG54: 382.87392 | BH54: 2444.75634 | BI54: 2744.61664 | BJ54: 185.86795 | BK54: -113.99235 | BL54: 0.71309 | BM54: 11.70657 | BN54: -10.95817 | BO54: 22.59882 | BP54: -113.34518 | BQ54: 1540.45417 | BR54: 2228.30822 | BS54: -3186.50115 | BT54: 10.74639 | BU54: 91.35964 | BV54: -779.33796 | BW54: -2130.66121 | BX54: 211.92833 | BY54: 3391.76668 | BZ54: -856.0869 | CA54: 31952.9943 | CB54: 15418.11513 | CC54: 16534.87917 | CD54: 521.11334 | CE54: 521.407 | CF54: 210 | CG54: 4079 | CH54: 8.36 | CI54: 5.072816423 | CJ54: 131.0457979 | CK54: 28.69861778 | CL54: 2446.96605 | CM54: 47.81284518 | CN54: 6830.24502 | CO54: 16959.66542 | CP54: 19.53854 | CQ54: -10109.88186 | CR54: 9369.06199 | CS54: 3530.59905 | CT54: 26.1913 | CU54: 602.36713 | CV54: 239.72739 | CW54: 2453.33074 | CX54: 2138.82387 | CY54: 18.8727 | CZ54: 333.37957 | DA54: -0.45773 | DB54: 16.66976 | DC54: -13.01541 | DD54: 4.20586 | DE54: 307.44253 | DF54: 2995.58719 | DG54: 2436.17514 | DH54: 876.41204 | DI54: 0 | DJ54: 54.48066 | DK54: 2564.88596 | DL54: 0 | DM54: 12763.15535 | DN54: -13438.02677 | DO54: 1614.24376 | DP54: 22229.17558 | DQ54: 19365.68984 | DR54: 2863.48574 | DS54: 0 | DT54: 733.34519 | DU54: 209 | DW54: 2780.14698 | DX54: 2436.61107 | DY54: 2439.78813 | EA54: 399
A55: 176 | B55: Juuka | C55: 4444 | D55: 20.75 | E55: 2.927560982 | F55: 32.83600862 | G55: 52.31170266 | H55: 7858.3903 | I55: 35.01439622 | J55: 38885.7832 | K55: 72422.37967 | L55: 0 | M55: -33536.59647 | N55: 15450.75983 | O55: 21254.126 | P55: 102.6793 | Q55: 71.56862 | R55: 271.68638 | S55: 3471.08642 | T55: 3623.70901 | U55: 0 | V55: -152.62259 | W55: 2.61621 | X55: 1.75683 | Y55: -2.53301 | Z55: -1.27805 | AA55: -155.57427 | AB55: 11509.26157 | AC55: 3604.82536 | AD55: -8272.69929 | AE55: 21.31479 | AF55: 58.15774 | AG55: 390.89752 | AH55: -1138.53599 | AI55: 1217.81758 | AJ55: 1651.256 | AK55: -4588.4014 | AL55: 16043.14493 | AM55: 9220.08145 | AN55: 6823.06348 | AO55: 2669.39 | AP55: 2173.982 | AQ55: 183 | AR55: 4352 | AS55: 20.75 | AT55: 1.967960756 | AU55: 36.11849414 | AV55: 49.4401821 | AW55: 10849.71353 | AX55: 48.84212534 | AY55: 41949.49468 | AZ55: 75819.25727 | BA55: -4.29843 | BB55: -33874.06102 | BC55: 15372.45105 | BD55: 22133.221 | BE55: 98.28824 | BF55: 112.23721 | BG55: 310.10808 | BH55: 3927.77014 | BI55: 2955.12844 | BJ55: 0 | BK55: 972.6417 | BL55: 8.23644 | BM55: 0.01049 | BN55: -3.31452 | BO55: 6.65887 | BP55: 984.212 | BQ55: 12293.77362 | BR55: 4067.84744 | BS55: -3124.3993 | BT55: 32.73857 | BU55: 85.44726 | BV55: -1906.16497 | BW55: -1940.65299 | BX55: 8579.1406 | BY55: -4630.23527 | BZ55: 1061.63397 | CA55: 18051.39726 | CB55: 15780.23906 | CC55: 2271.1582 | CD55: 2628.81348 | CE55: 2073.317 | CF55: 103 | CG55: 4259 | CH55: 8.11 | CI55: 3.284835788 | CJ55: 62.54898772 | CK55: 68.27455752 | CL55: 8904.18695 | CM55: 158.8424624 | CN55: 9008.10262 | CO55: 17675.43585 | CP55: 0 | CQ55: -8667.33323 | CR55: 8466.71731 | CS55: 3248.513 | CT55: 240.0277 | CU55: 29.66087 | CV55: 403.10352 | CW55: 3661.36743 | CX55: 2060.70671 | CY55: 0 | CZ55: 1600.66072 | DA55: -10.38942 | DB55: 0 | DC55: 0 | DD55: 0 | DE55: 1590.2713 | DF55: 13651.18928 | DG55: 3440.54686 | DH55: 1258.29287 | DI55: 0 | DJ55: 487.09254 | DK55: 279.24435 | DL55: -1093.996 | DM55: -230 | DN55: -357.13 | DO55: 2669.34653 | DP55: 8705.31199 | DQ55: 7381.31599 | DR55: 1323.996 | DS55: 2628.605 | DT55: 5.812 | DU55: 125 | DW55: 320.22463 | DX55: 319.45177 | DY55: 285.48895 | EA55: 528
A56: 177 | B56: Juupajoki | C56: 1786 | D56: 21 | E56: 1.328019803 | F56: 47.18299089 | G56: 49.73943785 | H56: 3739.76811 | I56: 62.39554507 | J56: 8785.0647 | K56: 19298.77106 | L56: 12.24574 | M56: -10501.46062 | N56: 7983.60839 | O56: 4618.778 | P56: 7.20767 | Q56: 63.90986 | R56: -40.77921 | S56: 2003.44437 | T56: 937.7716 | U56: 0 | V56: 1065.67277 | W56: 11.93152 | X56: 43.85586 | Y56: -0.6169 | Z56: 2.98897 | AA56: 1036.1205 | AB56: 3538.11439 | AC56: 1933.96384 | AD56: -926.91415 | AE56: 1.77758 | AF56: 31.45054 | AG56: -19.37156 | AH56: -1492.80957 | AI56: 2500.03395 | AJ56: -996.15022 | AK56: 1040.27781 | AL56: 7128.82036 | AM56: 5899.71342 | AN56: 1229.10694 | AO56: 39.93793 | AP56: 940.624 | AQ56: 67 | AR56: 1768 | AS56: 21 | AT56: 1.820332152 | AU56: 44.05389202 | AV56: 51.83881192 | AW56: 3830.5651 | AX56: 65.13820369 | AY56: 8561.71188 | AZ56: 19716.8941 | BA56: 1.57673 | BB56: -11153.60549 | BC56: 8080.56567 | BD56: 4759.124 | BE56: 15.9306 | BF56: 52.94015 | BG56: 37.98271 | BH56: 1687.05734 | BI56: 1178.32071 | BJ56: 0 | BK56: 508.73663 | BL56: 10.63975 | BM56: 19.02639 | BN56: -1.27421 | BO56: 54.04559 | BP56: 553.12137 | BQ56: 3926.44498 | BR56: 1602.30898 | BS56: -767.50885 | BT56: 0 | BU56: 93.57646 | BV56: 14.71283 | BW56: -902.92798 | BX56: 288.44 | BY56: -211.87683 | BZ56: 928.37659 | CA56: 6578.53714 | CB56: 5553.15605 | CC56: 1025.38109 | CD56: 3.11326 | CE56: 759.581 | CF56: 87 | CG56: 1708 | CH56: 8.36 | CI56: 2.520302399 | CJ56: 58.17329197 | CK56: 66.01733317 | CL56: 2692.1139 | CM56: 125.99584 | CN56: 2713.96615 | CO56: 7171.12287 | CP56: -17.27484 | CQ56: -4474.43156 | CR56: 4280.81204 | CS56: 870.71 | CT56: 58.25138 | CU56: 87.62494 | CV56: 40.35467 | CW56: 688.07159 | CX56: 672.45179 | CY56: 0 | CZ56: 15.6198 | DA56: 10.60763 | DB56: 0.33244 | DC56: 0 | DD56: 88.64505 | DE56: 114.54004 | DF56: 3572.72515 | DG56: 704.62066 | DH56: 296.58471 | DI56: 0 | DJ56: 0.82333 | DK56: 309.43649 | DL56: -220.15421 | DM56: 2.6373 | DN56: -519.6373 | DO56: 408.85928 | DP56: 3108.42604 | DQ56: 2801.23606 | DR56: 307.18998 | DS56: 0 | DT56: 58.875 | DU56: 255 | DW56: 4.48767 | DX56: 4.17916 | DY56: 4.03184 | EA56: 273
A57: 178 | B57: Juva | C57: 5887 | D57: 20.75 | E57: 1.694335536 | F57: 52.1474618 | G57: 49.98365713 | H57: 5294.11144 | I57: 22.30711035 | J57: 37665.78363 | K57: 78717.64138 | L57: 175.28287 | M57: -40876.57487 | N57: 22099.13361 | O57: 23526.694 | P57: 10.41326 | Q57: 244.08174 | R57: 635.93694 | S57: 5151.5212 | T57: 4274.69586 | U57: 0 | V57: 876.82534 | W57: 0 | X57: 0.85791 | Y57: 0 | Z57: 0.09473 | AA57: 876.06216 | AB57: 4660.21218 | AC57: 5409.51276 | AD57: -4664.38401 | AE57: 87.04744 | AF57: 1451.05969 | AG57: 606.04349 | AH57: -2940.4132 | AI57: 1921.80023 | AJ57: -380.30708 | AK57: 2283.23589 | AL57: 34457.18971 | AM57: 21558.08834 | AN57: 12899.10137 | AO57: 154.41909 | AP57: 12179.529 | AQ57: 145 | AR57: 5769 | AS57: 20.75 | AT57: 1.154603955 | AU57: 50.96573095 | AV57: 50.30081167 | AW57: 5000.17296 | AX57: 20.42111713 | AY57: 39608.77163 | AZ57: 82894.80515 | BA57: -14.93303 | BB57: -43300.96655 | BC57: 22013.65017 | BD57: 24053.9 | BE57: 9.16412 | BF57: 295.14278 | BG57: 693.21293 | BH57: 3173.81789 | BI57: 3525.30787 | BJ57: 29.1689 | BK57: -322.32109 | BL57: 0 | BM57: 0 | BN57: 65.04818 | BO57: 0.18505 | BP57: -257.08786 | BQ57: 4403.12432 | BR57: 2277.02355 | BS57: -3387.37923 | BT57: 100.07106 | BU57: 528.82903 | BV57: -258.28718 | BW57: -2709.31659 | BX57: 1047.79842 | BY57: 82.57384 | BZ57: -481.45559 | CA57: 32878.24538 | CB57: 19872.48392 | CC57: 13005.76146 | CD57: 154.41909 | CE57: 14806.999 | CF57: 215 | CG57: 5734 | CH57: 8.11 | CI57: 0.8860130539 | CJ57: 115.8428858 | CK57: 59.21361882 | CL57: 1622.61045 | CM57: 20.70835394 | CN57: 8171.82287 | CO57: 22802.3341 | CP57: 73.23043 | CQ57: -14557.2808 | CR57: 11925.41309 | CS57: 3901.14042 | CT57: 49.0205 | CU57: 519.55854 | CV57: 975.01532 | CW57: 1773.74999 | CX57: 2693.94822 | CY57: 0 | CZ57: -920.19823 | DA57: 0 | DB57: 11.26528 | DC57: 21.15269 | DD57: 0.65857 | DE57: -909.65225 | DF57: 2686.67703 | DG57: 1618.07312 | DH57: 1796.30939 | DI57: 46.9 | DJ57: 216.33983 | DK57: 125.68217 | DL57: -2068.78767 | DM57: 0 | DN57: 2238.03764 | DO57: 85.00356 | DP57: 23851.49554 | DQ57: 8714.49503 | DR57: 15137.00051 | DS57: 576.21909 | DT57: 18821.418 | DU57: 267 | DW57: 1076.89846 | DX57: 975.00828 | DY57: 963.33256 | EA57: 1282
A58: 179 | B58: Jyväskylä | C58: 144473 | D58: 20 | E58: 1.266350245 | F58: 99.53338322 | G58: 26.90447285 | H58: 80289.86815 | I58: 16.92747235 | J58: 615770.542 | K58: 1358857.313 | L58: -2534.33689 | M58: -745621.1074 | N58: 578434.0681 | O58: 309195.7463 | P58: 799.93663 | Q58: 15437.29298 | R58: 2004.75202 | S58: 129376.1027 | T58: 126960.9705 | U58: 84335.51969 | V58: 86750.65192 | W58: 684.81516 | X58: 5793.85608 | Y58: 182.08461 | Z58: -752.59789 | AA58: 81071.09772 | AB58: 102001.0254 | AC58: 111130.8929 | AD58: -256122.4739 | AE58: 2089.13805 | AF58: 140899.3736 | AG58: -28083.5736 | AH58: -98917.63865 | AI58: 162202.1738 | AJ58: -48801.35799 | AK58: -2003.06937 | AL58: 1190024.423 | AM58: 1062799.06 | AN58: 127225.3626 | AO58: 4296.03254 | AP58: 142310.939 | AQ58: 138 | AR58: 145887 | AS58: 20 | AT58: 1.186350389 | AU58: 90.79065032 | AV58: 28.86455362 | AW58: 76132.68511 | AX58: 15.25175287 | AY58: 723500.4008 | AZ58: 1483154.964 | BA58: 2452.6051 | BB58: -757201.958 | BC58: 601778.3713 | BD58: 320192.7891 | BE58: 1195.29746 | BF58: 15615.41688 | BG58: 2109.48378 | BH58: 152458.5667 | BI58: 139829.6366 | BJ58: 56501.63187 | BK58: 69130.56199 | BL58: 18.00044 | BM58: 11566.04461 | BN58: -398.58458 | BO58: -304.68228 | BP58: 56879.25096 | BQ58: 159722.4978 | BR58: 121981.6109 | BS58: -194904.2499 | BT58: 1758.22881 | BU58: 124424.9347 | BV58: -58915.63083 | BW58: -126057.7222 | BX58: 54019.377 | BY58: 49537.29873 | BZ58: 53260.52458 | CA58: 1167523.377 | CB58: 965332.743 | CC58: 202190.6335 | CD58: 513.0524 | CE58: 166749.1664 | CF58: 73 | CG58: 147746 | CH58: 7.36 | CI58: 1.45845634 | CJ58: 117.851187 | CK58: 37.73008776 | CL58: 30620.78862 | CM58: 11.12939444 | CN58: 427935.2248 | CO58: 724101.4599 | CP58: 2107.96908 | CQ58: -294058.266 | CR58: 330982.0547 | CS58: 161423.0624 | CT58: 2110.67462 | CU58: 21593.08605 | CV58: 1848.74741 | CW58: 180713.1871 | CX58: 117234.4978 | CY58: 0 | CZ58: 63478.68928 | DA58: 338.02453 | DB58: 9091.0904 | DC58: -973.57494 | DD58: -397.89598 | DE58: 53354.15249 | DF58: 234403.968 | DG58: 178531.8165 | DH58: 139557.9853 | DI58: 3223.1482 | DJ58: 16285.5432 | DK58: 19657.88055 | DL58: -117119.5155 | DM58: 167402.1537 | DN58: -73078.78176 | DO58: 58482.52259 | DP58: 887933.5231 | DQ58: 793101.7448 | DR58: 94831.77832 | DS58: 533.80487 | DT58: 140334.312 | DU58: 40 | DW58: 41576.31351 | DX58: 39107.58614 | DY58: 28851.67346 | EA58: 24911
A59: 181 | B59: Jämijärvi | C59: 1685 | D59: 22.5 | E59: 0.8523508109 | F59: 79.96490001 | G59: 15.74571605 | H59: 7080.61405 | I59: 91.61617923 | J59: 9972.10645 | K59: 20857.89963 | L59: 0 | M59: -10885.79318 | N59: 6369.08373 | O59: 5767.18423 | P59: 0.88853 | Q59: 53.42468 | R59: 2.15403 | S59: 1200.09266 | T59: 819.78189 | U59: 0 | V59: 380.31077 | W59: 0 | X59: 0.29626 | Y59: 0.05237 | Z59: 0.0917 | AA59: 380.15858 | AB59: -333.01844 | AC59: 1218.47265 | AD59: -5812.77318 | AE59: 498.914 | AF59: 4.03959 | AG59: 856.31676 | AH59: -1417.23426 | AI59: 9735.75371 | AJ59: 406.42448 | AK59: -4091.34694 | AL59: 14124.91112 | AM59: 11282.65173 | AN59: 2842.25939 | AO59: -5.50388 | AP59: 1136.452 | AQ59: 201 | AR59: 1683 | AS59: 22.5 | AT59: 0.5158067048 | AU59: 73.32229216 | AV59: 14.75458111 | AW59: 1115.85168 | AX59: 13.80014522 | AY59: 10718.36644 | AZ59: 22011.12562 | BA59: 0 | BB59: -11292.75918 | BC59: 6580.51948 | BD59: 5706.02 | BE59: 0.85667 | BF59: 117.00301 | BG59: -32.72712 | BH59: 844.90684 | BI59: 1237.38052 | BJ59: 0 | BK59: -392.47368 | BL59: 0 | BM59: 0.49541 | BN59: 0.04093 | BO59: 0.04911 | BP59: -392.87904 | BQ59: -717.16817 | BR59: 611.68528 | BS59: -5579.95685 | BT59: 118.28 | BU59: 126.78938 | BV59: -478.09251 | BW59: -1747.86195 | BX59: 205.52452 | BY59: 896.69449 | BZ59: -4723.20218 | CA59: 13431.43449 | CB59: 9782.15561 | CC59: 3649.27888 | CD59: 50 | CE59: 1086.86937 | CF59: 227 | CG59: 1682 | CH59: 9.86 | CI59: 1.441679738 | CJ59: 178.8511691 | CK59: 17.23819426 | CL59: 702.11314 | CM59: 36.18434473 | CN59: 878.32807 | CO59: 5469.87031 | CP59: 0 | CQ59: -4591.54224 | CR59: 3915.78434 | CS59: 2398.28875 | CT59: 0.22082 | CU59: 406.51968 | CV59: 24.67276 | CW59: 1340.90475 | CX59: 974.22352 | CY59: 0 | CZ59: 366.68123 | DA59: 0 | DB59: 0 | DC59: -0.7 | DD59: -3e-05 | DE59: 365.9812 | DF59: -330.58041 | DG59: 1303.6232 | DH59: 328.6689 | DI59: 0 | DJ59: 36.11423 | DK59: 1018.5243 | DL59: -805.55564 | DM59: -18.34948 | DN59: -123.60629 | DO59: 1011.06853 | DP59: 11703.26147 | DQ59: 8271.81141 | DR59: 3431.45006 | DS59: 97 | DT59: 0 | DU59: 143 | DW59: 100.05934 | DX59: 85.5438 | DY59: 85.5438 | EA59: 1795
A60: 182 | B60: Jämsä | C60: 19767 | D60: 21 | E60: 1.785740996 | F60: 37.4540195 | G60: 54.05463044 | H60: 18027.0439 | I60: 27.8055748 | J60: 76656.92283 | K60: 216141.6307 | L60: -1189.24074 | M60: -140673.9486 | N60: 92719.66296 | O60: 61987.81654 | P60: 16.5717 | Q60: 533.91035 | R60: 160.01719 | S60: 13676.20943 | T60: 13613.56874 | U60: 0 | V60: 62.64069 | W60: 16.32957 | X60: 101.80824 | Y60: -1.43209 | Z60: -195.86979 | AA60: -220.13986 | AB60: 12397.78206 | AC60: 14794.17961 | AD60: -12456.2749 | AE60: 884.14643 | AF60: 435.99063 | AG60: -4248.99101 | AH60: -7423.6377 | AI60: 1459.1 | AJ60: 0.82887 | AK60: 3658.04177 | AL60: 54892.74216 | AM60: 47537.80327 | AN60: 7354.93889 | AO60: 370.324 | AP60: 16355.851 | AQ60: 208 | AR60: 19347 | AS60: 21 | AT60: 0.5613319558 | AU60: 36.06220181 | AV60: 52.23860453 | AW60: 11073.74549 | AX60: 16.30853381 | AY60: 77874.52892 | AZ60: 226383.1323 | BA60: -51.18518 | BB60: -148559.7886 | BC60: 91105.82872 | BD60: 62794.03014 | BE60: -69.66378 | BF60: 508.70514 | BG60: -1016.83991 | BH60: 3744.86143 | BI60: 13516.76537 | BJ60: 0 | BK60: -9771.90394 | BL60: 4.30394 | BM60: 43.95743 | BN60: -2.95798 | BO60: -80.19671 | BP60: -9894.71212 | BQ60: 2897.33292 | BR60: 3238.28073 | BS60: -12388.8129 | BT60: 22.035 | BU60: 3017.0382 | BV60: 3742.84209 | BW60: -7068.92611 | BX60: 2313.7 | BY60: 652.14746 | BZ60: -6111.45897 | CA60: 50246.39844 | CB60: 42944.64217 | CC60: 7301.75627 | CD60: 342.44074 | CE60: 15421.868 | CF60: 282 | CG60: 19182 | CH60: 8.36 | CI60: 2.271285953 | CJ60: 51.98150429 | CK60: 61.36652787 | CL60: 12532.46821 | CM60: 41.35760974 | CN60: 40706.00934 | CO60: 95103.01574 | CP60: 0 | CQ60: -54397.0064 | CR60: 47344.07751 | CS60: 23026.74867 | CT60: 41.44053 | CU60: 978.22163 | CV60: 174.53553 | CW60: 15211.57421 | CX60: 12200.67902 | CY60: 0 | CZ60: 3010.89519 | DA60: -2.71784 | DB60: 24.69414 | DC60: 0 | DD60: 1.99667 | DE60: 2985.47988 | DF60: 4530.322 | DG60: 13623.42782 | DH60: 7759.23605 | DI60: 260.2 | DJ60: 3326.23455 | DK60: 8378.64872 | DL60: -6149.809 | DM60: 370 | DN60: -530.81376 | DO60: 9450.62632 | DP60: 37105.61543 | DQ60: 30810.95317 | DR60: 6294.66226 | DS60: 363.93109 | DT60: 12799.274 | DU60: 145 | DW60: 14113.18043 | DX60: 14037.94419 | DY60: 14041.53788 | EA60: 2213
A61: 186 | B61: Järvenpää | C61: 45226 | D61: 20.25 | E61: 1.851606213 | F61: 95.23150654 | G61: 17.56737939 | H61: 32406.74278 | I61: 20.37093093 | J61: 269715.0941 | K61: 498116.6973 | L61: -135.64457 | M61: -228537.2478 | N61: 217354.5934 | O61: 54540.82186 | P61: 69.49667 | Q61: 2424.31548 | R61: -110.64736 | S61: 40892.70137 | T61: 35646.81499 | U61: 0 | V61: 5245.88638 | W61: 13.50769 | X61: 186.67365 | Y61: -135.37219 | Z61: -17.3203 | AA61: 4920.02793 | AB61: 4392.72918 | AC61: 27786.57978 | AD61: -58539.98952 | AE61: 1310.574 | AF61: 16988.31555 | AG61: -1510.34129 | AH61: -20969.97676 | AI61: 14587.83831 | AJ61: 5260.77667 | AK61: -12454.52019 | AL61: 434400.1564 | AM61: 408040.921 | AN61: 26359.23532 | AO61: 0.36375 | AP61: 57998.18853 | AQ61: 135 | AR61: 45630 | AS61: 20.25 | AT61: 1.50207464 | AU61: 98.62536862 | AV61: 16.22814559 | AW61: 29630.82436 | AX61: 17.25024117 | AY61: 273893.7485 | AZ61: 530525.2477 | BA61: -447.80678 | BB61: -257079.306 | BC61: 229938.9116 | BD61: 61162.18531 | BE61: 120.01977 | BF61: 3246.16804 | BG61: 623.33566 | BH61: 31518.97833 | BI61: 35599.63768 | BJ61: 0 | BK61: -4080.65935 | BL61: 0 | BM61: 103.08629 | BN61: 156.22381 | BO61: 6.67791 | BP61: -4020.84392 | BQ61: 1719.35721 | BR61: 18150.93901 | BS61: -73346.1708 | BT61: 301.14939 | BU61: 15314.617 | BV61: -3312.57385 | BW61: -19898.58486 | BX61: 14531.81528 | BY61: 42958.38598 | BZ61: -39579.4654 | CA61: 471994.3802 | CB61: 401844.9557 | CC61: 70149.42453 | CD61: 0 | CE61: 60118 | CF61: 173 | CG61: 46490 | CH61: 7.61 | CI61: 1.744939356 | CJ61: 223.2383266 | CK61: 18.1817936 | CL61: 16297.22976 | CM61: 23.67618671 | CN61: 64412.10698 | CO61: 168406.5767 | CP61: 10.25303 | CQ61: -103984.2167 | CR61: 122725.7655 | CS61: 34960.94606 | CT61: 630.89966 | CU61: 11697.43891 | CV61: 2079.89304 | CW61: 44715.84866 | CX61: 35159.04686 | CY61: 0 | CZ61: 9556.8018 | DA61: 8.92383 | DB61: 76.69436 | DC61: 48.39534 | DD61: 0 | DE61: 9537.42661 | DF61: 10934.08741 | DG61: 37100.43735 | DH61: 48427.41089 | DI61: 613.37142 | DJ61: 10035.76795 | DK61: 5941.15128 | DL61: -20632.2162 | DM61: 74083.80634 | DN61: -49701.51494 | DO61: -677.83417 | DP61: 450159.2297 | DQ61: 425964.5203 | DR61: 24194.70949 | DS61: 0 | DT61: 37596.35362 | DU61: 85 | DW61: 343.04803 | DX61: 110.54133 | DY61: 78.14772 | EA61: 7549
A62: 202 | B62: Kaarina | C62: 35497 | D62: 20.25 | E62: 3.445767023 | F62: 67.35209433 | G62: 34.09044883 | H62: 34127.132 | I62: 39.84717969 | J62: 94886.0635 | K62: 275419.0306 | L62: 48.9811 | M62: -180483.986 | N62: 164035.5429 | O62: 42947.7585 | P62: 111.0925 | Q62: 3280.2773 | R62: 217.7332 | S62: 23547.8638 | T62: 14657.9164 | U62: -245 | V62: 8644.9474 | W62: 0 | X62: 0 | Y62: 125.3348 | Z62: -7.556 | AA62: 8762.7262 | AB62: 33336.784 | AC62: 25359.5491 | AD62: -29390.2445 | AE62: 1462.3076 | AF62: 1945.9521 | AG62: -1134.0593 | AH62: -4505.5483 | AI62: 1122.5655 | AJ62: 9562.309 | AK62: -622.4357 | AL62: 140775.3119 | AM62: 106269.3258 | AN62: 34505.9861 | AO62: 0 | AP62: 6207 | AQ62: 219 | AR62: 35848 | AS62: 20.25 | AT62: 2.118397554 | AU62: 67.94146489 | AV62: 34.07912139 | AW62: 41160.2421 | AX62: 44.60742885 | AY62: 93621.98627 | AZ62: 291066.6854 | BA62: -29.27799 | BB62: -197473.9771 | BC62: 177589.9842 | BD62: 46742.06384 | BE62: 81.55787 | BF62: 2656.95556 | BG62: 135.12665 | BH62: 24417.79991 | BI62: 16782.89588 | BJ62: 0 | BK62: 7634.90403 | BL62: 0 | BM62: 11.90495 | BN62: -128.86723 | BO62: 9.64086 | BP62: 7503.77271 | BQ62: 36149.67797 | BR62: 22511.40496 | BS62: -32760.34691 | BT62: 605.60693 | BU62: 2238.08601 | BV62: 384.49754 | BW62: -10123.81612 | BX62: 28353.95612 | BY62: -12199.99823 | BZ62: -7405.24901 | CA62: 146805.4536 | CB62: 123652.9708 | CC62: 23152.48285 | CD62: 0 | CE62: 6041 | CF62: 178 | CG62: 36339 | CH62: 7.61 | CI62: 3.521159395 | CJ62: 127.7666119 | CK62: 38.25424702 | CL62: 35249.43386 | CM62: 71.56715657 | CN62: 33366.21691 | CO62: 128760.7412 | CP62: -128.73233 | CQ62: -95523.25664 | CR62: 90607.96813 | CS62: 29847.20674 | CT62: 1097.7567 | CU62: 3988.57039 | CV62: 210.53443 | CW62: 22251.63897 | CX62: 14319.35335 | CY62: 0 | CZ62: 7932.28562 | DA62: 0 | DB62: -0.86004 | DC62: 4.18677 | DD62: 42.03533 | DE62: 7979.36776 | DF62: 49248.7 | DG62: 21998.20901 | DH62: 39296.973 | DI62: 168.75 | DJ62: 954.25204 | DK62: 4098.03505 | DL62: -3463.58 | DM62: 0 | DN62: 21870.16156 | DO62: -16175.76195 | DP62: 147606.1366 | DQ62: 106127.5205 | DR62: 41478.61604 | DS62: 0 | DT62: 0 | DU62: 204 | DW62: 1379.4445 | DX62: 1379.44445 | DY62: 1238.71742 | EA62: 24189
A63: 204 | B63: Kaavi | C63: 2778 | D63: 22 | E63: 3.308719653 | F63: 52.99566541 | G63: 34.35234188 | H63: 3628.37605 | I63: 33.82085707 | J63: 14588.15549 | K63: 36461.83503 | L63: 77.30045 | M63: -21796.37909 | N63: 10638.99741 | O63: 12898.67568 | P63: 4.17603 | Q63: 198.06706 | R63: 123.43556 | S63: 1670.83852 | T63: 1590.81099 | U63: 143.65729 | V63: 223.68482 | W63: 3.51415 | X63: 2.09427 | Y63: -2.80298 | Z63: -7.21385 | AA63: 215.08788 | AB63: 2314.54252 | AC63: 1502.4663 | AD63: -2118.60075 | AE63: 74.08841 | AF63: 245.81347 | AG63: -186.63465 | AH63: -366.77547 | AI63: 197.5042 | AJ63: -585.87235 | AK63: -296.23258 | AL63: 15821.08517 | AM63: 13640.30213 | AN63: 2180.78304 | AO63: 2.33145 | AP63: 860.433 | AQ63: 248 | AR63: 2689 | AS63: 22 | AT63: 2.549136962 | AU63: 64.96896001 | AV63: 29.51820742 | AW63: 3470.48262 | AX63: 29.45400207 | AY63: 14611.86761 | AZ63: 37211.25573 | BA63: 9.37443 | BB63: -22590.01369 | BC63: 10945.93044 | BD63: 12944.37107 | BE63: 1.81884 | BF63: 203.00141 | BG63: 178.41483 | BH63: 1277.52008 | BI63: 1562.88301 | BJ63: -0.78839 | BK63: -286.15132 | BL63: 0.93534 | BM63: 2.13321 | BN63: -0.22509 | BO63: -1.21917 | BP63: -288.79344 | BQ63: 2070.99671 | BR63: 1145.13782 | BS63: -5205.9812 | BT63: 5.07782 | BU63: 59.15518 | BV63: -1062.94956 | BW63: -377.79182 | BX63: 2096.89317 | BY63: 2306.1843 | BZ63: -3996.61038 | CA63: 19846.37082 | CB63: 14719.4159 | CC63: 5126.95492 | CD63: 0.87562 | CE63: 902.47 | CF63: 239 | CG63: 2628 | CH63: 9.36 | CI63: 1.886502436 | CJ63: 138.39975 | CK63: 36.72374096 | CL63: 651.62434 | CM63: 21.9865541 | CN63: 2546.74559 | CO63: 9253.47455 | CP63: 61.43263 | CQ63: -6645.29633 | CR63: 6241.01944 | CS63: 782.17407 | CT63: 5.27543 | CU63: 280.69431 | CV63: 180.01364 | CW63: 282.49194 | CX63: 855.74715 | CY63: 0 | CZ63: -573.25521 | DA63: 0.43151 | DB63: 0.22936 | DC63: 0 | DD63: 0 | DE63: -573.05306 | DF63: 1103.00183 | DG63: 512.50044 | DH63: 1085.6289 | DI63: 0 | DJ63: 200.63727 | DK63: 858.65343 | DL63: -17.84029 | DM63: 4574.70352 | DN63: -4649.0335 | DO63: -372.49119 | DP63: 11092.70231 | DQ63: 10186.78061 | DR63: 905.9217 | DS63: 0.66145 | DT63: 154.76006 | DU63: 277 | DW63: 233.19629 | DX63: 231.7919 | DY63: 214.39881 | EA63: 517
A64: 205 | B64: Kajaani | C64: 36493 | D64: 21 | E64: 1.094445151 | F64: 137.6538369 | G64: 23.41963474 | H64: 244588.8596 | I64: 128.0050632 | J64: 333013.6423 | K64: 545828.9002 | L64: 475.68566 | M64: -212339.5722 | N64: 148122.2682 | O64: 133475.4438 | P64: 803.85154 | Q64: 3084.66802 | R64: 5910.73935 | S64: 72888.06266 | T64: 51466.37534 | U64: 0 | V64: 21421.68732 | W64: 36.511 | X64: 976.10494 | Y64: -4918.99936 | Z64: -64.41226 | AA64: 15498.68176 | AB64: 114504.4669 | AC64: 63375.14609 | AD64: -72826.59784 | AE64: 847.86953 | AF64: 20889.68986 | AG64: 10509.39242 | AH64: -66331.99539 | AI64: 36531.34 | AJ64: 16512.56159 | AK64: 12286.10764 | AL64: 650409.252 | AM64: 596096.724 | AN64: 54312.52801 | AO64: 0 | AP64: 10133.726 | AQ64: 8 | AR64: 36297 | AS64: 21 | AT64: 2.242322047 | AU64: 147.6980984 | AV64: 23.70226732 | AW64: 273340.9029 | AX64: 159.8605678 | AY64: 303897.6384 | AZ64: 512041.7314 | BA64: -200.06731 | BB64: -208344.1603 | BC64: 153797.5099 | BD64: 139395.0961 | BE64: 689.67876 | BF64: 3496.60659 | BG64: -9997.0034 | BH64: 72044.51437 | BI64: 50792.63761 | BJ64: 4035.524 | BK64: 25287.40076 | BL64: 216.16333 | BM64: 918.48645 | BN64: -4552.63126 | BO64: -1.01443 | BP64: 20031.43195 | BQ64: 128296.439 | BR64: 72721.86228 | BS64: -56659.61094 | BT64: 725.19201 | BU64: 2291.24066 | BV64: -14768.44062 | BW64: -30192.18538 | BX64: 34235.68434 | BY64: 17518.37774 | BZ64: 19078.68401 | CA64: 671971.1287 | CB64: 602154.7069 | CC64: 69816.42183 | CD64: 0 | CE64: 14160.49933 | CF64: 10 | CG64: 36513 | CH64: 8.36 | CI64: 1.615375006 | CJ64: 225.2823308 | CK64: 25.89002558 | CL64: 221784.3807 | CM64: 215.4288658 | CN64: 189449.7269 | CO64: 275114.2598 | CP64: 203.53618 | CQ64: -85460.99672 | CR64: 80529.49533 | CS64: 63096.849 | CT64: 1709.61878 | CU64: 15891.66952 | CV64: 9739.53919 | CW64: 53722.83606 | CX64: 46239.21143 | CY64: 0 | CZ64: 7483.62463 | DA64: 43.06506 | DB64: 1347.27165 | DC64: -3056.96474 | DD64: 0.20337 | DE64: 3122.65667 | DF64: 122102.2235 | DG64: 50740.26404 | DH64: 47819.36635 | DI64: 1588.83763 | DJ64: 453.95209 | DK64: 12691.22447 | DL64: -27203.28076 | DM64: 28430.72567 | DN64: -16728.61892 | DO64: 4963.68741 | DP64: 577360.2466 | DQ64: 531592.9031 | DR64: 45767.34356 | DS64: 0 | DT64: 10780.6345 | DU64: 14 | DW64: 2392.64445 | DX64: 1712.18402 | DY64: 1745.50876 | EA64: 545
A65: 208 | B65: Kalajoki | C65: 12412 | D65: 21 | E65: 0.9451246874 | F65: 75.16816457 | G65: 44.82537482 | H65: 27325.65942 | I65: 70.61960656 | J65: 41851.14982 | K65: 119591.407 | L65: 355.63062 | M65: -77384.62656 | N65: 51942.40414 | O65: 34022.28437 | P65: 49.96431 | Q65: 357.50344 | R65: 450.69362 | S65: 8723.21644 | T65: 8520.32841 | U65: 0 | V65: 202.88803 | W65: 2.73798 | X65: 40.1849 | Y65: -12.48194 | Z65: -13.42033 | AA65: 139.53884 | AB65: 26271.00989 | AC65: 8361.08909 | AD65: -11861.19259 | AE65: 516.5181 | AF65: 799.18043 | AG65: -896.15649 | AH65: -9250.45623 | AI65: 7715.4995 | AJ65: 1790.329 | AK65: -2184.40497 | AL65: 66882.17991 | AM65: 46077.13413 | AN65: 20805.04578 | AO65: 82.49233 | AP65: 26760.37214 | AQ65: 205 | AR65: 12335 | AS65: 21 | AT65: 2.025603673 | AU65: 68.85903485 | AV65: 45.58292556 | AW65: 27527.23753 | AX65: 69.93772855 | AY65: 44294.55887 | AZ65: 125197.3095 | BA65: 317.16466 | BB65: -80585.58593 | BC65: 54948.04063 | BD65: 36376.31366 | BE65: -31.23407 | BF65: 306.41753 | BG65: 930.21916 | BH65: 11331.33592 | BI65: 9229.69944 | BJ65: 0 | BK65: 2101.63648 | BL65: 2.5318 | BM65: 4.58889 | BN65: -8.92461 | BO65: -10.72617 | BP65: 2079.92861 | BQ65: 28125.91797 | BR65: 11162.94981 | BS65: -11431.09027 | BT65: 252.13982 | BU65: 1356.24435 | BV65: -1785.1593 | BW65: -5438.90847 | BX65: 9038.01739 | BY65: -4830.23607 | BZ65: 1340.24371 | CA65: 63518.65499 | CB65: 47059.28673 | CC65: 16459.36826 | CD65: 71.93378 | CE65: 29857.37547 | CF65: 96 | CG65: 12372 | CH65: 8.36 | CI65: 2.226984478 | CJ65: 92.00075203 | CK65: 54.52731206 | CL65: 24914.85642 | CM65: 117.2489748 | CN65: 25236.71766 | CO65: 61220.44133 | CP65: 95.92418 | CQ65: -35887.79949 | CR65: 32437.20065 | CS65: 19185.56369 | CT65: 156.28725 | CU65: 1088.19997 | CV65: 649.1719 | CW65: 15452.22403 | CX65: 9484.61071 | CY65: -0.00459 | CZ65: 5967.60873 | DA65: 11.19458 | DB65: -33.09966 | DC65: 3.47267 | DD65: -29.5701 | DE65: 5985.80554 | DF65: 34076.8396 | DG65: 15190.51344 | DH65: 8258.81331 | DI65: 989.37471 | DJ65: 323.63561 | DK65: 4649.41471 | DL65: -6339.07407 | DM65: 655.0002 | DN65: -2956.5132 | DO65: 8244.71045 | DP65: 49765.67309 | DQ65: 36509.96641 | DR65: 13255.70668 | DS65: 0.46537 | DT65: 28406.886 | DU65: 37 | DW65: 10478.10145 | DX65: 10502.98594 | DY65: 10403.50322 | EA65: 5483
A66: 211 | B66: Kangasala | C66: 32622 | D66: 21 | E66: 3.582448841 | F66: 61.03026688 | G66: 43.41815401 | H66: 65536.77582 | I66: 68.70088243 | J66: 140952.2966 | K66: 301531.8453 | L66: 147.52102 | M66: -160432.0277 | N66: 143083.639 | O66: 45274.56726 | P66: 247.4772 | Q66: 1153.54489 | R66: 3197.93826 | S66: 30218.04917 | T66: 22145.3222 | U66: 0 | V66: 8072.72697 | W66: 0.6516 | X66: 676.83971 | Y66: -104.93663 | Z66: -981.93005 | AA66: 6309.67218 | AB66: 93288.46888 | AC66: 26556.80188 | AD66: -37462.40056 | AE66: 2265.8517 | AF66: 7100.85323 | AG66: -3341.29579 | AH66: -7603.48011 | AI66: 8618.6623 | AJ66: -14697.37087 | AK66: -1538.89375 | AL66: 136335.1191 | AM66: 120800.6459 | AN66: 15534.47328 | AO66: 58.57484 | AP66: 30391.971 | AQ66: 126 | AR66: 32959 | AS66: 21 | AT66: 1.245311271 | AU66: 68.69259869 | AV66: 40.2168673 | AW66: 70874.58926 | AX66: 65.48709391 | AY66: 134635.0562 | AZ66: 313405.6331 | BA66: 143.78174 | BB66: -178626.7952 | BC66: 152907.3411 | BD66: 49879.43667 | BE66: 226.27376 | BF66: 1421.30342 | BG66: -131.67787 | BH66: 22833.27507 | BI66: 22332.94429 | BJ66: 0 | BK66: 500.33078 | BL66: 0.72102 | BM66: 424.77362 | BN66: -28.57971 | BO66: -358.68737 | BP66: -310.9889 | BQ66: 92773.67877 | BR66: 21067.71515 | BS66: -50744.18077 | BT66: 912.74236 | BU66: 1789.95596 | BV66: 439.17604 | BW66: -18055.41622 | BX66: 44962.52944 | BY66: -141.21355 | BZ66: -26973.7673 | CA66: 163101.6218 | CB66: 144038.1161 | CC66: 19063.50568 | CD66: 41.63448 | CE66: 16361.799 | CF66: 172 | CG66: 33473 | CH66: 8.36 | CI66: 1.400998893 | CJ66: 132.7460911 | CK66: 43.32765793 | CL66: 60685.0406 | CM66: 111.3701991 | CN66: 43709.57081 | CO66: 126163.5074 | CP66: 20.03058 | CQ66: -82433.90601 | CR66: 83744.48845 | CS66: 23590.26113 | CT66: 364.10306 | CU66: 2723.5969 | CV66: 3215.25106 | CW66: 25756.60079 | CX66: 21971.55672 | CY66: 0 | CZ66: 3785.04407 | DA66: 0.37982 | DB66: 335.92155 | DC66: 155.18645 | DD66: 12.24141 | DE66: 3616.9302 | DF66: 92530.0566 | DG66: 24431.16127 | DH66: 49174.95291 | DI66: 1472.50045 | DJ66: 2888.19099 | DK66: 4474.91428 | DL66: -17604.89717 | DM66: 40850 | DN66: -306.68539 | DO66: -20383.1002 | DP66: 156812.428 | DQ66: 138731.3736 | DR66: 18081.05431 | DS66: 0 | DT66: 9062.53199 | DU66: 159 | DW66: 1114.12072 | DX66: 1043.3997 | DY66: 887.07604 | EA66: 22444
A67: 213 | B67: Kangasniemi | C67: 5230 | D67: 21.5 | E67: -1.906657288 | F67: 46.42964653 | G67: 36.08190541 | H67: 4505.889 | I67: 26.03332227 | J67: 29403.444 | K67: 67187.602 | L67: -20.758 | M67: -37804.916 | N67: 21798.483 | O67: 19372.528 | P67: 10.898 | Q67: -130.323 | R67: 298.455 | S67: 3805.771 | T67: -2482.175 | U67: -82.675 | V67: 6205.271 | W67: 0.697 | X67: 0 | Y67: 0 | Z67: 40.57 | AA67: 6246.538 | AB67: 1101.013 | AC67: 4490.096 | AD67: -2233 | AE67: 1.045 | AF67: 148.27 | AG67: 949.09 | AH67: -1797.369 | AI67: 1370.336 | AJ67: -1508.131 | AK67: 6722.784 | AL67: 25635.712 | AM67: 16848.899 | AN67: 8786.813 | AO67: 402.793 | AP67: 0 | AQ67: 198 | AR67: 5154 | AS67: 21.5 | AT67: -1.511478864 | AU67: 41.9848965 | AV67: 37.42986908 | AW67: 2166.11095 | AX67: 11.06210778 | AY67: 31779.70784 | AZ67: 70822.1077 | BA67: -49.55378 | BB67: -39091.95364 | BC67: 21570.57866 | BD67: 19852.613 | BE67: 12.45009 | BF67: 169.82633 | BG67: 304.06411 | BH67: 2477.92589 | BI67: 3052.51268 | BJ67: 21.33254 | BK67: -553.25425 | BL67: -0.01399 | BM67: 0 | BN67: 0 | BO67: 35.40501 | BP67: -517.86323 | BQ67: 584.96141 | BR67: 3790.6449 | BS67: -2349.50982 | BT67: 42.42983 | BU67: 835.76088 | BV67: -172.19182 | BW67: -1921.58898 | BX67: 841.2608 | BY67: -2865.49078 | BZ67: 2319.32579 | CA67: 21700.89295 | CB67: 15617.51159 | CC67: 6083.38136 | CD67: 298.62663 | CE67: 1279.597 | CF67: 236 | CG67: 5114 | CH67: 8.86 | CI67: 1.143123558 | CJ67: 83.01257813 | CK67: 50.02145305 | CL67: 1087.78454 | CM67: 18.84412358 | CN67: 5005.87251 | CO67: 17747.47749 | CP67: -0.617 | CQ67: -12742.22198 | CR67: 12932.30195 | CS67: 1977.48723 | CT67: 21.7984 | CU67: 408.20438 | CV67: 268.9049 | CW67: 2050.06612 | CX67: 1502.01271 | CY67: 0 | CZ67: 548.05341 | DA67: -6.11997 | DB67: 0 | DC67: 0 | DD67: 0 | DE67: 541.93344 | DF67: 250.36658 | DG67: 1887.63572 | DH67: 902.90262 | DI67: 0 | DJ67: 178.96496 | DK67: 394.25114 | DL67: -1742.281 | DM67: 0 | DN67: 1526.61534 | DO67: 1163.69806 | DP67: 13813.14863 | DQ67: 6512.83592 | DR67: 7300.31271 | DS67: 250.96 | DT67: 294.946 | DU67: 256 | DW67: 121.3493 | DX67: 42.98942 | DY67: 431.07122 | EA67: 1154
A68: 214 | B68: Kankaanpää | C68: 12662 | D68: 21.75 | E68: 1.49238349 | F68: 74.89127749 | G68: 28.17607896 | H68: 14241.22582 | I68: 28.41795248 | J68: 80363.50573 | K68: 150004.2697 | L68: -80.78784 | M68: -69721.55179 | N68: 49811.81721 | O68: 36011.437 | P68: 30.45327 | Q68: 351.2687 | R68: 1069.7041 | S68: 16850.59109 | T68: 12156.80985 | U68: 0 | V68: 4693.78124 | W68: 0 | X68: 2.96521 | Y68: -245.80534 | Z68: -392.75446 | AA68: 4052.25623 | AB68: 17516.16495 | AC68: 17063.57626 | AD68: -21316.96268 | AE68: 320.05435 | AF68: 5043.17418 | AG68: 3505.76907 | AH68: -11175.16529 | AI68: 10089.93506 | AJ68: -1046.78632 | AK68: 1109.84211 | AL68: 80998.45622 | AM68: 65708.58513 | AN68: 15289.87109 | AO68: 0 | AP68: 18773.93616 | AQ68: 39 | AR68: 12528 | AS68: 21.75 | AT68: 0.7313554241 | AU68: 73.5267665 | AV68: 25.1030761 | AW68: 10236.68689 | AX68: 19.01208659 | AY68: 82517.81123 | AZ68: 159395.2213 | BA68: -52.47732 | BB68: -76929.88736 | BC68: 50044.24247 | BD68: 37714.949 | BE68: 16.48514 | BF68: 636.36106 | BG68: 1099.57142 | BH68: 11308.99961 | BI68: 10194.45867 | BJ68: 498.17268 | BK68: 1612.71362 | BL68: 0 | BM68: 2.87338 | BN68: -130.47068 | BO68: 17.42395 | BP68: 1496.79351 | BQ68: 18557.11135 | BR68: 11789.1677 | BS68: -20609.59597 | BT68: 549.37798 | BU68: 5662.82049 | BV68: -899.44077 | BW68: -15696.82015 | BX68: 13262.81672 | BY68: 1086.51023 | BZ68: -2608.2298 | CA68: 79650.96303 | CB68: 62211.45503 | CC68: 17439.508 | CD68: 0 | CE68: 19525.62141 | CF68: 102 | CG68: 12394 | CH68: 9.11 | CI68: 1.022465378 | CJ68: 136.3114508 | CK68: 28.32355382 | CL68: 6680.91059 | CM68: 25.86633203 | CN68: 39883.90991 | CO68: 64898.64708 | CP68: -334.29399 | CQ68: -25349.03116 | CR68: 29036.6742 | CS68: 10839.329 | CT68: 18.14815 | CU68: 1181.57865 | CV68: 1071.46416 | CW68: 14435.0057 | CX68: 9543.0454 | CY68: 0 | CZ68: 4891.9603 | DA68: 0 | DB68: -0.00042 | DC68: -199.56256 | DD68: 38.90124 | DE68: 4731.2994 | DF68: 23107.33618 | DG68: 14522.44346 | DH68: 13028.7056 | DI68: 145.78608 | DJ68: 256.67416 | DK68: 1741.37479 | DL68: -14091.88164 | DM68: 16221.79503 | DN68: -712.42957 | DO68: 1896.1981 | DP68: 76540.61347 | DQ68: 61421.99976 | DR68: 15118.61371 | DS68: 0 | DT68: 867.75224 | DU68: 48 | DW68: 5751.74667 | DX68: 5429.98235 | DY68: 5303.62869 | EA68: 1486
A69: 216 | B69: Kannonkoski | C69: 1311 | D69: 21.5 | E69: 1.500051274 | F69: 70.98170136 | G69: 36.57525227 | H69: 5677.71623 | I69: 73.69741239 | J69: 16354.97934 | K69: 26750.49908 | L69: 0.4338 | M69: -10395.08594 | N69: 4996.2152 | O69: 6002.338 | P69: 7.63587 | Q69: 51.25974 | R69: 181.14292 | S69: 740.98631 | T69: 1378.11776 | U69: 113 | V69: -524.13145 | W69: 1.04112 | X69: 0 | Y69: 0 | Z69: 9.31972 | AA69: -513.77061 | AB69: 7549.14159 | AC69: 825.98631 | AD69: -772.54835 | AE69: 0 | AF69: 528.10332 | AG69: 64.71056 | AH69: -476.88624 | AI69: 739.02 | AJ69: -826.8447 | AK69: 581.54128 | AL69: 15735.56956 | AM69: 8027.23754 | AN69: 7708.33202 | AO69: 0 | AP69: 4287.02561 | AQ69: 259 | AR69: 1269 | AS69: 21.5 | AT69: 1.9 | AU69: 63.7 | AV69: 32.4 | AW69: 5974.452 | AX69: 72 | AY69: 18832 | AZ69: 29502 | BA69: 90 | BB69: -10579 | BC69: 4958 | BD69: 6449 | BE69: 6.2844 | BF69: 98.33782 | BG69: 129 | BH69: 865 | BI69: 1564 | BJ69: 100 | BK69: -599 | BL69: 2 | BM69: 0 | BN69: -5 | BO69: -9 | BP69: -611 | BQ69: 6903 | BR69: 1165 | BS69: -403 | BT69: 7 | BU69: 29 | BV69: -790 | BW69: -405 | BX69: 388 | BY69: -5 | BZ69: 798 | CA69: 15002 | CB69: 7695 | CC69: 7307 | CD69: 0 | CE69: 1064.18786 | CF69: 177 | CG69: 1217 | CH69: 8.86 | CI69: 1.284711742 | CJ69: 93.10491686 | CK69: 44.49432459 | CL69: 4245.3667 | CM69: 131.2124887 | CN69: 7282.74798 | CO69: 10802.61782 | CP69: -0.33565 | CQ69: -3520.20549 | CR69: 2907.5331 | CS69: 1144.604 | CT69: 5.67921 | CU69: 305.46437 | CV69: 102.14527 | CW69: 334.29172 | CX69: 1516.25605 | CY69: -1 | CZ69: -1182.96433 | DA69: 1.52599 | DB69: 0 | DC69: -2.73773 | DD69: 7.0822 | DE69: -1177.09387 | DF69: 5724.30405 | DG69: 305.96332 | DH69: 402.69168 | DI69: 17.91485 | DJ69: 20.25807 | DK69: -1655.95672 | DL69: -192.512 | DM69: 0 | DN69: -320 | DO69: -58.55544 | DP69: 8766.165 | DQ69: 2050.653 | DR69: 6715.512 | DS69: 0 | DT69: 2274.91968 | DU69: 271 | DW69: 44.74098 | DX69: 0.52384 | DY69: 0.64417 | EA69: 88
A70: 217 | B70: Kannus | C70: 5390 | D70: 21.5 | E70: 0.6675738748 | F70: 60.50271908 | G70: 37.86987321 | H70: 7439.02335 | I70: 34.86296387 | J70: 33845.62076 | K70: 70075.39054 | L70: 428.78994 | M70: -35800.97984 | N70: 19961.53972 | O70: 18136.67387 | P70: 54.39253 | Q70: 56.84617 | R70: 52.00323 | S70: 2346.78334 | T70: 3390.16362 | U70: 0 | V70: -1043.38028 | W70: 42.47355 | X70: 30.2534 | Y70: -5.488 | Z70: -36.71087 | AA70: -1073.35901 | AB70: 13266.1909 | AC70: 1928.76173 | AD70: -4194.19912 | AE70: 108.23424 | AF70: 694.84677 | AG70: -869.7592 | AH70: -3543.69843 | AI70: 4556.66 | AJ70: -1247.28274 | AK70: -1462.35638 | AL70: 27790.99653 | AM70: 12415.1319 | AN70: 15375.86463 | AO70: 10.88 | AP70: 1128.7941 | AQ70: 277 | AR70: 5352 | AS70: 21.5 | AT70: 0.9932245884 | AU70: 63.8090045 | AV70: 33.06845124 | AW70: 6572.90611 | AX70: 28.6358182 | AY70: 36483.07411 | AZ70: 75443.41914 | BA70: 594.56519 | BB70: -38365.77984 | BC70: 20804.98864 | BD70: 19407.74007 | BE70: 10.69059 | BF70: 156.12205 | BG70: 61.13922 | BH70: 1762.65663 | BI70: 3506.30737 | BJ70: 0 | BK70: -1743.65074 | BL70: 25.87765 | BM70: 19.35565 | BN70: 11.96665 | BO70: -40.91001 | BP70: -1766.07209 | BQ70: 11399.34403 | BR70: 1555.87474 | BS70: -6371.58328 | BT70: 22.2936 | BU70: 92.19193 | BV70: -1526.39175 | BW70: -1775.74583 | BX70: 3816.1 | BY70: 1463.17057 | BZ70: -4701.22301 | CA70: 31294.52127 | CB70: 14560.68926 | CC70: 16733.83201 | CD70: 5.44 | CE70: 1180.23284 | CF70: 271 | CG70: 5246 | CH70: 8.86 | CI70: 1.780789399 | CJ70: 133.7307726 | CK70: 34.51027244 | CL70: 4428.54826 | CM70: 38.43101848 | CN70: 14019.94208 | CO70: 30141.12837 | CP70: 223.50278 | CQ70: -15897.68351 | CR70: 13105.59603 | CS70: 7187.63948 | CT70: 14.53071 | CU70: 986.85301 | CV70: 110.09983 | CW70: 3533.32953 | CX70: 3218.63118 | CY70: 0 | CZ70: 314.69835 | DA70: 15.98057 | DB70: 1.27024 | DC70: 6.16509 | DD70: 16.31879 | DE70: 351.89256 | DF70: 11669.31592 | DG70: 3515.47065 | DH70: 9271.5369 | DI70: 0 | DJ70: 356.00003 | DK70: 1756.54232 | DL70: -1551.44969 | DM70: 9602.1 | DN70: -2610.37084 | DO70: -5400.06622 | DP70: 33500.14663 | DQ70: 19568.84298 | DR70: 13931.30365 | DS70: 0 | DT70: 401.004 | DU70: 189 | DW70: 5019.09091 | DX70: 5070.68797 | DY70: 5045.48 | EA70: 1430
A71: 218 | B71: Karijoki | C71: 1192 | D71: 22.5 | E71: 2.443995501 | F71: 27.57797574 | G71: 53.89874632 | H71: 3009.29005 | I71: 55.49778059 | J71: 10156.63893 | K71: 18912.4972 | L71: -1.81535 | M71: -8757.67362 | N71: 4185.28751 | O71: 5711.96211 | P71: 0.27198 | Q71: 22.72521 | R71: -0.24856 | S71: 1116.87421 | T71: 533.43901 | U71: 0 | V71: 583.4352 | W71: 0.72968 | X71: 1e-05 | Y71: -0.65384 | Z71: 0.16298 | AA71: 583.67401 | AB71: 2506.61869 | AC71: 1113.41473 | AD71: -396.95048 | AE71: 13.39681 | AF71: 13.46461 | AG71: 208.63911 | AH71: -443.56019 | AI71: 77.88107 | AJ71: -400.17121 | AK71: 743.32567 | AL71: 3355.89445 | AM71: 2909.62669 | AN71: 446.26776 | AO71: 11.0306 | AP71: 451.021 | AQ71: 124 | AR71: 1200 | AS71: 22.5 | AT71: 1.875668922 | AU71: 27.88271801 | AV71: 54.02090194 | AW71: 3683.51789 | AX71: 65.41844268 | AY71: 10448.93719 | AZ71: 19818.67327 | BA71: 0.19781 | BB71: -9369.53827 | BC71: 4272.35939 | BD71: 5925.74467 | BE71: 0.28016 | BF71: 26.80669 | BG71: 4.76798 | BH71: 806.80724 | BI71: 545.52309 | BJ71: 0 | BK71: 261.28415 | BL71: 0 | BM71: 1.79929 | BN71: 1.25882 | BO71: 2.0709 | BP71: 262.81458 | BQ71: 2784.29546 | BR71: 802.62501 | BS71: -279.79377 | BT71: 7.38286 | BU71: 9.64725 | BV71: -131.97551 | BW71: -417.62885 | BX71: 30.09686 | BY71: 56.44793 | BZ71: 539.86135 | CA71: 3024.90087 | CB71: 2612.56877 | CC71: 412.3321 | CD71: 10.82045 | CE71: 964.623 | CF71: 185 | CG71: 1188 | CH71: 9.86 | CI71: 3.395879494 | CJ71: 41.44057194 | CK71: 74.58199648 | CL71: 2794.24265 | CM71: 190.3201564 | CN71: 1319.96718 | CO71: 4431.79092 | CP71: -1.96916 | CQ71: -3113.7929 | CR71: 2645.18784 | CS71: 1461.86448 | CT71: 0.00267 | CU71: 34.49324 | CV71: 7.35608 | CW71: 966.12493 | CX71: 408.39856 | CY71: -31.13373 | CZ71: 526.59264 | DA71: 0 | DB71: 7.84187 | DC71: 1.34862 | DD71: 0.00227 | DE71: 520.10166 | DF71: 3273.38019 | DG71: 929.66809 | DH71: 625.05378 | DI71: 1.76549 | DJ71: 346.95439 | DK71: -411.45899 | DL71: -260.16332 | DM71: 19.7767 | DN71: 0.98405 | DO71: 653.33419 | DP71: 1517.89765 | DQ71: 1349.17396 | DR71: 168.72369 | DS71: 0 | DT71: 37.51046 | DU71: 137 | DW71: 629.98152 | DX71: 629.98152 | DY71: 649.98152 | EA71: 65
A72: 224 | B72: Karkkila | C72: 8717 | D72: 21.25 | E72: 0.5485205865 | F72: 65.3418295 | G72: 10.60490419 | H72: 9345.66097 | I72: 26.67463392 | J72: 62327.93021 | K72: 112029.5386 | L72: 2.15756 | M72: -49699.45081 | N72: 34285.78231 | O72: 20814.595 | P72: 10.33792 | Q72: 268.78246 | R72: 43.80245 | S72: 5186.28442 | T72: 4132.59295 | U72: 0 | V72: 1053.69147 | W72: -2.633 | X72: 4.40474 | Y72: -0.42717 | Z72: -6.84164 | AA72: 1039.38491 | AB72: 1428.81734 | AC72: 4968.8815 | AD72: -5750.29433 | AE72: 10.91323 | AF72: 1205.19076 | AG72: 368.3561 | AH72: -9676.27159 | AI72: 2163.28736 | AJ72: 5964.73429 | AK72: 434.69117 | AL72: 64730.25742 | AM72: 39333.20008 | AN72: 25397.05734 | AO72: 0.11819 | AP72: 4893.32643 | AQ72: 251 | AR72: 8603 | AS72: 21.25 | AT72: 0.7563624169 | AU72: 63.99078297 | AV72: 13.55503393 | AW72: 9953.49887 | AX72: 28.62683348 | AY72: 62631.55246 | AZ72: 113355.0555 | BA72: -35.40374 | BB72: -50758.90679 | BC72: 35387.7415 | BD72: 22198.173 | BE72: 50.30522 | BF72: 284.26448 | BG72: 122.01863 | BH72: 6715.06709 | BI72: 4118.8936 | BJ72: 0 | BK72: 2596.17349 | BL72: -1.77566 | BM72: 4.98548 | BN72: -1.77135 | BO72: 1.50963 | BP72: 2589.15063 | BQ72: 3988.95514 | BR72: 6361.01555 | BS72: -4120.95022 | BT72: 14.76866 | BU72: 543.54781 | BV72: -339.35192 | BW72: -8969.67439 | BX72: 1317.6 | BY72: 3520.13978 | BZ72: 2798.3818 | CA72: 60670.58375 | CB72: 31656.89339 | CC72: 29013.69036 | CD72: 0 | CE72: 5046.82532 | CF72: 136 | CG72: 8581 | CH72: 8.61 | CI72: 0.9940172552 | CJ72: 144.2647775 | CK72: 16.86471828 | CL72: 3112.68306 | CM72: 28.98532901 | CN72: 11757.22477 | CO72: 29743.73339 | CP72: 0 | CQ72: -17986.50862 | CR72: 18698.66875 | CS72: 5647.386 | CT72: 245.02639 | CU72: 1290.73816 | CV72: 65.26535 | CW72: 5379.09971 | CX72: 3059.53217 | CY72: 0 | CZ72: 2319.56754 | DA72: 2.27069 | DB72: 0.0026 | DC72: 0 | DD72: 0 | DE72: 2321.83563 | DF72: 6055.77312 | DG72: 3663.9711 | DH72: 2677.72174 | DI72: 0 | DJ72: 729.43195 | DK72: 2392.79678 | DL72: -5419.24382 | DM72: 0 | DN72: 204.72571 | DO72: 1715.68131 | DP72: 46817.90792 | DQ72: 17901.66992 | DR72: 28916.238 | DS72: 0 | DT72: 131.65767 | DU72: 198 | DW72: 989.78179 | DX72: 991.55746 | DY72: 981.40222 | EA72: 142
A73: 226 | B73: Karstula | C73: 3774 | D73: 21.5 | E73: 8.357617373 | F73: 53.45904778 | G73: 30.85751405 | H73: 13207.79673 | I73: 70.72287158 | J73: 36514.94914 | K73: 61894.15766 | L73: 0 | M73: -25379.20852 | N73: 14060.20644 | O73: 16338.34022 | P73: 66.60486 | Q73: 97.73186 | R73: 141.73856 | S73: 5129.9497 | T73: 3625.916 | U73: 221 | V73: 1725.0337 | W73: 0.92879 | X73: 97.69714 | Y73: -1.794 | Z73: -100.71002 | AA73: 1525.76133 | AB73: 1932.31822 | AC73: 5390.04804 | AD73: -5621.81265 | AE73: 121.94166 | AF73: 1527.60525 | AG73: 17.12388 | AH73: -527.76717 | AI73: 1514.37176 | AJ73: -1258.87844 | AK73: 1417.7823 | AL73: 27456.43258 | AM73: 13825.20912 | AN73: 13631.22346 | AO73: 55.69614 | AP73: 15785.61384 | AQ73: 34 | AR73: 3665 | AS73: 21.5 | AT73: 6.192341396 | AU73: 52.66051394 | AV73: 30.2447992 | AW73: 11633.62037 | AX73: 57.69858568 | AY73: 39930.66066 | AZ73: 67026.50706 | BA73: 0 | BB73: -27095.8464 | BC73: 14232.79881 | BD73: 17656.07673 | BE73: 9.84664 | BF73: 157.52353 | BG73: 128.96319 | BH73: 4774.31544 | BI73: 3072.18477 | BJ73: 194.93276 | BK73: 1897.06343 | BL73: 0.58872 | BM73: 43.85658 | BN73: -8.5132 | BO73: -40.10516 | BP73: 1805.17721 | BQ73: 3083.66275 | BR73: 4248.13145 | BS73: -5758.5478 | BT73: 17.66392 | BU73: 115.81618 | BV73: -1716.54027 | BW73: -638.91818 | BX73: 166.74824 | BY73: 19.79043 | BZ73: -1376.93625 | CA73: 27075.7197 | CB73: 13589.31397 | CC73: 13486.40573 | CD73: 126.30382 | CE73: 19101.49651 | CF73: 38 | CG73: 3625 | CH73: 8.86 | CI73: 4.782085853 | CJ73: 97.98981096 | CK73: 46.61679406 | CL73: 8257.77262 | CM73: 139.8039628 | CN73: 6446.20825 | CO73: 16438.22608 | CP73: 0 | CQ73: -9992.01783 | CR73: 8278.75077 | CS73: 5243.8351 | CT73: 10.09599 | CU73: 540.33985 | CV73: 43.42367 | CW73: 3043.74785 | CX73: 2267.26488 | CY73: -97.01994 | CZ73: 679.46303 | DA73: -0.3779 | DB73: 54.49579 | DC73: -6.5666 | DD73: -22.73837 | DE73: 595.28437 | DF73: 3829.71071 | DG73: 2679.97625 | DH73: 4328.24993 | DI73: 1674.18673 | DJ73: 237.22948 | DK73: 510.00659 | DL73: -209.14224 | DM73: 10.00922 | DN73: -38.54701 | DO73: 263.14253 | DP73: 17049.11026 | DQ73: 3823.85293 | DR73: 13225.25733 | DS73: 94.69536 | DT73: 20373.70681 | DU73: 131 | DW73: 0 | DX73: 0 | DY73: 32.04201 | EA73: 1101
A74: 230 | B74: Karvia | C74: 2290 | D74: 20.5 | E74: 4.62992441 | F74: 52.49744568 | G74: 57.32324742 | H74: 3958.63743 | I74: 36.79963444 | J74: 21480.71604 | K74: 34189.94004 | L74: 0 | M74: -12709.224 | N74: 7551.24332 | O74: 9064.53576 | P74: 8.68141 | Q74: 61.9397 | R74: 13.73093 | S74: 3867.02772 | T74: 2574.73217 | U74: 0 | V74: 1292.29555 | W74: 0 | X74: 5.70955 | Y74: -99.13822 | Z74: -321.7905 | AA74: 865.65728 | AB74: 15481.72228 | AC74: 4146.84777 | AD74: -4210.3345 | AE74: 55.69107 | AF74: 79.12307 | AG74: 857.02696 | AH74: -786.66323 | AI74: 248.07739 | AJ74: 388.07681 | AK74: 71.32741 | AL74: 7768.49798 | AM74: 5704.81439 | AN74: 2063.68359 | AO74: 0 | AP74: 696.14053 | AQ74: 13 | AR74: 2240 | AS74: 20.5 | AT74: 2.469291632 | AU74: 52.79878762 | AV74: 46.05568442 | AW74: 3562.74056 | AX74: 32.89557681 | AY74: 22539.18492 | AZ74: 36439.31633 | BA74: 0 | BB74: -13900.13141 | BC74: 7472.54225 | BD74: 9320.44011 | BE74: 11.75495 | BF74: 69.31508 | BG74: -539.48136 | BH74: 2295.80946 | BI74: 2834.38464 | BJ74: 0 | BK74: -538.57518 | BL74: 0 | BM74: 9.20991 | BN74: -18.71242 | BO74: 14.86373 | BP74: -551.63378 | BQ74: 15019.77238 | BR74: 2282.28823 | BS74: -1554.65335 | BT74: 4.59417 | BU74: -1622.35223 | BV74: -47.05926 | BW74: -888.49991 | BX74: 270.99941 | BY74: 342.61412 | BZ74: -890.12318 | CA74: 7626.61182 | CB74: 5197.23456 | CC74: 2429.37726 | CD74: 0 | CE74: 1379.65093 | CF74: 77 | CG74: 2216 | CH74: 7.86 | CI74: 2.531348935 | CJ74: 113.8563103 | CK74: 45.75540455 | CL74: 2544.72427 | CM74: 46.26362513 | CN74: 10752.97027 | CO74: 14866.55105 | CP74: 0 | CQ74: -4113.58078 | CR74: 4169.38953 | CS74: 2254.58041 | CT74: 52.81556 | CU74: 205.66665 | CV74: -24.79996 | CW74: 2132.73811 | CX74: 2764.91166 | CY74: -25.68591 | CZ74: -657.85946 | DA74: 20.86573 | DB74: 3.47039 | DC74: -75.08398 | DD74: 30.23827 | DE74: -685.30983 | DF74: 14420.15392 | DG74: 1934.50574 | DH74: 4303.86506 | DI74: 5.81691 | DJ74: 430.91596 | DK74: -0.54677 | DL74: -718.11147 | DM74: 2870.53088 | DN74: 267.60201 | DO74: -1932.62645 | DP74: 8944.76883 | DQ74: 6425.32234 | DR74: 2519.44649 | DS74: 0 | DT74: 185.18858 | DU74: 84 | DW74: 1821.12382 | DX74: 1688.48294 | DY74: 1636.39619 | EA74: 225
A75: 231 | B75: Kaskinen | C75: 1289 | D75: 22 | E75: 0.6542992697 | F75: 70.94218797 | G75: 40.89729734 | H75: 717.10857 | I75: 12.53898541 | J75: 8265.58425 | K75: 17540.01632 | L75: 0 | M75: -9274.43207 | N75: 7207.2165 | O75: 2440.706 | P75: 2.12593 | Q75: 59.71917 | R75: 10.74747 | S75: 326.64466 | T75: 1199.36984 | U75: 1.80864 | V75: -870.91654 | W75: 0 | X75: 59.41357 | Y75: -9.80403 | Z75: 0 | AA75: -940.13414 | AB75: 4111.97042 | AC75: 276.35711 | AD75: -2729.01658 | AE75: 816.77243 | AF75: 1.90412 | AG75: -47.28969 | AH75: -530.781 | AI75: 421.2 | AJ75: 1311.49001 | AK75: -1633.98292 | AL75: 10325.17039 | AM75: 7742.86161 | AN75: 2582.30878 | AO75: 0.43231 | AP75: 3347.63176 | AQ75: 288 | AR75: 1256 | AS75: 23 | AT75: 1.363456527 | AU75: 61.83354844 | AV75: 39.35247806 | AW75: 926.66113 | AX75: 14.77037477 | AY75: 11250.19371 | AZ75: 20633.69117 | BA75: 0 | BB75: -9383.49746 | BC75: 7419.00876 | BD75: 3184.91485 | BE75: 13.83235 | BF75: 49.36752 | BG75: -12.5481 | BH75: 1172.34288 | BI75: 1193.39435 | BJ75: 0 | BK75: -21.05147 | BL75: -15 | BM75: 0 | BN75: 1.00465 | BO75: 0 | BP75: -35.04682 | BQ75: 4081.29124 | BR75: 593.87176 | BS75: -1331.64982 | BT75: 22.65565 | BU75: 1694.74088 | BV75: -1253.15672 | BW75: -846.67161 | BX75: 538.6405 | BY75: 680.81848 | BZ75: 979.61847 | CA75: 10810.43401 | CB75: 7708.87758 | CC75: 3101.55643 | CD75: 0.43159 | CE75: 2921.76867 | CF75: 92 | CG75: 1208 | CH75: 10.36 | CI75: 0.3627484855 | CJ75: 145.436131 | CK75: 34.53916283 | CL75: 720.95969 | CM75: 19.38193844 | CN75: 5651.48974 | CO75: 8980.91483 | CP75: 0 | CQ75: -3329.42509 | CR75: 4486.12866 | CS75: -924.34615 | CT75: 9.58708 | CU75: 182.12801 | CV75: -4.01672 | CW75: 55.79977 | CX75: 1209.30655 | CY75: 0 | CZ75: -1153.50678 | DA75: -83.91282 | DB75: 41.31972 | DC75: 8.39418 | DD75: 0 | DE75: -1270.34514 | DF75: 2912.19902 | DG75: -46.71877 | DH75: 3944.28716 | DI75: 0.06275 | DJ75: 341.42705 | DK75: 1068.01549 | DL75: -473.77488 | DM75: 2758.80471 | DN75: -193.71847 | DO75: -3649.51613 | DP75: 11399.71231 | DQ75: 8623.52932 | DR75: 2776.18299 | DS75: 0 | DT75: 2605.81524 | DU75: 282 | DW75: 8.7488 | DX75: 19.10215 | DY75: 15.71157 | EA75: 2100
A76: 232 | B76: Kauhajoki | C76: 12890 | D76: 22 | E76: 1.458984618 | F76: 72.42988385 | G76: 27.64149034 | H76: 36613.7065 | I76: 66.71795299 | J76: 93477.12953 | K76: 180404.3844 | L76: 146.09801 | M76: -86781.15689 | N76: 49370.24891 | O76: 48714.66813 | P76: 8.21142 | Q76: 765.04527 | R76: 2603.08273 | S76: 13150.00903 | T76: 10040.99105 | U76: 0 | V76: 3109.01798 | W76: 3.8103 | X76: 0 | Y76: -33.20923 | Z76: -28.59573 | AA76: 3051.02332 | AB76: 7683.41266 | AC76: 12679.34624 | AD76: -9877.55541 | AE76: 73.78194 | AF76: 428.81479 | AG76: 5263.80413 | AH76: -8772.44685 | AI76: 8111.15354 | AJ76: -2.44264 | AK76: 3304.38756 | AL76: 110397.7443 | AM76: 91339.79064 | AN76: 19057.95371 | AO76: 230.67151 | AP76: 6480.334 | AQ76: 97 | AR76: 12750 | AS76: 22 | AT76: 1.123289821 | AU76: 71.44095924 | AV76: 27.48270079 | AW76: 33491.74496 | AX76: 59.5827067 | AY76: 90649.68796 | AZ76: 182116.8575 | BA76: 137.26591 | BB76: -91329.90361 | BC76: 51274.96557 | BD76: 51865.67558 | BE76: 24.66975 | BF76: 951.03262 | BG76: 173.11125 | BH76: 11057.48592 | BI76: 9816.62671 | BJ76: 0 | BK76: 1240.85921 | BL76: -0.01596 | BM76: 0 | BN76: -50.79985 | BO76: 5.95828 | BP76: 1196.00168 | BQ76: 8907.19638 | BR76: 10783.47911 | BS76: -10946.35798 | BT76: 77.95125 | BU76: 247.27162 | BV76: 2669.28248 | BW76: -9739.45733 | BX76: 8749.576 | BY76: -2142.16079 | BZ76: 162.344 | CA76: 107308.8665 | CB76: 90144.562 | CC76: 17164.30453 | CD76: 229.6221 | CE76: 10063.527 | CF76: 116 | CG76: 12618 | CH76: 9.36 | CI76: 1.313186695 | CJ76: 171.2760406 | CK76: 32.62631541 | CL76: 34934.21496 | CM76: 151.5231092 | CN76: 20484.31705 | CO76: 57402.50188 | CP76: -28.22789 | CQ76: -36946.41272 | CR76: 29242.39265 | CS76: 16053.38433 | CT76: 52.62876 | CU76: 2005.02899 | CV76: 4550.14445 | CW76: 10947.10848 | CX76: 8067.90336 | CY76: 336.51478 | CZ76: 3215.7199 | DA76: 0 | DB76: 0 | DC76: 107.27186 | DD76: -4.25568 | DE76: 3318.73608 | DF76: 12701.84495 | DG76: 11252.09951 | DH76: 12180.38794 | DI76: 104.72738 | DJ76: 3560.26841 | DK76: 4944.09601 | DL76: -7858.10587 | DM76: 8380.2358 | DN76: 4036.1597 | DO76: 2736.70736 | DP76: 98886.60131 | DQ76: 79807.97195 | DR76: 19078.62936 | DS76: 86.52763 | DT76: 4033.398 | DU76: 121 | DW76: 1690.52273 | DX76: 1736.00182 | DY76: 1803.58634 | EA76: 2499
A77: 233 | B77: Kauhava | C77: 15312 | D77: 21.75 | E77: 1.462441356 | F77: 92.61789608 | G77: 26.06902447 | H77: 38561.55995 | I77: 61.59639715 | J77: 82889.14541 | K77: 182312.8867 | L77: -21.32417 | M77: -99445.06546 | N77: 56830.95802 | O77: 62898.38349 | P77: 163.52809 | Q77: 738.47313 | R77: -148.85645 | S77: 19560.47456 | T77: 12371.11528 | U77: 0 | V77: 7189.35928 | W77: 197.29029 | X77: 418.30519 | Y77: -7.37719 | Z77: -331.23905 | AA77: 6629.72814 | AB77: 23835.12226 | AC77: 18669.40159 | AD77: -30123.48528 | AE77: 100.219 | AF77: 824.53719 | AG77: 245.01032 | AH77: -13141.7058 | AI77: 24918.87767 | AJ77: 4005.62619 | AK77: -10529.3275 | AL77: 155472.2814 | AM77: 144029.5852 | AN77: 11442.69618 | AO77: 21.2346 | AP77: 3841.81808 | AQ77: 46 | AR77: 15116 | AS77: 21.75 | AT77: 1.429351645 | AU77: 94.15187774 | AV77: 25.16048739 | AW77: 36023.31683 | AX77: 56.65852612 | AY77: 82617.85674 | AZ77: 187765.896 | BA77: -12.78572 | BB77: -105160.825 | BC77: 59012.64153 | BD77: 64413.19323 | BE77: 294.17734 | BF77: 990.81415 | BG77: 159.47733 | BH77: 17727.85028 | BI77: 13277.84257 | BJ77: 0 | BK77: 4450.00771 | BL77: 144.77218 | BM77: 317.26225 | BN77: 6.25321 | BO77: -286.4766 | BP77: 3997.29425 | BQ77: 25596.65659 | BR77: 17168.79704 | BS77: -28151.51438 | BT77: 141.64899 | BU77: 413.01798 | BV77: 6954.18446 | BW77: -12105.0986 | BX77: 14813.51445 | BY77: -2897.19406 | BZ77: -10428.05037 | CA77: 161329.663 | CB77: 145587.4664 | CC77: 15742.19655 | CD77: 16.98768 | CE77: 55975.1029 | CF77: 52 | CG77: 15165 | CH77: 9.11 | CI77: 1.078314032 | CJ77: 178.2104788 | CK77: 31.41791327 | CL77: 33188.4132 | CM77: 112.6921961 | CN77: 30717.9888 | CO77: 68217.00344 | CP77: -0.72947 | CQ77: -37499.74411 | CR77: 33172.1309 | CS77: 23701.885 | CT77: 328.3615 | CU77: 3263.3232 | CV77: -41.44023 | CW77: 16397.86986 | CX77: 13242.88695 | CY77: 536.16492 | CZ77: 3691.14783 | DA77: 88.63175 | DB77: 200.48149 | DC77: 22.35453 | DD77: -140.51577 | DE77: 3461.13685 | DF77: 35039.91721 | DG77: 16556.60024 | DH77: 21085.48324 | DI77: 146.5054 | DJ77: 6005.59276 | DK77: 7447.28899 | DL77: -14969.94881 | DM77: 8766.93339 | DN77: 235.149 | DO77: 1623.21516 | DP77: 137474.4001 | DQ77: 121559.5907 | DR77: 15914.80934 | DS77: 0 | DT77: 489.18261 | DU77: 64 | DW77: 1674.36151 | DX77: 1643.26899 | DY77: 1415.21869 | EA77: 3410
A78: 235 | B78: Kauniainen | C78: 10396 | D78: 17 | E78: 9.172651617 | F78: 33.11674798 | G78: 71.02033839 | H78: 13884.9492 | I78: 40.19756556 | J78: 47446.94297 | K78: 113941.4272 | L78: 1.93143 | M78: -66492.55284 | N78: 74694.61357 | O78: 1742.05175 | P78: 228.92632 | Q78: 337.65458 | R78: 6.04716 | S78: 9841.43138 | T78: 10520.69518 | U78: 0 | V78: -679.2638 | W78: 144.94497 | X78: 20.28974 | Y78: 35.04279 | Z78: -5.58324 | AA78: -525.14902 | AB78: 51364.51194 | AC78: 9039.73918 | AD78: -10916.56496 | AE78: 272.86368 | AF78: 956.48785 | AG78: -1407.15152 | AH78: -772.06662 | AI78: 2311.38185 | AJ78: -4020.33407 | AK78: -647.47425 | AL78: 22912.64233 | AM78: 21536.26141 | AN78: 1376.38092 | AO78: 4537.03576 | AP78: 4742.434 | AQ78: 119 | AR78: 10284 | AS78: 17 | AT78: 20.69370983 | AU78: 32.58622572 | AV78: 71.55746598 | AW78: 24790.49861 | AX78: 67.48975633 | AY78: 48822.10114 | AZ78: 117201.1432 | BA78: -25.44362 | BB78: -68404.48565 | BC78: 87635.77097 | BD78: 3926.40975 | BE78: 232.345 | BF78: 380.14963 | BG78: 63.98406 | BH78: 23073.8745 | BI78: 10304.01532 | BJ78: 0 | BK78: 12769.85918 | BL78: -10071.15523 | BM78: 3.40616 | BN78: -19.10986 | BO78: -34.26661 | BP78: 2641.92132 | BQ78: 64455.07086 | BR78: 22233.24372 | BS78: -15588.71206 | BT78: 186.12802 | BU78: 1012.17258 | BV78: -1371.73226 | BW78: -753.23942 | BX78: 2736.56406 | BY78: -25.79667 | BZ78: 7842.83226 | CA78: 25334.66409 | CB78: 24050.95912 | CC78: 1283.70497 | CD78: 4886.70296 | CE78: 4693.205 | CF78: 5 | CG78: 10270 | CH78: 4.36 | CI78: 9.846406632 | CJ78: 38.23044515 | CK78: 79.97933202 | CL78: 24095.77041 | CM78: 116.8105489 | CN78: 25902.25527 | CO78: 63044.76311 | CP78: 1.95197 | CQ78: -37140.55587 | CR78: 31903.92985 | CS78: 18007.07608 | CT78: 685.86371 | CU78: 590.91209 | CV78: 130.35243 | CW78: 12995.75411 | CX78: 10319.29201 | CY78: 0 | CZ78: 2676.4621 | DA78: -10.95293 | DB78: -1.64121 | DC78: -3.27725 | DD78: -32.69563 | DE78: 2631.1775 | DF78: 66800.54201 | DG78: 12410.28805 | DH78: 10737.50651 | DI78: 177.17241 | DJ78: 652.78065 | DK78: 2046.90582 | DL78: -788.94827 | DM78: 537.64133 | DN78: -73.22159 | DO78: 2502.7346 | DP78: 18045.58604 | DQ78: 17064.37209 | DR78: 981.21395 | DS78: 4399.17498 | DT78: 1090.471 | DU78: 32 | DW78: 186.44171 | DX78: 188.12775 | DY78: 178.73081 | EA78: 2810
A79: 236 | B79: Kaustinen | C79: 4196 | D79: 22 | E79: 0.7920953526 | F79: 107.9864577 | G79: 20.42840899 | H79: 4332.80154 | I79: 22.92830041 | J79: 29424.24066 | K79: 56377.01227 | L79: 229.9699 | M79: -26722.80171 | N79: 14961.31415 | O79: 15567.43857 | P79: 29.96562 | Q79: 328.79967 | R79: 47.16288 | S79: 3554.27984 | T79: 3591.89059 | U79: 0 | V79: -37.61075 | W79: 40.57162 | X79: 14.32665 | Y79: 0 | Z79: -7.18378 | AA79: -18.54956 | AB79: 4579.95687 | AC79: 3536.43879 | AD79: -7642.40153 | AE79: 137.97192 | AF79: 211.52984 | AG79: -1470.03389 | AH79: -4573.48829 | AI79: 13859.4 | AJ79: -789.56018 | AK79: -3756.46098 | AL79: 52350.08281 | AM79: 48071.19583 | AN79: 4278.88698 | AO79: 310.61008 | AP79: 1101.73111 | AQ79: 156 | AR79: 4198 | AS79: 22 | AT79: 0.455473897 | AU79: 99.94341498 | AV79: 21.005825 | AW79: 4385.15119 | AX79: 20.82335558 | AY79: 32265.76416 | AZ79: 60473.44836 | BA79: 306.1559 | BB79: -27901.5283 | BC79: 15866.27162 | BD79: 17170.88146 | BE79: 31.16666 | BF79: 403.00456 | BG79: 254.5573 | BH79: 5018.34418 | BI79: 3782.15438 | BJ79: 0 | BK79: 1236.1898 | BL79: 23.95416 | BM79: 2.86546 | BN79: 0 | BO79: -7.80193 | BP79: 1249.47657 | BQ79: 5547.43185 | BR79: 4857.4896 | BS79: -4460.04471 | BT79: 24.96884 | BU79: 98.57603 | BV79: -857.67396 | BW79: -11499.65062 | BX79: 2659.2 | BY79: 9637.98359 | BZ79: 520.98976 | CA79: 53147.61578 | CB79: 39230.74521 | CC79: 13916.87057 | CD79: 306.51008 | CE79: 1300.63034 | CF79: 49 | CG79: 4137 | CH79: 9.36 | CI79: 0.7470975154 | CJ79: 208.6519863 | CK79: 21.92215749 | CL79: 4819.03049 | CM79: 52.24944686 | CN79: 11795.95505 | CO79: 24535.10704 | CP79: 111.94664 | CQ79: -12627.20535 | CR79: 8617.4449 | CS79: 8230.88118 | CT79: 11.91959 | CU79: 1138.58304 | CV79: 109.3335 | CW79: 3203.79078 | CX79: 3495.46313 | CY79: 0 | CZ79: -291.67235 | DA79: 10.39233 | DB79: 0 | DC79: 0 | DD79: -6.60393 | DE79: -287.88395 | DF79: 5188.58897 | DG79: 3196.70917 | DH79: 2664.20377 | DI79: 102.92107 | DJ79: 110.57557 | DK79: 1689.33137 | DL79: -4673.7423 | DM79: 11569.59925 | DN79: -5389.17488 | DO79: 746.00204 | DP79: 52416.41516 | DQ79: 44154.75533 | DR79: 8261.65983 | DS79: 253.41843 | DT79: 465.78291 | DU79: 154 | DW79: 1543.46414 | DX79: 1540.97887 | DY79: 1538.26788 | EA79: 1404
A80: 239 | B80: Keitele | C80: 2095 | D80: 20.5 | E80: 2.340725575 | F80: 69.35455209 | G80: 33.91282229 | H80: 2884.48494 | I80: 38.21010937 | J80: 10017.6036 | K80: 25198.32666 | L80: -158.94043 | M80: -15339.66349 | N80: 7964.86563 | O80: 9232.03801 | P80: 4.17833 | Q80: 68.72176 | R80: 174.37209 | S80: 1967.06881 | T80: 1443.92552 | U80: 80.12909 | V80: 603.27238 | W80: 3.51413 | X80: 1.14566 | Y80: -4.43345 | Z80: -3.37297 | AA80: 597.83443 | AB80: 408.20234 | AC80: 2230.23353 | AD80: -1456.14015 | AE80: 68.24759 | AF80: 82.798 | AG80: -165.85797 | AH80: -801.00453 | AI80: 173.51508 | AJ80: 47.81712 | AK80: 925.13897 | AL80: 15547.60836 | AM80: 10446.8678 | AN80: 5100.74056 | AO80: 1.25307 | AP80: 1053.9991 | AQ80: 122 | AR80: 2029 | AS80: 20.5 | AT80: 6.615238407 | AU80: 71.61613378 | AV80: 31.13158354 | AW80: 3368.16401 | AX80: 43.85907337 | AY80: 10285.32133 | AZ80: 25887.91775 | BA80: 20.12628 | BB80: -15582.47014 | BC80: 8109.00143 | BD80: 9161.32142 | BE80: 4.46965 | BF80: 146.20997 | BG80: 267.17721 | BH80: 1813.2896 | BI80: 1539.24686 | BJ80: 80.5866 | BK80: 354.62934 | BL80: 0.26079 | BM80: 1.17847 | BN80: -1.22015 | BO80: -0.16454 | BP80: 352.32697 | BQ80: 689.3257 | BR80: 1815.83255 | BS80: -1841.47054 | BT80: 34.10814 | BU80: 98.06098 | BV80: -516.28325 | BW80: -150 | BX80: 699.2286 | BY80: -1213.36585 | BZ80: 106.53113 | CA80: 14884.25357 | CB80: 10996.0964 | CC80: 3888.15717 | CD80: 0.47061 | CE80: 1001.16 | CF80: 108 | CG80: 2035 | CH80: 7.86 | CI80: 0.9285427539 | CJ80: 140.0523334 | CK80: 34.56725881 | CL80: 798.36037 | CM80: 26.80135722 | CN80: 2748.21634 | CO80: 8675.05681 | CP80: 113.26736 | CQ80: -5813.57311 | CR80: 4816.97203 | CS80: 1240.41616 | CT80: 7.62107 | CU80: 392.66376 | CV80: 259.69033 | CW80: 118.46272 | CX80: 974.52397 | CY80: 5.90479 | CZ80: -850.15646 | DA80: 0.34548 | DB80: 0.12327 | DC80: 0 | DD80: 1.70722 | DE80: -848.22703 | DF80: -864.15343 | DG80: 269.93251 | DH80: 1387.43295 | DI80: 60.80674 | DJ80: 54.26732 | DK80: 700.88226 | DL80: -157.79714 | DM80: 162.93192 | DN80: 498.8713 | DO80: -1002.42638 | DP80: 10168.95731 | DQ80: 6092.93484 | DR80: 4076.02247 | DS80: 0.35551 | DT80: 357.17418 | DU80: 281 | DW80: 473.03923 | DX80: 553.22714 | DY80: 506.83661 | EA80: 869
A81: 240 | B81: Kemi | C81: 19982 | D81: 21.75 | E81: 1.000430573 | F81: 90.85123093 | G81: 21.04208767 | H81: 24142.57588 | I81: 29.73911486 | J81: 108279.7799 | K81: 238645.2925 | L81: 82.46502 | M81: -130283.0476 | N81: 91635.48354 | O81: 52739.323 | P81: 184.17772 | Q81: 1115.77393 | R81: 73.80085 | S81: 13233.96358 | T81: 15623.96893 | U81: -3.15846 | V81: -2393.16381 | W81: 3.24641 | X81: 106.73288 | Y81: -358.32109 | Z81: -6.74565 | AA81: -2861.71702 | AB81: -5069.48972 | AC81: 12321.70799 | AD81: -43248.6017 | AE81: 43.28562 | AF81: 521.04544 | AG81: -2230.83922 | AH81: -13227.78763 | AI81: 52223.92678 | AJ81: -6108.12889 | AK81: -30362.56265 | AL81: 189978.469 | AM81: 131695.1166 | AN81: 58283.35241 | AO81: 0.0003 | AP81: 1654.082 | AQ81: 221 | AR81: 19499 | AS81: 21.75 | AT81: 0.6 | AU81: 107.8 | AV81: 18.5 | AW81: 30808.42 | AX81: 39 | AY81: 86465 | AZ81: 218300 | BA81: 116.66018 | BB81: -131718 | BC81: 90938.52328 | BD81: 55631.24 | BE81: 124.35818 | BF81: 1731.88135 | BG81: -91 | BH81: 13152 | BI81: 16115 | BJ81: 2 | BK81: -2960 | BL81: 0 | BM81: 304 | BN81: -404 | BO81: -24.34611 | BP81: -3729 | BQ81: -8798 | BR81: 8939 | BS81: -48180.227 | BT81: 15358.064 | BU81: 1814.009 | BV81: -10898.477 | BW81: -22347.794 | BX81: 67331.023 | BY81: -6862.747 | BZ81: -22068 | CA81: 216681 | CB81: 174714 | CC81: 41967 | CD81: -289.34996 | CE81: 3961 | CF81: 184 | CG81: 19371 | CH81: 9.11 | CI81: 1.898881124 | CJ81: 203.9108583 | CK81: 19.41445344 | CL81: 19383.70606 | CM81: 56.59616564 | CN81: 61207.13469 | CO81: 90724.4961 | CP81: 64.39326 | CQ81: -29452.96815 | CR81: 52824.20427 | CS81: 1601.079 | CT81: 71.89252 | CU81: 4222.72152 | CV81: 119.99153 | CW81: 20941.47765 | CX81: 15662.17436 | CY81: -0.14502 | CZ81: 5279.15827 | DA81: 0 | DB81: 586.22614 | DC81: -360.09385 | DD81: -11.2222 | DE81: 4321.61608 | DF81: -4204.58864 | DG81: 18679.94344 | DH81: 20912.79313 | DI81: 327.17372 | DJ81: 3105.4229 | DK81: -940.17414 | DL81: -9029.39777 | DM81: 16127.37517 | DN81: -15384.2712 | DO81: 1199.74693 | DP81: 203456.098 | DQ81: 162536.9737 | DR81: 40919.12433 | DS81: 508.65004 | DT81: 0 | DU81: 65 | DW81: 1876.56858 | DX81: 1036.6406 | DY81: 937.95993 | EA81: 5956
A82: 320 | B82: Kemijärvi | C82: 7105 | D82: 21.5 | E82: 1.691320239 | F82: 98.07047531 | G82: 36.07490592 | H82: 17766.38272 | I82: 48.57288411 | J82: 58142.93834 | K82: 107543.2294 | L82: 0 | M82: -49400.29102 | N82: 30751.69907 | O82: 31807.46936 | P82: 256.0982 | Q82: 758.95631 | R82: 2852.39364 | S82: 15508.41294 | T82: 7816.62262 | U82: 0.67752 | V82: 7692.46784 | W82: 101.60242 | X82: 244.62619 | Y82: -242.92664 | Z82: -650.35976 | AA82: 6656.15767 | AB82: 16538.55915 | AC82: 14910.80677 | AD82: -14552.04238 | AE82: 678.0605 | AF82: 1633.00237 | AG82: -1151.77217 | AH82: -8859.19221 | AI82: 10353.5 | AJ82: 40.87431 | AK82: 2669.82726 | AL82: 75560.50846 | AM82: 66613.75144 | AN82: 8946.75702 | AO82: 100 | AP82: 2025.47 | AQ82: 5 | AR82: 6996 | AS82: 21.5 | AT82: 1.805065734 | AU82: 94.84812516 | AV82: 33.14780015 | AW82: 19081.05761 | AX82: 47.89326181 | AY82: 61798.34861 | AZ82: 114163.7086 | BA82: 0 | BB82: -52365.36001 | BC82: 31107.50906 | BD82: 33865.44995 | BE82: 27.80388 | BF82: 817.42545 | BG82: 6092.09315 | BH82: 17910.07058 | BI82: 9230.49868 | BJ82: 0.75447 | BK82: 8680.32637 | BL82: 40.03242 | BM82: 238.6348 | BN82: -95.13798 | BO82: -108.9355 | BP82: 8277.65051 | BQ82: 24192.1049 | BR82: 17292.27455 | BS82: -17500.46266 | BT82: 900.58837 | BU82: 374.75426 | BV82: 20.14464 | BW82: -9557.54078 | BX82: 9749.092 | BY82: 808.82874 | BZ82: 1067.15452 | CA82: 74034.05999 | CB82: 65058.37013 | CC82: 8975.68986 | CD82: 100 | CE82: 2863.207 | CF82: 4 | CG82: 7030 | CH82: 8.86 | CI82: 1.171716334 | CJ82: 127.9021299 | CK82: 43.91165303 | CL82: 12306.33121 | CM82: 58.42150787 | CN82: 33871.00825 | CO82: 47911.42825 | CP82: 0 | CQ82: -14040.42 | CR82: 18978.35085 | CS82: 11162.70134 | CT82: 14.50078 | CU82: 840.10156 | CV82: 3006.24584 | CW82: 18281.27725 | CX82: 7657.21659 | CY82: -0.05302 | CZ82: 10624.00764 | DA82: 0 | DB82: 570.81735 | DC82: 0 | DD82: 660.59821 | DE82: 10713.7885 | DF82: 33802.50863 | DG82: 17885.86736 | DH82: 9108.47821 | DI82: 757.23724 | DJ82: 0 | DK82: -34.32274 | DL82: -15479.01788 | DM82: 6916.18754 | DN82: -924.56514 | DO82: 9534.62639 | DP82: 48588.36634 | DQ82: 40561.88419 | DR82: 8026.48215 | DS82: 0 | DT82: 383.95692 | DU82: 2 | DW82: 2471.2636 | DX82: 1903.92552 | DY82: 354.25858 | EA82: 7589
A83: 241 | B83: Keminmaa | C83: 7904 | D83: 21.25 | E83: 1.932566248 | F83: 50.29959917 | G83: 46.52053196 | H83: 10364.18208 | I83: 40.9684552 | J83: 30882.36238 | K83: 77123.94306 | L83: 0 | M83: -46241.58068 | N83: 38665.37889 | O83: 15390.76197 | P83: 8.51539 | Q83: 236.23149 | R83: 34.495 | S83: 7621.33908 | T83: 3933.75814 | U83: 38.52743 | V83: 3726.10837 | W83: 4.24728 | X83: 0 | Y83: -183.04003 | Z83: -0.01246 | AA83: 3547.30316 | AB83: 11955.04141 | AC83: 7706.57593 | AD83: -9964.58365 | AE83: 616.71567 | AF83: 1000.16695 | AG83: 292.01454 | AH83: -3829.64236 | AI83: 6431.81319 | AJ83: 33.42999 | AK83: -641.1251 | AL83: 25450.062 | AM83: 20584.20441 | AN83: 4865.85759 | AO83: 20 | AP83: 330.171 | AQ83: 116 | AR83: 7771 | AS83: 21.25 | AT83: 1.272982526 | AU83: 43.07253427 | AV83: 49.57184389 | AW83: 7822.775 | AX83: 30.4666753 | AY83: 34195.40189 | AZ83: 81973.88356 | BA83: 0 | BB83: -47778.48167 | BC83: 39069.47225 | BD83: 16188.481 | BE83: 11.7837 | BF83: 170.86517 | BG83: -1719.99949 | BH83: 5600.39062 | BI83: 4319.20541 | BJ83: 26.94061 | BK83: 1308.12582 | BL83: 0.56969 | BM83: 0 | BN83: 103.15667 | BO83: 0.14725 | BP83: 1411.99943 | BQ83: 12433.30724 | BR83: 4687.31654 | BS83: -4745.13354 | BT83: 424.77534 | BU83: 214.68659 | BV83: 1451.30695 | BW83: -4362.7837 | BX83: 1041.92313 | BY83: 761.36498 | BZ83: 581.64493 | CA83: 22497.34414 | CB83: 17277.07693 | CC83: 5220.26721 | CD83: 20 | CE83: 4.39816 | CF83: 162 | CG83: 7691 | CH83: 8.61 | CI83: 1.622107604 | CJ83: 92.94089835 | CK83: 53.12718288 | CL83: 6542.93583 | CM83: 56.38123127 | CN83: 11570.88182 | CO83: 30532.18581 | CP83: -51.83122 | CQ83: -19013.13521 | CR83: 21990.51431 | CS83: 3011.443 | CT83: 65.41717 | CU83: 424.65272 | CV83: 93.24606 | CW83: 5722.83261 | CX83: 3871.99242 | CY83: 234.90958 | CZ83: 2085.74977 | DA83: -76.39949 | DB83: 0 | DC83: 194.9614 | DD83: 0.22086 | DE83: 2204.53254 | DF83: 13807.1848 | DG83: 5676.47674 | DH83: 6841.59501 | DI83: 1024.25782 | DJ83: 140.49779 | DK83: 3160.80686 | DL83: -3365.1608 | DM83: 3960.67621 | DN83: 34.04893 | DO83: -0.36266 | DP83: 21517.98818 | DQ83: 17019.16781 | DR83: 4498.82037 | DS83: 212.13424 | DT83: 34.026 | DU83: 166 | DW83: 4389.97027 | DX83: 4388.33081 | DY83: 4366.16739 | EA83: 310
A84: 322 | B84: Kemiönsaari | C84: 6614 | D84: 19.75 | E84: 2.487557666 | F84: 43.80549421 | G84: 52.50546395 | H84: 6649.09307 | I84: 32.1899498 | J84: 29851.72755 | K84: 69393.44646 | L84: 27.46649 | M84: -39514.25241 | N84: 24472.24771 | O84: 23145.774 | P84: 7.08649 | Q84: 265.64925 | R84: 21.7341 | S84: 7866.94064 | T84: 4843.20836 | U84: 0 | V84: 3023.73228 | W84: -196.32529 | X84: 41.72902 | Y84: -17.57061 | Z84: -0.49902 | AA84: 2767.60834 | AB84: 19043.45976 | AC84: 7822.2824 | AD84: -2714.83335 | AE84: 118.22542 | AF84: 101.194 | AG84: -494.22411 | AH84: -3003.65783 | AI84: 400.95149 | AJ84: -194.01043 | AK84: 5326.86847 | AL84: 22947.43926 | AM84: 20002.08611 | AN84: 2945.35315 | AO84: 0.8914 | AP84: 3951.952 | AQ84: 61 | AR84: 6549 | AS84: 19.75 | AT84: 2.108383492 | AU84: 45.09238587 | AV84: 51.15405426 | AW84: 10132.18781 | AX84: 44.30707547 | AY84: 28911.18647 | AZ84: 73034.10743 | BA84: -13.08742 | BB84: -44136.00839 | BC84: 26433.16905 | BD84: 25120.847 | BE84: 1.509 | BF84: 328.94946 | BG84: 81.92984 | BH84: 7172.49705 | BI84: 5830.1071 | BJ84: 0 | BK84: 1342.38995 | BL84: 0 | BM84: 0.18096 | BN84: 3.97054 | BO84: -5.19361 | BP84: 1341.34784 | BQ84: 20583.28174 | BR84: 7179.44659 | BS84: -6852.88597 | BT84: 225.87521 | BU84: 46.72278 | BV84: 529.36563 | BW84: -3228.96424 | BX84: 3953.75112 | BY84: 701.39524 | BZ84: 599.15861 | CA84: 24463.64156 | CB84: 20857.25151 | CC84: 3606.39005 | CD84: 0.8914 | CE84: 2940.668 | CF84: 64 | CG84: 6462 | CH84: 7.11 | CI84: 1.741036822 | CJ84: 59.47066525 | CK84: 66.27489754 | CL84: 9063 | CM84: 101.1990639 | CN84: 8033 | CO84: 25036 | CP84: 0 | CQ84: -17003 | CR84: 14153 | CS84: 9892 | CT84: 92 | CU84: 420 | CV84: 53 | CW84: 6767 | CX84: 3911 | CY84: 21 | CZ84: 2877 | DA84: -19 | DB84: 0 | DC84: -15 | DD84: -1 | DE84: 2840 | DF84: 23389 | DG84: 6753 | DH84: 3471 | DI84: 203 | DJ84: 66 | DK84: 1517 | DL84: -3708 | DM84: 0 | DN84: 0 | DO84: 3548 | DP84: 13575 | DQ84: 12037 | DR84: 1538 | DS84: 0 | DT84: 192.59925 | DU84: 70 | DW84: 1060.19421 | DX84: 1052.75424 | DY84: 956 | EA84: 1059
A85: 244 | B85: Kempele | C85: 19116 | D85: 20.5 | E85: 1.273712141 | F85: 76.48885022 | G85: 34.54224859 | H85: 17120.83249 | I85: 36.22174144 | J85: 41789.61611 | K85: 146592.6649 | L85: 2.66384 | M85: -104800.385 | N85: 80784.40559 | O85: 35348.09782 | P85: 41.48836 | Q85: 648.65769 | R85: 69.2355 | S85: 10794.18463 | T85: 10175.66592 | U85: 0 | V85: 618.51872 | W85: 80.58996 | X85: 2.24585 | Y85: -97.98147 | Z85: -1.0467 | AA85: 597.83466 | AB85: 22436.02364 | AC85: 6781.37773 | AD85: -16940.31671 | AE85: 880.85545 | AF85: 4683.68603 | AG85: -2117.82058 | AH85: -8335.19506 | AI85: 15143.93502 | AJ85: -63.88632 | AK85: -4594.39751 | AL85: 89696.09124 | AM85: 80798.434 | AN85: 8897.65724 | AO85: 0.60881 | AP85: 4282.4588 | AQ85: 260 | AR85: 19300 | AS85: 20.5 | AT85: 1.380248098 | AU85: 73.84637562 | AV85: 35.25305394 | AW85: 14987.92016 | AX85: 30.14281664 | AY85: 40925.87394 | AZ85: 153089.412 | BA85: -92.69062 | BB85: -112256.2287 | BC85: 86355.83447 | BD85: 38910.39826 | BE85: 23.49073 | BF85: 623.21849 | BG85: 74.18838 | BH85: 12484.4647 | BI85: 9992.88625 | BJ85: 0 | BK85: 2491.57845 | BL85: 30.24189 | BM85: 5.97422 | BN85: -71.56983 | BO85: -4.2783 | BP85: 2439.99799 | BQ85: 24860.5083 | BR85: 9927.23978 | BS85: -18882.10677 | BT85: 40.96656 | BU85: 3000.97064 | BV85: 1169.40508 | BW85: -8873.39535 | BX85: 4850.53602 | BY85: 5477.26646 | BZ85: -5912.9298 | CA85: 91150.49837 | CB85: 77821.85131 | CC85: 13328.64706 | CD85: 0.60881 | CE85: 4602.23092 | CF85: 194 | CG85: 19514 | CH85: 7.86 | CI85: 1.40941415 | CJ85: 115.6000315 | CK85: 38.0175306 | CL85: 9323.7777 | CM85: 30.31341951 | CN85: 24909.40667 | CO85: 81880.26435 | CP85: 0 | CQ85: -56970.85768 | CR85: 46658.80398 | CS85: 21510.591 | CT85: 68.6423 | CU85: 786.72463 | CV85: 90.99881 | CW85: 10571.45378 | CX85: 8663.51253 | CY85: 0 | CZ85: 1907.94125 | DA85: 36.44234 | DB85: 0 | DC85: -86.64835 | DD85: 2.09139 | DE85: 1859.82663 | DF85: 26625.41003 | DG85: 7407.97632 | DH85: 22236.3553 | DI85: 96 | DJ85: 3641.69358 | DK85: 1323.82946 | DL85: -7272.06945 | DM85: 14000 | DN85: 1000 | DO85: -11090.6854 | DP85: 82957.71897 | DQ85: 69832.54095 | DR85: 13125.17802 | DS85: 0 | DT85: 2464.3905 | DU85: 226 | DW85: 6910.35621 | DX85: 6895.62764 | DY85: 6610.19779 | EA85: 598
A86: 245 | B86: Kerava | C86: 37232 | D86: 19.25 | E86: 1.416751443 | F86: 85.05773412 | G86: 46.46903078 | H86: 30277.70933 | I86: 22.93225473 | J86: 205112.4899 | K86: 396295.1205 | L86: 178.34779 | M86: -191004.2828 | N86: 168331.4119 | O86: 52432.01667 | P86: 159.39575 | Q86: 1578.15356 | R86: 1955.05214 | S86: 30295.44005 | T86: 35136.19168 | U86: 0 | V86: -4840.75163 | W86: 122.89476 | X86: 15.19285 | Y86: -16.94586 | Z86: 156.7395 | AA86: -4593.25608 | AB86: 140549.9705 | AC86: 25854.61669 | AD86: -62800.05122 | AE86: 79.29254 | AF86: 6888.31012 | AG86: -10916.98633 | AH86: -20919.50738 | AI86: 67415.65092 | AJ86: -4645.59713 | AK86: -29977.83187 | AL86: 247731.3254 | AM86: 210639.9492 | AN86: 37091.37624 | AO86: 95.45959 | AP86: 34336.3098 | AQ86: 169 | AR86: 37676 | AS86: 19.25 | AT86: 0.8007335884 | AU86: 78.9483612 | AV86: 44.92858829 | AW86: 24336.85131 | AX86: 17.294424 | AY86: 226620.0694 | AZ86: 431835.0401 | BA86: -74.84361 | BB86: -205289.8143 | BC86: 178166.7804 | BD86: 59829.01033 | BE86: 174.14593 | BF86: 2044.34977 | BG86: -11121.94475 | BH86: 19713.82786 | BI86: 36254.86205 | BJ86: 0 | BK86: -16541.03419 | BL86: -5.93218 | BM86: 7.31417 | BN86: -544.70588 | BO86: 409.96914 | BP86: -16689.01728 | BQ86: 123860.9532 | BR86: 17255.05721 | BS86: -41967.54087 | BT86: 205.50232 | BU86: 17036.55104 | BV86: -2753.06726 | BW86: -25128.4552 | BX86: 8832.13283 | BY86: 16719.13446 | BZ86: -7470.4303 | CA86: 248602.2334 | CB86: 196053.1672 | CC86: 52549.06622 | CD86: 81.82972 | CE86: 32103.21448 | CF86: 221 | CG86: 38211 | CH86: 6.61 | CI86: 2.447580856 | CJ86: 113.4792809 | CK86: 47.24828689 | CL86: 23144.64797 | CM86: 25.80105857 | CN86: 168957.2055 | CO86: 250793.8932 | CP86: 49.28785 | CQ86: -81787.39985 | CR86: 90954.50255 | CS86: 36475.78363 | CT86: 926.53991 | CU86: 4304.46471 | CV86: 2270.81595 | CW86: 44535.77748 | CX86: 36179.53692 | CY86: 0 | CZ86: 8356.24056 | DA86: 7.586 | DB86: 302.81523 | DC86: -94.08786 | DD86: 100.96509 | DE86: 8067.88856 | DF86: 131662.0916 | DG86: 42303.44457 | DH86: 54264.10625 | DI86: 268.859 | DJ86: 3896.63361 | DK86: 10854.06967 | DL86: -15650.0312 | DM86: 32864.58658 | DN86: -13178.77803 | DO86: -7795.16907 | DP86: 233594.7699 | DQ86: 190113.8829 | DR86: 43480.88703 | DS86: 60 | DT86: 25542.2249 | DU86: 47 | DW86: 2908.78662 | DX86: 2914.71882 | DY86: 2882.78255 | EA86: 5932
A87: 249 | B87: Keuruu | C87: 9443 | D87: 21.5 | E87: 1.57229366 | F87: 94.99671721 | G87: 32.27345289 | H87: 14733.043 | I87: 33.7910021 | J87: 72170.593 | K87: 121184.387 | L87: 208.334 | M87: -48805.46 | N87: 37617.135 | O87: 33380.134 | P87: 80.045 | Q87: 398.443 | R87: 239.124 | S87: 22112.535 | T87: 10327.739 | U87: 0 | V87: 11784.796 | W87: 72.083 | X87: 3407.086 | Y87: 1158.309 | Z87: 70.795 | AA87: 9678.897 | AB87: 25949.821 | AC87: 29835.752 | AD87: -23468.065 | AE87: 45.141 | AF87: 31145.339 | AG87: -791.833 | AH87: -13918.843 | AI87: 3047.64 | AJ87: 1390.4 | AK87: 37558.167 | AL87: 101169.528 | AM87: 54203.324 | AN87: 46966.204 | AO87: 0 | AP87: 33606.594 | AQ87: 3 | AR87: 9250 | AS87: 21.75 | AT87: 2.1 | AU87: 93.7 | AV87: 33.1 | AW87: 7298.25 | AX87: 19 | AY87: 63421 | AZ87: 127003 | BA87: 231 | BB87: -63351 | BC87: 39280 | BD87: 34731 | BE87: 109 | BF87: 643 | BG87: 304 | BH87: 10430 | BI87: 11246 | BJ87: 411 | BK87: -405 | BL87: -68 | BM87: 223 | BN87: -91 | BO87: 2 | BP87: -785 | BQ87: 25331 | BR87: 10614 | BS87: -7689 | BT87: 148 | BU87: 323 | BV87: -3251 | BW87: -4737 | BX87: 550 | BY87: -420 | BZ87: 3396 | CA87: 97379 | CB87: 50565 | CC87: 46814 | CD87: 0 | CE87: 38444 | CF87: 59 | CG87: 9184 | CH87: 9.11 | CI87: 2.25041873 | CJ87: 143.699132 | CK87: 37.94112319 | CL87: 8521.934 | CM87: 45.56325562 | CN87: 36170.666 | CO87: 56941.58 | CP87: 279.261 | CQ87: -20491.653 | CR87: 21721.241 | CS87: 10582 | CT87: 695.023 | CU87: 2192.536 | CV87: 111.12 | CW87: 10425.195 | CX87: 9944.563 | CY87: 0 | CZ87: 480.632 | DA87: 91.04 | DB87: 611.365 | DC87: -195.911 | DD87: 106.397 | DE87: -129.207 | DF87: 22413.081 | DG87: 7878.215 | DH87: 5608.322 | DI87: 143.11 | DJ87: 358.493 | DK87: 1541.363 | DL87: -3414.301 | DM87: 3000 | DN87: -102.3 | DO87: 2771.496 | DP87: 73413.751 | DQ87: 27239.375 | DR87: 46174.376 | DS87: 0 | DT87: 0 | DU87: 52 | DW87: 2106.525 | DX87: 2106 | DY87: 2120.71 | EA87: 587
A88: 250 | B88: Kihniö | C88: 1808 | D88: 21.5 | E88: 2.121440797 | F88: 56.09380092 | G88: 37.67579434 | H88: 3328.64157 | I88: 53.67653774 | J88: 8105.64079 | K88: 20718.42269 | L88: 14.55787 | M88: -12598.22403 | N88: 6553.75213 | O88: 7879.34008 | P88: 2.14217 | Q88: 127.03301 | R88: 47.16609 | S88: 1757.14343 | T88: 895.28868 | U88: 0 | V88: 861.85475 | W88: 2.0126 | X88: 41.56752 | Y88: -4.82459 | Z88: -81.18951 | AA88: 736.28573 | AB88: 674.87746 | AC88: 1703.84711 | AD88: -926.64085 | AE88: 37.55087 | AF88: 18.1036 | AG88: -63.27056 | AH88: -761.12585 | AI88: 329.10546 | AJ88: -0.33843 | AK88: 832.86073 | AL88: 10009.20623 | AM88: 9146.4431 | AN88: 862.76313 | AO88: 388.15241 | AP88: 2645.688 | AQ88: 115 | AR88: 1771 | AS88: 21.5 | AT88: 1.064994904 | AU88: 53.9173557 | AV88: 38.5052871 | AW88: 3119.40827 | AX88: 48.3561331 | AY88: 7582.48946 | AZ88: 21138.70019 | BA88: 21.22901 | BB88: -13534.98172 | BC88: 6708.21254 | BD88: 7984.2872 | BE88: 4.67557 | BF88: 114.47402 | BG88: 31.0575 | BH88: 1078.77707 | BI88: 884.58298 | BJ88: 0 | BK88: 194.19409 | BL88: 0.06049 | BM88: 17.94748 | BN88: -2.68278 | BO88: -32.72438 | BP88: 140.89994 | BQ88: 815.7774 | BR88: 1223.47981 | BS88: -1256.00739 | BT88: 308.48939 | BU88: 68.05975 | BV88: -139.09174 | BW88: -1005.9549 | BX88: 441.23847 | BY88: -11.25712 | BZ88: 344.02156 | CA88: 9429.35163 | CB88: 8571.78024 | CC88: 857.57139 | CD88: 220.45082 | CE88: 819.249 | CF88: 201 | CG88: 1749 | CH88: 8.86 | CI88: 0.1667935555 | CJ88: 107.8330767 | CK88: 42.39881181 | CL88: 2147.42728 | CM88: 89.66387552 | CN88: 1806.16984 | CO88: 7532.10802 | CP88: 2.04271 | CQ88: -5723.89547 | CR88: 3825.38337 | CS88: 1998.25535 | CT88: 4.87818 | CU88: 167.15854 | CV88: 37.84911 | CW88: -24.688 | CX88: 598.88284 | CY88: 0 | CZ88: -623.57084 | DA88: 0.03004 | DB88: 0 | DC88: 6.82007 | DD88: 0.17472 | DE88: -616.54601 | DF88: -141.25905 | DG88: -212.20566 | DH88: 317.52819 | DI88: 70.915 | DJ88: 1.35544 | DK88: 140.82514 | DL88: -687.01439 | DM88: 0 | DN88: 0 | DO88: -457.46341 | DP88: 6157.80857 | DQ88: 5514.22857 | DR88: 643.58 | DS88: 78.5 | DT88: 92.144 | DU88: 286 | DW88: 29.34188 | DX88: 28.93285 | DY88: 28.75922 | EA88: 3112
A89: 256 | B89: Kinnula | C89: 1581 | D89: 21.5 | E89: 3.227866594 | F89: 84.70258938 | G89: 40.7901882 | H89: 3268.8043 | I89: 50.46469841 | J89: 6716.77159 | K89: 18934.83364 | L89: -26.93937 | M89: -12245.00142 | N89: 5540.13565 | O89: 8054.3192 | P89: 59.26204 | Q89: 34.4935 | R89: 77.98856 | S89: 1452.21053 | T89: 1123.53617 | U89: 99.29775 | V89: 427.97211 | W89: 1.75978 | X89: 0 | Y89: 0 | Z89: 0.00298 | AA89: 429.73487 | AB89: 3568.646 | AC89: 1529.63287 | AD89: -4245.50813 | AE89: 0 | AF89: 459.13156 | AG89: -251.00653 | AH89: -426.0906 | AI89: 4649.40728 | AJ89: -556.06739 | AK89: -2256.7437 | AL89: 14758.952 | AM89: 11224.667 | AN89: 3534.285 | AO89: 0 | AP89: 11.3458 | AQ89: 130 | AR89: 1554 | AS89: 21.5 | AT89: 2.485286379 | AU89: 84.49711624 | AV89: 38.48649107 | AW89: 2053.20661 | AX89: 32.93527857 | AY89: 7954.79976 | AZ89: 20503.69879 | BA89: -26.93937 | BB89: -12575.8384 | BC89: 5433.04866 | BD89: 8321.53134 | BE89: 43.54586 | BF89: 56.73571 | BG89: 76.83508 | BH89: 1242.38683 | BI89: 1310.39972 | BJ89: 87.32282 | BK89: 19.30993 | BL89: -0.42945 | BM89: 0 | BN89: 0 | BO89: -4.54236 | BP89: 14.33812 | BQ89: 3375.07109 | BR89: 1077.93514 | BS89: -1721.74714 | BT89: 5.92367 | BU89: 39.77644 | BV89: -1380.86323 | BW89: -465.98978 | BX89: 252.412 | BY89: -135.592 | BZ89: -598.11189 | CA89: 14398.61243 | CB89: 10678.68707 | CC89: 3719.92536 | CD89: 0 | CE89: 644.67425 | CF89: 132 | CG89: 1523 | CH89: 8.86 | CI89: -45.09027391 | CJ89: 115.9643228 | CK89: 47.25423208 | CL89: 1271.49996 | CM89: 46.5137959 | CN89: 3675.56508 | CO89: 8737.81053 | CP89: -120.99809 | CQ89: -5183.24354 | CR89: 2995.20365 | CS89: 2706.94027 | CT89: 43.27218 | CU89: 284.0041 | CV89: 26.31819 | CW89: 304.48665 | CX89: 1379.02109 | CY89: 0 | CZ89: -1074.53444 | DA89: -0.14814 | DB89: 0 | DC89: 0 | DD89: 4.34347 | DE89: -1070.33911 | DF89: 2037.97027 | DG89: 583.39774 | DH89: 1226.55353 | DI89: 0 | DJ89: 28.99008 | DK89: 1014.31984 | DL89: 297.05549 | DM89: 0 | DN89: 500 | DO89: -614.16571 | DP89: 9396.612 | DQ89: 5461.02 | DR89: 3935.592 | DS89: 0 | DT89: 32.66677 | DU89: 273 | DW89: 1353.414 | DX89: 1492.89861 | DY89: 1362.67505 | EA89: 160
A90: 257 | B90: Kirkkonummi | C90: 40433 | D90: 19.75 | E90: 0.9673213815 | F90: 100.8928796 | G90: 14.11825262 | H90: 56138.2053 | I90: 45.06628668 | J90: 144668.9928 | K90: 365774.7269 | L90: -76.66561 | M90: -221182.3996 | N90: 208116.0285 | O90: 41931.56133 | P90: 88.30163 | Q90: 1725.27096 | R90: 262.76467 | S90: 27490.9855 | T90: 27167.24728 | U90: -558.23364 | V90: -234.49542 | W90: 127.50524 | X90: -0.00754 | Y90: 103.02066 | Z90: 54.76066 | AA90: 50.79868 | AB90: 4216.4096 | AC90: 24244.29107 | AD90: -58261.58887 | AE90: 245.33277 | AF90: 3703.37478 | AG90: 2914.8253 | AH90: -28477.98622 | AI90: 73913.38297 | AJ90: -5098.40998 | AK90: -30068.59025 | AL90: 327871.4672 | AM90: 269051.74 | AN90: 58819.7272 | AO90: 690.55861 | AP90: 47653.82555 | AQ90: 214 | AR90: 40722 | AS90: 19.75 | AT90: 1.607825325 | AU90: 87.417931 | AV90: 17.15593815 | AW90: 92660.25173 | AX90: 72.75326843 | AY90: 163255.1022 | AZ90: 383198.4949 | BA90: -99.70585 | BB90: -220043.0985 | BC90: 222929.3637 | BD90: 44679.43888 | BE90: 96.44737 | BF90: 1783.21182 | BG90: -187.4164 | BH90: 45691.52327 | BI90: 32254.42678 | BJ90: 0 | BK90: 13437.09649 | BL90: -5.47857 | BM90: 8.8102 | BN90: 117.04292 | BO90: 67.66665 | BP90: 13607.51729 | BQ90: 17823.92687 | BR90: 27967.88912 | BS90: -51319.37769 | BT90: 268.63289 | BU90: 80930.50985 | BV90: -298.51977 | BW90: -27744.08468 | BX90: 9782.018 | BY90: -8959.14909 | BZ90: 57847.65417 | CA90: 300950.2514 | CB90: 251017.2064 | CC90: 49933.04507 | CD90: 636.11622 | CE90: 50165.23133 | CF90: 60 | CG90: 41154 | CH90: 7.11 | CI90: 1.697280803 | CJ90: 118.8331819 | CK90: 25.74084232 | CL90: 51435.23229 | CM90: 77.36949897 | CN90: 69352.25121 | CO90: 185436.6568 | CP90: 24.26772 | CQ90: -116060.1379 | CR90: 116183.5914 | CS90: 47257.37272 | CT90: 452.78216 | CU90: 1902.65573 | CV90: 480.77563 | CW90: 46411.72831 | CX90: 22775.33957 | CY90: 0 | CZ90: 23636.38874 | DA90: 7.00592 | DB90: 2.28818 | DC90: 107.7908 | DD90: 63.74104 | DE90: 23812.63832 | DF90: 41394.62927 | DG90: 42568.2364 | DH90: 28268.75977 | DI90: 38.62092 | DJ90: 3429.25161 | DK90: 4244.24712 | DL90: -26563.10195 | DM90: 0 | DN90: -20443.19821 | DO90: 17767.34916 | DP90: 232330.2438 | DQ90: 206949.6751 | DR90: 25380.56869 | DS90: 0 | DT90: 36998.97242 | DU90: 54 | DW90: 1627.35031 | DX90: 1632.82888 | DY90: 1601.45831 | EA90: 34101
A91: 260 | B91: Kitee | C91: 9877 | D91: 20.75 | E91: 3.580758474 | F91: 26.30738206 | G91: 59.36977388 | H91: 21871.29377 | I91: 55.83389534 | J91: 68103.33614 | K91: 136394.1809 | L91: 0 | M91: -68290.84472 | N91: 33444.70287 | O91: 43778.87559 | P91: 92.11512 | Q91: 173.71132 | R91: 312.09427 | S91: 9163.23181 | T91: 4915.21469 | U91: 0 | V91: 4248.01712 | W91: 5.94842 | X91: 104.86411 | Y91: -83.01904 | Z91: -48.32309 | AA91: 4017.7593 | AB91: 31956.7938 | AC91: 7977.73019 | AD91: -3958.27804 | AE91: 60.34361 | AF91: 81.93141 | AG91: -515.80328 | AH91: -2433.82091 | AI91: 2752.30436 | AJ91: -722.05379 | AK91: 4161.72717 | AL91: 20552.41049 | AM91: 17547.2609 | AN91: 3005.14959 | AO91: 61.74179 | AP91: 3006.62604 | AQ91: 125 | AR91: 9727 | AS91: 20.75 | AT91: 3.199215819 | AU91: 29.03966125 | AV91: 56.16661851 | AW91: 28424.26904 | AX91: 67.37921978 | AY91: 71531.40125 | AZ91: 145106.1365 | BA91: -8.08751 | BB91: -73582.82272 | BC91: 34183.03451 | BD91: 46855.79112 | BE91: 105.38405 | BF91: 172.84625 | BG91: 202.56987 | BH91: 7591.11058 | BI91: 5351.78629 | BJ91: 12.88078 | BK91: 2252.20507 | BL91: 15.61693 | BM91: 42.50169 | BN91: -48.11819 | BO91: -1.79174 | BP91: 2175.41038 | BQ91: 33161.20414 | BR91: 8687.8071 | BS91: -6205.24794 | BT91: 474.59734 | BU91: 141.35256 | BV91: -1272.14704 | BW91: -2253.98497 | BX91: 4395.7789 | BY91: -631.49134 | BZ91: 3098.50906 | CA91: 22062.71309 | CB91: 19575.85451 | CC91: 2486.85858 | CD91: 62.13404 | CE91: 3842.44426 | CF91: 137 | CG91: 9689 | CH91: 8.11 | CI91: 6.18747777 | CJ91: 46.4517575 | CK91: 72.54311819 | CL91: 23853.24625 | CM91: 159.7013853 | CN91: 13064.17586 | CO91: 39683.55348 | CP91: 0 | CQ91: -26619.37762 | CR91: 18073.91444 | CS91: 17761.46509 | CT91: 529.77443 | CU91: 347.61426 | CV91: 441.12928 | CW91: 9839.29136 | CX91: 2603.80437 | CY91: 10.57274 | CZ91: 7246.05973 | DA91: -22.34634 | DB91: 0.41891 | DC91: 34.58508 | DD91: -73.80478 | DE91: 7184.07478 | DF91: 40210.85322 | DG91: 10135.16607 | DH91: 12712.25585 | DI91: 284.10155 | DJ91: 143.84754 | DK91: -129.51875 | DL91: -1298.76024 | DM91: 6150.99331 | DN91: 550 | DO91: -2149.14069 | DP91: 13043.29651 | DQ91: 11718.69479 | DR91: 1324.60172 | DS91: 61.74179 | DT91: 440.14293 | DU91: 76 | DW91: 580.50035 | DX91: 578.92617 | DY91: 3893.4155 | EA91: 318
A92: 261 | B92: Kittilä | C92: 6523 | D92: 20.25 | E92: 4.029730675 | F92: 66.62428111 | G92: 52.04913015 | H92: 18341 | I92: 56.53965693 | J92: 61371 | K92: 98839 | L92: 1860 | M92: -35608 | N92: 32037 | O92: 26916 | P92: 11 | Q92: 462 | R92: -314 | S92: 22580 | T92: 9620 | U92: 0 | V92: 12960 | W92: -1179 | X92: 249 | Y92: -138 | Z92: -712 | AA92: 10682 | AB92: 70939 | AC92: 14506 | AD92: -12690 | AE92: 1061 | AF92: 6716 | AG92: -3220 | AH92: -5256 | AI92: 2127 | AJ92: -1143 | AK92: 9593 | AL92: 48055 | AM92: 42660 | AN92: 5395 | AO92: 404 | AP92: 268.256 | AQ92: 1 | AR92: 6637 | AS92: 20.25 | AT92: 5 | AU92: 50.24444901 | AV92: 55.1 | AW92: 27009.23002 | AX92: 74.39061957 | AY92: 69840.95733 | AZ92: 105635.3127 | BA92: 1278.922 | BB92: -34515.43339 | BC92: 35455.12821 | BD92: 28815.37111 | BE92: 20.49174 | BF92: 709.63016 | BG92: -145 | BH92: 28920 | BI92: 10497.91468 | BJ92: 0 | BK92: 18423 | BL92: 51.58767 | BM92: 865.13073 | BN92: -112.71421 | BO92: -1947.89454 | BP92: 15548 | BQ92: 87658 | BR92: 28925.22994 | BS92: -20366.38464 | BT92: 205.90087 | BU92: 1368.74941 | BV92: 807.16924 | BW92: -5181.00307 | BX92: 3041.22053 | BY92: 73.30619 | BZ92: 10133.49558 | CA92: 46334.09638 | CB92: 40130.39438 | CC92: 6203.702 | CD92: 471.81514 | CE92: 1267 | CF92: 1 | CG92: 6822 | CH92: 7.61 | CI92: 5.388066395 | CJ92: 55.02545226 | CK92: 64.49929021 | CL92: 22901.18806 | CM92: 87.52200149 | CN92: 50798.44926 | CO92: 67396.35959 | CP92: 1422.011 | CQ92: -15175.89933 | CR92: 26253.56582 | CS92: 13822.30464 | CT92: 83.77951 | CU92: 1022.89851 | CV92: 551.06623 | CW92: 24511.91836 | CX92: 10280.3522 | CY92: 0 | CZ92: 14231.56616 | DA92: -468.62934 | DB92: 7.65492 | DC92: -717.01046 | DD92: -1410.25666 | DE92: 11628.01478 | DF92: 98894.37019 | DG92: 26833.30117 | DH92: 22820.08669 | DI92: 563.43113 | DJ92: 728.32669 | DK92: 1085.89388 | DL92: -3716.24444 | DM92: 1.53105 | DN92: -20.46828 | DO92: 5304.9723 | DP92: 35465.30249 | DQ92: 29788.92263 | DR92: 5676.37986 | DS92: 302.81514 | DT92: 220 | DU92: 1 | DW92: 2822 | DX92: 2633.73709 | DY92: 3103.67306 | EA92: 17865
A93: 263 | B93: Kiuruvesi | C93: 7759 | D93: 21.75 | E93: 2.557302761 | F93: 58.94920852 | G93: 35.9585582 | H93: 15347.4399 | I93: 47.8444495 | J93: 49543.97784 | K93: 104272.5428 | L93: 96.96841 | M93: -54631.59653 | N93: 26492.92861 | O93: 37215.66669 | P93: 91.85045 | Q93: 391.09915 | R93: 1147.32894 | S93: 9925.07901 | T93: 6122.75892 | U93: -735.99758 | V93: 3066.32251 | W93: 5.34496 | X93: 4.90844 | Y93: 0.61643 | Z93: -6.26715 | AA93: 3061.10831 | AB93: 8301.75447 | AC93: 9157.30635 | AD93: -8648.33281 | AE93: 360.82448 | AF93: 481.26029 | AG93: 24.61892 | AH93: -3642.90821 | AI93: 5257.35434 | AJ93: 266.20281 | AK93: 1351.05831 | AL93: 54724.31875 | AM93: 33697.2482 | AN93: 21027.07055 | AO93: 24.10526 | AP93: 6462.16428 | AQ93: 45 | AR93: 7597 | AS93: 21.75 | AT93: 1.627869699 | AU93: 57.48699566 | AV93: 37.00199677 | AW93: 17274.69872 | AX93: 51.52586847 | AY93: 51498.71255 | AZ93: 108901.4018 | BA93: 149.78504 | BB93: -57252.90418 | BC93: 26563.12148 | BD93: 38806.67173 | BE93: 55.16607 | BF93: 440.65879 | BG93: 907.16358 | BH93: 8638.55989 | BI93: 6737.98565 | BJ93: -0.65122 | BK93: 1899.92302 | BL93: 8.12214 | BM93: 3.8915 | BN93: -76.39556 | BO93: 0.51309 | BP93: 1828.27119 | BQ93: 10221.21872 | BR93: 8059.379 | BS93: -7428.48478 | BT93: 250.08603 | BU93: 682.72987 | BV93: -16.58079 | BW93: -5136.70326 | BX93: 3372.41217 | BY93: 936.08397 | BZ93: 1563.71012 | CA93: 53896.11162 | CB93: 32757.55775 | CC93: 21138.55387 | CD93: 19.84415 | CE93: 6083.57841 | CF93: 56 | CG93: 7475 | CH93: 9.11 | CI93: 1.049996382 | CJ93: 91.62180391 | CK93: 50.01760498 | CL93: 11314.40593 | CM93: 88.33937009 | CN93: 10882.27047 | CO93: 35140.83239 | CP93: -66.34344 | CQ93: -24324.90536 | CR93: 14652.29454 | CS93: 14469.00932 | CT93: 38.96199 | CU93: 891.11662 | CV93: 1502.99769 | CW93: 5447.24156 | CX93: 4818.19672 | CY93: 55.10585 | CZ93: 684.15069 | DA93: 0.13193 | DB93: 0.67132 | DC93: -35.06926 | DD93: 2.00172 | DE93: 650.54376 | DF93: 10101.43445 | DG93: 6074.95159 | DH93: 4068.4019 | DI93: 319.50856 | DJ93: 3513.0261 | DK93: 641.41807 | DL93: -5145.43578 | DM93: 756.57288 | DN93: -1568.23983 | DO93: 5839.08435 | DP93: 30968.38828 | DQ93: 14351.38498 | DR93: 16617.0033 | DS93: 16.2173 | DT93: 3738.249 | DU93: 171 | DW93: 335.84265 | DX93: 333.77236 | DY93: 301.21255 | EA93: 10
A94: 265 | B94: Kivijärvi | C94: 1088 | D94: 21.75 | E94: 8.169462042 | F94: 60.72587955 | G94: 28.78833107 | H94: 2892.12886 | I94: 50.42978633 | J94: 10957.53988 | K94: 19267.21761 | L94: 0 | M94: -8309.67773 | N94: 4499.57778 | O94: 5481.8156 | P94: 3.98283 | Q94: 65.73278 | R94: 68.46402 | S94: 1678.42972 | T94: 963.82249 | U94: 97.669 | V94: 812.27623 | W94: -0.74066 | X94: 0 | Y94: -0.97582 | Z94: 0 | AA94: 810.55975 | AB94: 352.04071 | AC94: 1810.34867 | AD94: -1451.89424 | AE94: 0 | AF94: 557.21919 | AG94: 24.12422 | AH94: -147.76506 | AI94: 0 | AJ94: -506.80306 | AK94: 915.67362 | AL94: 10747.38498 | AM94: 10108.04028 | AN94: 639.3447 | AO94: 2e-05 | AP94: 985.919 | AQ94: 23 | AR94: 1064 | AS94: 21.75 | AT94: 5.238610919 | AU94: 53.29304664 | AV94: 34.09420358 | AW94: 4374.432 | AX94: 74.06345828 | AY94: 13226.97086 | AZ94: 20736.04222 | BA94: 0 | BB94: -7509.07136 | BC94: 4480.17592 | BD94: 5780.96118 | BE94: 4.99771 | BF94: 73.95342 | BG94: 56.14474 | BH94: 2739.25477 | BI94: 1046.32461 | BJ94: 86.14881 | BK94: 1779.07897 | BL94: 0.16438 | BM94: 0 | BN94: 0 | BO94: 0 | BP94: 1779.24335 | BQ94: 2124.43417 | BR94: 2734.03015 | BS94: -243.32894 | BT94: 5.84403 | BU94: 24.93661 | BV94: -914.97085 | BW94: -463.06073 | BX94: 0 | BY94: -99.73564 | BZ94: 2521.48185 | CA94: 10184.58861 | CB94: 9644.97955 | CC94: 539.60906 | CD94: 0 | CE94: 15.375 | CF94: 3 | CG94: 1035 | CH94: 9.11 | CI94: 5.650374897 | CJ94: 92.13457801 | CK94: 56.49174018 | CL94: 4529.10082 | CM94: 307.1856642 | CN94: 1709.83932 | CO94: 4542.46607 | CP94: 0 | CQ94: -2832.62675 | CR94: 2405.06558 | CS94: 1924.59089 | CT94: 3.32367 | CU94: 117.65164 | CV94: 17.95608 | CW94: 1400.65783 | CX94: 780.05306 | CY94: 0 | CZ94: 620.60477 | DA94: -0.10552 | DB94: 0 | DC94: 0 | DD94: 0 | DE94: 620.49925 | DF94: 2970.27533 | DG94: 1375.65783 | DH94: 552.37533 | DI94: 154.144 | DJ94: 334.451 | DK94: 2.60392 | DL94: -151.05787 | DM94: 0 | DN94: -214.92506 | DO94: 1311.8775 | DP94: 4891.14304 | DQ94: 4566.45904 | DR94: 324.684 | DS94: 0 | DT94: 49.1939 | DU94: 24 | DW94: 911.6173 | DX94: 907.96161 | DY94: 1039.64087 | EA94: 1045
A95: 271 | B95: Kokemäki | C95: 6951 | D95: 21.75 | E95: 0.6917282181 | F95: 56.91186015 | G95: 26.38095238 | H95: 7884.77424 | I95: 26.04895988 | J95: 48015.01375 | K95: 90165.14968 | L95: 3.23915 | M95: -42146.89678 | N95: 27517.39901 | O95: 20731.47199 | P95: 9.75876 | Q95: 119.05079 | R95: 26.67157 | S95: 6019.35376 | T95: 4307.52987 | U95: 172.5364 | V95: 1884.36029 | W95: 15.52989 | X95: 89.6574 | Y95: 2.02428 | Z95: 0.26014 | AA95: 1812.5172 | AB95: 6067.97836 | AC95: 6115.73045 | AD95: -7456.88344 | AE95: 87.82124 | AF95: 47.72805 | AG95: -1644.66574 | AH95: -8754.96127 | AI95: 12934.44674 | AJ95: -510.76462 | AK95: -1205.6037 | AL95: 39363.82812 | AM95: 24723.14943 | AN95: 14640.67869 | AO95: 0 | AP95: 2962.796 | AQ95: 151 | AR95: 6903 | AS95: 21.75 | AT95: 0.7321719391 | AU95: 51.0980173 | AV95: 28.2706309 | AW95: 7628.24148 | AX95: 26.12822864 | AY95: 47140.22756 | AZ95: 95192.96634 | BA95: 1.40083 | BB95: -48051.33795 | BC95: 28010.27893 | BD95: 24997.08503 | BE95: 6.7117 | BF95: 185.74454 | BG95: 12.1571 | BH95: 4789.15027 | BI95: 4012.04453 | BJ95: 0 | BK95: 777.10574 | BL95: 18.84428 | BM95: 129.49517 | BN95: 0.19811 | BO95: 0.01791 | BP95: 666.67087 | BQ95: 6666.60267 | BR95: 4344.23504 | BS95: -4419.18323 | BT95: 230.02509 | BU95: 4684.4215 | BV95: -1115.52113 | BW95: -6608.96384 | BX95: 1323.56245 | BY95: -1205.82987 | BZ95: 4839.4984 | CA95: 34692.65216 | CB95: 21195.96581 | CC95: 13496.68635 | CD95: 24.53999 | CE95: 3035.591 | CF95: 170 | CG95: 6766 | CH95: 9.11 | CI95: 1.70007023 | CJ95: 93.96870495 | CK95: 36.20073683 | CL95: 4428.36196 | CM95: 41.70778722 | CN95: 12067.44851 | CO95: 30175.6617 | CP95: 1.15453 | CQ95: -18107.05866 | CR95: 16014.90483 | CS95: 8653.00751 | CT95: 25.8634 | CU95: 677.96167 | CV95: 111.51126 | CW95: 6020.26667 | CX95: 3590.51998 | CY95: -97.18294 | CZ95: 2332.56375 | DA95: 0 | DB95: 3.52064 | DC95: 0.692 | DD95: 0.47701 | DE95: 2330.21212 | DF95: 12000.34767 | DG95: 5414.4198 | DH95: 4526.19506 | DI95: 0 | DJ95: 996.15171 | DK95: 1261.05162 | DL95: -3262.00988 | DM95: 724.07255 | DN95: -86.12049 | DO95: 1884.37645 | DP95: 23870.75573 | DQ95: 14728.95418 | DR95: 9141.80155 | DS95: 0 | DT95: 5054.876 | DU95: 112 | DW95: 2115.92933 | DX95: 1830.94818 | DY95: 0 | EA95: 125
A96: 272 | B96: Kokkola | C96: 47909 | D96: 21.5 | E96: 1.07922253 | F96: 90.19293998 | G96: 31.9213454 | H96: 75080.72949 | I96: 38.47045782 | J96: 328960.6329 | K96: 582212.7188 | L96: 1421.27485 | M96: -251830.811 | N96: 210974.4202 | O96: 102593.67 | P96: 301.02122 | Q96: 4924.48274 | R96: 402.29027 | S96: 57516.10795 | T96: 43540.31445 | U96: 0 | V96: 13975.7935 | W96: -601.62763 | X96: 1111.1899 | Y96: -338.83645 | Z96: -173.28583 | AA96: 11750.85369 | AB96: 114112.8848 | AC96: 54636.84291 | AD96: -71408.99893 | AE96: 706.97419 | AF96: 14833.18814 | AG96: -4825.82949 | AH96: -52932.52908 | AI96: 80288.89797 | AJ96: -34215.93962 | AK96: -1231.99369 | AL96: 447265.0507 | AM96: 394571.4044 | AN96: 52693.64637 | AO96: 514.82326 | AP96: 70184.17 | AQ96: 56 | AR96: 48006 | AS96: 21.5 | AT96: 1.182395315 | AU96: 88.55314993 | AV96: 31.5961999 | AW96: 92612.66493 | AX96: 47.48482579 | AY96: 336087.3193 | AZ96: 610744.5157 | BA96: 507.6806 | BB96: -274149.5158 | BC96: 219491.2584 | BD96: 109212.431 | BE96: 148.76942 | BF96: 4752.14955 | BG96: 2226.33026 | BH96: 52177.12376 | BI96: 46574.44493 | BJ96: -10.2328 | BK96: 5592.44603 | BL96: -301.49051 | BM96: 267.93149 | BN96: -75.76111 | BO96: -37.50082 | BP96: 4909.7621 | BQ96: 118857.3043 | BR96: 41398.05111 | BS96: -52651.89267 | BT96: 1775.39726 | BU96: 18570.12905 | BV96: -338.51595 | BW96: -43395.26153 | BX96: 57515.48601 | BY96: -10829.35806 | BZ96: 9091.68475 | CA96: 450458.3388 | CB96: 385796.7017 | CC96: 64661.63708 | CD96: 344.78526 | CE96: 85104.617 | CF96: 68 | CG96: 48295 | CH96: 8.86 | CI96: 1.196272519 | CJ96: 137.8465939 | CK96: 35.94387083 | CL96: 63698.89407 | CM96: 58.2354661 | CN96: 193053.8776 | CO96: 274785.6018 | CP96: 345.34644 | CQ96: -81386.37774 | CR96: 123304.8168 | CS96: 32916.977 | CT96: 1316.23583 | CU96: 8363.75037 | CV96: -571.68246 | CW96: 67216.2191 | CX96: 60038.18148 | CY96: 3.86905 | CZ96: 7181.90667 | DA96: -65.29 | DB96: 3521.43711 | DC96: -504.998 | DD96: -38.79803 | DE96: 3051.38353 | DF96: 121253.4117 | DG96: 62838.6087 | DH96: 61462.22952 | DI96: 39.89685 | DJ96: 3445.17302 | DK96: 8418.80292 | DL96: -54815.80803 | DM96: 61536.40561 | DN96: -20661.164 | DO96: 4861.44905 | DP96: 394306.1127 | DQ96: 316092.0151 | DR96: 78214.09767 | DS96: 441.84726 | DT96: 70078.466 | DU96: 21 | DW96: 12745.34542 | DX96: 12913.62583 | DY96: 11906.8919 | EA96: 1551
B97: Koko maa (Manner-Suomi) | C97: 5517897 | D97: 20.02 | E97: 1.839379606 | F97: 82.48213631 | G97: 41.79822183 | H97: 9678384.381 | I97: 48.9760954 | J97: 29578141.94 | K97: 59506994.68 | L97: 74212.18445 | M97: -29854640.56 | N97: 25362358.12 | O97: 11284744.39 | P97: 86099.22919 | Q97: 408277.2442 | R97: 277918.6163 | S97: 6748068.806 | T97: 4819824.347 | U97: 107688.2948 | V97: 2035932.756 | W97: -4579.8881 | X97: 104657.8677 | Y97: -48761.12652 | Z97: -44084.34721 | AA97: 1833848.563 | AB97: 16434039.38 | AC97: 6075765.615 | AD97: -8590005.235 | AE97: 257541.7962 | AF97: 1632617.962 | AG97: -859159.9211 | AH97: -3508614.919 | AI97: 4520813.193 | AJ97: 259626.3413 | AK97: -624085.0453 | AL97: 42376109.87 | AM97: 36140832.99 | AN97: 6207143.346 | AO97: 1101531.225 | AP97: 7742589.961 | AQ97: - | AR97: 5533611 | AS97: 20.01 | AT97: 1.7 | AU97: 82 | AV97: 41 | AW97: 10630066.73 | AX97: 50 | AY97: 31512266 | AZ97: 63470265 | BA97: 40474 | BB97: -31917405 | BC97: 26707861 | BD97: 11976772 | BE97: 78764.06132 | BF97: 427835.8063 | BG97: -55813 | BH97: 6362342 | BI97: 4937452 | BJ97: 207757 | BK97: 1627855 | BL97: -21823 | BM97: 127840 | BN97: -49906 | BO97: -5663 | BP97: 1422621 | BQ97: 17791840 | BR97: 5569402 | BS97: -9681016 | BT97: 216944 | BU97: 2537629 | BV97: -525529 | BW97: -3611853 | BX97: 4919801 | BY97: -21878 | BZ97: -1206512 | CA97: 43538239 | CB97: 37118290 | CC97: 6419949 | CD97: 1130168 | CE97: 8422790.194 | CF97: - | CG97: 5573310 | CH97: 7.32 | CI97: 1.853392115 | CJ97: 130.8701987 | CK97: 46.07791671 | CL97: 8188603.326 | CM97: 71.87929967 | CN97: 16919176.56 | CO97: 29260015.11 | CP97: 66903.97212 | CQ97: -12273934.58 | CR97: 14382225.78 | CS97: 4916190.831 | CT97: 195304.223 | CU97: 827885.8903 | CV97: 304773.5542 | CW97: 6696673.917 | CX97: 4586979.275 | CY97: -3875.05721 | CZ97: 2105819.585 | DA97: -36090.31982 | DB97: 107491.2585 | DC97: -38025.8439 | DD97: -12460.72113 | DE97: 1911786.441 | DF97: 19702940.47 | DG97: 6205283.803 | DH97: 7896284.909 | DI97: 161977.6939 | DJ97: 1032857.185 | DK97: 825183.1724 | DL97: -3231999.629 | DM97: 4371507.12 | DN97: -269435.8794 | DO97: -496169.2283 | DP97: 38834865.93 | DQ97: 33266324.19 | DR97: 5568541.742 | DS97: 1090030.177 | DT97: 6119198.929 | DU97: - | DW97: 3724815.673 | DX97: 3738934.197 | DY97: 3724815.673 | EA97: 1487603
A98: 273 | B98: Kolari | C98: 3989 | D98: 20 | E98: 4.250929436 | F98: 61.31194104 | G98: 48.32705726 | H98: 8895.21039 | I98: 57.47871611 | J98: 16715.40414 | K98: 45305.45129 | L98: 0 | M98: -28590.04715 | N98: 16514.58887 | O98: 16408.54127 | P98: 10.07575 | Q98: 122.59592 | R98: 12.85805 | S98: 4233.42087 | T98: 3216.17008 | U98: -1.27178 | V98: 1015.97901 | W98: 3.64651 | X98: 11.99308 | Y98: 18.99755 | Z98: -0.05769 | AA98: 1026.5723 | AB98: 22091.99248 | AC98: 3502.80737 | AD98: -9996.94056 | AE98: 472.68021 | AF98: 1893.78871 | AG98: -77.06428 | AH98: -902.12511 | AI98: 2514.3569 | AJ98: -29.9844 | AK98: -4127.66427 | AL98: 15562.18031 | AM98: 14963.97208 | AN98: 598.20823 | AO98: 621.64095 | AP98: 297 | AQ98: 85 | AR98: 3999 | AS98: 20.5 | AT98: 7.822711768 | AU98: 68.36554781 | AV98: 44.89021281 | AW98: 13219.27017 | AX98: 87.24168121 | AY98: 17665.16103 | AZ98: 47482.66144 | BA98: 0 | BB98: -29817.50041 | BC98: 17760.30661 | BD98: 17514.37904 | BE98: 7.93533 | BF98: 200.82745 | BG98: 432.24629 | BH98: 5696.53941 | BI98: 4010.24934 | BJ98: 0 | BK98: 1686.29007 | BL98: 0.18624 | BM98: 9.39052 | BN98: 12.23262 | BO98: 1.74822 | BP98: 1691.06663 | BQ98: 23559.79298 | BR98: 5227.54075 | BS98: -6879.84849 | BT98: 205.23794 | BU98: 1070.25651 | BV98: -524.14056 | BW98: -553.05011 | BX98: 4410.60975 | BY98: 145.395 | BZ98: -376.81329 | CA98: 19545.45239 | CB98: 18651.59133 | CC98: 893.86106 | CD98: 608.66342 | CE98: 159 | CF98: 27 | CG98: 4011 | CH98: 7.86 | CI98: 4.212967873 | CJ98: 104.2975184 | CK98: 53.21761718 | CL98: 12952.21563 | CM98: 172.7968546 | CN98: 9502.51113 | CO98: 20848.62942 | CP98: 0 | CQ98: -11346.11829 | CR98: 11870.21276 | CS98: 5242.43 | CT98: 36.93373 | CU98: 489.25194 | CV98: 46.96457 | CW98: 5361.17083 | CX98: 2772.50546 | CY98: -24.45355 | CZ98: 2564.21182 | DA98: -86.17429 | DB98: 4.58792 | DC98: 48.46588 | DD98: -0.01449 | DE98: 2521.901 | DF98: 25932.53694 | DG98: 5039.12397 | DH98: 4577.70117 | DI98: 0 | DJ98: 523.97267 | DK98: 553.58791 | DL98: -899.41822 | DM98: 1657.84391 | DN98: 0 | DO98: 985.39547 | DP98: 15565.02142 | DQ98: 14677.50644 | DR98: 887.51498 | DS98: 775.21297 | DT98: 0 | DU98: 28 | DW98: 52.71977 | DX98: 51.43029 | DY98: 47.63948 | EA98: 3697
A99: 275 | B99: Konnevesi | C99: 2586 | D99: 22 | E99: 1.356544513 | F99: 120.4430246 | G99: 13.05594874 | H99: 2936.16055 | I99: 33.98650648 | J99: 8776.12908 | K99: 26708.96658 | L99: 0 | M99: -17932.8375 | N99: 9482.97895 | O99: 11027.51547 | P99: 1194.90895 | Q99: 213.93747 | R99: 32.7366 | S99: 3591.365 | T99: 1995.64175 | U99: 108 | V99: 1703.72325 | W99: -47.42785 | X99: 18.62767 | Y99: 0 | Z99: 0 | AA99: 1637.66773 | AB99: -3436.93294 | AC99: 3947.10144 | AD99: -1987.23226 | AE99: 47.40335 | AF99: 526.73592 | AG99: -188.8935 | AH99: -2591.20636 | AI99: 1206.32 | AJ99: -994.96982 | AK99: 2534.00845 | AL99: 30345.24312 | AM99: 25501.98434 | AN99: 4843.25878 | AO99: 0 | AP99: 407.62303 | AQ99: 33 | AR99: 2521 | AS99: 22 | AT99: 1.120665575 | AU99: 110.2082368 | AV99: 25.70691053 | AW99: 1427.05775 | AX99: 15.61424014 | AY99: 9782.05258 | AZ99: 27987.16724 | BA99: 0 | BB99: -18205.11466 | BC99: 9965.04532 | BD99: 10949.96364 | BE99: 20.2461 | BF99: 263.77858 | BG99: 38.14625 | BH99: 2504.50807 | BI99: 1756.27571 | BJ99: 95.26126 | BK99: 843.49362 | BL99: -61.06087 | BM99: 0 | BN99: 0 | BO99: 0 | BP99: 782.43275 | BQ99: -554.59844 | BR99: 2531.814 | BS99: -2575.9267 | BT99: 37.80935 | BU99: 29.71429 | BV99: -609.61464 | BW99: -2206.43797 | BX99: 479.44437 | BY99: -24.065 | BZ99: 23.41094 | CA99: 28876.01086 | CB99: 24010.98629 | CC99: 4865.02457 | CD99: 17.23833 | CE99: 134.6775 | CF99: 79 | CG99: 2499 | CH99: 9.36 | CI99: 0.9227653227 | CJ99: 199.5359214 | CK99: 28.02233626 | CL99: 979.37128 | CM99: 26.18721346 | CN99: 3566.62494 | CO99: 10082.36367 | CP99: 0 | CQ99: -6515.73873 | CR99: 5437.67703 | CS99: 3439.03583 | CT99: 22.14514 | CU99: 705.16598 | CV99: 282.95832 | CW99: 1960.91161 | CX99: 1300.90523 | CY99: 0 | CZ99: 660.00638 | DA99: -7.75564 | DB99: 15.89729 | DC99: 0 | DD99: -1.05291 | DE99: 635.30054 | DF99: 167.9491 | DG99: 1937.00447 | DH99: 396.02682 | DI99: 4 | DJ99: 8.975 | DK99: 127.68465 | DL99: -2184.06005 | DM99: 39.32676 | DN99: 1415.23311 | DO99: 1553.95265 | DP99: 22707.52303 | DQ99: 16653.80747 | DR99: 6053.71556 | DS99: 0 | DT99: 37.46795 | DU99: 149 | DW99: 337.66311 | DX99: 390.96473 | DY99: 336.53062 | EA99: 450
A100: 276 | B100: Kontiolahti | C100: 15035 | D100: 20.5 | E100: 1.287784303 | F100: 69.77831442 | G100: 33.47421919 | H100: 17559.41001 | I100: 39.81852509 | J100: 57090.35585 | K100: 131806.3518 | L100: -23.45366 | M100: -74739.44962 | N100: 57005.30651 | O100: 28220.6798 | P100: 59.64379 | Q100: 706.98591 | R100: 251.27744 | S100: 10090.47201 | T100: 8504.82452 | U100: 0 | V100: 1585.64749 | W100: -77.94018 | X100: 33.11129 | Y100: 5.33518 | Z100: -2.00227 | AA100: 1477.92893 | AB100: 29398.01202 | AC100: 7760.9005 | AD100: -20747.20132 | AE100: 95.17158 | AF100: 1664.32154 | AG100: -161.20351 | AH100: -7677.53772 | AI100: 20353.78777 | AJ100: -543.4192 | AK100: -11226.8077 | AL100: 83592.0843 | AM100: 73222.74296 | AN100: 10369.34134 | AO100: 20.07413 | AP100: 8589.578 | AQ100: 217 | AR100: 15157 | AS100: 20.5 | AT100: 0.9115963351 | AU100: 76.46026385 | AV100: 29.08295468 | AW100: 21098.78114 | AX100: 43.80613497 | AY100: 61428.10865 | AZ100: 144135.0192 | BA100: -158.38994 | BB100: -82865.30053 | BC100: 61635.17448 | BD100: 29910.89993 | BE100: 123.77618 | BF100: 1039.35472 | BG100: 168.95227 | BH100: 7934.14761 | BI100: 8109.33179 | BJ100: 0 | BK100: -175.18418 | BL100: 150.64463 | BM100: 31.748 | BN100: 1.55694 | BO100: 8.37883 | BP100: -46.35178 | BQ100: 27991.16509 | BR100: 9555.18744 | BS100: -21696.84348 | BT100: 293.37402 | BU100: 876.96284 | BV100: -3072.55054 | BW100: -8804.36885 | BX100: 22696.72978 | BY100: -462.80534 | BZ100: -10971.31918 | CA100: 97021.63989 | CB100: 86541.20492 | CC100: 10480.43497 | CD100: 20.36868 | CE100: 11514.294 | CF100: 220 | CG100: 15136 | CH100: 7.86 | CI100: 1.156287226 | CJ100: 137.961481 | CK100: 33.72014036 | CL100: 10689.63666 | CM100: 47.32177286 | CN100: 15613.71031 | CO100: 57428.17063 | CP100: 0.31273 | CQ100: -41814.14759 | CR100: 32486.09155 | CS100: 20886.0234 | CT100: 124.0155 | CU100: 1275.1853 | CV100: 286.90793 | CW100: 10693.70549 | CX100: 8808.82932 | CY100: 0 | CZ100: 1884.87617 | DA100: -17.58439 | DB100: 105.91013 | DC100: -1.73984 | DD100: 0.21078 | DE100: 1759.85259 | DF100: 29760.32203 | DG100: 10112.32588 | DH100: 14384.33331 | DI100: 1098.35922 | DJ100: 489.00614 | DK100: -190.62828 | DL100: -9075.95456 | DM100: 7656.79136 | DN100: -47.64724 | DO100: -2684.64207 | DP100: 84725.24892 | DQ100: 75459.28877 | DR100: 9265.96015 | DS100: 21.4 | DT100: 9575.866 | DU100: 177 | DW100: 1201.308 | DX100: 1200.09143 | DY100: 1155.95428 | EA100: 1053
A101: 280 | B101: Korsnäs | C101: 2050 | D101: 21.5 | E101: -9.963241709 | F101: 56.31815037 | G101: 44.04058861 | H101: 1812.30437 | I101: 23.56109516 | J101: 8611.99214 | K101: 22453.241 | L101: 0 | M101: -13841.24886 | N101: 7789.66759 | O101: 7293.0909 | P101: 2.61893 | Q101: 33.19972 | R101: 41.36555 | S101: 1252.29439 | T101: 1952.75945 | U101: 4.2704 | V101: -696.19466 | W101: 0 | X101: 0 | Y101: 0 | Z101: 0 | AA101: -696.19466 | AB101: 6204.79347 | AC101: 1232.94551 | AD101: -5742.48249 | AE101: 1588.75467 | AF101: 28.25342 | AG101: -289.92041 | AH101: -162.2234 | AI101: 3008.60036 | AJ101: 205.32273 | AK101: -2892.52889 | AL101: 9816.39378 | AM101: 5970.03804 | AN101: 3846.35574 | AO101: 1.02073 | AP101: 0 | AQ101: 246 | AR101: 2024 | AS101: 22 | AT101: 4.654520171 | AU101: 44.99108751 | AV101: 42.40062732 | AW101: 722.5421 | AX101: 7.695852148 | AY101: 16911.21779 | AZ101: 30854.87162 | BA101: 0 | BB101: -13943.65383 | BC101: 7957.59125 | BD101: 7519.076 | BE101: 3.29402 | BF101: 76.76134 | BG101: 41.15129 | BH101: 1500.69739 | BI101: 1407.75458 | BJ101: 0 | BK101: 92.94281 | BL101: 0 | BM101: 0 | BN101: 0 | BO101: 0 | BP101: 92.94281 | BQ101: 6360.71179 | BR101: 1486.32218 | BS101: -3059.99928 | BT101: 177.9421 | BU101: 44.65868 | BV101: -1812.69464 | BW101: -262.14765 | BX101: 3130.334 | BY101: -2912.62263 | BZ101: -1351.07632 | CA101: 9714.95101 | CB101: 7664.44967 | CC101: 2050.50134 | CD101: 1.02073 | CE101: 0 | CF101: 156 | CG101: 2015 | CH101: 9.36 | CI101: 7.883255474 | CJ101: 66.95458109 | CK101: 53.71699361 | CL101: 513.50617 | CM101: 18.03608293 | CN101: 3817.03415 | CO101: 9101.24456 | CP101: 0 | CQ101: -5284.21041 | CR101: 4550.81116 | CS101: 2774.338 | CT101: 17.13088 | CU101: 177.28662 | CV101: -6.98806 | CW101: 1873.79495 | CX101: 1244.60419 | CY101: 0 | CZ101: 629.19076 | DA101: 0 | DB101: 0 | DC101: 0 | DD101: 0 | DE101: 629.19076 | DF101: 6990.80208 | DG101: 1875.53984 | DH101: 1034.93484 | DI101: 0.458 | DJ101: -1.73489 | DK101: -62.67741 | DL101: -82.89543 | DM101: 237.572 | DN101: -530.11116 | DO101: 839.32811 | DP101: 5907.72578 | DQ101: 4490.27492 | DR101: 1417.45086 | DS101: 0 | DT101: 0 | DU101: 95 | DW101: 50.63513 | DX101: -5.25154 | DY101: 30.4862 | EA101: 967
A102: 284 | B102: Koski tl | C102: 2271 | D102: 20 | E102: 6.30608579 | F102: 22.79676962 | G102: 68.17339746 | H102: 4450.56757 | I102: 62.59073791 | J102: 10611.05662 | K102: 24848.21461 | L102: 32.10639 | M102: -14205.0516 | N102: 8048.77688 | O102: 8549.934 | P102: 0.1773 | Q102: 26.15979 | R102: 27.82453 | S102: 2395.50132 | T102: 1095.68762 | U102: 0 | V102: 1299.8137 | W102: -3e-05 | X102: 0.04958 | Y102: 0 | Z102: -0.07238 | AA102: 1299.69171 | AB102: 7147.19271 | AC102: 2398.3572 | AD102: -717.02067 | AE102: 53.17745 | AF102: 6.55895 | AG102: 11.52682 | AH102: -357.8599 | AI102: 136.22896 | AJ102: -37.84827 | AK102: 1741.07293 | AL102: 1431.68578 | AM102: 1089.44229 | AN102: 342.24349 | AO102: 10.87911 | AP102: 0 | AQ102: 87 | AR102: 2227 | AS102: 20 | AT102: 2.543543493 | AU102: 29.52637826 | AV102: 62.14840792 | AW102: 5396.60163 | AX102: 66.33116769 | AY102: 11104.34274 | AZ102: 27408.59993 | BA102: 15.09909 | BB102: -16289.1581 | BC102: 7773.96886 | BD102: 9272.974 | BE102: 0.13956 | BF102: 40.56053 | BG102: 24.36227 | BH102: 741.72606 | BI102: 1112.26116 | BJ102: 0 | BK102: -370.5351 | BL102: 0 | BM102: 0.18772 | BN102: 0 | BO102: -1.23857 | BP102: -371.96139 | BQ102: 6762.504 | BR102: 725.05138 | BS102: -1976.77033 | BT102: 38.73659 | BU102: 23.72044 | BV102: -11.55209 | BW102: -266.99725 | BX102: 1283.04 | BY102: 196.76295 | BZ102: -1189.26192 | CA102: 2495.9146 | CB102: 1956.90816 | CC102: 539.00644 | CD102: 10.87911 | CE102: 0 | CF102: 270 | CG102: 2207 | CH102: 7.36 | CI102: 41.15791213 | CJ102: 24.09913515 | CK102: 82.23419853 | CL102: 8206.84266 | CM102: 278.2261466 | CN102: 5486.76176 | CO102: 10045.34808 | CP102: 13.51538 | CQ102: -4545.07094 | CR102: 4799.94434 | CS102: 4333.462 | CT102: 5.30819 | CU102: 10.26961 | CV102: 7.93199 | CW102: 4591.30597 | CX102: 756.96006 | CY102: 5.517 | CZ102: 3839.86291 | DA102: 0 | DB102: 0.0292 | DC102: 0 | DD102: 0 | DE102: 3839.83371 | DF102: 10750.76866 | DG102: 4514.19944 | DH102: 601.32988 | DI102: 0 | DJ102: 39.31327 | DK102: 403.64687 | DL102: -101.53333 | DM102: 0 | DN102: 0 | DO102: 3952.18283 | DP102: 229.13333 | DQ102: 127.6 | DR102: 101.53333 | DS102: 1.43118 | DT102: 0 | DU102: 3 | DW102: 629.78009 | DX102: 638.88337 | DY102: 387.02819 | EA102: 152
A103: 285 | B103: Kotka | C103: 51241 | D103: 21.5 | E103: 1.554814664 | F103: 76.94116147 | G103: 39.95046055 | H103: 72877.65089 | I103: 29.5779397 | J103: 460114.0511 | K103: 750035.6787 | L103: 1697.54546 | M103: -288224.0821 | N103: 235018.5348 | O103: 143236.7857 | P103: 135.96917 | Q103: 5428.79436 | R103: -722.5157 | S103: 84015.89755 | T103: 67730.37882 | U103: -439.86854 | V103: 15845.65019 | W103: 0 | X103: 2845.38791 | Y103: 21.18588 | Z103: -3431.36233 | AA103: 9590.08583 | AB103: 69942.68111 | AC103: 76941.86973 | AD103: -90638.44906 | AE103: 337.29816 | AF103: 16536.62179 | AG103: -27889.20943 | AH103: -52098.76437 | AI103: 41678.52718 | AJ103: 1066.05214 | AK103: 3177.34062 | AL103: 499614.8059 | AM103: 275330.9956 | AN103: 224283.8103 | AO103: 277.45111 | AP103: 187291.039 | AQ103: 16 | AR103: 50617 | AS103: 22 | AT103: 3.273852452 | AU103: 75.36452544 | AV103: 32.87663489 | AW103: 62691.34876 | AX103: 22.83465246 | AY103: 528514.647 | AZ103: 840049.23 | BA103: 801.60727 | BB103: -310732.9757 | BC103: 243335.2398 | BD103: 149349.9984 | BE103: 232.63448 | BF103: 5524.84078 | BG103: -1467.94719 | BH103: 75192.10905 | BI103: 62559.99886 | BJ103: 3.13258 | BK103: 12635.24277 | BL103: 0 | BM103: 3556.3592 | BN103: -734.61335 | BO103: -2369.08132 | BP103: 5975.1889 | BQ103: 77328.21156 | BR103: 65973.50622 | BS103: -135278.3921 | BT103: 373.79786 | BU103: 21711.41214 | BV103: -10073.25476 | BW103: -19130.19515 | BX103: 64510.00766 | BY103: -8229.2642 | BZ103: -47219.6759 | CA103: 536765.3542 | CB103: 301305.1862 | CC103: 235460.168 | CD103: 277.45111 | CE103: 209789.975 | CF103: 24 | CG103: 50500 | CH103: 9.36 | CI103: 2.896580891 | CJ103: 122.342806 | CK103: 36.98682788 | CL103: 31826.87543 | CM103: 22.37930818 | CN103: 294774.9747 | CO103: 376367.8904 | CP103: 1764.45102 | CQ103: -79828.46468 | CR103: 139650.0528 | CS103: 40428.69094 | CT103: 229.04987 | CU103: 10157.52309 | CV103: 549.67218 | CW103: 90871.47802 | CX103: 58728.97546 | CY103: 0 | CZ103: 32142.50256 | DA103: 0 | DB103: 3480.44166 | DC103: 93.27914 | DD103: -1600.89661 | DE103: 27154.44343 | DF103: 112463.4918 | DG103: 85552.79655 | DH103: 107090.7996 | DI103: 1578.80722 | DJ103: 5400.39843 | DK103: 10177.70661 | DL103: -24721.1856 | DM103: 70532.13361 | DN103: -263.46616 | DO103: -14558.7974 | DP103: 479149.664 | DQ103: 268481.9956 | DR103: 210667.6683 | DS103: 257.9867 | DT103: 158241.13 | DU103: 5 | DW103: 10692.72648 | DX103: 10692.72648 | DY103: 10182.72649 | EA103: 220
A104: 286 | B104: Kouvola | C104: 80454 | D104: 21.25 | E104: 1.111273098 | F104: 68.91920281 | G104: 31.59198796 | H104: 63013.86493 | I104: 19.11447567 | J104: 521444.8226 | K104: 1036232.234 | L104: 2937.07186 | M104: -511850.3394 | N104: 369309.566 | O104: 194648.27 | P104: 375.51109 | Q104: 4779.91769 | R104: 4030.68114 | S104: 51733.77115 | T104: 51347.79731 | U104: 0 | V104: 385.97384 | W104: 0 | X104: 2862.37562 | Y104: -64.61833 | Z104: -771.50458 | AA104: -3312.52469 | AB104: 63694.3871 | AC104: 46216.76457 | AD104: -115735.4376 | AE104: 2015.52457 | AF104: 17569.78991 | AG104: -59070.51374 | AH104: -46074.98822 | AI104: 58719.51822 | AJ104: 34200.21596 | AK104: -49933.35854 | AL104: 528844.3684 | AM104: 429350.1885 | AN104: 99494.17993 | AO104: 5173.96831 | AP104: 47198.28148 | AQ104: 227 | AR104: 79429 | AS104: 21.25 | AT104: 0.7218409748 | AU104: 77.55283066 | AV104: 27.53605394 | AW104: 171584.2453 | AX104: 48.17828784 | AY104: 597024.2982 | AZ104: 1094041.758 | BA104: 716.75108 | BB104: -496300.7089 | BC104: 378996.8678 | BD104: 180435.025 | BE104: 580.39483 | BF104: 5412.60072 | BG104: -3161.88466 | BH104: 55137.09335 | BI104: 56460.88397 | BJ104: 0 | BK104: -1323.79062 | BL104: 0 | BM104: 3619.18534 | BN104: 309.1292 | BO104: 269.73517 | BP104: -4364.11159 | BQ104: 59346.5087 | BR104: 46386.11724 | BS104: -113703.2644 | BT104: 2752.4777 | BU104: 21407.01677 | BV104: -2820.21849 | BW104: -78469.71711 | BX104: 107114.303 | BY104: 111377.5616 | BZ104: -43157.65265 | CA104: 668866.5159 | CB104: 420830.8333 | CC104: 248035.6827 | CD104: 5166.46831 | CE104: 51557.89901 | CF104: 169 | CG104: 78880 | CH104: 8.61 | CI104: 1.183439665 | CJ104: 107.6514263 | CK104: 37.98646136 | CL104: 65674.5151 | CM104: 38.57774707 | CN104: 318815.6164 | CO104: 440827.6494 | CP104: 8279.17526 | CQ104: -113732.8577 | CR104: 211075.1487 | CS104: 20813.18175 | CT104: 2044.42247 | CU104: 11839.6403 | CV104: 2322.45793 | CW104: 110682.7128 | CX104: 46109.88902 | CY104: 0 | CZ104: 64572.82379 | DA104: -5.04101 | DB104: 8522.32036 | DC104: -884.19774 | DD104: -820.68298 | DE104: 54340.5817 | DF104: 124986.1854 | DG104: 92842.6667 | DH104: 74678.46013 | DI104: 462.22091 | DJ104: 5847.65464 | DK104: 39319.43973 | DL104: -91691.07337 | DM104: 100581.028 | DN104: -75614.21996 | DO104: 24474.08212 | DP104: 442387.4555 | DQ104: 356025.126 | DR104: 86362.32949 | DS104: 5151.46831 | DT104: 45694.9203 | DU104: 19 | DW104: 667.23643 | DX104: 667.23643 | DY104: 672.27744 | EA104: 9766
A105: 287 | B105: Kristiinankaupunki | C105: 6380 | D105: 21.5 | E105: 0.812922798 | F105: 76.31931179 | G105: 29.2035295 | H105: 7413.67901 | I105: 32.24401433 | J105: 27425.90902 | K105: 71008.28411 | L105: 0 | M105: -43582.37509 | N105: 26808.09555 | O105: 21772.521 | P105: 56.32401 | Q105: 324.15534 | R105: 44.19582 | S105: 4774.60595 | T105: 4180.02891 | U105: 10.57552 | V105: 605.15256 | W105: 0 | X105: 3.78121 | Y105: -2.0808 | Z105: 4.03077 | AA105: 603.32132 | AB105: 9201.47434 | AC105: 2866.94842 | AD105: -6493.59777 | AE105: 1216.76807 | AF105: 717.14881 | AG105: -347.83471 | AH105: -5947.97936 | AI105: 9115.43462 | AJ105: 427.37099 | AK105: -1692.73247 | AL105: 45749.6817 | AM105: 38817.77623 | AN105: 6931.90547 | AO105: 2.52781 | AP105: 838.408 | AQ105: 195 | AR105: 6242 | AS105: 21.5 | AT105: 0.498524173 | AU105: 69.64759782 | AV105: 25.31974075 | AW105: 10180.7552 | AX105: 34.47163705 | AY105: 45328.45567 | AZ105: 92971.17498 | BA105: 0 | BB105: -47642.71931 | BC105: 27385.02734 | BD105: 23560.598 | BE105: 2.37242 | BF105: 396.45742 | BG105: 21.94313 | BH105: 2930.76416 | BI105: 3708.86414 | BJ105: -55.34371 | BK105: -833.44369 | BL105: 7.75895 | BM105: 4.76938 | BN105: -10.3496 | BO105: 7.4911 | BP105: -833.31262 | BQ105: 7614.85072 | BR105: 2515.06055 | BS105: -7979.79829 | BT105: 489.16691 | BU105: 422.25906 | BV105: -170.80036 | BW105: -6277.6855 | BX105: 10815.24496 | BY105: -643.66014 | BZ105: -4553.31177 | CA105: 49633.72461 | CB105: 43501.69853 | CC105: 6132.02608 | CD105: 2.52781 | CE105: 9093.48 | CF105: 241 | CG105: 6199 | CH105: 8.86 | CI105: 1.058440021 | CJ105: 125.2713965 | CK105: 32.17222615 | CL105: 2626.05837 | CM105: 21.79372251 | CN105: 12483.91371 | CO105: 30629.89626 | CP105: 0.00654 | CQ105: -18145.97601 | CR105: 15654.18398 | CS105: 8693.077 | CT105: 2.19212 | CU105: 302.404 | CV105: -261.53047 | CW105: 5639.54262 | CX105: 4027.28328 | CY105: 0 | CZ105: 1612.25934 | DA105: 0 | DB105: 0.3757 | DC105: 24.54957 | DD105: 5.65968 | DE105: 1642.09289 | DF105: 9614.19128 | DG105: 4476.60773 | DH105: 7998.83558 | DI105: 998.00963 | DJ105: 76.09028 | DK105: 689.56496 | DL105: -5311.46783 | DM105: 3320.33189 | DN105: 18.605 | DO105: -2448.12794 | DP105: 38113.29942 | DQ105: 33270.36437 | DR105: 4842.93505 | DS105: 0 | DT105: 524.731 | DU105: 106 | DW105: 465.80253 | DX105: 1031.28153 | DY105: 951.59154 | EA105: 714
A106: 288 | B106: Kruunupyy | C106: 6442 | D106: 22 | E106: 1.098696131 | F106: 58.16282972 | G106: 31.07583644 | H106: 6211.067 | I106: 28.89810087 | J106: 28151.21 | K106: 67757.995 | L106: 18.807 | M106: -39587.978 | N106: 26671.018 | O106: 18184.875 | P106: 8.745 | Q106: 227.77 | R106: 291.443 | S106: 5340.333 | T106: 4013.706 | U106: 0 | V106: 1326.627 | W106: 13.854 | X106: 2.377 | Y106: 18.754 | Z106: -0.974 | AA106: 1355.884 | AB106: 13167.43 | AC106: 5258.218 | AD106: -5605.414 | AE106: 76.805 | AF106: 286.999 | AG106: -727.331 | AH106: -4840.149 | AI106: 4745.439 | AJ106: 697.925 | AK106: 16.608 | AL106: 30693.647 | AM106: 23013.01 | AN106: 7680.637 | AO106: 7.74 | AP106: 909.482 | AQ106: 164 | AR106: 6405 | AS106: 22 | AT106: 1.595567833 | AU106: 51.65852919 | AV106: 36.4893951 | AW106: 6819.496 | AX106: 31.67445291 | AY106: 30958.148 | AZ106: 70132.18 | BA106: 18.715 | BB106: -39155.317 | BC106: 27015.896 | BD106: 19539.308 | BE106: 9.298 | BF106: 235.446 | BG106: 422.698 | BH106: 7596.437 | BI106: 3322.251 | BJ106: 0 | BK106: 4274.186 | BL106: 32.016 | BM106: 73.695 | BN106: -7.429 | BO106: -0.309 | BP106: 4224.769 | BQ106: 17123.04744 | BR106: 7379.062 | BS106: -3510.65 | BT106: 2.685 | BU106: 212.731 | BV106: -852.547 | BW106: -4673.078 | BX106: 5300.103 | BY106: -3042.669 | BZ106: 4083.828 | CA106: 28288.00206 | CB106: 23291.55721 | CC106: 4996.44485 | CD106: 3.87 | CE106: 942.22 | CF106: 50 | CG106: 6368 | CH106: 9.36 | CI106: 1.531336329 | CJ106: 78.76054399 | CK106: 46.55586645 | CL106: 6331.19 | CM106: 59.21774113 | CN106: 15839.168 | CO106: 31834.752 | CP106: 8.455 | CQ106: -15987.129 | CR106: 15644.872 | CS106: 6673.345 | CT106: 34.304 | CU106: 277.324 | CV106: 180.616 | CW106: 6268.684 | CX106: 2710.151 | CY106: 0 | CZ106: 3558.533 | DA106: 23.904 | DB106: 65.546 | DC106: -6.872 | DD106: -0.261 | DE106: 3509.758 | DF106: 20921.32 | DG106: 6350.247 | DH106: 2733.443 | DI106: 53.391 | DJ106: 22.523 | DK106: 1419.435 | DL106: -3997.379 | DM106: 24.098 | DN106: -476.778 | DO106: 3692.718 | DP106: 20841.309 | DQ106: 16750.262 | DR106: 4091.047 | DS106: 0 | DT106: 88.988 | DU106: 81 | DW106: 605.035 | DX106: 572.81212 | DY106: 558.446 | EA106: 6099
A107: 290 | B107: Kuhmo | C107: 7928 | D107: 22 | E107: 2.878415282 | F107: 64.41415222 | G107: 38.36116763 | H107: 40125.88567 | I107: 117.8628067 | J107: 56593.58539 | K107: 113112.0464 | L107: -2.48371 | M107: -56520.94469 | N107: 31698.818 | O107: 35788.0823 | P107: 40.47452 | Q107: 265.11776 | R107: 2604.02464 | S107: 13345.33701 | T107: 5643.09733 | U107: 0 | V107: 7702.23968 | W107: 3.70608 | X107: 164.55151 | Y107: -256.53165 | Z107: -505.0689 | AA107: 6779.7937 | AB107: 11625.65902 | AC107: 12674.62021 | AD107: -5966.54901 | AE107: 41.49231 | AF107: 85.7322 | AG107: 168.39419 | AH107: -4463.33642 | AI107: 4640.01 | AJ107: -1975.7177 | AK107: 6835.29571 | AL107: 61801.91074 | AM107: 55591.57344 | AN107: 6210.3373 | AO107: 0 | AP107: 1947.91346 | AQ107: 14 | AR107: 7755 | AS107: 22 | AT107: 5.589113491 | AU107: 64.74981473 | AV107: 34.89388528 | AW107: 45657.10516 | AX107: 129.0897949 | AY107: 59771.80046 | AZ107: 116753.6519 | BA107: -6.42916 | BB107: -56988.28062 | BC107: 31942.85342 | BD107: 36177.38125 | BE107: 37.17834 | BF107: 351.25525 | BG107: -600.82295 | BH107: 10217.05419 | BI107: 5568.67248 | BJ107: 948.77299 | BK107: 5597.1547 | BL107: 27.77628 | BM107: 570.08707 | BN107: -246.51446 | BO107: -1374.46367 | BP107: 3433.86578 | BQ107: 15034.6464 | BR107: 9704.25597 | BS107: -8506.95441 | BT107: 19.82801 | BU107: 595.33927 | BV107: 1032.25749 | BW107: -1539.61876 | BX107: 4576.50435 | BY107: -59.96331 | BZ107: 1812.46885 | CA107: 64778.83302 | CB107: 54435.86801 | CC107: 10342.96501 | CD107: 0 | CE107: 2109.83799 | CF107: 36 | CG107: 7582 | CH107: 9.36 | CI107: 1.43275994 | CJ107: 105.7907965 | CK107: 46.79418116 | CL107: 33827.57421 | CM107: 225.1048636 | CN107: 21161.07977 | CO107: 40322.90894 | CP107: 0 | CQ107: -19161.82917 | CR107: 18294.09747 | CS107: 7323.353 | CT107: 177.95672 | CU107: 722.50579 | CV107: 1006.90878 | CW107: 6917.98101 | CX107: 4852.03798 | CY107: -115.7393 | CZ107: 1950.20373 | DA107: 7.23977 | DB107: 109.49753 | DC107: -81.60012 | DD107: -592.653 | DE107: 1173.69285 | DF107: 16111.81463 | DG107: 6844.61969 | DH107: 8187.75586 | DI107: 599.79864 | DJ107: 5402.70117 | DK107: -1120.61388 | DL107: -4610.1997 | DM107: 2027.77351 | DN107: -4873.28923 | DO107: 4659.36363 | DP107: 39142.83019 | DQ107: 34708.01657 | DR107: 4434.81362 | DS107: 0 | DT107: 5846.33353 | DU107: 104 | DW107: 12087.25189 | DX107: 11977.9093 | DY107: 11970.66953 | EA107: 432
A108: 291 | B108: Kuhmoinen | C108: 2158 | D108: 21.75 | E108: 6.871002169 | F108: 52.08850534 | G108: 57.82499787 | H108: 4729.06782 | I108: 58.51307518 | J108: 5896.64378 | K108: 23409.42799 | L108: 3.33533 | M108: -17509.44888 | N108: 9665.11547 | O108: 10115.78606 | P108: 50.40234 | Q108: 0 | R108: -7.93686 | S108: 2313.91813 | T108: 1683.6268 | U108: 0.76388 | V108: 631.05521 | W108: 13.59236 | X108: 14.86963 | Y108: 0 | Z108: -5.30429 | AA108: 624.47365 | AB108: 6039.1189 | AC108: 2339.43248 | AD108: -5697.51485 | AE108: 0 | AF108: 255.00587 | AG108: -250.78093 | AH108: -336.76574 | AI108: 0 | AJ108: 2612.23534 | AK108: -3103.0765 | AL108: 10957.22323 | AM108: 4124.36987 | AN108: 6832.85336 | AO108: 4.48776 | AP108: 51.84281 | AQ108: 84 | AR108: 2119 | AS108: 21.75 | AT108: 0.4943320749 | AU108: 53.92031468 | AV108: 54.25903901 | AW108: 7057.132 | AX108: 92.37314931 | AY108: 5938.34295 | AZ108: 26193.98499 | BA108: -3.76512 | BB108: -20259.40716 | BC108: 9874.18911 | BD108: 10549.26181 | BE108: 110.16944 | BF108: 120.60588 | BG108: -13.70599 | BH108: 139.90132 | BI108: 1460.24407 | BJ108: 0 | BK108: -1320.34275 | BL108: 0.00889 | BM108: 116.33194 | BN108: -0.35268 | BO108: -9.52739 | BP108: -1446.54588 | BQ108: 4829.76077 | BR108: 23.69722 | BS108: -1124.47071 | BT108: 0 | BU108: 2273.94579 | BV108: 235.39026 | BW108: -406.38238 | BX108: 85.095 | BY108: 35.34354 | BZ108: 1173.1723 | CA108: 10670.9573 | CB108: 3797.07606 | CC108: 6873.88124 | CD108: 4.31211 | CE108: 0 | CF108: 284 | CG108: 2092 | CH108: 9.11 | CI108: 3.093545084 | CJ108: 79.15638768 | CK108: 61.61760339 | CL108: 5302.90279 | CM108: 150.1957008 | CN108: 3661.63983 | CO108: 11131.59991 | CP108: 0 | CQ108: -7469.96008 | CR108: 5973.66614 | CS108: 3432.37068 | CT108: 77.63307 | CU108: 309.14713 | CV108: 18.98674 | CW108: 1723.54942 | CX108: 1439.91559 | CY108: -0.12888 | CZ108: 283.50495 | DA108: 0.04426 | DB108: 6.09203 | DC108: 0 | DD108: -6.6903 | DE108: 270.76688 | DF108: 4997.36697 | DG108: 1612.23933 | DH108: 1079.25352 | DI108: 0.01484 | DJ108: 203.86166 | DK108: 415.16593 | DL108: -347.92962 | DM108: 0 | DN108: -969.64733 | DO108: 736.86231 | DP108: 8591.74905 | DQ108: 2748.78473 | DR108: 5842.96432 | DS108: 3.4504 | DT108: 39.80513 | DU108: 134 | DW108: 644.4651 | DX108: 465.1793 | DY108: 465.15102 | EA108: 316
A109: 297 | B109: Kuopio | C109: 121543 | D109: 20.75 | E109: 1.693746762 | F109: 96.39583069 | G109: 28.35788304 | H109: 231550.8021 | I109: 51.33210321 | J109: 656486.0471 | K109: 1293592.01 | L109: 2036.09489 | M109: -635069.8681 | N109: 524224.5467 | O109: 300271.6136 | P109: 376.37296 | Q109: 12276.87133 | R109: 5016.86443 | S109: 182542.6583 | T109: 124202.6551 | U109: 0 | V109: 58340.00317 | W109: -38.07249 | X109: 5028.18651 | Y109: -2154.47285 | Z109: -3993.85341 | AA109: 47125.41791 | AB109: 102479.8311 | AC109: 161086.5681 | AD109: -238438.0485 | AE109: 6537.00134 | AF109: 68422.05099 | AG109: -35805.24812 | AH109: -102745.9491 | AI109: 68469.3685 | AJ109: -4588.65995 | AK109: -2392.42807 | AL109: 1128518.239 | AM109: 1021411.807 | AN109: 107106.433 | AO109: 713.34995 | AP109: 136817.5357 | AQ109: 28 | AR109: 122594 | AS109: 20.75 | AT109: 1.4866183 | AU109: 99.97441716 | AV109: 25.86343354 | AW109: 252011.4865 | AX109: 52.6708294 | AY109: 683191.0309 | AZ109: 1383682.507 | BA109: 4922.84288 | BB109: -695568.6331 | BC109: 549550.649 | BD109: 318671.0026 | BE109: 511.86621 | BF109: 13139.65394 | BG109: 3384.80605 | BH109: 163410.0369 | BI109: 128587.0794 | BJ109: 63.59155 | BK109: 34886.549 | BL109: 194.03221 | BM109: 4792.50608 | BN109: -2098.24575 | BO109: -541.25658 | BP109: 27648.5728 | BQ109: 128848.9541 | BR109: 143435.4253 | BS109: -242937.8829 | BT109: 4226.43903 | BU109: 46097.44212 | BV109: -43273.72939 | BW109: -105619.6072 | BX109: 193815.2127 | BY109: -4431.18198 | BZ109: -49178.57651 | CA109: 1212090.866 | CB109: 1106563.435 | CC109: 105527.4306 | CD109: 630.97345 | CE109: 196129.061 | CF109: 33 | CG109: 124021 | CH109: 8.11 | CI109: 1.266949225 | CJ109: 130.6464488 | CK109: 30.11533162 | CL109: 157948.8706 | CM109: 55.92775961 | CN109: 465196.072 | CO109: 732385.8708 | CP109: 2292.74798 | CQ109: -264897.0507 | CR109: 308069.0068 | CS109: 116889.61 | CT109: 4542.25907 | CU109: 18653.33544 | CV109: -82.15766 | CW109: 145868.332 | CX109: 108389.6115 | CY109: 0 | CZ109: 37478.72051 | DA109: 15.22357 | DB109: 2212.99141 | DC109: -3233.90127 | DD109: -1417.16161 | DE109: 30629.88979 | DF109: 142082.0854 | DG109: 144466.3556 | DH109: 168650.1038 | DI109: 5819.78487 | DJ109: 21151.55007 | DK109: 49672.06723 | DL109: -111203.2241 | DM109: 89014.928 | DN109: -873.34247 | DO109: 2787.58679 | DP109: 924003.9114 | DQ109: 834056.1388 | DR109: 89947.7726 | DS109: 618.85507 | DT109: 161018.062 | DU109: 46 | DW109: 10088.01929 | DX109: 9339.68928 | DY109: 9718.7188 | EA109: 8601
A110: 300 | B110: Kuortane | C110: 3528 | D110: 21 | E110: 2.104104364 | F110: 42.57852445 | G110: 43.44212269 | H110: 3047.78347 | I110: 17.28311949 | J110: 36597.06905 | K110: 60617.30772 | L110: -29.37014 | M110: -24049.60881 | N110: 11864.14224 | O110: 15134.01475 | P110: 22.08151 | Q110: 94.57272 | R110: 1.23473 | S110: 2877.2917 | T110: 2057.58203 | U110: 3019.42957 | V110: 3839.13924 | W110: 19.46719 | X110: 0 | Y110: -27.18643 | Z110: 0.7782 | AA110: 3832.1982 | AB110: 7205.11328 | AC110: 2966.22221 | AD110: -2257.03878 | AE110: -2539.60657 | AF110: 3038.03999 | AG110: 485.37873 | AH110: -1317.84031 | AI110: 319.41296 | AJ110: 1133.0557 | AK110: 1207.61685 | AL110: 20532.79296 | AM110: 13910.10509 | AN110: 6622.68787 | AO110: 1579.33352 | AP110: 3369.152 | AQ110: 167 | AR110: 3437 | AS110: 21 | AT110: 2.768157432 | AU110: 38.5358683 | AV110: 46.44959914 | AW110: 3259.42436 | AX110: 17.86047323 | AY110: 37483.90996 | AZ110: 62402.38143 | BA110: -21.6668 | BB110: -24940.13827 | BC110: 12236.26798 | BD110: 16764.7034 | BE110: 25.79278 | BF110: 162.84218 | BG110: 96.28183 | BH110: 4020.06554 | BI110: 2252.88677 | BJ110: 0 | BK110: 1767.17877 | BL110: 44.87179 | BM110: 0 | BN110: -21.88729 | BO110: 10.16087 | BP110: 1800.32414 | BQ110: 8520.9036 | BR110: 3896.01074 | BS110: -2624.03385 | BT110: 377.20113 | BU110: 107.12055 | BV110: 733.52098 | BW110: -1348.23796 | BX110: 628.75604 | BY110: -394.33896 | BZ110: 1756.29857 | CA110: 19405.37076 | CB110: 13207.86317 | CC110: 6197.50759 | CD110: 1574.42068 | CE110: 3969.51 | CF110: 54 | CG110: 3381 | CH110: 8.36 | CI110: 1.659970525 | CJ110: 78.02118547 | CK110: 58.99944512 | CL110: 2225.20847 | CM110: 39.98976763 | CN110: 4958.82419 | CO110: 16358.97857 | CP110: -29.63138 | CQ110: -11429.78576 | CR110: 6899.89736 | CS110: 7525.20853 | CT110: 54.57466 | CU110: 319.17571 | CV110: 0.14825 | CW110: 2730.86733 | CX110: 1640.74849 | CY110: -124.85054 | CZ110: 965.2683 | DA110: 7.18032 | DB110: 0 | DC110: 15.56725 | DD110: 0 | DE110: 988.01587 | DF110: 9420.66523 | DG110: 2581.45566 | DH110: 2033.99706 | DI110: -43.72952 | DJ110: 1429.63609 | DK110: 1075.39635 | DL110: -1518.23224 | DM110: 822.16215 | DN110: -1152.46214 | DO110: 1933.36517 | DP110: 11926.72155 | DQ110: 7494.84104 | DR110: 4431.88051 | DS110: 1614.13204 | DT110: 5039.713 | DU110: 138 | DW110: 123.04788 | DX110: 22.62088 | DY110: 307.9083 | EA110: 1627
A111: 301 | B111: Kurikka | C111: 20197 | D111: 21 | E111: 0.9014946156 | F111: 75.63346861 | G111: 36.62995379 | H111: 52972.01596 | I111: 70.41403268 | J111: 90326.10374 | K111: 233929.1932 | L111: -24.04091 | M111: -143627.1304 | N111: 70579.98176 | O111: 75113.80516 | P111: 285.95743 | Q111: 725.42308 | R111: 11183.59687 | S111: 12810.78776 | T111: 15374.8245 | U111: 0 | V111: -2564.03674 | W111: -348.65021 | X111: 88.36133 | Y111: -70.47508 | Z111: 19.49316 | AA111: -3052.0302 | AB111: 11401.17799 | AC111: 12573.0657 | AD111: -25205.61344 | AE111: 258.40543 | AF111: 715.98946 | AG111: 4182.1469 | AH111: -14289.87552 | AI111: 17681.22511 | AJ111: -1270.6476 | AK111: -11658.15285 | AL111: 134064.5995 | AM111: 107917.769 | AN111: 26146.83044 | AO111: 217.38836 | AP111: 8110.06331 | AQ111: 235 | AR111: 19890 | AS111: 21 | AT111: 1.086016581 | AU111: 84.6717401 | AV111: 32.84786224 | AW111: 62708.1645 | AX111: 75.32098159 | AY111: 100163.6324 | AZ111: 246255.1892 | BA111: 1.23208 | BB111: -146090.3247 | BC111: 72215.2875 | BD111: 80317.75332 | BE111: 199.07073 | BF111: 1067.28354 | BG111: 11434.91954 | BH111: 17009.42281 | BI111: 15869.79593 | BJ111: 0 | BK111: 1139.62688 | BL111: -2e-05 | BM111: 19.09078 | BN111: -118.13642 | BO111: 39.86889 | BP111: 1042.26855 | BQ111: 13482.8356 | BR111: 16282.24752 | BS111: -40644.04598 | BT111: 361.75523 | BU111: 664.65946 | BV111: 5551.85665 | BW111: -15577.67996 | BX111: 42833.54396 | BY111: 3600.70907 | BZ111: -23335.38377 | CA111: 164921.1726 | CB111: 131312.9504 | CC111: 33608.22214 | CD111: 190.70436 | CE111: 5758.03459 | CF111: 119 | CG111: 19759 | CH111: 8.36 | CI111: 1.248040165 | CJ111: 159.6234584 | CK111: 37.65583161 | CL111: 52170.85728 | CM111: 115.1301242 | CN111: 47342.69707 | CO111: 101503.7845 | CP111: -17.26282 | CQ111: -54178.35021 | CR111: 40198.50737 | CS111: 24592.1662 | CT111: 549.17059 | CU111: 3165.81883 | CV111: 13191.35114 | CW111: 21187.02626 | CX111: 14511.92594 | CY111: 0 | CZ111: 6675.10032 | DA111: 68.4 | DB111: 21.32994 | DC111: -38.04857 | DD111: 6.36381 | DE111: 6690.48562 | DF111: 18362.28075 | DG111: 20910.57979 | DH111: 31034.22409 | DI111: 688.75985 | DJ111: 140.4539 | DK111: 9551.32547 | DL111: -16347.05085 | DM111: 34790.08515 | DN111: -13996.02677 | DO111: -9294.43055 | DP111: 149252.5659 | DQ111: 131019.7708 | DR111: 18232.79508 | DS111: 78.192 | DT111: 1775.14478 | DU111: 66 | DW111: 1538.40509 | DX111: 1546.29492 | DY111: 1546.29492 | EA111: 26297
A112: 304 | B112: Kustavi | C112: 971 | D112: 18.25 | E112: 0.7931887044 | F112: 43.52769967 | G112: 57.99043211 | H112: 1038.197 | I112: 26.80593068 | J112: 5632.615 | K112: 12518.391 | L112: 5.662 | M112: -6880.114 | N112: 5018.043 | O112: 2369.481 | P112: 4.284 | Q112: 45.403 | R112: 1.929 | S112: 468.22 | T112: 712.241 | U112: 0 | V112: -244.021 | W112: 315.53 | X112: 0 | Y112: 0 | Z112: -0.048 | AA112: 71.461 | AB112: 4802.84 | AC112: 472.195 | AD112: -969.01 | AE112: 8.662 | AF112: 2.68 | AG112: 210.177 | AH112: -602.139 | AI112: 86.822 | AJ112: -35.767 | AK112: -485.473 | AL112: 4206.001 | AM112: 3651.494 | AN112: 554.507 | AO112: 0 | AP112: 32.65495 | AQ112: 268 | AR112: 950 | AS112: 18 | AT112: 0.9977561673 | AU112: 50.86371967 | AV112: 53.63983412 | AW112: 1823.06 | AX112: 43.63754061 | AY112: 5833.481 | AZ112: 13168.341 | BA112: -2.698 | BB112: -7337.558 | BC112: 5651.946 | BD112: 2372.773 | BE112: 0.018 | BF112: 57.015 | BG112: 11.836 | BH112: 642 | BI112: 716.619 | BJ112: 223.962 | BK112: 149.343 | BL112: -202.016 | BM112: 0 | BN112: 0 | BO112: -0.787 | BP112: -53.46 | BQ112: 3879.328 | BR112: 630.395 | BS112: -1379.168 | BT112: 24.597 | BU112: 28.482 | BV112: 130.32 | BW112: -643.572 | BX112: 1594.968 | BY112: 129.821 | BZ112: -695.694 | CA112: 5285.863 | CB112: 4571.994 | CC112: 713.869 | CD112: 0 | CE112: 431.86335 | CF112: 181 | CG112: 949 | CH112: 5.36 | CI112: 0.417376789 | CJ112: 99.09989269 | CK112: 61.89518299 | CL112: 599.418 | CM112: 37.86610146 | CN112: 1618.761 | CO112: 4319.58 | CP112: 0 | CQ112: -2700.819 | CR112: 3251.639 | CS112: -354.494 | CT112: 0 | CU112: 54.587 | CV112: 1.453 | CW112: 143.192 | CX112: 528.233 | CY112: 0 | CZ112: -385.041 | DA112: 39.52 | DB112: 0 | DC112: 0 | DD112: 0 | DE112: -345.521 | DF112: 3462.878 | DG112: 138.083 | DH112: 983.032 | DI112: 34.02 | DJ112: 1.145 | DK112: 93.681 | DL112: -419.275 | DM112: 0 | DN112: 500 | DO112: -809.784 | DP112: 3965.535 | DQ112: 3101.26 | DR112: 864.275 | DS112: 0 | DT112: 112.106 | DU112: 276 | DW112: 2.37 | DX112: 1063.283 | DY112: 1021.954 | EA112: 1313
A113: 305 | B113: Kuusamo | C113: 15165 | D113: 20 | E113: 1.254639568 | F113: 55.9531936 | G113: 46.30171028 | H113: 28860.82384 | I113: 57.12475763 | J113: 53885.30183 | K113: 149833.742 | L113: 1.39251 | M113: -95947.04767 | N113: 58299.09315 | O113: 49895.077 | P113: 11.87607 | Q113: 540.84419 | R113: 916.93201 | S113: 12635.08637 | T113: 10487.54937 | U113: 0 | V113: 2147.537 | W113: 693.87023 | X113: 4.02442 | Y113: -47.51978 | Z113: -12.6777 | AA113: 2777.18533 | AB113: 25829.17011 | AC113: 12247.39033 | AD113: -23862.55722 | AE113: 1440.61894 | AF113: 392.89766 | AG113: 1346.31534 | AH113: -9960.92133 | AI113: 18230.67919 | AJ113: -318.54876 | AK113: -9781.65029 | AL113: 66768.26017 | AM113: 58903.11121 | AN113: 7865.14896 | AO113: 493.93624 | AP113: 1693.11581 | AQ113: 159 | AR113: 15146 | AS113: 20 | AT113: 0.817744423 | AU113: 61.02483443 | AV113: 45.13941418 | AW113: 21455.90468 | AX113: 37.91186132 | AY113: 58453.68902 | AZ113: 159746.6076 | BA113: -105.96229 | BB113: -101398.8809 | BC113: 58885.98058 | BD113: 54345.022 | BE113: 14.1513 | BF113: 618.84092 | BG113: -999.25465 | BH113: 10228.1774 | BI113: 9105.58855 | BJ113: 0 | BK113: 1122.58885 | BL113: 1102.0435 | BM113: 19.41638 | BN113: 28.57493 | BO113: -1.98532 | BP113: 2231.80558 | BQ113: 27878.12949 | BR113: 6178.18601 | BS113: -31818.75064 | BT113: 241.28678 | BU113: 4085.07642 | BV113: 680.28592 | BW113: -12645.71707 | BX113: 21987.35424 | BY113: -9.16573 | BZ113: -21314.20143 | CA113: 76100.73209 | CB113: 67452.27373 | CC113: 8648.45836 | CD113: 478.312 | CE113: 1993.8012 | CF113: 183 | CG113: 15019 | CH113: 7.36 | CI113: 1.116449106 | CJ113: 123.7636919 | CK113: 47.66947455 | CL113: 23122.68668 | CM113: 80.96040613 | CN113: 25738.34537 | CO113: 66456.88986 | CP113: 78.40017 | CQ113: -40640.14432 | CR113: 33812.63618 | CS113: 17208.199 | CT113: 43.06152 | CU113: 1523.65073 | CV113: 767.49627 | CW113: 9667.59792 | CX113: 8035.11638 | CY113: 0 | CZ113: 1632.48154 | DA113: 911.11837 | DB113: 5.13344 | DC113: 13.00712 | DD113: 19.43867 | DE113: 2570.91226 | DF113: 30097.78929 | DG113: 9354.79269 | DH113: 26997.42659 | DI113: 1983.44402 | DJ113: 250.89761 | DK113: 736.6869 | DL113: -8500.31596 | DM113: 31988.798 | DN113: 0 | DO113: -15408.29227 | DP113: 81522.7911 | DQ113: 71179.59411 | DR113: 10343.19699 | DS113: 356.7649 | DT113: 773.6857 | DU113: 196 | DW113: 7627.438 | DX113: 6555.54632 | DY113: 5367.66913 | EA113: 1535
A114: 312 | B114: Kyyjärvi | C114: 1232 | D114: 22.5 | E114: 3.408500637 | F114: 97.38954764 | G114: 6.064100516 | H114: 7744.58665 | I114: 138.4478149 | J114: 10335.87194 | K114: 19241.32595 | L114: 0 | M114: -8905.45401 | N114: 5138.14028 | O114: 4936.11206 | P114: 42.45169 | Q114: 34.22381 | R114: 70.78261 | S114: 1247.80882 | T114: 687.27488 | U114: 76 | V114: 636.53394 | W114: 0.19721 | X114: 0 | Y114: 0 | Z114: 2.13306 | AA114: 638.86421 | AB114: -4365.61811 | AC114: 1444.43739 | AD114: -793.39432 | AE114: 24.22836 | AF114: 386.72781 | AG114: 253.27502 | AH114: -341.90422 | AI114: 497.04 | AJ114: -1925.2465 | AK114: 1061.99924 | AL114: 17941.27532 | AM114: 6177.59522 | AN114: 11763.6801 | AO114: 0 | AP114: 902.15325 | AQ114: 100 | AR114: 1196 | AS114: 22.5 | AT114: 5.605481776 | AU114: 90.50400977 | AV114: 10.70300156 | AW114: 8134.41991 | AX114: 141.6537257 | AY114: 11207.62342 | AZ114: 20135.31846 | BA114: 0 | BB114: -8927.69504 | BC114: 5530.52536 | BD114: 5050.248 | BE114: 21.42601 | BF114: 60.81384 | BG114: -92.81445 | BH114: 1520.87604 | BI114: 351.62879 | BJ114: 67.0357 | BK114: 1236.28295 | BL114: -16.14118 | BM114: 0 | BN114: 0 | BO114: 6.88926 | BP114: 1227.03103 | BQ114: -2865.48944 | BR114: 1595.16189 | BS114: -404.88427 | BT114: 4.54746 | BU114: 77.59813 | BV114: -813.31132 | BW114: -221.35457 | BX114: 89.68 | BY114: -798.60547 | BZ114: 1272.42321 | CA114: 17010.99528 | CB114: 6049.96646 | CC114: 10961.02882 | CD114: 0 | CE114: 1079.49921 | CF114: 42 | CG114: 1174 | CH114: 9.86 | CI114: 2.341085271 | CJ114: 211.8387508 | CK114: 15.86568084 | CL114: 7153 | CM114: 398.5414441 | CN114: 1920 | CO114: 5401 | CP114: 0 | CQ114: -3481 | CR114: 3270 | CS114: 1086 | CT114: 15 | CU114: 423 | CV114: 318 | CW114: 785 | CX114: 511 | CY114: -17 | CZ114: 257 | DA114: 3 | DB114: 0 | DC114: 0 | DD114: 7 | DE114: 267 | DF114: -2798 | DG114: 767 | DH114: 316 | DI114: 0 | DJ114: 64 | DK114: 430 | DL114: -93 | DM114: 0 | DN114: -500 | DO114: 515 | DP114: 12584 | DQ114: 2289 | DR114: 10295 | DS114: 0 | DT114: 2078.99739 | DU114: 191 | DW114: 47.30679 | DX114: -201.50912 | DY114: 16 | EA114: 78
A115: 316 | B115: Kärkölä | C115: 4245 | D115: 22 | E115: 12.92919967 | F115: 55.6307128 | G115: 33.20214497 | H115: 4605.29117 | I115: 26.42206797 | J115: 27750.02522 | K115: 52354.64059 | L115: 9.89404 | M115: -24594.72133 | N115: 16942.18845 | O115: 9508.12029 | P115: 13.613 | Q115: 35.02693 | R115: 162.25237 | S115: 1996.42586 | T115: 1519.99604 | U115: 0 | V115: 476.42982 | W115: 0 | X115: 8.12871 | Y115: 0 | Z115: -8.5374 | AA115: 459.76371 | AB115: 4957.03329 | AC115: 2073.79265 | AD115: -11065.79651 | AE115: 2.51023 | AF115: -3.554 | AG115: -334.70684 | AH115: -122.09438 | AI115: 9600.91 | AJ115: -4646.6589 | AK115: -8993.04763 | AL115: 22460.05306 | AM115: 17797.47545 | AN115: 4662.57761 | AO115: 33.39298 | AP115: 10638.84782 | AQ115: 270 | AR115: 4198 | AS115: 22 | AT115: 1.039895165 | AU115: 56.83673398 | AV115: 30.82803622 | AW115: 3832.81491 | AX115: 22.01183469 | AY115: 29628.31736 | AZ115: 56141.56578 | BA115: -14.70442 | BB115: -26527.95284 | BC115: 18072.2328 | BD115: 10062.70415 | BE115: 2.28291 | BF115: 91.52585 | BG115: 226.60731 | BH115: 1744.34849 | BI115: 1739.69072 | BJ115: -4.19095 | BK115: 0.46682 | BL115: -0.15999 | BM115: 4.52202 | BN115: 0.81199 | BO115: -4.12255 | BP115: -7.52575 | BQ115: 4930.60436 | BR115: 2379.43913 | BS115: -5622.43187 | BT115: 2.96149 | BU115: 52.34975 | BV115: -293.10767 | BW115: -1673.9159 | BX115: 1047.6 | BY115: 3499.62288 | BZ115: -3187.68149 | CA115: 25333.36004 | CB115: 17080.2533 | CC115: 8253.10674 | CD115: 23.97185 | CE115: 10277.15839 | CF115: 254 | CG115: 4114 | CH115: 9.36 | CI115: 0.9751889756 | CJ115: 160.1397249 | CK115: 33.97252028 | CL115: 2421.15931 | CM115: 43.50563523 | CN115: 3271.23386 | CO115: 14037.38103 | CP115: -0.64985 | CQ115: -10766.79702 | CR115: 10596.0227 | CS115: 2397.59504 | CT115: 7.97456 | CU115: 501.35716 | CV115: 85.68959 | CW115: 1819.1277 | CX115: 1594.91729 | CY115: -0.68889 | CZ115: 223.52153 | DA115: -0.31949 | DB115: 0 | DC115: 0 | DD115: 9.50185 | DE115: 232.7039 | DF115: 5146.34047 | DG115: 1789.64661 | DH115: 3810.24934 | DI115: 0.0793 | DJ115: 1317.79992 | DK115: 363.32684 | DL115: -1878.16611 | DM115: 6700 | DN115: -4512.84209 | DO115: -702.72351 | DP115: 22000.77775 | DQ115: 17815.85475 | DR115: 4184.923 | DS115: 18.44285 | DT115: 4078.26243 | DU115: 248 | DW115: 0 | DX115: 0 | DY115: 0 | EA115: 805
A116: 317 | B116: Kärsämäki | C116: 2533 | D116: 21.5 | E116: 2.223776119 | F116: 71.63198448 | G116: 33.12238094 | H116: 14121.479 | I116: 107.8563395 | J116: 22996.93769 | K116: 41023.44395 | L116: 1.10964 | M116: -18025.39662 | N116: 8003.75363 | O116: 12618.72042 | P116: 28.54477 | Q116: 126.79145 | R116: 766.19893 | S116: 3265.02968 | T116: 1971.67828 | U116: 0 | V116: 1293.3514 | W116: -0.73826 | X116: 0.66841 | Y116: -0.80537 | Z116: -0.32079 | AA116: 1290.81857 | AB116: 9237.73579 | AC116: 3206.32538 | AD116: -5170.83384 | AE116: 257.84696 | AF116: 129.92313 | AG116: -954.97748 | AH116: -1398.46152 | AI116: 3216.04667 | AJ116: 541.41209 | AK116: -1576.73837 | AL116: 24578.9784 | AM116: 21260.71612 | AN116: 3318.26228 | AO116: 139.2536 | AP116: 582.857 | AQ116: 44 | AR116: 2474 | AS116: 21.5 | AT116: 1.445779961 | AU116: 72.44922624 | AV116: 32.27627137 | AW116: 12605.586 | AX116: 88.37848054 | AY116: 23633.95679 | AZ116: 42581.08816 | BA116: -38.61069 | BB116: -18985.74206 | BC116: 8671.84101 | BD116: 13208.50267 | BE116: 25.52796 | BF116: 205.1741 | BG116: -341.37462 | BH116: 2373.58086 | BI116: 2054.08772 | BJ116: 0 | BK116: 319.49314 | BL116: -7.58067 | BM116: 2.58889 | BN116: 0.00125 | BO116: -1.63254 | BP116: 307.69229 | BQ116: 9493.25358 | BR116: 2300.20036 | BS116: -6582.1102 | BT116: 243.58967 | BU116: 1591.76414 | BV116: -694.88631 | BW116: -1578.46866 | BX116: 3767.59472 | BY116: -738.97059 | BZ116: -2446.55603 | CA116: 26029.13386 | CB116: 23314.99378 | CC116: 2714.14008 | CD116: 124.8536 | CE116: 56.618 | CF116: 85 | CG116: 2440 | CH116: 8.86 | CI116: 0.771083668 | CJ116: 148.9161725 | CK116: 40.59060533 | CL116: 1025.47304 | CM116: 21.43048595 | CN116: 3978.23587 | CO116: 12349.76367 | CP116: 0 | CQ116: -8371.5278 | CR116: 4371.88534 | CS116: 5933.76059 | CT116: 92.40756 | CU116: 566.1659 | CV116: 493.57005 | CW116: 1953.92984 | CX116: 1674.30911 | CY116: 0 | CZ116: 279.62073 | DA116: 1.5141 | DB116: 0.28276 | DC116: -0.05982 | DD116: 0 | DE116: 280.79225 | DF116: 9735.95255 | DG116: 1966.10066 | DH116: 1354.07794 | DI116: 52.1715 | DJ116: 284.18019 | DK116: 1705.1556 | DL116: -2702.0861 | DM116: 0 | DN116: 638.99494 | DO116: 948.37441 | DP116: 18674.20034 | DQ116: 15502.91019 | DR116: 3171.29015 | DS116: 110.2 | DT116: 27.988 | DU116: 141 | DW116: 717.53553 | DX116: 728.97798 | DY116: 622.28993 | EA116: 1908
A117: 398 | B117: Lahti | C117: 120027 | D117: 20.75 | E117: 2.738385994 | F117: 105.1336516 | G117: 33.04615224 | H117: 216889.5646 | I117: 53.79313459 | J117: 664226.6004 | K117: 1244738.32 | L117: 274.35051 | M117: -580237.3691 | N117: 517129.5093 | O117: 264310.5609 | P117: 974.49883 | Q117: 19812.07829 | R117: 7408.31969 | S117: 189773.4414 | T117: 116880.0872 | U117: 213.72388 | V117: 73107.07801 | W117: -138.8588 | X117: 3786.54406 | Y117: -6853.32044 | Z117: -922.96431 | AA117: 61405.3904 | AB117: 309978.4011 | AC117: 161357.8615 | AD117: -150472.2072 | AE117: 3358.73746 | AF117: 72186.41078 | AG117: -26141.00187 | AH117: -56724.07114 | AI117: 64124.275 | AJ117: -9272.68849 | AK117: 86430.80257 | AL117: 1239904.374 | AM117: 1174259.164 | AN117: 65645.20964 | AO117: 20051.6607 | AP117: 423103.8608 | AQ117: 21 | AR117: 120175 | AS117: 20.75 | AT117: 2.453868923 | AU117: 99.74663695 | AV117: 33.92681189 | AW117: 334418.7414 | AX117: 72.82527819 | AY117: 719319.9012 | AZ117: 1332564.445 | BA117: -487.15474 | BB117: -613731.699 | BC117: 543182.6273 | BD117: 284217.1393 | BE117: 2029.10521 | BF117: 16765.87152 | BG117: -2692.58044 | BH117: 196238.7209 | BI117: 117214.3312 | BJ117: -208.25382 | BK117: 78816.13586 | BL117: -181.97741 | BM117: 7437.4044 | BN117: -2368.31614 | BO117: -763.07999 | BP117: 68065.35792 | BQ117: 374464.7521 | BR117: 158461.7143 | BS117: -236268.2284 | BT117: 2762.3534 | BU117: 190400.6476 | BV117: -10745.40883 | BW117: -70037.70238 | BX117: 63956.339 | BY117: -31.03627 | BZ117: 115356.4869 | CA117: 1233791.974 | CB117: 1129338.781 | CC117: 104453.1933 | CD117: 19596.97528 | CE117: 452304.6229 | CF117: 17 | CG117: 120693 | CH117: 8.11 | CI117: 1.577327246 | CJ117: 154.8399889 | CK117: 38.0147102 | CL117: 297281.5669 | CM117: 115.1148835 | CN117: 437846.7573 | CO117: 678682.7518 | CP117: -415.2309 | CQ117: -241251.2253 | CR117: 303358.1703 | CS117: 131527.6345 | CT117: 10507.46202 | CU117: 23435.57974 | CV117: 736.44516 | CW117: 181442.9069 | CX117: 115901.1302 | CY117: 554.03457 | CZ117: 66095.81127 | DA117: -276.29477 | DB117: 3288.13106 | DC117: -2046.87066 | DD117: -232.98821 | DE117: 60251.52657 | DF117: 438465.9552 | DG117: 154523.4054 | DH117: 133295.3452 | DI117: 680.30836 | DJ117: 29570.90561 | DK117: -1814.29465 | DL117: -106454.072 | DM117: 75505.85 | DN117: -1223.06223 | DO117: 51479.27418 | DP117: 1136756.457 | DQ117: 1044626.296 | DR117: 92130.16128 | DS117: 19068.954 | DT117: 284543.9465 | DU117: 13 | DW117: 12049.13674 | DX117: 12622.73944 | DY117: 12433.10235 | EA117: 0
A118: 399 | B118: Laihia | C118: 7916 | D118: 21.75 | E118: 1.44224821 | F118: 73.05752213 | G118: 27.49270545 | H118: 4682.362 | I118: 21.93201715 | J118: 20793.88 | K118: 67744.916 | L118: 0 | M118: -46951.036 | N118: 32774.662 | O118: 19148.374 | P118: 8.6 | Q118: 167.054 | R118: 234.77 | S118: 5048.316 | T118: 3785.879 | U118: 9.721 | V118: 1272.158 | W118: 0 | X118: 0 | Y118: -87.46027 | Z118: 43.34 | AA118: 1228.03773 | AB118: 358.986 | AC118: 5635.513 | AD118: -6508.84 | AE118: 193.723 | AF118: 22.252 | AG118: -16.28 | AH118: -3449.085 | AI118: 6021.9 | AJ118: -1969.515 | AK118: -657.352 | AL118: 42776.496 | AM118: 30693.075 | AN118: 12083.421 | AO118: 44.055 | AP118: 507.147 | AQ118: 233 | AR118: 7817 | AS118: 21.75 | AT118: 0.9113277331 | AU118: 61.28699811 | AV118: 25.03834326 | AW118: 4405.09385 | AX118: 16.35519812 | AY118: 39344.70312 | AZ118: 89862.74004 | BA118: 0 | BB118: -50518.03692 | BC118: 34539.97284 | BD118: 19482.513 | BE118: 8.53934 | BF118: 245.99742 | BG118: 207.29046 | BH118: 3474.2813 | BI118: 3352.8828 | BJ118: 0 | BK118: 121.3985 | BL118: 0 | BM118: 0 | BN118: -61.73392 | BO118: 7.93031 | BP118: 67.59489 | BQ118: 426.58089 | BR118: 3466.71378 | BS118: -4264.74843 | BT118: 111.639 | BU118: 14.3419 | BV118: -3493.58712 | BW118: -3836.26474 | BX118: 1782.9827 | BY118: 1839.4158 | BZ118: -672.05375 | CA118: 42586.14794 | CB118: 28923.76096 | CC118: 13662.38698 | CD118: 13.21481 | CE118: 8615 | CF118: 248 | CG118: 7682 | CH118: 9.11 | CI118: 1.139155222 | CJ118: 123.1641265 | CK118: 29.97910028 | CL118: 2520 | CM118: 27.46655518 | CN118: 7242 | CO118: 27485 | CP118: 0 | CQ118: -20243 | CR118: 18835 | CS118: 5679 | CT118: 25 | CU118: 923 | CV118: 100 | CW118: 3473 | CX118: 3583 | CY118: 0 | CZ118: -110 | DA118: 0 | DB118: 19 | DC118: 24 | DD118: 99 | DE118: 31 | DF118: 702 | DG118: 3473 | DH118: 2044 | DI118: 51 | DJ118: 0 | DK118: 134 | DL118: -2936 | DM118: 3303 | DN118: -472 | DO118: 1480 | DP118: 33343 | DQ118: 20708 | DR118: 12635 | DS118: 11 | DT118: 0 | DU118: 245 | DW118: 1594.063 | DX118: 1457.96285 | DY118: 1458 | EA118: 20
A119: 400 | B119: Laitila | C119: 8456 | D119: 20.75 | E119: 2.429837068 | F119: 65.57927891 | G119: 40.27774865 | H119: 6734.53519 | I119: 24.63286854 | J119: 42437.62557 | K119: 90431.25068 | L119: 58.11961 | M119: -47935.50551 | N119: 31900.53198 | O119: 23606.51 | P119: 19.16357 | Q119: 235.6498 | R119: -14.99333 | S119: 7340.05692 | T119: 5576.28257 | U119: -4.23822 | V119: 1759.53613 | W119: 27.71975 | X119: 10.08645 | Y119: 3.889 | Z119: 2.5723 | AA119: 1783.63073 | AB119: 10519.79373 | AC119: 7098.60153 | AD119: -6136.24613 | AE119: 41.25688 | AF119: 849.27294 | AG119: -65.21039 | AH119: -2882.13403 | AI119: 527.16525 | AJ119: 1291.88504 | AK119: 1852.88522 | AL119: 45688.38268 | AM119: 30414.58446 | AN119: 15273.79822 | AO119: 406.392 | AP119: 3785.968 | AQ119: 149 | AR119: 8366 | AS119: 20.75 | AT119: 4.580386033 | AU119: 63.94201991 | AV119: 38.67933267 | AW119: 4265.76865 | AX119: 14.26898654 | AY119: 43148.43821 | AZ119: 95280.13458 | BA119: 587.00028 | BB119: -51544.69609 | BC119: 33378.05092 | BD119: 25784.567 | BE119: 14.06305 | BF119: 414.38085 | BG119: 104.87602 | BH119: 7322.48006 | BI119: 5856.61598 | BJ119: -2.8403 | BK119: 1463.02378 | BL119: 0 | BM119: 3.32048 | BN119: -8.18325 | BO119: 14.94558 | BP119: 1466.46563 | BQ119: 11208.41805 | BR119: 6821.49993 | BS119: -11885.152 | BT119: 157.56621 | BU119: 942.48164 | BV119: 856.97704 | BW119: -1274.74772 | BX119: 9802.41446 | BY119: -8245.11414 | BZ119: -3963.60422 | CA119: 46686.13076 | CB119: 36683.99472 | CC119: 10002.13604 | CD119: 424.6122 | CE119: 3737.35424 | CF119: 114 | CG119: 8441 | CH119: 8.11 | CI119: 6.451580813 | CJ119: 105.6941456 | CK119: 46.26512366 | CL119: 2886.91818 | CM119: 23.10637932 | CN119: 13896.76806 | CO119: 36760.65642 | CP119: -17.1581 | CQ119: -22881.04646 | CR119: 18416.47749 | CS119: 12853.475 | CT119: 18.26441 | CU119: 833.09064 | CV119: 150.6241 | CW119: 7724.70389 | CX119: 4487.535 | CY119: -5.48633 | CZ119: 3231.68257 | DA119: 0 | DB119: 0 | DC119: -14.30917 | DD119: 17.22295 | DE119: 3234.59634 | DF119: 13318.32074 | DG119: 7775.75058 | DH119: 7363.21764 | DI119: 0 | DJ119: 41.8624 | DK119: 2301.95553 | DL119: -493.37411 | DM119: 0 | DN119: -1035.78291 | DO119: 454.39534 | DP119: 36651.19072 | DQ119: 26932.90448 | DR119: 9718.28624 | DS119: 314.62361 | DT119: 74.072 | DU119: 103 | DW119: 1786.16102 | DX119: 1715.7063 | DY119: 1701.637 | EA119: 1805
A120: 407 | B120: Lapinjärvi | C120: 2580 | D120: 21.5 | E120: 1.511857895 | F120: 68.30295154 | G120: 36.10434098 | H120: 7204.03551 | I120: 84.23900386 | J120: 12447.42619 | K120: 28321.03612 | L120: 0.68401 | M120: -15872.92592 | N120: 9541.32457 | O120: 7932.171 | P120: 11.53999 | Q120: 90.32693 | R120: 1113.16079 | S120: 2634.9435 | T120: 1474.70566 | U120: 2998.9498 | V120: 4159.18764 | W120: 2.165 | X120: 3.10379 | Y120: -4.52977 | Z120: -2.16088 | AA120: 4151.5582 | AB120: 3027.59966 | AC120: 2197.43163 | AD120: -1274.09029 | AE120: 32.58192 | AF120: 3758.15899 | AG120: 271.17673 | AH120: -1712.27002 | AI120: 217.41353 | AJ120: -1.16599 | AK120: 4714.08225 | AL120: 16793.37169 | AM120: 11912.47245 | AN120: 4880.89924 | AO120: 0.03015 | AP120: 1145.071 | AQ120: 96 | AR120: 2518 | AS120: 21.5 | AT120: 0.6225075786 | AU120: 52.04370487 | AV120: 43.58909065 | AW120: 3382.57265 | AX120: 37.59129035 | AY120: 11700.03311 | AZ120: 28979.58345 | BA120: -8.65949 | BB120: -17288.20983 | BC120: 10065.65061 | BD120: 8502.307 | BE120: 15.68627 | BF120: 103.29373 | BG120: 653.5569 | BH120: 1845.69722 | BI120: 1450.28385 | BJ120: 0 | BK120: 395.41337 | BL120: 0 | BM120: 0.26143 | BN120: 3.9886 | BO120: -0.00279 | BP120: 399.13775 | BQ120: 3426.73742 | BR120: 1907.77887 | BS120: -1101.00778 | BT120: 3.79565 | BU120: 54.27202 | BV120: -113.94904 | BW120: -3027.57731 | BX120: 836.1395 | BY120: -2995.7655 | BZ120: 864.83876 | CA120: 11606.16837 | CB120: 10395.21038 | CC120: 1210.95799 | CD120: 0 | CE120: 1282.40298 | CF120: 159 | CG120: 2449 | CH120: 8.86 | CI120: 1.059884378 | CJ120: 85.21979946 | CK120: 53.66691462 | CL120: 1702.79285 | CM120: 45.00843022 | CN120: 3579.80701 | CO120: 11009.98881 | CP120: 0 | CQ120: -7430.1818 | CR120: 5294.15702 | CS120: 2735.275 | CT120: 48.59743 | CU120: 233.74322 | CV120: 788.73775 | CW120: 1202.84218 | CX120: 1210.02263 | CY120: 0 | CZ120: -7.18045 | DA120: 0.54091 | DB120: 0.03006 | DC120: 0 | DD120: 0 | DE120: -6.6696 | DF120: 3649.22133 | DG120: 1266.45603 | DH120: 654.81141 | DI120: 0 | DJ120: 64.94762 | DK120: 141.71233 | DL120: -1121.67387 | DM120: 0 | DN120: 0 | DO120: 676.59224 | DP120: 8098.02946 | DQ120: 7185.5754 | DR120: 912.45406 | DS120: 0 | DT120: 226.41289 | DU120: 235 | DW120: 1705.07796 | DX120: 1705.50095 | DY120: 1700.90554 | EA120: 130
A121: 402 | B121: Lapinlahti | C121: 9247 | D121: 21.25 | E121: 0.8777366083 | F121: 72.01902262 | G121: 32.93050556 | H121: 9060.59072 | I121: 28.04391137 | J121: 38780.91242 | K121: 101219.9924 | L121: 179.41953 | M121: -62259.6604 | N121: 32548.30905 | O121: 35144.50129 | P121: 26.95487 | Q121: 477.01581 | R121: 873.94677 | S121: 5857.03577 | T121: 6792.37662 | U121: 283.95891 | V121: -651.38194 | W121: 6.59968 | X121: 5.5579 | Y121: -5.67119 | Z121: 6.40186 | AA121: -649.60949 | AB121: 1144.38396 | AC121: 5642.56041 | AD121: -9477.84731 | AE121: 621.87423 | AF121: 1779.18993 | AG121: 505.05996 | AH121: -6739.33078 | AI121: 7222.3969 | AJ121: 1675.74327 | AK121: -1434.22274 | AL121: 62098.54934 | AM121: 53889.45263 | AN121: 8209.09671 | AO121: 6.11631 | AP121: 3146.813 | AQ121: 236 | AR121: 9099 | AS121: 21.25 | AT121: 0.824910598 | AU121: 74.04920753 | AV121: 30.02793001 | AW121: 8275.90786 | AX121: 25.1020929 | AY121: 43151.06234 | AZ121: 107246.5377 | BA121: 223.47927 | BB121: -63871.99612 | BC121: 33164.98027 | BD121: 33561.326 | BE121: 26.71643 | BF121: 547.43735 | BG121: 1219.88062 | BH121: 3553.46985 | BI121: 6403.76844 | BJ121: -4.85189 | BK121: -2855.15048 | BL121: 9.24636 | BM121: 3.10872 | BN121: -39.76758 | BO121: 105.57198 | BP121: -2783.20844 | BQ121: -1637.96011 | BR121: 3068.53392 | BS121: -8096.38534 | BT121: 152.24443 | BU121: 152.88041 | BV121: -714.68177 | BW121: -4423.89798 | BX121: 8079.45931 | BY121: -701.53181 | BZ121: -4722.72658 | CA121: 65052.57886 | CB121: 57722.41422 | CC121: 7330.16464 | CD121: 2.29709 | CE121: 2375.404 | CF121: 262 | CG121: 8975 | CH121: 8.61 | CI121: 1.583531446 | CJ121: 113.6107444 | CK121: 38.21011876 | CL121: 4205.03377 | CM121: 29.93239261 | CN121: 18859.13441 | CO121: 41277.29696 | CP121: 983.96629 | CQ121: -21434.19626 | CR121: 17949.18363 | CS121: 11225.07194 | CT121: 18.49801 | CU121: 1169.50857 | CV121: 908.35657 | CW121: 7497.40532 | CX121: 5584.68638 | CY121: 35.41296 | CZ121: 1948.1319 | DA121: 0.11823 | DB121: 0.64828 | DC121: 24.16493 | DD121: 42.65147 | DE121: 2014.41825 | DF121: 375.02291 | DG121: 6343.01444 | DH121: 3609.63583 | DI121: 140.84995 | DJ121: 356.49558 | DK121: 1263.46338 | DL121: -4303.64696 | DM121: 3963.06912 | DN121: -475.4369 | DO121: 3230.72414 | DP121: 47019.58237 | DQ121: 39424.72547 | DR121: 7594.8569 | DS121: 0 | DT121: 3153.009 | DU121: 132 | DW121: 3048.15515 | DX121: 3061.01901 | DY121: 1421.54075 | EA121: 2449
A122: 403 | B122: Lappajärvi | C122: 2866 | D122: 22 | E122: 2.091533058 | F122: 66.63329725 | G122: 46.92321746 | H122: 4466.75284 | I122: 42.63325864 | J122: 12718.4239 | K122: 34112.18179 | L122: -4.6495 | M122: -21398.40739 | N122: 10560.51676 | O122: 13538.59451 | P122: 48.24109 | Q122: 41.29952 | R122: -4.78602 | S122: 2702.85943 | T122: 1970.47514 | U122: 0 | V122: 732.38429 | W122: -0.04352 | X122: 1.52973 | Y122: -9.79266 | Z122: 48.09604 | AA122: 769.11442 | AB122: 3080.77779 | AC122: 2726.03448 | AD122: -2768.51332 | AE122: 385.041 | AF122: 20.9668 | AG122: 623.10492 | AH122: -1270.73279 | AI122: 330.78843 | AJ122: 1537.80251 | AK122: 363.52896 | AL122: 20323.9792 | AM122: 9364.5397 | AN122: 10959.4395 | AO122: 164.1284 | AP122: 56.20891 | AQ122: 120 | AR122: 2820 | AS122: 22 | AT122: 2.063838859 | AU122: 64.90509583 | AV122: 40.02074061 | AW122: 3720.79448 | AX122: 33.31196905 | AY122: 12655.48537 | AZ122: 35160.04946 | BA122: 6.15702 | BB122: -22498.40707 | BC122: 10236.64175 | BD122: 14344.78162 | BE122: 15.92054 | BF122: 147.81703 | BG122: 71.46968 | BH122: 2022.58949 | BI122: 2132.46435 | BJ122: -1e-05 | BK122: -109.87487 | BL122: 42 | BM122: 8.31938 | BN122: 1.25734 | BO122: -17.26407 | BP122: -92.20098 | BQ122: 2578.45963 | BR122: 1933.13832 | BS122: -2559.88335 | BT122: 430.55 | BU122: 46.6682 | BV122: -275.97355 | BW122: -903.81862 | BX122: 4457.60631 | BY122: -3992.18456 | BZ122: -149.52683 | CA122: 20032.38233 | CB122: 12759.97641 | CC122: 7272.40592 | CD122: 163.30272 | CE122: 271.87045 | CF122: 163 | CG122: 2789 | CH122: 9.36 | CI122: 2.441302253 | CJ122: 108.2022713 | CK122: 45.37725556 | CL122: 3948.21785 | CM122: 91.19773703 | CN122: 6483.23003 | CO122: 13888.91689 | CP122: 54.27763 | CQ122: -7351.40923 | CR122: 6004.59881 | CS122: 3817.411 | CT122: 41.1853 | CU122: 356.98497 | CV122: -139.61181 | CW122: 2015.1891 | CX122: 1695.99351 | CY122: 0 | CZ122: 319.19559 | DA122: 0 | DB122: 7.32578 | DC122: 0 | DD122: 30.63218 | DE122: 342.50199 | DF122: 2982.89561 | DG122: 2243.22394 | DH122: 1080.9329 | DI122: 123.2588 | DJ122: 238.01631 | DK122: 729.05507 | DL122: -614.69892 | DM122: 95.38456 | DN122: -687.56912 | DO122: 1523.56615 | DP122: 14559.84067 | DQ122: 8227.86117 | DR122: 6331.9795 | DS122: 160 | DT122: 22.22616 | DU122: 174 | DW122: 0 | DX122: 0 | DY122: 0 | EA122: 5270
A123: 405 | B123: Lappeenranta | C123: 72634 | D123: 21 | E123: 3.280839591 | F123: 84.21585547 | G123: 33.33944548 | H123: 94427.5692 | I123: 39.51464417 | J123: 392916.719 | K123: 760633.0801 | L123: -1438.79307 | M123: -369155.1542 | N123: 329736.7763 | O123: 144421.9701 | P123: 118.69969 | Q123: 4626.12035 | R123: 881.9352 | S123: 101378.1068 | T123: 66676.79809 | U123: 97.75867 | V123: 34799.06733 | W123: -0.20338 | X123: 1500.8213 | Y123: -2384.5609 | Z123: 237.52285 | AA123: 31151.0046 | AB123: 149318.6267 | AC123: 95560.09745 | AD123: -79223.52251 | AE123: 610.49222 | AF123: 5447.08163 | AG123: -17254.57635 | AH123: -27683.97106 | AI123: 26500 | AJ123: 1517.15613 | AK123: 22394.14879 | AL123: 507252.3232 | AM123: 435089.4193 | AN123: 72162.90383 | AO123: 10829.66749 | AP123: 19708.346 | AQ123: 32 | AR123: 72650 | AS123: 21 | AT123: 3.841250775 | AU123: 75.6771047 | AV123: 41.42132051 | AW123: 73984.59613 | AX123: 30.44695561 | AY123: 408765.7059 | AZ123: 799637.7595 | BA123: 900.67625 | BB123: -389971.3774 | BC123: 330480.3228 | BD123: 147587.6937 | BE123: 196.44711 | BF123: 4616.70774 | BG123: 1320.57108 | BH123: 84996.94952 | BI123: 53529.30033 | BJ123: 7.04179 | BK123: 31474.69098 | BL123: 1.30054 | BM123: 1805.77607 | BN123: -2112.76389 | BO123: 341.25716 | BP123: 27898.70872 | BQ123: 176465.6418 | BR123: 71181.21436 | BS123: -63174.8734 | BT123: 586.32855 | BU123: 6252.20477 | BV123: 19794.09103 | BW123: -18712.58329 | BX123: 8566.28407 | BY123: -45978.98987 | BZ123: 14844.87428 | CA123: 451127.0345 | CB123: 424943.1201 | CC123: 26183.91436 | CD123: 11505.65393 | CE123: 13847.013 | CF123: 53 | CG123: 72988 | CH123: 8.36 | CI123: 1.261420113 | CJ123: 129.9782662 | CK123: 45.76471735 | CL123: 78906.54611 | CM123: 57.85300642 | CN123: 222283.1565 | CO123: 354186.2995 | CP123: 180.90646 | CQ123: -131722.2366 | CR123: 187196.2918 | CS123: 42610.6561 | CT123: 2719.9008 | CU123: 9871.8296 | CV123: 728.2188 | CW123: 91661.00134 | CX123: 62806.22557 | CY123: 0 | CZ123: 28854.77577 | DA123: 69.2991 | DB123: 251.01497 | DC123: -1091.69 | DD123: 236.84072 | DE123: 27818.21062 | DF123: 206220.1189 | DG123: 90677.06084 | DH123: 62381.87067 | DI123: 444.24382 | DJ123: 4908.02161 | DK123: 764.56487 | DL123: -70619.0631 | DM123: 34941.393 | DN123: 40332.93512 | DO123: 33647.4556 | DP123: 422068.6295 | DQ123: 356560.1295 | DR123: 65508.49996 | DS123: 10829.66749 | DT123: 8472.667 | DU123: 33 | DW123: 3143.09342 | DX123: 3675.76685 | DY123: 3073.79433 | EA123: 13468
A124: 408 | B124: Lapua | C124: 14203 | D124: 21.5 | E124: 1.29782168 | F124: 99.82833538 | G124: 26.5429944 | H124: 14017.74604 | I124: 32.10738194 | J124: 57087.81674 | K124: 135706.8801 | L124: -22.54852 | M124: -78641.61183 | N124: 53484.81833 | O124: 41409.681 | P124: 80.37173 | Q124: 775.98981 | R124: 255.78767 | S124: 15813.05709 | T124: 10860.89037 | U124: 0 | V124: 4952.16672 | W124: 3.89892 | X124: 13.40223 | Y124: -443.87613 | Z124: 1.37868 | AA124: 4500.16596 | AB124: 24910.12248 | AC124: 15620.89013 | AD124: -10505.84331 | AE124: 80.32838 | AF124: 385.9986 | AG124: -33.97932 | AH124: -12006.23378 | AI124: 8311.98246 | AJ124: 760.85454 | AK124: 5581.3738 | AL124: 119765.4469 | AM124: 89632.57391 | AN124: 30132.87297 | AO124: 15.34 | AP124: 5564.46689 | AQ124: 71 | AR124: 14099 | AS124: 21.5 | AT124: 1.204546679 | AU124: 97.69577846 | AV124: 26.7096161 | AW124: 12543.10279 | AX124: 26.84777261 | AY124: 56174.1638 | AZ124: 142320.0438 | BA124: -33.00148 | BB124: -86178.88145 | BC124: 56624.03677 | BD124: 43729.599 | BE124: 68.58333 | BF124: 888.1506 | BG124: 536.36759 | BH124: 13891.55464 | BI124: 11604.03157 | BJ124: 0 | BK124: 2287.52307 | BL124: 0 | BM124: 160.13046 | BN124: -180.32203 | BO124: 10.57611 | BP124: 1957.64669 | BQ124: 25459.74199 | BR124: 13604.93615 | BS124: -15082.05299 | BT124: 318.5772 | BU124: 302.33665 | BV124: -102.32237 | BW124: -11381.7809 | BX124: 8164.5622 | BY124: 3157.88866 | BZ124: -856.20299 | CA124: 118198.7051 | CB124: 85449.46542 | CC124: 32749.23965 | CD124: 12.272 | CE124: 950.66841 | CF124: 81 | CG124: 14024 | CH124: 8.86 | CI124: 1.281701552 | CJ124: 162.5808052 | CK124: 32.3978955 | CL124: 8310.20141 | CM124: 37.09340129 | CN124: 27004.57522 | CO124: 58653.03529 | CP124: -4.27606 | CQ124: -31652.73613 | CR124: 31585.30016 | CS124: 15933.67 | CT124: 16.70443 | CU124: 1533.8218 | CV124: -154.20528 | CW124: 14194.91138 | CX124: 9545.35541 | CY124: 0 | CZ124: 4649.55597 | DA124: 0 | DB124: 26.11189 | DC124: -39.60724 | DD124: -24.71676 | DE124: 4559.12008 | DF124: 30289.21732 | DG124: 14078.19736 | DH124: 10716.07677 | DI124: 77.16585 | DJ124: 279.9477 | DK124: 3058.43073 | DL124: -10737.93769 | DM124: 8109.89995 | DN124: -392.4416 | DO124: 3719.23414 | DP124: 99042.67753 | DQ124: 69061.12614 | DR124: 29981.55139 | DS124: 0 | DT124: 335.19438 | DU124: 78 | DW124: 321.11087 | DX124: 321.11147 | DY124: 381.92886 | EA124: 857
A125: 410 | B125: Laukaa | C125: 18788 | D125: 21.5 | E125: 5.247943244 | F125: 109.2661028 | G125: 14.2340232 | H125: 9270.37607 | I125: 17.97765924 | J125: 45914.99081 | K125: 164224.7898 | L125: 0 | M125: -118309.799 | N125: 75420.85657 | O125: 50200.73001 | P125: 17.94443 | Q125: 327.56001 | R125: 496.10393 | S125: 7498.27592 | T125: 10345.20644 | U125: 578 | V125: -2268.93052 | W125: -296.88394 | X125: -139.09024 | Y125: 94.35343 | Z125: 0 | AA125: -2332.37079 | AB125: -4026.22261 | AC125: 6966.43483 | AD125: -22385.61952 | AE125: 201.4 | AF125: 3900.15606 | AG125: -1418.20295 | AH125: -1163.65961 | AI125: 27703.26638 | AJ125: -12794.76402 | AK125: -11317.62863 | AL125: 161899.7942 | AM125: 107346.9287 | AN125: 54552.86557 | AO125: 63.13375 | AP125: 23615.52608 | AQ125: 280 | AR125: 18775 | AS125: 21.5 | AT125: 2.579327515 | AU125: 106.434982 | AV125: 12.60920958 | AW125: 7222.80208 | AX125: 13.53835691 | AY125: 50364.29752 | AZ125: 175708.9105 | BA125: 0 | BB125: -125344.613 | BC125: 78602.9909 | BD125: 55230.42036 | BE125: 13.37382 | BF125: 519.38043 | BG125: 412.96977 | BH125: 8395.76141 | BI125: 11537.08511 | BJ125: 509.82415 | BK125: -2631.49955 | BL125: -430.50807 | BM125: 0 | BN125: 104.5778 | BO125: 0 | BP125: -2957.42982 | BQ125: -6895.43202 | BR125: 8351.52048 | BS125: -15462.62824 | BT125: 128.85565 | BU125: 774.24225 | BV125: -3778.76277 | BW125: -2937.00182 | BX125: 0 | BY125: 6051.03068 | BZ125: -6208.00986 | CA125: 165946.9006 | CB125: 105343.0043 | CC125: 60603.89625 | CD125: 103.98785 | CE125: 39187.23736 | CF125: 246 | CG125: 18762 | CH125: 8.86 | CI125: 0.5189334039 | CJ125: 158.3624592 | CK125: 16.30881644 | CL125: 4898.92988 | CM125: 15.17811592 | CN125: 22626.3258 | CO125: 79637.344 | CP125: 0 | CQ125: -57011.0182 | CR125: 44327.1894 | CS125: 28575.25609 | CT125: 29.26015 | CU125: 2361.8209 | CV125: 351.5535 | CW125: 13910.42004 | CX125: 9653.44357 | CY125: 0 | CZ125: 4256.97647 | DA125: -2.11622 | DB125: 1.29951 | DC125: -58.82565 | DD125: 0 | DE125: 4194.73509 | DF125: -4202.55252 | DG125: 13372.80959 | DH125: 6462.4039 | DI125: 125.6 | DJ125: 623.1902 | DK125: 732.09549 | DL125: -28995.26812 | DM125: 963.26071 | DN125: 27716.98347 | DO125: 7659.19589 | DP125: 138897.0301 | DQ125: 51840.37856 | DR125: 87056.6515 | DS125: 59.2069 | DT125: 37737.81559 | DU125: 167 | DW125: 2852.56033 | DX125: 2940.84361 | DY125: 2839.82577 | EA125: 4388
